Workbook

Sheet Data Inputs
C1: This sheet contains: Balance Sheet, income statement, loan data, interest rate shock results, 10-year MT, and other data needed to run the test. | AW1: This Sheet is for convenience of transfer into the data tab of the RBCST. Check formats each time to insure correspondance.
C2: Instructions: Enter information in areas marked in blue. | AW2: (Convenient to use paste special | skip blanks to collate information)
D3: 1 | E3: 2 | F3: 3 | G3: 4 | H3: 5 | I3: 6 | J3: 7 | K3: 8 | L3: 9 | M3: 10 | N3: 11 | O3: 12 | P3: 13 | Q3: 14 | R3: 15 | S3: 16 | T3: 17 | U3: 18 | V3: 19 | W3: 20 | X3: 21 | Y3: 22 | Z3: 23 | AA3: 24 | AB3: 25 | AC3: 26 | AD3: 27 | AE3: 28 | AF3: 29 | AG3: 30 | AH3: 31 | AI3: 32 | AJ3: 33 | AK3: 34 | AL3: 35 | AM3: 36 | AN3: 37 | AO3: 38 | AP3: 39 | AQ3: 40 | AR3: 41 | AS3: 42 | AT3: 43 | AU3: 44 | AV3: 45 | AW3: 46 | AX3: 47 | AY3: 48 | AZ3: 49 | BA3: 50 | BB3: 51 | BC3: 52 | BD3: 53 | BE3: 54 | BF3: 55 | BG3: 56 | BH3: 57 | BI3: 58 | BJ3: 59 | BK3: 60 | BL3: 61 | BM3: 62 | BN3: 63 | BO3: 64 | BP3: 65 | BQ3: 66 | BR3: 67 | BS3: 68 | BT3: 69 | BU3: 70 | BV3: 71 | BW3: 72 | BX3: 73 | BY3: 74 | BZ3: 75 | CA3: 76
A4: Date Range | B4: =Asofdate -> 2018-03-31 | D4: 1999-06-30 | E4: 1999-09-30 | F4: 1999-12-31 | G4: 2000-03-31 | H4: 2000-06-30 | I4: 2000-09-30 | J4: 2000-12-31 | K4: 2001-03-31 | L4: 2001-06-30 | M4: 2001-09-30 | N4: 2001-12-31 | O4: 2002-03-31 | P4: 2002-06-30 | Q4: 2002-09-30 | R4: 2002-12-31 | S4: 2003-03-31 | T4: 2003-06-30 | U4: 2003-09-30 | V4: 2003-12-31 | W4: 2004-03-31 | X4: 2004-06-30 | Y4: 2004-09-30 | Z4: 2004-12-31 | AA4: 2005-03-31 | AB4: 2005-06-30 | AC4: 2005-09-30 | AD4: 2005-12-31 | AE4: 2006-03-31 | AF4: 2006-06-30 | AG4: 2006-09-30 | AH4: 2006-12-31 | AI4: 2007-03-31 | AJ4: 2007-06-30 | AK4: 2007-09-30 | AL4: 2007-12-31 | AM4: 2008-03-31 | AN4: 2008-06-30 | AO4: 2008-09-30 | AP4: 2008-12-31 | AQ4: 2009-03-31 | AR4: 2009-06-30 | AS4: 2009-09-30 | AT4: 2009-12-31 | AU4: 2010-03-31 | AV4: 2010-06-30 | AW4: 2010-09-30 | AX4: 2010-12-31 | AY4: 2011-03-31 | AZ4: 2011-06-30 | BA4: 2011-09-30 | BB4: 2011-12-31 | BC4: 2012-03-31 | BD4: 2012-06-30 | BE4: 2012-09-30 | BF4: 2012-12-31 | BG4: 2013-03-31 | BH4: 2013-06-30 | BI4: 2013-09-30 | BJ4: 2013-12-31 | BK4: 2014-03-31 | BL4: 2014-06-30 | BM4: 2014-09-30 | BN4: 2014-12-31 | BO4: 2015-03-31 | BP4: 2015-06-30 | BQ4: 2015-09-30 | BR4: 2015-12-31 | BS4: 2016-03-31 | BT4: 2016-06-30 | BU4: 2016-09-30 | BV4: 2016-12-31 | BW4: 2017-03-31 | BX4: 2017-06-30 | BY4: 2017-09-30 | BZ4: 2017-12-31 | CA4: 2018-03-31
C5: Balance Sheet
C6: Assets:
B7: =LOOKUP($B$4,$D$4:$CD$4,D7:CD7) -> 0 | C7: Cash and cash equivalents
B8: =LOOKUP($B$4,$D$4:$CD$4,D8:CD8) -> 0 | C8: Investment Securities
B9: 0 | C9: Available for Sale at fair value
B10: 0 | C10: Trading, at fair value
B11: 0 | C11: Total Investment Securities
B12: 0 | C12: Farmer Mac guaranteed securities
B13: 0 | C13: Available-for-sale, at fair value
B14: 0 | C14: Trading, at fair value
B15: 0 | C15: Total Farmer Mac Guaranteed Securities
B16: 0 | C16: USDA Guaranteed Securities:
B17: 0 | C17: Available-for-sale, at fair value
B18: 0 | C18: Trading, at fair value
B19: 0 | C19: Total USDA Guaranteed Securities
B20: 0 | C20: Loans:
B21: 0 | C21: Loans held for sale, at lower of cost or fair value
B22: 0 | C22: Loans held for investment, at amortized cost
B23: 0 | C23: Loans held for investment in consolidated trusts
B24: 0 | C24: Allowance for loan losses (March 31, 2004 and Later)
B25: 0 | C25: Total Loans, net of allowance (3/31/10 and later, gross prior)
B26: 0 | C26: Real estate owned (net)
B27: 0 | C27: Financial Derivatives (March 31, 2001 and Later)
B28: 0 | C28: Interest receivable
B29: 0 | C29: Guarantee and commitment fees receivable
B30: 0 | C30: Deferred tax asset, net
B31: 0 | C31: Prepaid expenses and other assets
B32: 0 | C32: Total assets | D32: =SUM(D7:D31) -> 0 | E32: 0 | F32: 0 | G32: 0 | H32: 0 | I32: 0 | J32: 0 | K32: =SUM(K7:K31) -> 0 | L32: =SUM(L7:L31) -> 0 | M32: 3377216 | N32: =SUM(N7:N31) -> 0 | O32: =SUM(O7:O31) -> 0 | P32: =SUM(P7:P31) -> 0 | Q32: =SUM(Q7:Q31) -> 0 | R32: =SUM(R7:R31) -> 0 | S32: =SUM(S7:S31) -> 0 | T32: 0 | U32: 0 | V32: 0 | W32: 0 | X32: 0 | Y32: 0 | Z32: 0 | AA32: 0 | AB32: 0 | AC32: 0 | AD32: 0 | AE32: 0 | AF32: 0 | AG32: 0 | AH32: 0 | AI32: 0 | AJ32: 0 | AK32: 0 | AL32: 0 | AM32: 0 | AN32: 0 | AO32: 0 | AP32: 0 | AQ32: 0 | AR32: 0 | AS32: 0 | AT32: =SUM(AT11:AT31) -> 0 | AU32: =SUM(AU11:AU31) -> 0 | AV32: 0 | AW32: 0 | AX32: 0 | AY32: 0 | AZ32: 0 | BA32: 0 | BB32: 0 | BC32: 0 | BD32: 0 | BE32: 0 | BF32: 0 | BG32: 0 | BH32: 0 | BI32: 0 | BJ32: 0 | BK32: 0 | BL32: 0 | BM32: 0 | BN32: 0 | BO32: 0 | BP32: 0 | BQ32: 0 | BR32: 0 | BS32: 0 | BT32: 0 | BU32: 0 | BV32: 0 | BW32: 0 | BX32: 0 | BY32: 0 | BZ32: 0 | CA32: 0
B33: 0 | C33: Total Assets Net of FAS 167 phantom funded trusts
B34: 0
B35: 0 | C35: Liabilities:
B36: 0 | C36: Notes and bonds payable, net:
B37: 0 | C37: Due within one year
B38: 0 | C38: Due after one year
B39: 0 | C39: Total Notes Payable
B40: 0 | C40: Debt Securities of Consolidated Trusts held by third parties (FAS 167)
A41: ='Data Inputs'!V$4 -> 2003-12-31 | B41: 0 | C41: Financial Derivatives (March 31, 2001 and Later)
A42: ='Data Inputs'!W$4 -> 2004-03-31 | B42: 0 | C42: Accrued interest payable
A43: ='Data Inputs'!X$4 -> 2004-06-30 | B43: 0 | C43: Guarantee and commitment obligation (March 31, 2004 and Later)
A44: ='Data Inputs'!Y$4 -> 2004-09-30 | B44: 0 | C44: Accounts payable and accrued expenses
A45: ='Data Inputs'!Z$4 -> 2004-12-31 | B45: 0 | C45: Deferred tax liability - net
A46: ='Data Inputs'!AA$4 -> 2005-03-31 | B46: 0 | C46: Reserve for losses on guaranteed securities
A47: ='Data Inputs'!AB$4 -> 2005-06-30 | B47: 0 | C47: Total liabilities | D47: =SUM(D37:D46) -> 0 | E47: =SUM(E37:E46) -> 0 | F47: 0 | G47: 0 | H47: 0 | I47: 0 | J47: 0 | K47: 0 | L47: 0 | M47: 0 | N47: 0 | O47: 0 | P47: 0 | Q47: 0 | R47: 0 | S47: 0 | T47: 0 | U47: 0 | V47: 0 | W47: 0 | X47: 0 | Y47: 0 | Z47: 0 | AA47: 0 | AB47: 0 | AC47: 0 | AD47: 0 | AE47: 0 | AF47: 0 | AG47: 0 | AH47: 0 | AI47: 0 | AJ47: 0 | AK47: 0 | AL47: 0 | AM47: 0 | AN47: 0 | AO47: 0 | AP47: 0 | AQ47: 0 | AR47: 0 | AS47: 0 | AT47: 0 | AU47: 0 | AV47: 0 | AW47: 0 | AX47: 0 | AY47: 0 | AZ47: 0 | BA47: 0 | BB47: 0 | BC47: 0 | BD47: 0 | BE47: 0 | BF47: 0 | BG47: 0 | BH47: 0 | BI47: 0 | BJ47: 0 | BK47: 0 | BL47: 0 | BM47: 0 | BN47: 0 | BO47: 0 | BP47: 0 | BQ47: =SUM(BQ37:BQ46) -> 0 | BR47: 0 | BS47: 0 | BT47: 0 | BU47: 0 | BV47: 0 | BW47: 0 | BX47: 0 | BY47: 0 | BZ47: 0 | CA47: 0
A48: ='Data Inputs'!AC$4 -> 2005-09-30 | B48: 0 | C48: Total Liabilities net of phantom funded trusts | AU48: =AU47-AU40 -> 0 | AV48: 0 | AW48: 0 | AX48: 0 | AY48: 0 | AZ48: 0 | BA48: 0 | BB48: 0 | BC48: 0 | BD48: 0 | BE48: 0 | BF48: 0 | BG48: 0 | BH48: 0 | BI48: 0 | BJ48: 0 | BK48: 0 | BL48: 0 | BM48: 0 | BN48: 0 | BO48: 0 | BP48: 0 | BQ48: 0 | BR48: 0 | BS48: 0 | BT48: 0 | BU48: 0 | BV48: 0 | BW48: 0 | BX48: 0 | BY48: 0 | BZ48: =BZ47-BZ40 -> 0 | CA48: 0
B49: 0 | C49: Stockholders' Equity:
B50: 0
B51: 0 | C51: Mezzanine Equity:
B52: 0 | C52: Series B redeemable preferred stock
B53: 0 | C53: Stockholders' Equity:
B54: 0 | C54: Preferred stock:
A55: ='Data Inputs'!AD$4 -> 2005-12-31 | B55: 0 | C55: Series C/Series A as of 3/31/2013
A56: ='Data Inputs'!AE$4 -> 2006-03-31 | B56: 0 | C56: Common stock:
A57: ='Data Inputs'!AF$4 -> 2006-06-30 | B57: 0 | C57: Class A Voting
A58: ='Data Inputs'!AG$4 -> 2006-09-30 | B58: 0 | C58: Class B Voting
A59: ='Data Inputs'!AI$4 -> 2007-03-31 | B59: 0 | C59: Class C Voting
A60: ='Data Inputs'!AK$4 -> 2007-09-30 | B60: 0 | C60: Additional paid-in capital
A61: ='Data Inputs'!AL$4 -> 2007-12-31 | B61: 0 | C61: Accumulated Other Comprehensive Income
B62: 0 | C62: Retained Earnings (historic aggregated account)
A63: ='Data Inputs'!AH$4 -> 2006-12-31 | B63: 0 | C63: Total stockholders' equity
A64: ='Data Inputs'!AM$4 -> 2008-03-31 | B64: 0 | C64: Non controlling interest - preferred stock
A65: ='Data Inputs'!AN$4 -> 2008-06-30 | B65: 0 | C65: Total equity | D65: =SUM(D57:D64) -> 0 | E65: =SUM(E57:E64) -> 0 | F65: =SUM(F57:F64) -> 0 | G65: 0 | H65: 0 | I65: 0 | J65: 0 | K65: 0 | L65: 0 | M65: 0 | N65: 0 | O65: 0 | P65: 0 | Q65: 0 | R65: 0 | S65: 0 | T65: 0 | U65: 0 | V65: 0 | W65: 0 | X65: 0 | Y65: 0 | Z65: 0 | AA65: 0 | AB65: 0 | AC65: 0 | AD65: 0 | AE65: 0 | AF65: 0 | AG65: 0 | AH65: 0 | AI65: 0 | AJ65: 0 | AK65: 0 | AL65: 0 | AM65: 0 | AN65: 0 | AO65: 0 | AP65: 0 | AQ65: 0 | AR65: 0 | AS65: 0 | AT65: 0 | AU65: 0 | AV65: 0 | AW65: 0 | AX65: 0 | AY65: 0 | AZ65: 0 | BA65: 0 | BB65: 0 | BC65: 0 | BD65: 0 | BE65: 0 | BF65: 0 | BG65: 0 | BH65: 0 | BI65: 0 | BJ65: 0 | BK65: 0 | BL65: 0 | BM65: 0 | BN65: 0 | BO65: 0 | BP65: 0 | BQ65: 0 | BR65: =SUM(BR57:BR64) -> 0 | BS65: 0 | BT65: 0 | BU65: 0 | BV65: 0 | BW65: 0 | BX65: 0 | BY65: 0 | BZ65: 0 | CA65: 0
A66: ='Data Inputs'!AO$4 -> 2008-09-30 | B66: 0 | C66: Total Liabilities and Stockholders' Equity | D66: =D47+D65 -> 0 | E66: 0 | F66: =F47+F65 -> 0 | G66: 0 | H66: 0 | I66: 0 | J66: 0 | K66: 0 | L66: 0 | M66: 0 | N66: 0 | O66: 0 | P66: 0 | Q66: 0 | R66: 0 | S66: 0 | T66: 0 | U66: 0 | V66: 0 | W66: 0 | X66: 0 | Y66: 0 | Z66: 0 | AA66: 0 | AB66: 0 | AC66: 0 | AD66: 0 | AE66: 0 | AF66: 0 | AG66: 0 | AH66: 0 | AI66: 0 | AJ66: 0 | AK66: 0 | AL66: 0 | AM66: 0 | AN66: 0 | AO66: 0 | AP66: 0 | AQ66: 0 | AR66: 0 | AS66: 0 | AT66: 0 | AU66: 0 | AV66: 0 | AW66: 0 | AX66: 0 | AY66: 0 | AZ66: 0 | BA66: 0 | BB66: 0 | BC66: 0 | BD66: 0 | BE66: 0 | BF66: 0 | BG66: 0 | BH66: 0 | BI66: 0 | BJ66: 0 | BK66: 0 | BL66: 0 | BM66: 0 | BN66: 0 | BO66: 0 | BP66: 0 | BQ66: 0 | BR66: =BR47+BR65 -> 0 | BS66: 0 | BT66: 0 | BU66: 0 | BV66: 0 | BW66: 0 | BX66: 0 | BY66: 0 | BZ66: 0 | CA66: 0
B67: 0
B68: 0
B69: 0 | C69: Cash Flow Details for Assets, Liabilities, and Swaps
B70: 0 | C70: Enter information from QRM subaccount structure report
B71: 0 | C71: Cash & Money Market
B72: =LOOKUP($B$4,$D$4:$CD$4,D72:CD72) -> 0 | C72: RBC Book Value
B73: 0 | C73: Wtd Avg. Yield
B74: 0 | C74: Wtd Avg. Maturity (Remaining Months)
B75: 0 | C75: Commercial Paper
B76: 0 | C76: RBC Book Value
B77: 0 | C77: Wtd Avg. Yield
B78: 0 | C78: Wtd Avg. Maturity (Remaining Months)
B79: 0 | C79: Certificates of Deposit
B80: 0 | C80: RBC Book Value
B81: 0 | C81: Wtd Avg. Yield
B82: 0 | C82: Wtd Avg. Maturity (Remaining Months)
B83: 0 | C83: Corporate and ABS
B84: 0 | C84: RBC Book Value
B85: 0 | C85: Wtd Avg. Yield
B86: 0 | C86: Wtd Avg. Maturity (Remaining Months)
B87: 0 | C87: Agency Mortgage-Backed and CMOs
B88: 0 | C88: RBC Book Value
B89: 0 | C89: Wtd Avg. Yield
B90: 0 | C90: Wtd Avg. Maturity (Remaining Months)
B91: 0 | C91: Conditional Prepayment Rate
B92: 0 | C92: Other Investments
B93: 0 | C93: RBC Book Value
B94: 0 | C94: Wtd Avg. Yield
B95: 0 | C95: Wtd Avg. Maturity (Remaining Months)
B96: 0 | C96: Conditional Prepayment Rate
B97: 0 | C97: FAMC I Post 1996
B98: 0 | C98: RBC Book Value
B99: 0 | C99: Wtd Avg. Yield
B100: 0 | C100: Wtd Avg. Maturity (Remaining Months)
B101: 0 | C101: Conditional Prepayment Rate
B102: 0 | C102: FAMC I Post 96 Swap
B103: 0 | C103: RBC Book Value
B104: 0 | C104: Wtd Avg. Yield
B105: 0 | C105: Wtd Avg. Maturity (Remaining Months)
B106: 0 | C106: Conditional Prepayment Rate
B107: 0 | C107: FAMC I Pre 1996
B108: 0 | C108: RBC Book Value
B109: 0 | C109: Wtd Avg. Yield
B110: 0 | C110: Wtd Avg. Maturity (Remaining Months)
B111: 0 | C111: Conditional Prepayment Rate
B112: 0 | C112: AgVantage
B113: 0 | C113: RBC Book Value
B114: 0 | C114: Wtd Avg. Yield
B115: 0 | C115: Wtd Avg. Maturity (Remaining Months)
B116: 0 | C116: Conditional Prepayment Rate
B117: 0
B118: 0 | C118: ON BS RU "Whole Loans"
B119: 0 | C119: Book Value
B120: 0 | C120: Weighted ave Yield on On BS portion
B121: 0 | C121: Wtd Avg. Maturity (Remaining Months)
B122: 0 | C122: Conditional Prepayment Rate
B123: 0 | C123: Spread total (G-fee+)
B124: 0 | C124: Wtd Ave Guarantee fee (accounting bookable)
B125: 0
B126: 0
B127: 0 | C127: ON Balance Sheet RU (AVP 5 from CLM) structures
B128: 0 | C128: RBC Book Value
B129: 0 | C129: Wtd Avg. Maturity (Remaining) (Months)
B130: 0 | C130: Wtd Avg. Pricing Spread
B131: 0 | C131: NetCredit Rate exposure
B132: 0 | C132: Wtd Avg. Yield (Gross WAC)
B133: 0 | C133: Wtd Avg. Guarantee Fee
B134: 0
B135: 0 | C135: ON BS RU ABS Structures (legacy)
B136: =LOOKUP($B$4,$D$4:$CD$4,D136:CD136) -> 0 | C136: Book Value
B137: 0 | C137: Weighted ave Yield on On BS portion
B138: 0 | C138: Wtd Avg. Maturity (Remaining Months)
B139: 0 | C139: Conditional Prepayment Rate
B140: 0 | C140: Spread total (G-fee+)
B141: 0 | C141: Wtd Ave Guarantee fee (accounting bookable)
B142: 0 | C142: Unamortized Premium
B143: 0
B144: 0 | C144: ON Balance Sheet AVP7 (CLM ref: Met)
B145: 0 | C145: Face Value G'teed Note (000s)
B146: 0 | C146: Maturity Date
B147: 0 | C147: Weighted Ave. Yield
B148: 0 | C148: Guarantee fee Spread total
B149: 0 | C149: NetCredit Rate exposure
B150: 0 | C150: Conditional Prepayment Rate
B151: 0
B152: 0 | C152: ON Balance Sheet AVP8 (CLM ref: RAF)
B153: 0 | C153: Face Value G'teed Note (000s)
B154: 0 | C154: Maturity Date
B155: 0 | C155: Weighted Ave. Yield
B156: 0 | C156: Guarantee fee Spread total
B157: 0 | C157: NetCredit Rate exposure
B158: 0 | C158: Conditional Prepayment Rate
B159: 0
B160: 0 | C160: ON Balance Sheet AVP9 (CLM ref: RAF)
B161: 0 | C161: Face Value G'teed Note (000s)
B162: 0 | C162: Maturity Date
B163: 0 | C163: Weighted Ave. Yield
B164: 0 | C164: Guarantee fee Spread total
B165: 0 | C165: NetCredit Rate exposure
B166: 0 | C166: Conditional Prepayment Rate
B167: 0
B168: =LOOKUP($B$4,$D$4:$CD$4,D168:CD168) -> 0 | C168: ON Balance Sheet AVP10 (CLM ref: RaboBank NA)
B169: 0 | C169: Face Value G'teed Note (000s)
B170: 0 | C170: Maturity Date
B171: 0 | C171: Weighted Ave. Yield
B172: 0 | C172: Guarantee fee Spread total
B173: 0 | C173: NetCredit Rate exposure
B174: 0 | C174: Conditional Prepayment Rate
B175: 0
B176: 0 | C176: Loans Held
B177: 0 | C177: RBC Book Value
B178: 0 | C178: Wtd Avg. Yield
B179: 0 | C179: Wtd Avg. Maturity (Remaining Months)
B180: 0 | C180: Conditional Prepayment Rate
A181: =B182 -> 0 | B181: 0 | C181: Gross REO
B182: 0 | C182: RBC Book Value
B183: 0 | C183: FAMC II
B184: 0 | C184: RBC Book Value
B185: 0 | C185: Wtd Avg. Yield
B186: 0 | C186: Wtd Avg. Maturity (Remaining Months)
B187: 0 | C187: Conditional Prepayment Rate
B188: 0 | C188: Off B/S FAMC I Post 1996
B189: 0 | C189: RBC Book Value (note: includes Sr/Sub OffBS)
B190: 0 | C190: Wtd Avg. Maturity (Remaining Months)
B191: 0 | C191: Conditional Prepayment Rate
B192: 0 | C192: Wtd Avg. Guarantee Fee
B193: 0 | C193: Off B/S FAMC I Pre 1996
B194: 0 | C194: RBC Book Value
B195: 0 | C195: Wtd Avg. Maturity (Remaining Months)
B196: 0 | C196: Conditional Prepayment Rate
B197: 0 | C197: Wtd Avg. Guarantee Fee
B198: 0 | C198: Off B/S FAMC II
B199: 0 | C199: RBC Book Value
B200: =LOOKUP($B$4,$D$4:$CD$4,D200:CD200) -> 0 | C200: Wtd Avg. Maturity (Remaining Months)
... 386 more rows

Sheet Assumptions & Relationships
A1: This sheet contains: amortization and prepayment assumptions, other balance sheet assumptions, income and expense assumptions, off-balance sheet income assumptions, credit loss, cost and earnings rate parameters, and interest rate model selection. | C1: This sheet contains: Balance Sheet, income statement, loan data, interest rate shock results, 10-year MT, and other data needed to run the test.
A2: Instructions: Enter information in areas marked in blue.
A5: Analysis Date: | B5: =Capital!A5 -> 2018-03-31
A8: Amortization and Prepayment Assumptions
A9: (all items with QRM subaccount information) | D9: Reference | E9: Implied | F9: Backfill
B10: CPR | C10: Yrs to Mat | D10: Balance/Volume | E10: Rolloff | F10: Rates
A11: Investments
A12: Cash & Money Market | C12: ='Data Inputs'!B74/12 -> 0 | D12: ='Data Inputs'!B72 -> 0 | E12: =MIN(1,(IF(C12<1,1,-PPMT(B100,1,C12,1,0)))) -> 1 | F12: 1
A13: Commercial Paper | C13: ='Data Inputs'!B78/12 -> 0 | D13: ='Data Inputs'!B76 -> 0 | E13: 1 | F13: 1
A14: Certificates of Deposit | C14: =('Data Inputs'!B82)/12 -> 0 | D14: ='Data Inputs'!B80 -> 0 | E14: 1 | F14: 1
A15: Corporate and ABS | C15: =('Data Inputs'!B86)/12 -> 0 | D15: ='Data Inputs'!B84 -> 0 | E15: 1 | F15: 1
A16: Agency Mortgage-Backed and CMOs | B16: ='Data Inputs'!B91 -> 0 | C16: =('Data Inputs'!B90)/12 -> 0 | D16: ='Data Inputs'!B88 -> 0 | E16: 1 | F16: 1
A17: Other Investments | B17: ='Data Inputs'!B96 -> 0 | C17: =('Data Inputs'!B95)/12 -> 0 | D17: ='Data Inputs'!B93 -> 0 | E17: 1 | F17: 1
A18: Total Reference volume -inv | D18: =SUM(D12:D17) -> 0 | G18: Discontinued Loan
A19: Loan Items | G19: Program Rollover
A20: FAMC I - Post 1996 Loans | B20: ='Data Inputs'!B101 -> 0 | C20: =('Data Inputs'!B100)/12 -> 0 | D20: ='Data Inputs'!B98 -> 0 | E20: =MIN(1,(IF(C20<1,1,-PPMT(B107,1,C20,1,0)))) -> 1 | F20: 1
A21: FAMC I - Post 1996 Swap | B21: ='Data Inputs'!B106 -> 0 | C21: =('Data Inputs'!B105)/12 -> 0 | D21: ='Data Inputs'!B103 -> 0 | E21: =MIN(1,(IF(C21<1,1,-PPMT(B108,1,C21,1,0)))) -> 1 | F21: 1
A22: FAMC I - Pre 1996 Loans | B22: ='Data Inputs'!B111 -> 0 | C22: =('Data Inputs'!B110)/12 -> 0 | D22: ='Data Inputs'!B108 -> 0 | E22: 1 | F22: 1 | G22: 1 | H22: Rollover Acct FAMCI - Post 1996 Loans On B/S
A23: FAMC I - AgVantage | B23: ='Data Inputs'!B116 -> 0 | C23: =('Data Inputs'!B115)/12 -> 0 | D23: ='Data Inputs'!B113 -> 0 | E23: 1 | F23: 1
A24: Loans Held for Securitization | B24: ='Data Inputs'!B180 -> 0 | C24: =('Data Inputs'!B179)/12 -> 0 | D24: ='Data Inputs'!B177 -> 0 | E24: 1 | F24: 1
A25: FAMC II Loans | B25: ='Data Inputs'!B187 -> 0 | C25: =('Data Inputs'!B186)/12 -> 0 | D25: ='Data Inputs'!B184 -> 0 | E25: 1 | F25: 1
A26: ='Data Inputs'!C118 -> ON BS RU "Whole Loans" | B26: ='Data Inputs'!B122 -> 0 | C26: =('Data Inputs'!B121)/12 -> 0 | D26: ='Data Inputs'!B119 -> 0 | E26: 1 | F26: 1
A27: ='Data Inputs'!C127 -> ON Balance Sheet RU (AVP 5 from CLM) structures | B27: ='Data Inputs'!B122 -> 0 | C27: =('Data Inputs'!B129)/12 -> 0 | D27: ='Data Inputs'!B128 -> 0 | E27: 1 | F27: 1
A28: ='Data Inputs'!C135 -> ON BS RU ABS Structures (legacy) | B28: ='Data Inputs'!B139 -> 0 | C28: ='Data Inputs'!B138/12 -> 0 | D28: ='Data Inputs'!B136 -> 0 | E28: 1 | F28: 1
A29: ='Data Inputs'!C144 -> ON Balance Sheet AVP7 (CLM ref: Met) | B29: ='Data Inputs'!B150 -> 0 | C29: =('Data Inputs'!B146-Asofdate)/365 -> -118.3287671 | D29: ='Data Inputs'!B145 -> 0 | E29: 1 | F29: 1 | G29: Date Certain Treatment ON BS Deals, can treat like zero backfill, need to make consistent on RM
A30: ='Data Inputs'!C152 -> ON Balance Sheet AVP8 (CLM ref: RAF) | B30: ='Data Inputs'!B158 -> 0 | C30: =('Data Inputs'!B154-Asofdate)/365 -> -118.3287671 | D30: ='Data Inputs'!B153 -> 0 | E30: 1 | F30: 1 | G30: Date Certain Treatment ON BS Deals, can treat like zero backfill, need to make consistent on RM
A31: ='Data Inputs'!C160 -> ON Balance Sheet AVP9 (CLM ref: RAF) | B31: ='Data Inputs'!B166 -> 0 | C31: =('Data Inputs'!B162-Asofdate)/365 -> -118.3287671 | D31: ='Data Inputs'!B161 -> 0 | E31: 1 | F31: 1 | G31: Date Certain Treatment ON BS Deals, can treat like zero backfill, need to make consistent on RM
A32: ='Data Inputs'!C168 -> ON Balance Sheet AVP10 (CLM ref: RaboBank NA) | B32: ='Data Inputs'!B174 -> 0 | C32: =('Data Inputs'!B170-Asofdate)/365 -> -118.3287671 | D32: ='Data Inputs'!B169 -> 0 | E32: 1 | F32: 1 | G32: Date Certain Treatment ON BS Deals, can treat like zero backfill, need to make consistent on RM
A34: Total Reference volume - loans | D34: =SUM(D20:D32) -> 0
A35: Off Balance Sheet Guarantees
A36: FAMC I - Post 1996 Loans | B36: ='Data Inputs'!B191 -> 0 | C36: =('Data Inputs'!B190)/12 -> 0 | D36: ='Data Inputs'!B189 -> 0 | E36: =MIN(1,(IF(C36<1,1,-PPMT(B123,1,C36,1,0)))) -> 1 | F36: 1
A37: FAMC I - Pre 1996 Loans | B37: ='Data Inputs'!B196 -> 0 | C37: =('Data Inputs'!B195)/12 -> 0 | D37: ='Data Inputs'!B194 -> 0 | E37: =MIN(1,(IF(C37<1,1,-PPMT(B124,1,C37,1,0)))) -> 1 | F37: 0 | G37: 1 | H37: Rollover Acct FAMCI - Post 1996 Loans Off B/S
A38: FAMC II | B38: ='Data Inputs'!B201 -> 0 | C38: =('Data Inputs'!B200)/12 -> 0 | D38: ='Data Inputs'!B199 -> 0 | E38: =MIN(1,(IF(C38<1,1,-PPMT(B125,1,C38,1,0)))) -> 1 | F38: 1
A39: OFF BS AVPs
A40: ='Data Inputs'!C204 -> Off B/S AVP1 (CLM ref:Met 1) | B40: na | C40: =('Data Inputs'!B206-Asofdate)/365 -> -118.3287671 | D40: ='Data Inputs'!B205 -> 0 | E40: na | F40: na
A41: ='Data Inputs'!C210 -> Off B/S AVP2 (CLM ref:Met 2) | B41: na | C41: =('Data Inputs'!B212-Asofdate)/365 -> -118.3287671 | D41: ='Data Inputs'!B211 -> 0 | E41: na | F41: na
A42: ='Data Inputs'!C216 -> Off B/S AVP3 (CLM ref:Met 3) | B42: na | C42: =('Data Inputs'!B218-B5)/365 -> -118.3287671 | D42: ='Data Inputs'!B217 -> 0 | E42: na | F42: na
A43: ='Data Inputs'!C222 -> Off B/S AVP4 (CLM ref:M&I) | B43: na | C43: =('Data Inputs'!B224-Asofdate)/365 -> -118.3287671 | D43: ='Data Inputs'!B223 -> 0 | E43: na | F43: na
A44: ='Data Inputs'!C231 -> Off BS AVP6 Rural Utilities (CLM ref:CFC) | B44: na | C44: =('Data Inputs'!B233-Asofdate)/365 -> -118.3287671 | D44: ='Data Inputs'!B232 -> 0 | E44: na | F44: na
A52: Other Balance Sheet Assumptions | B52: Factor
A53: Real estate owned | B53: 1 | C53: Factor on the initial ratio of real estate owned to Investment and Loan Accounts
A54: Interest receivable | B54: 1 | C54: Factor on the initial ratio of interest receivables to Investment and Loan Accounts
A55: Guarantee fees receivable | B55: 1 | C55: Factor on the initial ratio of guarantee fees receivable to Investment and Loan Accounts
A56: Prepaid expenses and other assets | B56: 1 | C56: Factor on the initial ratio of prepaid expenses and other assets to Investment and Loan Accounts
A57: Accrued interest payable | B57: 1 | C57: Factor on the initial ratio of accrued interest payable to debt securities
A58: Accounts payable and accrued expenses | B58: 1 | C58: Factor on the initial ratio of accounts payable and accrued expenses to debt securities
A59: Reserve for losses on guaranteed securities | B59: 1 | C59: Factor on the initial ratio of reserve for losses on guaranteed securities to debt securities
A60: Other Off-Balance Sheet obligations | B60: 1 | C60: Factor on the initial ratio of other Off-Balance Sheet obligations to off B/S FAMC I and II Program Loans
A61: Security Sales (AMBSs Sold) | B61: 1 | C61: Factor on the initial ratio of Security Sales to off B/S FAMC I and II Program Loans
A63: Income,Expense, and Loss Factors | B63: Coefficient
A64: Gain on AMBS Sales | B64: ='Data Inputs'!B510 -> 0
A65: Misc. Income Coefficient | B65: ='Data Inputs'!B509 -> 0
A66: MA of A+OffBSI&II | B66: ='Data Inputs'!B511 -> 0
A67: Allowance as Fraction of Loans and investment | B67: 0
A68: Probable Guar. and Commit. Oblig. as Frac. of Guar. & Commit. | B68: 0
A69: Reserve Requirement as Fraction of Guarantees and Commitments | B69: 0
A70: AVP Lifetime Factor (for Total loss rates, not annualized set) | B70: 0.1 | C70: ( = straightline factor for losses )
A71: Multiple of Guarantee Fee for Credit Loss on RU structures | B71: 2
A73: Corporate Income Tax Schedule from the IRS | B73: Income is: | G73: *Updated tax rates on 4/19/2018 to match the Tax Cuts and Jobs Act of 2017 corporate tax brackets
A74: (Update when Changed) Income (000s) | B74: Over | C74: but less than | D74: Tax is: | E74: Plus | F74: of the amount over
B75: 0 | C75: 50 | D75: 0 | E75: 0.15 | F75: 0
B76: 50 | C76: 75 | D76: 7.5 | E76: 0.21 | F76: 50
B77: 75 | C77: 100 | D77: 12.75 | E77: 0.21 | F77: 75
B78: 100 | C78: 335 | D78: 18 | E78: 0.21 | F78: 100
B79: 335 | C79: 10000 | D79: 67.35 | E79: 0.21 | F79: 335
B80: 10000 | C80: 15000 | D80: 2097 | E80: 0.21 | F80: 10000
B81: 15000 | C81: 18333 | D81: 3147 | E81: 0.21 | F81: 15000
B82: 18333 | D82: 0 | E82: 0.21 | F82: 0
A84: Guarantee Fee Rates
A85: FAMC I - Post 1996 Loans : WTD Avg. Guar Fee Rate | B85: ='Data Inputs'!B192 -> 0
A86: FAMC I - Pre 1996 Loans : WTD Avg. Guar Fee Rate | B86: ='Data Inputs'!B197 -> 0
A87: FAMC II : WTD Avg. Guar Fee Rate | B87: ='Data Inputs'!B202 -> 0
A88: ON BS "CFC Whole Loans" | B88: ='Data Inputs'!B123 -> 0
A89: ON BS "CFC Whole Loans" Pricing Spread | B89: ='Data Inputs'!B124 -> 0
A93: Carrying Cost Nonperforming Loans Assumptions
A94: Factor to Transform Loss Amts to Nonper. Loan Face Value | B94: ='Data Inputs'!B572 -> 0
A95: Resolution Period for Problem Loans (Years) | B95: ='Data Inputs'!B568 -> 0 | G95: (v4.0)
G96: Multiple of Base Rates
A97: Cost and Earnings Rate Parameters | B97: Net | G97: 3
B98: Initial | C98: Base | D98: Reference | E98: Method Rate | H98: Ramp-In interval
A99: Investments | B99: Yield | C99: Spread | D99: Book Value | E99: Represented | G99: Initial Haircut (add on) | H99: (years)
A100: Cash & Money Market | B100: ='Data Inputs'!B73 -> 0 | C100: =B100-'Data Inputs'!$B$489 -> 0 | D100: ='Data Inputs'!B72 -> 0 | E100: 2 | F100: =IF(E100=1,"Fixed Yield","Fixed Spread to 10 yr CMT") -> Fixed Spread to 10 yr CMT
A101: Commercial Paper | B101: ='Data Inputs'!B77 -> 0 | C101: =B101-'Data Inputs'!$B$489 -> 0 | D101: ='Data Inputs'!B76 -> 0 | E101: 2 | F101: =IF(E101=1,"Fixed Yield","Fixed Spread to 10 yr CMT") -> Fixed Spread to 10 yr CMT | G101: ='Data Inputs'!B465*$G$97 -> 0 | H101: 10
A102: Certificates of Deposit | B102: ='Data Inputs'!B81 -> 0 | C102: =B102-'Data Inputs'!$B$489 -> 0 | D102: ='Data Inputs'!B80 -> 0 | E102: 2 | F102: Fixed Spread to 10 yr CMT
A103: Corporate and ABS | B103: ='Data Inputs'!B85 -> 0 | C103: =B103-'Data Inputs'!$B$489 -> 0 | D103: ='Data Inputs'!B84 -> 0 | E103: 2 | F103: Fixed Spread to 10 yr CMT | G103: ='Data Inputs'!B466*$G$97 -> 0 | H103: 10
A104: Agency Mortgage-Backed and CMOs | B104: ='Data Inputs'!B89 -> 0 | C104: =B104-'Data Inputs'!$B$489 -> 0 | D104: ='Data Inputs'!B88 -> 0 | E104: 2 | F104: Fixed Spread to 10 yr CMT | G104: ='Data Inputs'!B467*$G$97 -> 0 | H104: 10
A105: Other Investments | B105: ='Data Inputs'!B94 -> 0 | C105: =B105-'Data Inputs'!$B$489 -> 0 | D105: ='Data Inputs'!B93 -> 0 | E105: 2 | F105: Fixed Spread to 10 yr CMT | G105: ='Data Inputs'!B468*$G$97 -> 0 | H105: 10
A106: Program Related Items
A107: FAMC I - Post 1996 Loans | B107: ='Data Inputs'!B99 -> 0 | C107: =B107-'Data Inputs'!$B$489 -> 0 | D107: ='Data Inputs'!B98 -> 0 | E107: 2 | F107: Fixed Spread to 10 yr CMT
A108: FAMC I - Post 1996 Swap | B108: ='Data Inputs'!B104 -> 0 | C108: =C125 ->  | D108: ='Data Inputs'!B103 -> 0 | E108: 2 | F108: Fixed Spread to 10 yr CMT
A109: FAMC I - Pre 1996 Loans | B109: ='Data Inputs'!B109 -> 0 | C109: =B109-'Data Inputs'!$B$489 -> 0 | D109: ='Data Inputs'!B108 -> 0 | E109: 1 | F109: Fixed Yield
A110: FAMC I - AgVantage | B110: ='Data Inputs'!B114 -> 0 | C110: =B110-'Data Inputs'!$B$489 -> 0 | D110: ='Data Inputs'!B113 -> 0 | E110: 2 | F110: Fixed Spread to 10 yr CMT | G110: ='Data Inputs'!B469*$G$97 -> 0 | H110: 10
A111: Loans Held for Securitization | B111: ='Data Inputs'!B178 -> 0 | C111: =B111-'Data Inputs'!$B$489 -> 0 | D111: ='Data Inputs'!B177 -> 0 | E111: 2 | F111: Fixed Spread to 10 yr CMT | G111: (not haircut after receiving program status and
A112: FAMC II Loans | B112: ='Data Inputs'!B185 -> 0 | C112: =B112-'Data Inputs'!$B$489 -> 0 | D112: ='Data Inputs'!B184 -> 0 | E112: 2 | F112: Fixed Spread to 10 yr CMT | G112: credit loss charges )
A113: =A26 -> ON BS RU "Whole Loans" | B113: ='Data Inputs'!B120-'Data Inputs'!B124 -> 0 | C113: =B113-'Data Inputs'!$B$489 -> 0 | D113: ='Data Inputs'!B119 -> 0 | E113: 2 | F113: =IF(E113=1,"Fixed Yield","Fixed Spread to 10 yr CMT") -> Fixed Spread to 10 yr CMT
A114: =A27 -> ON Balance Sheet RU (AVP 5 from CLM) structures | B114: ='Data Inputs'!B132-'Data Inputs'!B133 -> 0 | C114: =B114-'Data Inputs'!$B$489 -> 0 | D114: ='Data Inputs'!B128 -> 0 | E114: 2 | F114: =IF(E114=1,"Fixed Yield",IF(E114=3,"Blended Cost reflected","Fixed Spread to 10 yr CMT")) -> Fixed Spread to 10 yr CMT
A115: ON BS RU ABS Structures (legacy) | B115: ='Data Inputs'!B137-'Data Inputs'!B141 -> 0 | C115: =B115-'Data Inputs'!$B$489 -> 0 | D115: ='Data Inputs'!B136 -> 0 | E115: 2 | F115: Fixed Spread to 10 yr CMT
A116: ON Balance Sheet AVP7 (CLM ref: Met) | B116: ='Data Inputs'!B147-'Data Inputs'!B148 -> 0 | C116: =B116-'Data Inputs'!$B$489 -> 0 | D116: ='Data Inputs'!B145 -> 0 | E116: 2 | F116: Fixed Spread to 10 yr CMT
A117: ON Balance Sheet AVP8 (CLM ref: RAF) | B117: ='Data Inputs'!B155-'Data Inputs'!B156 -> 0 | C117: =B117-'Data Inputs'!$B$489 -> 0 | D117: ='Data Inputs'!B153 -> 0 | E117: 2 | F117: Fixed Spread to 10 yr CMT
A118: ON Balance Sheet AVP9 (CLM ref: RAF) | B118: ='Data Inputs'!B163-'Data Inputs'!B164 -> 0 | C118: =B118-'Data Inputs'!$B$489 -> 0 | D118: ='Data Inputs'!B161 -> 0 | E118: 2 | F118: Fixed Spread to 10 yr CMT | G118: (placeholder only)
A119: ON Balance Sheet AVP10 (CLM ref: RaboBank NA) | B119: ='Data Inputs'!B171-'Data Inputs'!B172 -> 0 | C119: =B119-'Data Inputs'!$B$489 -> 0 | D119: ='Data Inputs'!B169 -> 0 | E119: 2 | F119: Fixed Spread to 10 yr CMT | G119: (placeholder only)
A122: Liabilities
A123: Due within 1 year | B123: ='Data Inputs'!B261 -> 0 | C123: =B123-'Data Inputs'!$B$489 -> 0 | E123: 2 | F123: =IF(E123=1,"Fixed Yield",IF(E123=3,"Blended Cost reflected","Fixed Spread to 10 yr CMT")) -> Fixed Spread to 10 yr CMT
A124: Due after 1 year | B124: ='Data Inputs'!B264 -> 0 | C124: =B124-'Data Inputs'!$B$489 -> 0 | E124: 2 | F124: =IF(E124=1,"Fixed Yield",IF(E124=3,"Blended Cost reflected","Fixed Spread to 10 yr CMT")) -> Fixed Spread to 10 yr CMT
A125: Blended Rate | B125: =B123*'Loan and Cash Flow Accounts'!C21+'Assumptions & Relationships'!B124*'Loan and Cash Flow Accounts'!C22 ->  | C125: =C123*'Loan and Cash Flow Accounts'!$C$21+C124*'Loan and Cash Flow Accounts'!$C$22 -> 
A127: Interest Rate Model Choice
A128: Enter 1 for Shock Up, and 2 for Shock Down, and 3 for no IRR | B128: 2
A129: Initial Rate | B129: ='Data Inputs'!B489 -> 0
A131: Implied Effective Duration Calculations
B132: Rate Shock | C132: -Implied Equity Duration | D132: Implied dr/d(1+r) | E132: MVA | F132: MVL | G132: MVOBS | H132: MVE | J132: ASSETS | K132: LIAB. | L132: OFF/BS Items | M132: Equity
B133: -0.03 | C133: =(H133-H$139)/H$139/$D133 ->  | D133: =(B133)/(1+'Risk Measures'!$C$8) -> -0.03 | E133: =$E$139+J133 -> 0 | F133: =$F$139-K133 -> 0 | G133: =$G$139+L133 -> 0 | H133: =E133-F133+G133 -> 0 | I133: Base Change | J133: ='Data Inputs'!$B421 -> 0 | K133: ='Data Inputs'!$B435 -> 0 | L133: ='Data Inputs'!$B449 -> 0 | M133: =SUM(J133:L133) -> 0
B134: -0.025 | C134: =(H134-H$139)/H$139/$D134 ->  | D134: =(B134)/(1+'Risk Measures'!$C$8) -> -0.025 | E134: 0 | F134: 0 | G134: 0 | H134: =E134-F134+G134 -> 0 | I134: Base Change | J134: ='Data Inputs'!$B422 -> 0 | K134: ='Data Inputs'!$B436 -> 0 | L134: ='Data Inputs'!$B450 -> 0 | M134: 0
B135: -0.02 | D135: =(B135)/(1+'Risk Measures'!$C$8) -> -0.02 | E135: 0 | F135: 0 | G135: 0 | H135: 0 | I135: Base Change | J135: ='Data Inputs'!$B423 -> 0 | K135: ='Data Inputs'!$B437 -> 0 | L135: ='Data Inputs'!$B451 -> 0 | M135: 0
B136: -0.015 | D136: =(B136)/(1+'Risk Measures'!$C$8) -> -0.015 | E136: 0 | F136: 0 | G136: 0 | H136: 0 | I136: Base Change | J136: ='Data Inputs'!$B424 -> 0 | K136: ='Data Inputs'!$B438 -> 0 | L136: ='Data Inputs'!$B452 -> 0 | M136: 0
B137: -0.01 | D137: =(B137)/(1+'Risk Measures'!$C$8) -> -0.01 | E137: 0 | F137: 0 | G137: 0 | H137: 0 | I137: Base Change | J137: ='Data Inputs'!$B425 -> 0 | K137: ='Data Inputs'!$B439 -> 0 | L137: ='Data Inputs'!$B453 -> 0 | M137: 0
B138: -0.005 | D138: =(B138)/(1+'Risk Measures'!$C$8) -> -0.005 | E138: 0 | F138: 0 | G138: 0 | H138: 0 | I138: Base Change | J138: ='Data Inputs'!$B426 -> 0 | K138: ='Data Inputs'!$B440 -> 0 | L138: ='Data Inputs'!$B454 -> 0 | M138: 0
B139: 0 | C139: =AVERAGE(C138,C140) ->  | D139: 0 | E139: =J139 -> 0 | F139: =-K139 -> 0 | G139: =L139 -> 0 | H139: 0 | I139: Base Value | J139: ='Data Inputs'!$B420 -> 0 | K139: ='Data Inputs'!$B434 -> 0 | L139: ='Data Inputs'!$B448 -> 0 | M139: =SUM(J139:L139) -> 0
B140: 0.005 | C140: =(H140-H$139)/H$139/$D140 ->  | D140: =(B140)/(1+'Risk Measures'!$C$8) -> 0.005 | E140: =$E$139+J140 -> 0 | F140: =$F$139-K140 -> 0 | G140: =$G$139+L140 -> 0 | H140: 0 | I140: Base Change | J140: ='Data Inputs'!$B427 -> 0 | K140: ='Data Inputs'!$B441 -> 0 | L140: ='Data Inputs'!$B455 -> 0 | M140: =SUM(J140:L140) -> 0
B141: 0.01 | D141: =(B141)/(1+'Risk Measures'!$C$8) -> 0.01 | E141: 0 | F141: 0 | G141: 0 | H141: 0 | I141: Base Change | J141: ='Data Inputs'!$B428 -> 0 | K141: ='Data Inputs'!$B442 -> 0 | L141: ='Data Inputs'!$B456 -> 0 | M141: 0
B142: 0.015 | D142: =(B142)/(1+'Risk Measures'!$C$8) -> 0.015 | E142: 0 | F142: 0 | G142: 0 | H142: 0 | I142: Base Change | J142: ='Data Inputs'!$B429 -> 0 | K142: ='Data Inputs'!$B443 -> 0 | L142: ='Data Inputs'!$B457 -> 0 | M142: 0
B143: 0.02 | D143: =(B143)/(1+'Risk Measures'!$C$8) -> 0.02 | E143: 0 | F143: 0 | G143: 0 | H143: 0 | I143: Base Change | J143: ='Data Inputs'!$B430 -> 0 | K143: ='Data Inputs'!$B444 -> 0 | L143: ='Data Inputs'!$B458 -> 0 | M143: 0
B144: 0.025 | D144: =(B144)/(1+'Risk Measures'!$C$8) -> 0.025 | E144: 0 | F144: 0 | G144: 0 | H144: 0 | I144: Base Change | J144: ='Data Inputs'!$B431 -> 0 | K144: ='Data Inputs'!$B445 -> 0 | L144: ='Data Inputs'!$B459 -> 0 | M144: 0
B145: 0.03 | D145: =(B145)/(1+'Risk Measures'!$C$8) -> 0.03 | E145: 0 | F145: 0 | G145: 0 | H145: 0 | I145: Base Change | J145: ='Data Inputs'!$B432 -> 0 | K145: ='Data Inputs'!$B446 -> 0 | L145: ='Data Inputs'!$B460 -> 0 | M145: 0

Sheet Risk Measures
A1: This sheet contains: Interest rate environment and credit loss results
A2: Instructions: Enter information in areas marked in blue.
A6: Interest Rate Environment
B7: Time Period | C7: t0 | D7: t1 | E7: t2 | F7: t3 | G7: t4 | H7: t5 | I7: t6 | J7: t7 | K7: t8 | L7: t9 | M7: t10
B8: Rate | C8: =CHOOSE('Assumptions & Relationships'!$B$128,D19,E19,F19,G19) -> 0 | D8: =CHOOSE(rcase,D20,E20,F20,G20) -> 0 | E8: =CHOOSE(rcase,D21,E21,F21,G21) -> 0 | F8: =CHOOSE(rcase,D22,E22,F22,G22) -> 0 | G8: =CHOOSE(rcase,D23,E23,F23,G23) -> 0 | H8: =CHOOSE(rcase,D24,E24,F24,G24) -> 0 | I8: =CHOOSE(rcase,D25,E25,F25,G25) -> 0 | J8: =CHOOSE(rcase,D26,E26,F26,G26) -> 0 | K8: =CHOOSE(rcase,D27,E27,F27,G27) -> 0 | L8: =CHOOSE(rcase,D28,E28,F28,G28) -> 0 | M8: =CHOOSE(rcase,D29,E29,F29,G29) -> 0
B9: dr/(1+r) | D9: =(D8-C8)/(1+C8) -> 0 | E9: =(E8-D8)/(1+D8) -> 0 | F9: 0 | G9: 0 | H9: 0 | I9: 0 | J9: 0 | K9: 0 | L9: 0 | M9: 0
B10: Duration of Equity | D10: =IF(D$9<'Assumptions & Relationships'!$B$133,'Assumptions & Relationships'!$C$133,(D$9-VLOOKUP(D$9,'Assumptions & Relationships'!$B$133:$C$145,1))/0.005*(VLOOKUP((D$9+0.005),'Assumptions & Relationships'!$B$133:$C$145,2)-VLOOKUP((D$9),'Assumptions & Relationships'!$B$133:$C$145,2))+VLOOKUP(D$9,'Assumptions & Relationships'!$B$133:$C$145,2)) ->  | E10: =IF(E$9<'Assumptions & Relationships'!$B$133,'Assumptions & Relationships'!$C$133,(E$9-VLOOKUP(E$9,'Assumptions & Relationships'!$B$133:$C$145,1))/0.005*(VLOOKUP((E$9+0.005),'Assumptions & Relationships'!$B$133:$C$145,2)-VLOOKUP((E$9),'Assumptions & Relationships'!$B$133:$C$145,2))+VLOOKUP(E$9,'Assumptions & Relationships'!$B$133:$C$145,2)) ->  | F10: =IF(F$9<'Assumptions & Relationships'!$B$133,'Assumptions & Relationships'!$C$133,(F$9-VLOOKUP(F$9,'Assumptions & Relationships'!$B$133:$C$145,1))/0.005*(VLOOKUP((F$9+0.005),'Assumptions & Relationships'!$B$133:$C$145,2)-VLOOKUP((F$9),'Assumptions & Relationships'!$B$133:$C$145,2))+VLOOKUP(F$9,'Assumptions & Relationships'!$B$133:$C$145,2)) ->  | G10: =IF(G$9<'Assumptions & Relationships'!$B$133,'Assumptions & Relationships'!$C$133,(G$9-VLOOKUP(G$9,'Assumptions & Relationships'!$B$133:$C$145,1))/0.005*(VLOOKUP((G$9+0.005),'Assumptions & Relationships'!$B$133:$C$145,2)-VLOOKUP((G$9),'Assumptions & Relationships'!$B$133:$C$145,2))+VLOOKUP(G$9,'Assumptions & Relationships'!$B$133:$C$145,2)) ->  | H10: =IF(H$9<'Assumptions & Relationships'!$B$133,'Assumptions & Relationships'!$C$133,(H$9-VLOOKUP(H$9,'Assumptions & Relationships'!$B$133:$C$145,1))/0.005*(VLOOKUP((H$9+0.005),'Assumptions & Relationships'!$B$133:$C$145,2)-VLOOKUP((H$9),'Assumptions & Relationships'!$B$133:$C$145,2))+VLOOKUP(H$9,'Assumptions & Relationships'!$B$133:$C$145,2)) ->  | I10: =IF(I$9<'Assumptions & Relationships'!$B$133,'Assumptions & Relationships'!$C$133,(I$9-VLOOKUP(I$9,'Assumptions & Relationships'!$B$133:$C$145,1))/0.005*(VLOOKUP((I$9+0.005),'Assumptions & Relationships'!$B$133:$C$145,2)-VLOOKUP((I$9),'Assumptions & Relationships'!$B$133:$C$145,2))+VLOOKUP(I$9,'Assumptions & Relationships'!$B$133:$C$145,2)) ->  | J10: =IF(J$9<'Assumptions & Relationships'!$B$133,'Assumptions & Relationships'!$C$133,(J$9-VLOOKUP(J$9,'Assumptions & Relationships'!$B$133:$C$145,1))/0.005*(VLOOKUP((J$9+0.005),'Assumptions & Relationships'!$B$133:$C$145,2)-VLOOKUP((J$9),'Assumptions & Relationships'!$B$133:$C$145,2))+VLOOKUP(J$9,'Assumptions & Relationships'!$B$133:$C$145,2)) ->  | K10: =IF(K$9<'Assumptions & Relationships'!$B$133,'Assumptions & Relationships'!$C$133,(K$9-VLOOKUP(K$9,'Assumptions & Relationships'!$B$133:$C$145,1))/0.005*(VLOOKUP((K$9+0.005),'Assumptions & Relationships'!$B$133:$C$145,2)-VLOOKUP((K$9),'Assumptions & Relationships'!$B$133:$C$145,2))+VLOOKUP(K$9,'Assumptions & Relationships'!$B$133:$C$145,2)) ->  | L10: =IF(L$9<'Assumptions & Relationships'!$B$133,'Assumptions & Relationships'!$C$133,(L$9-VLOOKUP(L$9,'Assumptions & Relationships'!$B$133:$C$145,1))/0.005*(VLOOKUP((L$9+0.005),'Assumptions & Relationships'!$B$133:$C$145,2)-VLOOKUP((L$9),'Assumptions & Relationships'!$B$133:$C$145,2))+VLOOKUP(L$9,'Assumptions & Relationships'!$B$133:$C$145,2)) ->  | M10: =IF(M$9<'Assumptions & Relationships'!$B$133,'Assumptions & Relationships'!$C$133,(M$9-VLOOKUP(M$9,'Assumptions & Relationships'!$B$133:$C$145,1))/0.005*(VLOOKUP((M$9+0.005),'Assumptions & Relationships'!$B$133:$C$145,2)-VLOOKUP((M$9),'Assumptions & Relationships'!$B$133:$C$145,2))+VLOOKUP(M$9,'Assumptions & Relationships'!$B$133:$C$145,2)) -> 
A13: Transfer Section Interest Rate Environment | D13: Shock Up | E13: Shock Down | F13: No Shock | H13: Stochastic
C14: Initial Rate | D14: ='Assumptions & Relationships'!B129 -> 0 | E14: ='Assumptions & Relationships'!B129 -> 0 | F14: ='Assumptions & Relationships'!B129 -> 0 | H14: ='Assumptions & Relationships'!B129 -> 0
C15: Shocked Rate | D15: =MIN(0.5*'Data Inputs'!$B$490+D14,D14+0.06) -> 0 | E15: =MAX(D14-0.5*'Data Inputs'!$B$490,D14-0.06) -> 0 | F15: =F14 -> 0 | I15: Temp holders
C16: Shock Test | D16: =D15-D14 -> 0 | E16: =E15-E14 -> 0 | F16: 0 | I16: initial rate | J16: =H14 -> 0
G17: Hold area | I17: LR mean | J17: 0.05
C18: Time Period | D18: Shock Up | E18: Shock Down | F18: No Shock | G18: for Stochastic rate draw | H18: Stochastic | I18: error mu | J18: 0
C19: t0 | D19: ='Risk Measures'!D14 -> 0 | E19: ='Risk Measures'!E14 -> 0 | F19: =$F$15 -> 0 | G19: 0.0227 | H19: =J16 -> 0 | I19: error sig | J19: 0.0075
C20: t1 | D20: =D15 -> 0 | E20: =E15 -> 0 | F20: 0 | G20: 0.02598746702 | H20: =MAX($J$21,H19+$J$20*($J$17-H19)+NORMINV(RAND(),$J$18,$J$19)) -> 0.01271524469 | I20: rev. parameter | J20: 0.25
C21: t2 | D21: =D20 -> 0 | E21: =E20 -> 0 | F21: 0 | G21: 0.03661308007 | H21: 0.03190698962 | I21: min | J21: 0.01
C22: t3 | D22: =D21 -> 0 | E22: =E21 -> 0 | F22: 0 | G22: 0.0376958306 | H22: 0.03245953576
C23: t4 | D23: 0 | E23: 0 | F23: 0 | G23: 0.04623016155 | H23: 0.03070608103
C24: t5 | D24: 0 | E24: 0 | F24: 0 | G24: 0.04916517638 | H24: 0.04267706966
C25: t6 | D25: 0 | E25: 0 | F25: 0 | G25: 0.0552291869 | H25: 0.04187083709
C26: t7 | D26: 0 | E26: 0 | F26: 0 | G26: 0.05948488893 | H26: 0.03547838232
C27: t8 | D27: 0 | E27: 0 | F27: 0 | G27: 0.04812001386 | H27: 0.04839521576
C28: t9 | D28: 0 | E28: 0 | F28: 0 | G28: 0.04949805009 | H28: 0.04549469411
C29: t10 | D29: 0 | E29: 0 | F29: 0 | G29: 0.05475578808 | H29: 0.04778637871
A32: Effective Spreads on NonPro. Inv. & AgVantage
C33: Haircut Effects | D33: t1 | E33: t2 | F33: t3 | G33: t4 | H33: t5 | I33: t6 | J33: t7 | K33: t8 | L33: t9 | M33: t10
D34: 1 | E34: 2 | F34: 3 | G34: 4 | H34: 5 | I34: 6 | J34: 7 | K34: 8 | L34: 9 | M34: 10
C35: Commercial Paper | D35: =('Assumptions & Relationships'!$C101-((D$34<='Assumptions & Relationships'!$H101)*'Assumptions & Relationships'!$G101*(D$34/'Assumptions & Relationships'!$H101)+(D$34>'Assumptions & Relationships'!$H101)*'Assumptions & Relationships'!$G$101)) -> 0 | E35: =('Assumptions & Relationships'!$C101-((E$34<='Assumptions & Relationships'!$H101)*'Assumptions & Relationships'!$G101*(E$34/'Assumptions & Relationships'!$H101)+(E$34>'Assumptions & Relationships'!$H101)*'Assumptions & Relationships'!$G$101)) -> 0 | F35: =('Assumptions & Relationships'!$C101-((F$34<='Assumptions & Relationships'!$H101)*'Assumptions & Relationships'!$G101*(F$34/'Assumptions & Relationships'!$H101)+(F$34>'Assumptions & Relationships'!$H101)*'Assumptions & Relationships'!$G$101)) -> 0 | G35: =('Assumptions & Relationships'!$C101-((G$34<='Assumptions & Relationships'!$H101)*'Assumptions & Relationships'!$G101*(G$34/'Assumptions & Relationships'!$H101)+(G$34>'Assumptions & Relationships'!$H101)*'Assumptions & Relationships'!$G$101)) -> 0 | H35: =('Assumptions & Relationships'!$C101-((H$34<='Assumptions & Relationships'!$H101)*'Assumptions & Relationships'!$G101*(H$34/'Assumptions & Relationships'!$H101)+(H$34>'Assumptions & Relationships'!$H101)*'Assumptions & Relationships'!$G$101)) -> 0 | I35: =('Assumptions & Relationships'!$C101-((I$34<='Assumptions & Relationships'!$H101)*'Assumptions & Relationships'!$G101*(I$34/'Assumptions & Relationships'!$H101)+(I$34>'Assumptions & Relationships'!$H101)*'Assumptions & Relationships'!$G$101)) -> 0 | J35: =('Assumptions & Relationships'!$C101-((J$34<='Assumptions & Relationships'!$H101)*'Assumptions & Relationships'!$G101*(J$34/'Assumptions & Relationships'!$H101)+(J$34>'Assumptions & Relationships'!$H101)*'Assumptions & Relationships'!$G$101)) -> 0 | K35: =('Assumptions & Relationships'!$C101-((K$34<='Assumptions & Relationships'!$H101)*'Assumptions & Relationships'!$G101*(K$34/'Assumptions & Relationships'!$H101)+(K$34>'Assumptions & Relationships'!$H101)*'Assumptions & Relationships'!$G$101)) -> 0 | L35: =('Assumptions & Relationships'!$C101-((L$34<='Assumptions & Relationships'!$H101)*'Assumptions & Relationships'!$G101*(L$34/'Assumptions & Relationships'!$H101)+(L$34>'Assumptions & Relationships'!$H101)*'Assumptions & Relationships'!$G$101)) -> 0 | M35: =('Assumptions & Relationships'!$C101-((M$34<='Assumptions & Relationships'!$H101)*'Assumptions & Relationships'!$G101*(M$34/'Assumptions & Relationships'!$H101)+(M$34>'Assumptions & Relationships'!$H101)*'Assumptions & Relationships'!$G$101)) -> 0
C36: Corporate and ABS | D36: =('Assumptions & Relationships'!$C103-((D$34<='Assumptions & Relationships'!$H103)*'Assumptions & Relationships'!$G103*(D$34/'Assumptions & Relationships'!$H103)+(D$34>'Assumptions & Relationships'!$H103)*'Assumptions & Relationships'!$G$103)) -> 0 | E36: =('Assumptions & Relationships'!$C103-((E$34<='Assumptions & Relationships'!$H103)*'Assumptions & Relationships'!$G103*(E$34/'Assumptions & Relationships'!$H103)+(E$34>'Assumptions & Relationships'!$H103)*'Assumptions & Relationships'!$G$103)) -> 0 | F36: =('Assumptions & Relationships'!$C103-((F$34<='Assumptions & Relationships'!$H103)*'Assumptions & Relationships'!$G103*(F$34/'Assumptions & Relationships'!$H103)+(F$34>'Assumptions & Relationships'!$H103)*'Assumptions & Relationships'!$G$103)) -> 0 | G36: =('Assumptions & Relationships'!$C103-((G$34<='Assumptions & Relationships'!$H103)*'Assumptions & Relationships'!$G103*(G$34/'Assumptions & Relationships'!$H103)+(G$34>'Assumptions & Relationships'!$H103)*'Assumptions & Relationships'!$G$103)) -> 0 | H36: =('Assumptions & Relationships'!$C103-((H$34<='Assumptions & Relationships'!$H103)*'Assumptions & Relationships'!$G103*(H$34/'Assumptions & Relationships'!$H103)+(H$34>'Assumptions & Relationships'!$H103)*'Assumptions & Relationships'!$G$103)) -> 0 | I36: =('Assumptions & Relationships'!$C103-((I$34<='Assumptions & Relationships'!$H103)*'Assumptions & Relationships'!$G103*(I$34/'Assumptions & Relationships'!$H103)+(I$34>'Assumptions & Relationships'!$H103)*'Assumptions & Relationships'!$G$103)) -> 0 | J36: =('Assumptions & Relationships'!$C103-((J$34<='Assumptions & Relationships'!$H103)*'Assumptions & Relationships'!$G103*(J$34/'Assumptions & Relationships'!$H103)+(J$34>'Assumptions & Relationships'!$H103)*'Assumptions & Relationships'!$G$103)) -> 0 | K36: =('Assumptions & Relationships'!$C103-((K$34<='Assumptions & Relationships'!$H103)*'Assumptions & Relationships'!$G103*(K$34/'Assumptions & Relationships'!$H103)+(K$34>'Assumptions & Relationships'!$H103)*'Assumptions & Relationships'!$G$103)) -> 0 | L36: =('Assumptions & Relationships'!$C103-((L$34<='Assumptions & Relationships'!$H103)*'Assumptions & Relationships'!$G103*(L$34/'Assumptions & Relationships'!$H103)+(L$34>'Assumptions & Relationships'!$H103)*'Assumptions & Relationships'!$G$103)) -> 0 | M36: =('Assumptions & Relationships'!$C103-((M$34<='Assumptions & Relationships'!$H103)*'Assumptions & Relationships'!$G103*(M$34/'Assumptions & Relationships'!$H103)+(M$34>'Assumptions & Relationships'!$H103)*'Assumptions & Relationships'!$G$103)) -> 0
C37: Agency Mortgage-Backed and CMOs | D37: =('Assumptions & Relationships'!$C104-((D$34<='Assumptions & Relationships'!$H104)*'Assumptions & Relationships'!$G104*(D$34/'Assumptions & Relationships'!$H104)+(D$34>'Assumptions & Relationships'!$H104)*'Assumptions & Relationships'!$G$104)) -> 0 | E37: =('Assumptions & Relationships'!$C104-((E$34<='Assumptions & Relationships'!$H104)*'Assumptions & Relationships'!$G104*(E$34/'Assumptions & Relationships'!$H104)+(E$34>'Assumptions & Relationships'!$H104)*'Assumptions & Relationships'!$G$104)) -> 0 | F37: =('Assumptions & Relationships'!$C104-((F$34<='Assumptions & Relationships'!$H104)*'Assumptions & Relationships'!$G104*(F$34/'Assumptions & Relationships'!$H104)+(F$34>'Assumptions & Relationships'!$H104)*'Assumptions & Relationships'!$G$104)) -> 0 | G37: =('Assumptions & Relationships'!$C104-((G$34<='Assumptions & Relationships'!$H104)*'Assumptions & Relationships'!$G104*(G$34/'Assumptions & Relationships'!$H104)+(G$34>'Assumptions & Relationships'!$H104)*'Assumptions & Relationships'!$G$104)) -> 0 | H37: =('Assumptions & Relationships'!$C104-((H$34<='Assumptions & Relationships'!$H104)*'Assumptions & Relationships'!$G104*(H$34/'Assumptions & Relationships'!$H104)+(H$34>'Assumptions & Relationships'!$H104)*'Assumptions & Relationships'!$G$104)) -> 0 | I37: =('Assumptions & Relationships'!$C104-((I$34<='Assumptions & Relationships'!$H104)*'Assumptions & Relationships'!$G104*(I$34/'Assumptions & Relationships'!$H104)+(I$34>'Assumptions & Relationships'!$H104)*'Assumptions & Relationships'!$G$104)) -> 0 | J37: =('Assumptions & Relationships'!$C104-((J$34<='Assumptions & Relationships'!$H104)*'Assumptions & Relationships'!$G104*(J$34/'Assumptions & Relationships'!$H104)+(J$34>'Assumptions & Relationships'!$H104)*'Assumptions & Relationships'!$G$104)) -> 0 | K37: =('Assumptions & Relationships'!$C104-((K$34<='Assumptions & Relationships'!$H104)*'Assumptions & Relationships'!$G104*(K$34/'Assumptions & Relationships'!$H104)+(K$34>'Assumptions & Relationships'!$H104)*'Assumptions & Relationships'!$G$104)) -> 0 | L37: =('Assumptions & Relationships'!$C104-((L$34<='Assumptions & Relationships'!$H104)*'Assumptions & Relationships'!$G104*(L$34/'Assumptions & Relationships'!$H104)+(L$34>'Assumptions & Relationships'!$H104)*'Assumptions & Relationships'!$G$104)) -> 0 | M37: =('Assumptions & Relationships'!$C104-((M$34<='Assumptions & Relationships'!$H104)*'Assumptions & Relationships'!$G104*(M$34/'Assumptions & Relationships'!$H104)+(M$34>'Assumptions & Relationships'!$H104)*'Assumptions & Relationships'!$G$104)) -> 0
C38: Other Investments | D38: =('Assumptions & Relationships'!$C105-((D$34<='Assumptions & Relationships'!$H105)*'Assumptions & Relationships'!$G105*(D$34/'Assumptions & Relationships'!$H105)+(D$34>'Assumptions & Relationships'!$H105)*'Assumptions & Relationships'!$G$105)) -> 0 | E38: =('Assumptions & Relationships'!$C105-((E$34<='Assumptions & Relationships'!$H105)*'Assumptions & Relationships'!$G105*(E$34/'Assumptions & Relationships'!$H105)+(E$34>'Assumptions & Relationships'!$H105)*'Assumptions & Relationships'!$G$105)) -> 0 | F38: =('Assumptions & Relationships'!$C105-((F$34<='Assumptions & Relationships'!$H105)*'Assumptions & Relationships'!$G105*(F$34/'Assumptions & Relationships'!$H105)+(F$34>'Assumptions & Relationships'!$H105)*'Assumptions & Relationships'!$G$105)) -> 0 | G38: =('Assumptions & Relationships'!$C105-((G$34<='Assumptions & Relationships'!$H105)*'Assumptions & Relationships'!$G105*(G$34/'Assumptions & Relationships'!$H105)+(G$34>'Assumptions & Relationships'!$H105)*'Assumptions & Relationships'!$G$105)) -> 0 | H38: =('Assumptions & Relationships'!$C105-((H$34<='Assumptions & Relationships'!$H105)*'Assumptions & Relationships'!$G105*(H$34/'Assumptions & Relationships'!$H105)+(H$34>'Assumptions & Relationships'!$H105)*'Assumptions & Relationships'!$G$105)) -> 0 | I38: =('Assumptions & Relationships'!$C105-((I$34<='Assumptions & Relationships'!$H105)*'Assumptions & Relationships'!$G105*(I$34/'Assumptions & Relationships'!$H105)+(I$34>'Assumptions & Relationships'!$H105)*'Assumptions & Relationships'!$G$105)) -> 0 | J38: =('Assumptions & Relationships'!$C105-((J$34<='Assumptions & Relationships'!$H105)*'Assumptions & Relationships'!$G105*(J$34/'Assumptions & Relationships'!$H105)+(J$34>'Assumptions & Relationships'!$H105)*'Assumptions & Relationships'!$G$105)) -> 0 | K38: =('Assumptions & Relationships'!$C105-((K$34<='Assumptions & Relationships'!$H105)*'Assumptions & Relationships'!$G105*(K$34/'Assumptions & Relationships'!$H105)+(K$34>'Assumptions & Relationships'!$H105)*'Assumptions & Relationships'!$G$105)) -> 0 | L38: =('Assumptions & Relationships'!$C105-((L$34<='Assumptions & Relationships'!$H105)*'Assumptions & Relationships'!$G105*(L$34/'Assumptions & Relationships'!$H105)+(L$34>'Assumptions & Relationships'!$H105)*'Assumptions & Relationships'!$G$105)) -> 0 | M38: =('Assumptions & Relationships'!$C105-((M$34<='Assumptions & Relationships'!$H105)*'Assumptions & Relationships'!$G105*(M$34/'Assumptions & Relationships'!$H105)+(M$34>'Assumptions & Relationships'!$H105)*'Assumptions & Relationships'!$G$105)) -> 0
C39: FAMC I - AgVantage | D39: =('Assumptions & Relationships'!$C110-((D$34<='Assumptions & Relationships'!$H110)*'Assumptions & Relationships'!$G110*(D$34/'Assumptions & Relationships'!$H110)+(D$34>'Assumptions & Relationships'!$H110)*'Assumptions & Relationships'!$G$110)) -> 0 | E39: =('Assumptions & Relationships'!$C110-((E$34<='Assumptions & Relationships'!$H110)*'Assumptions & Relationships'!$G110*(E$34/'Assumptions & Relationships'!$H110)+(E$34>'Assumptions & Relationships'!$H110)*'Assumptions & Relationships'!$G$110)) -> 0 | F39: =('Assumptions & Relationships'!$C110-((F$34<='Assumptions & Relationships'!$H110)*'Assumptions & Relationships'!$G110*(F$34/'Assumptions & Relationships'!$H110)+(F$34>'Assumptions & Relationships'!$H110)*'Assumptions & Relationships'!$G$110)) -> 0 | G39: =('Assumptions & Relationships'!$C110-((G$34<='Assumptions & Relationships'!$H110)*'Assumptions & Relationships'!$G110*(G$34/'Assumptions & Relationships'!$H110)+(G$34>'Assumptions & Relationships'!$H110)*'Assumptions & Relationships'!$G$110)) -> 0 | H39: =('Assumptions & Relationships'!$C110-((H$34<='Assumptions & Relationships'!$H110)*'Assumptions & Relationships'!$G110*(H$34/'Assumptions & Relationships'!$H110)+(H$34>'Assumptions & Relationships'!$H110)*'Assumptions & Relationships'!$G$110)) -> 0 | I39: =('Assumptions & Relationships'!$C110-((I$34<='Assumptions & Relationships'!$H110)*'Assumptions & Relationships'!$G110*(I$34/'Assumptions & Relationships'!$H110)+(I$34>'Assumptions & Relationships'!$H110)*'Assumptions & Relationships'!$G$110)) -> 0 | J39: =('Assumptions & Relationships'!$C110-((J$34<='Assumptions & Relationships'!$H110)*'Assumptions & Relationships'!$G110*(J$34/'Assumptions & Relationships'!$H110)+(J$34>'Assumptions & Relationships'!$H110)*'Assumptions & Relationships'!$G$110)) -> 0 | K39: =('Assumptions & Relationships'!$C110-((K$34<='Assumptions & Relationships'!$H110)*'Assumptions & Relationships'!$G110*(K$34/'Assumptions & Relationships'!$H110)+(K$34>'Assumptions & Relationships'!$H110)*'Assumptions & Relationships'!$G$110)) -> 0 | L39: =('Assumptions & Relationships'!$C110-((L$34<='Assumptions & Relationships'!$H110)*'Assumptions & Relationships'!$G110*(L$34/'Assumptions & Relationships'!$H110)+(L$34>'Assumptions & Relationships'!$H110)*'Assumptions & Relationships'!$G$110)) -> 0 | M39: =('Assumptions & Relationships'!$C110-((M$34<='Assumptions & Relationships'!$H110)*'Assumptions & Relationships'!$G110*(M$34/'Assumptions & Relationships'!$H110)+(M$34>'Assumptions & Relationships'!$H110)*'Assumptions & Relationships'!$G$110)) -> 0
A43: Credit Loss Results
A45: Blended Age Adjusted Origination year loss rates on FAMCI Loans Calculated From Loan Level Data
D46: State-Level Credit Module Loss Rates
C47: State Abbreviation | D47: AK | E47: AL | F47: AR | G47: AZ | H47: CA | I47: CO | J47: CT | K47: DE | L47: FL | M47: GA | N47: HI | O47: IA | P47: ID | Q47: IL | R47: IN | S47: KS | T47: KY | U47: LA | V47: MA | W47: MD | X47: ME | Y47: MI | Z47: MN | AA47: MO | AB47: MS | AC47: MT | AD47: NC | AE47: ND | AF47: NE | AG47: NH | AH47: NJ | AI47: NM | AJ47: NV | AK47: NY | AL47: OH | AM47: OK | AN47: OR | AO47: PA | AP47: RI | AQ47: SC | AR47: SD | AS47: TN | AT47: TX | AU47: UT | AV47: VA | AW47: VT | AX47: WA | AY47: WI | AZ47: WV | BA47: WY | BB47: Ave
C48: Estimated Loss rates | D48: =TRANSPOSE('Data Inputs'!B516:B565) -> 0 | E48: 0 | F48: 0 | G48: 0 | H48: 0 | I48: 0 | J48: 0 | K48: 0 | L48: 0 | M48: 0 | N48: 0 | O48: 0 | P48: 0 | Q48: 0 | R48: 0 | S48: 0 | T48: 0 | U48: 0 | V48: 0 | W48: 0 | X48: 0 | Y48: 0 | Z48: 0 | AA48: 0 | AB48: 0 | AC48: 0 | AD48: 0 | AE48: 0 | AF48: 0 | AG48: 0 | AH48: 0 | AI48: 0 | AJ48: 0 | AK48: 0 | AL48: 0 | AM48: 0 | AN48: 0 | AO48: 0 | AP48: 0 | AQ48: 0 | AR48: 0 | AS48: 0 | AT48: 0 | AU48: 0 | AV48: 0 | AW48: 0 | AX48: 0 | AY48: 0 | AZ48: 0 | BA48: 0 | BB48: ='Data Inputs'!B515 -> 0
A49: Geographic Distribution of Loan Volume
C50: FAMCI Loans Balance | D50: ='Data Inputs'!$B310 -> 0 | E50: ='Data Inputs'!$B311 -> 0 | F50: ='Data Inputs'!$B312 -> 0 | G50: ='Data Inputs'!$B313 -> 0 | H50: ='Data Inputs'!$B314 -> 0 | I50: ='Data Inputs'!$B315 -> 0 | J50: ='Data Inputs'!$B316 -> 0 | K50: ='Data Inputs'!$B317 -> 0 | L50: ='Data Inputs'!$B318 -> 0 | M50: ='Data Inputs'!$B319 -> 0 | N50: ='Data Inputs'!$B320 -> 0 | O50: ='Data Inputs'!$B321 -> 0 | P50: ='Data Inputs'!$B322 -> 0 | Q50: ='Data Inputs'!$B323 -> 0 | R50: ='Data Inputs'!$B324 -> 0 | S50: ='Data Inputs'!$B325 -> 0 | T50: ='Data Inputs'!$B326 -> 0 | U50: ='Data Inputs'!$B327 -> 0 | V50: ='Data Inputs'!$B328 -> 0 | W50: ='Data Inputs'!$B329 -> 0 | X50: ='Data Inputs'!$B330 -> 0 | Y50: ='Data Inputs'!$B331 -> 0 | Z50: ='Data Inputs'!$B332 -> 0 | AA50: ='Data Inputs'!$B333 -> 0 | AB50: ='Data Inputs'!$B334 -> 0 | AC50: ='Data Inputs'!$B335 -> 0 | AD50: ='Data Inputs'!$B336 -> 0 | AE50: ='Data Inputs'!$B337 -> 0 | AF50: ='Data Inputs'!$B338 -> 0 | AG50: ='Data Inputs'!$B339 -> 0 | AH50: ='Data Inputs'!$B340 -> 0 | AI50: ='Data Inputs'!$B341 -> 0 | AJ50: ='Data Inputs'!$B342 -> 0 | AK50: ='Data Inputs'!$B343 -> 0 | AL50: ='Data Inputs'!$B344 -> 0 | AM50: ='Data Inputs'!$B345 -> 0 | AN50: ='Data Inputs'!$B346 -> 0 | AO50: ='Data Inputs'!$B347 -> 0 | AP50: ='Data Inputs'!$B348 -> 0 | AQ50: ='Data Inputs'!$B349 -> 0 | AR50: ='Data Inputs'!$B350 -> 0 | AS50: ='Data Inputs'!$B351 -> 0 | AT50: ='Data Inputs'!$B352 -> 0 | AU50: ='Data Inputs'!$B353 -> 0 | AV50: ='Data Inputs'!$B354 -> 0 | AW50: ='Data Inputs'!$B355 -> 0 | AX50: ='Data Inputs'!$B356 -> 0 | AY50: ='Data Inputs'!$B357 -> 0 | AZ50: ='Data Inputs'!$B358 -> 0 | BA50: ='Data Inputs'!$B359 -> 0 | BB50: =SUM(D50:BA50) -> 0
C51: Percentage | D51: =D50/$BB50 ->  | AJ51: =AJ50/$BB50 ->  | BB51: =SUM(D51:BA51) -> 
A54: Path for Allocating Losses | C54: t1 | D54: t2 | E54: t3 | F54: t4 | G54: t5 | H54: t6 | I54: t7 | J54: t8 | K54: t9 | L54: t10
A55: Periodic | B55: Enter --> | C55: 0.4309950607 | D55: 0.1706398223 | E55: 0.1165755203 | F55: 0.04025565667 | G55: 0.04025565667 | H55: 0.04025565667 | I55: 0.04025565667 | J55: 0.04025565667 | K55: 0.04025565667 | L55: 0.04025565667
A56: Cumulative | C56: =C55 -> 0.4309950607 | D56: =C56+D55 -> 0.6016348831 | E56: =D56+E55 -> 0.7182104033 | F56: 0.75846606 | G56: 0.7987217167 | H56: 0.8389773733 | I56: 0.87923303 | J56: 0.9194886867 | K56: 0.9597443433 | L56: 1
A59: Transfer Section Credit Losses
BB60: Totals
A61: Estimated State Loan Volumes | C61: t1 | D61: ='Risk Measures'!D$51*'Loan and Cash Flow Accounts'!$C$197 ->  | E61: ='Risk Measures'!E$51*'Loan and Cash Flow Accounts'!$C$197 ->  | F61: ='Risk Measures'!F$51*'Loan and Cash Flow Accounts'!$C$197 ->  | G61: ='Risk Measures'!G$51*'Loan and Cash Flow Accounts'!$C$197 ->  | H61: ='Risk Measures'!H$51*'Loan and Cash Flow Accounts'!$C$197 ->  | I61: ='Risk Measures'!I$51*'Loan and Cash Flow Accounts'!$C$197 ->  | J61: ='Risk Measures'!J$51*'Loan and Cash Flow Accounts'!$C$197 ->  | K61: ='Risk Measures'!K$51*'Loan and Cash Flow Accounts'!$C$197 ->  | L61: ='Risk Measures'!L$51*'Loan and Cash Flow Accounts'!$C$197 ->  | M61: ='Risk Measures'!M$51*'Loan and Cash Flow Accounts'!$C$197 ->  | N61: ='Risk Measures'!N$51*'Loan and Cash Flow Accounts'!$C$197 ->  | O61: ='Risk Measures'!O$51*'Loan and Cash Flow Accounts'!$C$197 ->  | P61: ='Risk Measures'!P$51*'Loan and Cash Flow Accounts'!$C$197 ->  | Q61: ='Risk Measures'!Q$51*'Loan and Cash Flow Accounts'!$C$197 ->  | R61: ='Risk Measures'!R$51*'Loan and Cash Flow Accounts'!$C$197 ->  | S61: ='Risk Measures'!S$51*'Loan and Cash Flow Accounts'!$C$197 ->  | T61: ='Risk Measures'!T$51*'Loan and Cash Flow Accounts'!$C$197 ->  | U61: ='Risk Measures'!U$51*'Loan and Cash Flow Accounts'!$C$197 ->  | V61: ='Risk Measures'!V$51*'Loan and Cash Flow Accounts'!$C$197 ->  | W61: ='Risk Measures'!W$51*'Loan and Cash Flow Accounts'!$C$197 ->  | X61: ='Risk Measures'!X$51*'Loan and Cash Flow Accounts'!$C$197 ->  | Y61: ='Risk Measures'!Y$51*'Loan and Cash Flow Accounts'!$C$197 ->  | Z61: ='Risk Measures'!Z$51*'Loan and Cash Flow Accounts'!$C$197 ->  | AA61: ='Risk Measures'!AA$51*'Loan and Cash Flow Accounts'!$C$197 ->  | AB61: ='Risk Measures'!AB$51*'Loan and Cash Flow Accounts'!$C$197 ->  | AC61: ='Risk Measures'!AC$51*'Loan and Cash Flow Accounts'!$C$197 ->  | AD61: ='Risk Measures'!AD$51*'Loan and Cash Flow Accounts'!$C$197 ->  | AE61: ='Risk Measures'!AE$51*'Loan and Cash Flow Accounts'!$C$197 ->  | AF61: ='Risk Measures'!AF$51*'Loan and Cash Flow Accounts'!$C$197 ->  | AG61: ='Risk Measures'!AG$51*'Loan and Cash Flow Accounts'!$C$197 ->  | AH61: ='Risk Measures'!AH$51*'Loan and Cash Flow Accounts'!$C$197 ->  | AI61: ='Risk Measures'!AI$51*'Loan and Cash Flow Accounts'!$C$197 ->  | AJ61: ='Risk Measures'!AJ$51*'Loan and Cash Flow Accounts'!$C$197 ->  | AK61: ='Risk Measures'!AK$51*'Loan and Cash Flow Accounts'!$C$197 ->  | AL61: ='Risk Measures'!AL$51*'Loan and Cash Flow Accounts'!$C$197 ->  | AM61: ='Risk Measures'!AM$51*'Loan and Cash Flow Accounts'!$C$197 ->  | AN61: ='Risk Measures'!AN$51*'Loan and Cash Flow Accounts'!$C$197 ->  | AO61: ='Risk Measures'!AO$51*'Loan and Cash Flow Accounts'!$C$197 ->  | AP61: ='Risk Measures'!AP$51*'Loan and Cash Flow Accounts'!$C$197 ->  | AQ61: ='Risk Measures'!AQ$51*'Loan and Cash Flow Accounts'!$C$197 ->  | AR61: ='Risk Measures'!AR$51*'Loan and Cash Flow Accounts'!$C$197 ->  | AS61: ='Risk Measures'!AS$51*'Loan and Cash Flow Accounts'!$C$197 ->  | AT61: ='Risk Measures'!AT$51*'Loan and Cash Flow Accounts'!$C$197 ->  | AU61: ='Risk Measures'!AU$51*'Loan and Cash Flow Accounts'!$C$197 ->  | AV61: ='Risk Measures'!AV$51*'Loan and Cash Flow Accounts'!$C$197 ->  | AW61: ='Risk Measures'!AW$51*'Loan and Cash Flow Accounts'!$C$197 ->  | AX61: ='Risk Measures'!AX$51*'Loan and Cash Flow Accounts'!$C$197 ->  | AY61: ='Risk Measures'!AY$51*'Loan and Cash Flow Accounts'!$C$197 ->  | AZ61: ='Risk Measures'!AZ$51*'Loan and Cash Flow Accounts'!$C$197 ->  | BA61: ='Risk Measures'!BA$51*'Loan and Cash Flow Accounts'!$C$197 ->  | BB61: =SUM(D61:BA61) -> 
C62: t2 | D62: ='Risk Measures'!D$51*'Loan and Cash Flow Accounts'!$D$197 ->  | E62: ='Risk Measures'!E$51*'Loan and Cash Flow Accounts'!$D$197 ->  | F62: ='Risk Measures'!F$51*'Loan and Cash Flow Accounts'!$D$197 ->  | G62: ='Risk Measures'!G$51*'Loan and Cash Flow Accounts'!$D$197 ->  | H62: ='Risk Measures'!H$51*'Loan and Cash Flow Accounts'!$D$197 ->  | I62: ='Risk Measures'!I$51*'Loan and Cash Flow Accounts'!$D$197 ->  | J62: ='Risk Measures'!J$51*'Loan and Cash Flow Accounts'!$D$197 ->  | K62: ='Risk Measures'!K$51*'Loan and Cash Flow Accounts'!$D$197 ->  | L62: ='Risk Measures'!L$51*'Loan and Cash Flow Accounts'!$D$197 ->  | M62: ='Risk Measures'!M$51*'Loan and Cash Flow Accounts'!$D$197 ->  | N62: ='Risk Measures'!N$51*'Loan and Cash Flow Accounts'!$D$197 ->  | O62: ='Risk Measures'!O$51*'Loan and Cash Flow Accounts'!$D$197 ->  | P62: ='Risk Measures'!P$51*'Loan and Cash Flow Accounts'!$D$197 ->  | Q62: ='Risk Measures'!Q$51*'Loan and Cash Flow Accounts'!$D$197 ->  | R62: ='Risk Measures'!R$51*'Loan and Cash Flow Accounts'!$D$197 ->  | S62: ='Risk Measures'!S$51*'Loan and Cash Flow Accounts'!$D$197 ->  | T62: ='Risk Measures'!T$51*'Loan and Cash Flow Accounts'!$D$197 ->  | U62: ='Risk Measures'!U$51*'Loan and Cash Flow Accounts'!$D$197 ->  | V62: ='Risk Measures'!V$51*'Loan and Cash Flow Accounts'!$D$197 ->  | W62: ='Risk Measures'!W$51*'Loan and Cash Flow Accounts'!$D$197 ->  | X62: ='Risk Measures'!X$51*'Loan and Cash Flow Accounts'!$D$197 ->  | Y62: ='Risk Measures'!Y$51*'Loan and Cash Flow Accounts'!$D$197 ->  | Z62: ='Risk Measures'!Z$51*'Loan and Cash Flow Accounts'!$D$197 ->  | AA62: ='Risk Measures'!AA$51*'Loan and Cash Flow Accounts'!$D$197 ->  | AB62: ='Risk Measures'!AB$51*'Loan and Cash Flow Accounts'!$D$197 ->  | AC62: ='Risk Measures'!AC$51*'Loan and Cash Flow Accounts'!$D$197 ->  | AD62: ='Risk Measures'!AD$51*'Loan and Cash Flow Accounts'!$D$197 ->  | AE62: ='Risk Measures'!AE$51*'Loan and Cash Flow Accounts'!$D$197 ->  | AF62: ='Risk Measures'!AF$51*'Loan and Cash Flow Accounts'!$D$197 ->  | AG62: ='Risk Measures'!AG$51*'Loan and Cash Flow Accounts'!$D$197 ->  | AH62: ='Risk Measures'!AH$51*'Loan and Cash Flow Accounts'!$D$197 ->  | AI62: ='Risk Measures'!AI$51*'Loan and Cash Flow Accounts'!$D$197 ->  | AJ62: ='Risk Measures'!AJ$51*'Loan and Cash Flow Accounts'!$D$197 ->  | AK62: ='Risk Measures'!AK$51*'Loan and Cash Flow Accounts'!$D$197 ->  | AL62: ='Risk Measures'!AL$51*'Loan and Cash Flow Accounts'!$D$197 ->  | AM62: ='Risk Measures'!AM$51*'Loan and Cash Flow Accounts'!$D$197 ->  | AN62: ='Risk Measures'!AN$51*'Loan and Cash Flow Accounts'!$D$197 ->  | AO62: ='Risk Measures'!AO$51*'Loan and Cash Flow Accounts'!$D$197 ->  | AP62: ='Risk Measures'!AP$51*'Loan and Cash Flow Accounts'!$D$197 ->  | AQ62: ='Risk Measures'!AQ$51*'Loan and Cash Flow Accounts'!$D$197 ->  | AR62: ='Risk Measures'!AR$51*'Loan and Cash Flow Accounts'!$D$197 ->  | AS62: ='Risk Measures'!AS$51*'Loan and Cash Flow Accounts'!$D$197 ->  | AT62: ='Risk Measures'!AT$51*'Loan and Cash Flow Accounts'!$D$197 ->  | AU62: ='Risk Measures'!AU$51*'Loan and Cash Flow Accounts'!$D$197 ->  | AV62: ='Risk Measures'!AV$51*'Loan and Cash Flow Accounts'!$D$197 ->  | AW62: ='Risk Measures'!AW$51*'Loan and Cash Flow Accounts'!$D$197 ->  | AX62: ='Risk Measures'!AX$51*'Loan and Cash Flow Accounts'!$D$197 ->  | AY62: ='Risk Measures'!AY$51*'Loan and Cash Flow Accounts'!$D$197 ->  | AZ62: ='Risk Measures'!AZ$51*'Loan and Cash Flow Accounts'!$D$197 ->  | BA62: ='Risk Measures'!BA$51*'Loan and Cash Flow Accounts'!$D$197 ->  | BB62: =SUM(D62:BA62) -> 
C63: t3 | D63: ='Risk Measures'!D$51*'Loan and Cash Flow Accounts'!$E$197 ->  | E63: ='Risk Measures'!E$51*'Loan and Cash Flow Accounts'!$E$197 ->  | F63: ='Risk Measures'!F$51*'Loan and Cash Flow Accounts'!$E$197 ->  | G63: ='Risk Measures'!G$51*'Loan and Cash Flow Accounts'!$E$197 ->  | H63: ='Risk Measures'!H$51*'Loan and Cash Flow Accounts'!$E$197 ->  | I63: ='Risk Measures'!I$51*'Loan and Cash Flow Accounts'!$E$197 ->  | J63: ='Risk Measures'!J$51*'Loan and Cash Flow Accounts'!$E$197 ->  | K63: ='Risk Measures'!K$51*'Loan and Cash Flow Accounts'!$E$197 ->  | L63: ='Risk Measures'!L$51*'Loan and Cash Flow Accounts'!$E$197 ->  | M63: ='Risk Measures'!M$51*'Loan and Cash Flow Accounts'!$E$197 ->  | N63: ='Risk Measures'!N$51*'Loan and Cash Flow Accounts'!$E$197 ->  | O63: ='Risk Measures'!O$51*'Loan and Cash Flow Accounts'!$E$197 ->  | P63: ='Risk Measures'!P$51*'Loan and Cash Flow Accounts'!$E$197 ->  | Q63: ='Risk Measures'!Q$51*'Loan and Cash Flow Accounts'!$E$197 ->  | R63: ='Risk Measures'!R$51*'Loan and Cash Flow Accounts'!$E$197 ->  | S63: ='Risk Measures'!S$51*'Loan and Cash Flow Accounts'!$E$197 ->  | T63: ='Risk Measures'!T$51*'Loan and Cash Flow Accounts'!$E$197 ->  | U63: ='Risk Measures'!U$51*'Loan and Cash Flow Accounts'!$E$197 ->  | V63: ='Risk Measures'!V$51*'Loan and Cash Flow Accounts'!$E$197 ->  | W63: ='Risk Measures'!W$51*'Loan and Cash Flow Accounts'!$E$197 ->  | X63: ='Risk Measures'!X$51*'Loan and Cash Flow Accounts'!$E$197 ->  | Y63: ='Risk Measures'!Y$51*'Loan and Cash Flow Accounts'!$E$197 ->  | Z63: ='Risk Measures'!Z$51*'Loan and Cash Flow Accounts'!$E$197 ->  | AA63: ='Risk Measures'!AA$51*'Loan and Cash Flow Accounts'!$E$197 ->  | AB63: ='Risk Measures'!AB$51*'Loan and Cash Flow Accounts'!$E$197 ->  | AC63: ='Risk Measures'!AC$51*'Loan and Cash Flow Accounts'!$E$197 ->  | AD63: ='Risk Measures'!AD$51*'Loan and Cash Flow Accounts'!$E$197 ->  | AE63: ='Risk Measures'!AE$51*'Loan and Cash Flow Accounts'!$E$197 ->  | AF63: ='Risk Measures'!AF$51*'Loan and Cash Flow Accounts'!$E$197 ->  | AG63: ='Risk Measures'!AG$51*'Loan and Cash Flow Accounts'!$E$197 ->  | AH63: ='Risk Measures'!AH$51*'Loan and Cash Flow Accounts'!$E$197 ->  | AI63: ='Risk Measures'!AI$51*'Loan and Cash Flow Accounts'!$E$197 ->  | AJ63: ='Risk Measures'!AJ$51*'Loan and Cash Flow Accounts'!$E$197 ->  | AK63: ='Risk Measures'!AK$51*'Loan and Cash Flow Accounts'!$E$197 ->  | AL63: ='Risk Measures'!AL$51*'Loan and Cash Flow Accounts'!$E$197 ->  | AM63: ='Risk Measures'!AM$51*'Loan and Cash Flow Accounts'!$E$197 ->  | AN63: ='Risk Measures'!AN$51*'Loan and Cash Flow Accounts'!$E$197 ->  | AO63: ='Risk Measures'!AO$51*'Loan and Cash Flow Accounts'!$E$197 ->  | AP63: ='Risk Measures'!AP$51*'Loan and Cash Flow Accounts'!$E$197 ->  | AQ63: ='Risk Measures'!AQ$51*'Loan and Cash Flow Accounts'!$E$197 ->  | AR63: ='Risk Measures'!AR$51*'Loan and Cash Flow Accounts'!$E$197 ->  | AS63: ='Risk Measures'!AS$51*'Loan and Cash Flow Accounts'!$E$197 ->  | AT63: ='Risk Measures'!AT$51*'Loan and Cash Flow Accounts'!$E$197 ->  | AU63: ='Risk Measures'!AU$51*'Loan and Cash Flow Accounts'!$E$197 ->  | AV63: ='Risk Measures'!AV$51*'Loan and Cash Flow Accounts'!$E$197 ->  | AW63: ='Risk Measures'!AW$51*'Loan and Cash Flow Accounts'!$E$197 ->  | AX63: ='Risk Measures'!AX$51*'Loan and Cash Flow Accounts'!$E$197 ->  | AY63: ='Risk Measures'!AY$51*'Loan and Cash Flow Accounts'!$E$197 ->  | AZ63: ='Risk Measures'!AZ$51*'Loan and Cash Flow Accounts'!$E$197 ->  | BA63: ='Risk Measures'!BA$51*'Loan and Cash Flow Accounts'!$E$197 -> 
C64: t4 | D64: ='Risk Measures'!D$51*'Loan and Cash Flow Accounts'!$F$197 ->  | E64: ='Risk Measures'!E$51*'Loan and Cash Flow Accounts'!$F$197 ->  | F64: ='Risk Measures'!F$51*'Loan and Cash Flow Accounts'!$F$197 ->  | G64: ='Risk Measures'!G$51*'Loan and Cash Flow Accounts'!$F$197 ->  | H64: ='Risk Measures'!H$51*'Loan and Cash Flow Accounts'!$F$197 ->  | I64: ='Risk Measures'!I$51*'Loan and Cash Flow Accounts'!$F$197 ->  | J64: ='Risk Measures'!J$51*'Loan and Cash Flow Accounts'!$F$197 ->  | K64: ='Risk Measures'!K$51*'Loan and Cash Flow Accounts'!$F$197 ->  | L64: ='Risk Measures'!L$51*'Loan and Cash Flow Accounts'!$F$197 ->  | M64: ='Risk Measures'!M$51*'Loan and Cash Flow Accounts'!$F$197 ->  | N64: ='Risk Measures'!N$51*'Loan and Cash Flow Accounts'!$F$197 ->  | O64: ='Risk Measures'!O$51*'Loan and Cash Flow Accounts'!$F$197 ->  | P64: ='Risk Measures'!P$51*'Loan and Cash Flow Accounts'!$F$197 ->  | Q64: ='Risk Measures'!Q$51*'Loan and Cash Flow Accounts'!$F$197 ->  | R64: ='Risk Measures'!R$51*'Loan and Cash Flow Accounts'!$F$197 ->  | S64: ='Risk Measures'!S$51*'Loan and Cash Flow Accounts'!$F$197 ->  | T64: ='Risk Measures'!T$51*'Loan and Cash Flow Accounts'!$F$197 ->  | U64: ='Risk Measures'!U$51*'Loan and Cash Flow Accounts'!$F$197 ->  | V64: ='Risk Measures'!V$51*'Loan and Cash Flow Accounts'!$F$197 ->  | W64: ='Risk Measures'!W$51*'Loan and Cash Flow Accounts'!$F$197 ->  | X64: ='Risk Measures'!X$51*'Loan and Cash Flow Accounts'!$F$197 ->  | Y64: ='Risk Measures'!Y$51*'Loan and Cash Flow Accounts'!$F$197 ->  | Z64: ='Risk Measures'!Z$51*'Loan and Cash Flow Accounts'!$F$197 ->  | AA64: ='Risk Measures'!AA$51*'Loan and Cash Flow Accounts'!$F$197 ->  | AB64: ='Risk Measures'!AB$51*'Loan and Cash Flow Accounts'!$F$197 ->  | AC64: ='Risk Measures'!AC$51*'Loan and Cash Flow Accounts'!$F$197 ->  | AD64: ='Risk Measures'!AD$51*'Loan and Cash Flow Accounts'!$F$197 ->  | AE64: ='Risk Measures'!AE$51*'Loan and Cash Flow Accounts'!$F$197 ->  | AF64: ='Risk Measures'!AF$51*'Loan and Cash Flow Accounts'!$F$197 ->  | AG64: ='Risk Measures'!AG$51*'Loan and Cash Flow Accounts'!$F$197 ->  | AH64: ='Risk Measures'!AH$51*'Loan and Cash Flow Accounts'!$F$197 ->  | AI64: ='Risk Measures'!AI$51*'Loan and Cash Flow Accounts'!$F$197 ->  | AJ64: ='Risk Measures'!AJ$51*'Loan and Cash Flow Accounts'!$F$197 ->  | AK64: ='Risk Measures'!AK$51*'Loan and Cash Flow Accounts'!$F$197 ->  | AL64: ='Risk Measures'!AL$51*'Loan and Cash Flow Accounts'!$F$197 ->  | AM64: ='Risk Measures'!AM$51*'Loan and Cash Flow Accounts'!$F$197 ->  | AN64: ='Risk Measures'!AN$51*'Loan and Cash Flow Accounts'!$F$197 ->  | AO64: ='Risk Measures'!AO$51*'Loan and Cash Flow Accounts'!$F$197 ->  | AP64: ='Risk Measures'!AP$51*'Loan and Cash Flow Accounts'!$F$197 ->  | AQ64: ='Risk Measures'!AQ$51*'Loan and Cash Flow Accounts'!$F$197 ->  | AR64: ='Risk Measures'!AR$51*'Loan and Cash Flow Accounts'!$F$197 ->  | AS64: ='Risk Measures'!AS$51*'Loan and Cash Flow Accounts'!$F$197 ->  | AT64: ='Risk Measures'!AT$51*'Loan and Cash Flow Accounts'!$F$197 ->  | AU64: ='Risk Measures'!AU$51*'Loan and Cash Flow Accounts'!$F$197 ->  | AV64: ='Risk Measures'!AV$51*'Loan and Cash Flow Accounts'!$F$197 ->  | AW64: ='Risk Measures'!AW$51*'Loan and Cash Flow Accounts'!$F$197 ->  | AX64: ='Risk Measures'!AX$51*'Loan and Cash Flow Accounts'!$F$197 ->  | AY64: ='Risk Measures'!AY$51*'Loan and Cash Flow Accounts'!$F$197 ->  | AZ64: ='Risk Measures'!AZ$51*'Loan and Cash Flow Accounts'!$F$197 ->  | BA64: ='Risk Measures'!BA$51*'Loan and Cash Flow Accounts'!$F$197 -> 
C65: t5 | D65: ='Risk Measures'!D$51*'Loan and Cash Flow Accounts'!$G$197 ->  | E65: ='Risk Measures'!E$51*'Loan and Cash Flow Accounts'!$G$197 ->  | F65: ='Risk Measures'!F$51*'Loan and Cash Flow Accounts'!$G$197 ->  | G65: ='Risk Measures'!G$51*'Loan and Cash Flow Accounts'!$G$197 ->  | H65: ='Risk Measures'!H$51*'Loan and Cash Flow Accounts'!$G$197 ->  | I65: ='Risk Measures'!I$51*'Loan and Cash Flow Accounts'!$G$197 ->  | J65: ='Risk Measures'!J$51*'Loan and Cash Flow Accounts'!$G$197 ->  | K65: ='Risk Measures'!K$51*'Loan and Cash Flow Accounts'!$G$197 ->  | L65: ='Risk Measures'!L$51*'Loan and Cash Flow Accounts'!$G$197 ->  | M65: ='Risk Measures'!M$51*'Loan and Cash Flow Accounts'!$G$197 ->  | N65: ='Risk Measures'!N$51*'Loan and Cash Flow Accounts'!$G$197 ->  | O65: ='Risk Measures'!O$51*'Loan and Cash Flow Accounts'!$G$197 ->  | P65: ='Risk Measures'!P$51*'Loan and Cash Flow Accounts'!$G$197 ->  | Q65: ='Risk Measures'!Q$51*'Loan and Cash Flow Accounts'!$G$197 ->  | R65: ='Risk Measures'!R$51*'Loan and Cash Flow Accounts'!$G$197 ->  | S65: ='Risk Measures'!S$51*'Loan and Cash Flow Accounts'!$G$197 ->  | T65: ='Risk Measures'!T$51*'Loan and Cash Flow Accounts'!$G$197 ->  | U65: ='Risk Measures'!U$51*'Loan and Cash Flow Accounts'!$G$197 ->  | V65: ='Risk Measures'!V$51*'Loan and Cash Flow Accounts'!$G$197 ->  | W65: ='Risk Measures'!W$51*'Loan and Cash Flow Accounts'!$G$197 ->  | X65: ='Risk Measures'!X$51*'Loan and Cash Flow Accounts'!$G$197 ->  | Y65: ='Risk Measures'!Y$51*'Loan and Cash Flow Accounts'!$G$197 ->  | Z65: ='Risk Measures'!Z$51*'Loan and Cash Flow Accounts'!$G$197 ->  | AA65: ='Risk Measures'!AA$51*'Loan and Cash Flow Accounts'!$G$197 ->  | AB65: ='Risk Measures'!AB$51*'Loan and Cash Flow Accounts'!$G$197 ->  | AC65: ='Risk Measures'!AC$51*'Loan and Cash Flow Accounts'!$G$197 ->  | AD65: ='Risk Measures'!AD$51*'Loan and Cash Flow Accounts'!$G$197 ->  | AE65: ='Risk Measures'!AE$51*'Loan and Cash Flow Accounts'!$G$197 ->  | AF65: ='Risk Measures'!AF$51*'Loan and Cash Flow Accounts'!$G$197 ->  | AG65: ='Risk Measures'!AG$51*'Loan and Cash Flow Accounts'!$G$197 ->  | AH65: ='Risk Measures'!AH$51*'Loan and Cash Flow Accounts'!$G$197 ->  | AI65: ='Risk Measures'!AI$51*'Loan and Cash Flow Accounts'!$G$197 ->  | AJ65: ='Risk Measures'!AJ$51*'Loan and Cash Flow Accounts'!$G$197 ->  | AK65: ='Risk Measures'!AK$51*'Loan and Cash Flow Accounts'!$G$197 ->  | AL65: ='Risk Measures'!AL$51*'Loan and Cash Flow Accounts'!$G$197 ->  | AM65: ='Risk Measures'!AM$51*'Loan and Cash Flow Accounts'!$G$197 ->  | AN65: ='Risk Measures'!AN$51*'Loan and Cash Flow Accounts'!$G$197 ->  | AO65: ='Risk Measures'!AO$51*'Loan and Cash Flow Accounts'!$G$197 ->  | AP65: ='Risk Measures'!AP$51*'Loan and Cash Flow Accounts'!$G$197 ->  | AQ65: ='Risk Measures'!AQ$51*'Loan and Cash Flow Accounts'!$G$197 ->  | AR65: ='Risk Measures'!AR$51*'Loan and Cash Flow Accounts'!$G$197 ->  | AS65: ='Risk Measures'!AS$51*'Loan and Cash Flow Accounts'!$G$197 ->  | AT65: ='Risk Measures'!AT$51*'Loan and Cash Flow Accounts'!$G$197 ->  | AU65: ='Risk Measures'!AU$51*'Loan and Cash Flow Accounts'!$G$197 ->  | AV65: ='Risk Measures'!AV$51*'Loan and Cash Flow Accounts'!$G$197 ->  | AW65: ='Risk Measures'!AW$51*'Loan and Cash Flow Accounts'!$G$197 ->  | AX65: ='Risk Measures'!AX$51*'Loan and Cash Flow Accounts'!$G$197 ->  | AY65: ='Risk Measures'!AY$51*'Loan and Cash Flow Accounts'!$G$197 ->  | AZ65: ='Risk Measures'!AZ$51*'Loan and Cash Flow Accounts'!$G$197 ->  | BA65: ='Risk Measures'!BA$51*'Loan and Cash Flow Accounts'!$G$197 -> 
C66: t6 | D66: ='Risk Measures'!D$51*'Loan and Cash Flow Accounts'!$H$197 ->  | E66: ='Risk Measures'!E$51*'Loan and Cash Flow Accounts'!$H$197 ->  | F66: ='Risk Measures'!F$51*'Loan and Cash Flow Accounts'!$H$197 ->  | G66: ='Risk Measures'!G$51*'Loan and Cash Flow Accounts'!$H$197 ->  | H66: ='Risk Measures'!H$51*'Loan and Cash Flow Accounts'!$H$197 ->  | I66: ='Risk Measures'!I$51*'Loan and Cash Flow Accounts'!$H$197 ->  | J66: ='Risk Measures'!J$51*'Loan and Cash Flow Accounts'!$H$197 ->  | K66: ='Risk Measures'!K$51*'Loan and Cash Flow Accounts'!$H$197 ->  | L66: ='Risk Measures'!L$51*'Loan and Cash Flow Accounts'!$H$197 ->  | M66: ='Risk Measures'!M$51*'Loan and Cash Flow Accounts'!$H$197 ->  | N66: ='Risk Measures'!N$51*'Loan and Cash Flow Accounts'!$H$197 ->  | O66: ='Risk Measures'!O$51*'Loan and Cash Flow Accounts'!$H$197 ->  | P66: ='Risk Measures'!P$51*'Loan and Cash Flow Accounts'!$H$197 ->  | Q66: ='Risk Measures'!Q$51*'Loan and Cash Flow Accounts'!$H$197 ->  | R66: ='Risk Measures'!R$51*'Loan and Cash Flow Accounts'!$H$197 ->  | S66: ='Risk Measures'!S$51*'Loan and Cash Flow Accounts'!$H$197 ->  | T66: ='Risk Measures'!T$51*'Loan and Cash Flow Accounts'!$H$197 ->  | U66: ='Risk Measures'!U$51*'Loan and Cash Flow Accounts'!$H$197 ->  | V66: ='Risk Measures'!V$51*'Loan and Cash Flow Accounts'!$H$197 ->  | W66: ='Risk Measures'!W$51*'Loan and Cash Flow Accounts'!$H$197 ->  | X66: ='Risk Measures'!X$51*'Loan and Cash Flow Accounts'!$H$197 ->  | Y66: ='Risk Measures'!Y$51*'Loan and Cash Flow Accounts'!$H$197 ->  | Z66: ='Risk Measures'!Z$51*'Loan and Cash Flow Accounts'!$H$197 ->  | AA66: ='Risk Measures'!AA$51*'Loan and Cash Flow Accounts'!$H$197 ->  | AB66: ='Risk Measures'!AB$51*'Loan and Cash Flow Accounts'!$H$197 ->  | AC66: ='Risk Measures'!AC$51*'Loan and Cash Flow Accounts'!$H$197 ->  | AD66: ='Risk Measures'!AD$51*'Loan and Cash Flow Accounts'!$H$197 ->  | AE66: ='Risk Measures'!AE$51*'Loan and Cash Flow Accounts'!$H$197 ->  | AF66: ='Risk Measures'!AF$51*'Loan and Cash Flow Accounts'!$H$197 ->  | AG66: ='Risk Measures'!AG$51*'Loan and Cash Flow Accounts'!$H$197 ->  | AH66: ='Risk Measures'!AH$51*'Loan and Cash Flow Accounts'!$H$197 ->  | AI66: ='Risk Measures'!AI$51*'Loan and Cash Flow Accounts'!$H$197 ->  | AJ66: ='Risk Measures'!AJ$51*'Loan and Cash Flow Accounts'!$H$197 ->  | AK66: ='Risk Measures'!AK$51*'Loan and Cash Flow Accounts'!$H$197 ->  | AL66: ='Risk Measures'!AL$51*'Loan and Cash Flow Accounts'!$H$197 ->  | AM66: ='Risk Measures'!AM$51*'Loan and Cash Flow Accounts'!$H$197 ->  | AN66: ='Risk Measures'!AN$51*'Loan and Cash Flow Accounts'!$H$197 ->  | AO66: ='Risk Measures'!AO$51*'Loan and Cash Flow Accounts'!$H$197 ->  | AP66: ='Risk Measures'!AP$51*'Loan and Cash Flow Accounts'!$H$197 ->  | AQ66: ='Risk Measures'!AQ$51*'Loan and Cash Flow Accounts'!$H$197 ->  | AR66: ='Risk Measures'!AR$51*'Loan and Cash Flow Accounts'!$H$197 ->  | AS66: ='Risk Measures'!AS$51*'Loan and Cash Flow Accounts'!$H$197 ->  | AT66: ='Risk Measures'!AT$51*'Loan and Cash Flow Accounts'!$H$197 ->  | AU66: ='Risk Measures'!AU$51*'Loan and Cash Flow Accounts'!$H$197 ->  | AV66: ='Risk Measures'!AV$51*'Loan and Cash Flow Accounts'!$H$197 ->  | AW66: ='Risk Measures'!AW$51*'Loan and Cash Flow Accounts'!$H$197 ->  | AX66: ='Risk Measures'!AX$51*'Loan and Cash Flow Accounts'!$H$197 ->  | AY66: ='Risk Measures'!AY$51*'Loan and Cash Flow Accounts'!$H$197 ->  | AZ66: ='Risk Measures'!AZ$51*'Loan and Cash Flow Accounts'!$H$197 ->  | BA66: ='Risk Measures'!BA$51*'Loan and Cash Flow Accounts'!$H$197 -> 
C67: t7 | D67: ='Risk Measures'!D$51*'Loan and Cash Flow Accounts'!$I$197 ->  | E67: ='Risk Measures'!E$51*'Loan and Cash Flow Accounts'!$I$197 ->  | F67: ='Risk Measures'!F$51*'Loan and Cash Flow Accounts'!$I$197 ->  | G67: ='Risk Measures'!G$51*'Loan and Cash Flow Accounts'!$I$197 ->  | H67: ='Risk Measures'!H$51*'Loan and Cash Flow Accounts'!$I$197 ->  | I67: ='Risk Measures'!I$51*'Loan and Cash Flow Accounts'!$I$197 ->  | J67: ='Risk Measures'!J$51*'Loan and Cash Flow Accounts'!$I$197 ->  | K67: ='Risk Measures'!K$51*'Loan and Cash Flow Accounts'!$I$197 ->  | L67: ='Risk Measures'!L$51*'Loan and Cash Flow Accounts'!$I$197 ->  | M67: ='Risk Measures'!M$51*'Loan and Cash Flow Accounts'!$I$197 ->  | N67: ='Risk Measures'!N$51*'Loan and Cash Flow Accounts'!$I$197 ->  | O67: ='Risk Measures'!O$51*'Loan and Cash Flow Accounts'!$I$197 ->  | P67: ='Risk Measures'!P$51*'Loan and Cash Flow Accounts'!$I$197 ->  | Q67: ='Risk Measures'!Q$51*'Loan and Cash Flow Accounts'!$I$197 ->  | R67: ='Risk Measures'!R$51*'Loan and Cash Flow Accounts'!$I$197 ->  | S67: ='Risk Measures'!S$51*'Loan and Cash Flow Accounts'!$I$197 ->  | T67: ='Risk Measures'!T$51*'Loan and Cash Flow Accounts'!$I$197 ->  | U67: ='Risk Measures'!U$51*'Loan and Cash Flow Accounts'!$I$197 ->  | V67: ='Risk Measures'!V$51*'Loan and Cash Flow Accounts'!$I$197 ->  | W67: ='Risk Measures'!W$51*'Loan and Cash Flow Accounts'!$I$197 ->  | X67: ='Risk Measures'!X$51*'Loan and Cash Flow Accounts'!$I$197 ->  | Y67: ='Risk Measures'!Y$51*'Loan and Cash Flow Accounts'!$I$197 ->  | Z67: ='Risk Measures'!Z$51*'Loan and Cash Flow Accounts'!$I$197 ->  | AA67: ='Risk Measures'!AA$51*'Loan and Cash Flow Accounts'!$I$197 ->  | AB67: ='Risk Measures'!AB$51*'Loan and Cash Flow Accounts'!$I$197 ->  | AC67: ='Risk Measures'!AC$51*'Loan and Cash Flow Accounts'!$I$197 ->  | AD67: ='Risk Measures'!AD$51*'Loan and Cash Flow Accounts'!$I$197 ->  | AE67: ='Risk Measures'!AE$51*'Loan and Cash Flow Accounts'!$I$197 ->  | AF67: ='Risk Measures'!AF$51*'Loan and Cash Flow Accounts'!$I$197 ->  | AG67: ='Risk Measures'!AG$51*'Loan and Cash Flow Accounts'!$I$197 ->  | AH67: ='Risk Measures'!AH$51*'Loan and Cash Flow Accounts'!$I$197 ->  | AI67: ='Risk Measures'!AI$51*'Loan and Cash Flow Accounts'!$I$197 ->  | AJ67: ='Risk Measures'!AJ$51*'Loan and Cash Flow Accounts'!$I$197 ->  | AK67: ='Risk Measures'!AK$51*'Loan and Cash Flow Accounts'!$I$197 ->  | AL67: ='Risk Measures'!AL$51*'Loan and Cash Flow Accounts'!$I$197 ->  | AM67: ='Risk Measures'!AM$51*'Loan and Cash Flow Accounts'!$I$197 ->  | AN67: ='Risk Measures'!AN$51*'Loan and Cash Flow Accounts'!$I$197 ->  | AO67: ='Risk Measures'!AO$51*'Loan and Cash Flow Accounts'!$I$197 ->  | AP67: ='Risk Measures'!AP$51*'Loan and Cash Flow Accounts'!$I$197 ->  | AQ67: ='Risk Measures'!AQ$51*'Loan and Cash Flow Accounts'!$I$197 ->  | AR67: ='Risk Measures'!AR$51*'Loan and Cash Flow Accounts'!$I$197 ->  | AS67: ='Risk Measures'!AS$51*'Loan and Cash Flow Accounts'!$I$197 ->  | AT67: ='Risk Measures'!AT$51*'Loan and Cash Flow Accounts'!$I$197 ->  | AU67: ='Risk Measures'!AU$51*'Loan and Cash Flow Accounts'!$I$197 ->  | AV67: ='Risk Measures'!AV$51*'Loan and Cash Flow Accounts'!$I$197 ->  | AW67: ='Risk Measures'!AW$51*'Loan and Cash Flow Accounts'!$I$197 ->  | AX67: ='Risk Measures'!AX$51*'Loan and Cash Flow Accounts'!$I$197 ->  | AY67: ='Risk Measures'!AY$51*'Loan and Cash Flow Accounts'!$I$197 ->  | AZ67: ='Risk Measures'!AZ$51*'Loan and Cash Flow Accounts'!$I$197 ->  | BA67: ='Risk Measures'!BA$51*'Loan and Cash Flow Accounts'!$I$197 -> 
C68: t8 | D68: ='Risk Measures'!D$51*'Loan and Cash Flow Accounts'!$J$197 ->  | E68: ='Risk Measures'!E$51*'Loan and Cash Flow Accounts'!$J$197 ->  | F68: ='Risk Measures'!F$51*'Loan and Cash Flow Accounts'!$J$197 ->  | G68: ='Risk Measures'!G$51*'Loan and Cash Flow Accounts'!$J$197 ->  | H68: ='Risk Measures'!H$51*'Loan and Cash Flow Accounts'!$J$197 ->  | I68: ='Risk Measures'!I$51*'Loan and Cash Flow Accounts'!$J$197 ->  | J68: ='Risk Measures'!J$51*'Loan and Cash Flow Accounts'!$J$197 ->  | K68: ='Risk Measures'!K$51*'Loan and Cash Flow Accounts'!$J$197 ->  | L68: ='Risk Measures'!L$51*'Loan and Cash Flow Accounts'!$J$197 ->  | M68: ='Risk Measures'!M$51*'Loan and Cash Flow Accounts'!$J$197 ->  | N68: ='Risk Measures'!N$51*'Loan and Cash Flow Accounts'!$J$197 ->  | O68: ='Risk Measures'!O$51*'Loan and Cash Flow Accounts'!$J$197 ->  | P68: ='Risk Measures'!P$51*'Loan and Cash Flow Accounts'!$J$197 ->  | Q68: ='Risk Measures'!Q$51*'Loan and Cash Flow Accounts'!$J$197 ->  | R68: ='Risk Measures'!R$51*'Loan and Cash Flow Accounts'!$J$197 ->  | S68: ='Risk Measures'!S$51*'Loan and Cash Flow Accounts'!$J$197 ->  | T68: ='Risk Measures'!T$51*'Loan and Cash Flow Accounts'!$J$197 ->  | U68: ='Risk Measures'!U$51*'Loan and Cash Flow Accounts'!$J$197 ->  | V68: ='Risk Measures'!V$51*'Loan and Cash Flow Accounts'!$J$197 ->  | W68: ='Risk Measures'!W$51*'Loan and Cash Flow Accounts'!$J$197 ->  | X68: ='Risk Measures'!X$51*'Loan and Cash Flow Accounts'!$J$197 ->  | Y68: ='Risk Measures'!Y$51*'Loan and Cash Flow Accounts'!$J$197 ->  | Z68: ='Risk Measures'!Z$51*'Loan and Cash Flow Accounts'!$J$197 ->  | AA68: ='Risk Measures'!AA$51*'Loan and Cash Flow Accounts'!$J$197 ->  | AB68: ='Risk Measures'!AB$51*'Loan and Cash Flow Accounts'!$J$197 ->  | AC68: ='Risk Measures'!AC$51*'Loan and Cash Flow Accounts'!$J$197 ->  | AD68: ='Risk Measures'!AD$51*'Loan and Cash Flow Accounts'!$J$197 ->  | AE68: ='Risk Measures'!AE$51*'Loan and Cash Flow Accounts'!$J$197 ->  | AF68: ='Risk Measures'!AF$51*'Loan and Cash Flow Accounts'!$J$197 ->  | AG68: ='Risk Measures'!AG$51*'Loan and Cash Flow Accounts'!$J$197 ->  | AH68: ='Risk Measures'!AH$51*'Loan and Cash Flow Accounts'!$J$197 ->  | AI68: ='Risk Measures'!AI$51*'Loan and Cash Flow Accounts'!$J$197 ->  | AJ68: ='Risk Measures'!AJ$51*'Loan and Cash Flow Accounts'!$J$197 ->  | AK68: ='Risk Measures'!AK$51*'Loan and Cash Flow Accounts'!$J$197 ->  | AL68: ='Risk Measures'!AL$51*'Loan and Cash Flow Accounts'!$J$197 ->  | AM68: ='Risk Measures'!AM$51*'Loan and Cash Flow Accounts'!$J$197 ->  | AN68: ='Risk Measures'!AN$51*'Loan and Cash Flow Accounts'!$J$197 ->  | AO68: ='Risk Measures'!AO$51*'Loan and Cash Flow Accounts'!$J$197 ->  | AP68: ='Risk Measures'!AP$51*'Loan and Cash Flow Accounts'!$J$197 ->  | AQ68: ='Risk Measures'!AQ$51*'Loan and Cash Flow Accounts'!$J$197 ->  | AR68: ='Risk Measures'!AR$51*'Loan and Cash Flow Accounts'!$J$197 ->  | AS68: ='Risk Measures'!AS$51*'Loan and Cash Flow Accounts'!$J$197 ->  | AT68: ='Risk Measures'!AT$51*'Loan and Cash Flow Accounts'!$J$197 ->  | AU68: ='Risk Measures'!AU$51*'Loan and Cash Flow Accounts'!$J$197 ->  | AV68: ='Risk Measures'!AV$51*'Loan and Cash Flow Accounts'!$J$197 ->  | AW68: ='Risk Measures'!AW$51*'Loan and Cash Flow Accounts'!$J$197 ->  | AX68: ='Risk Measures'!AX$51*'Loan and Cash Flow Accounts'!$J$197 ->  | AY68: ='Risk Measures'!AY$51*'Loan and Cash Flow Accounts'!$J$197 ->  | AZ68: ='Risk Measures'!AZ$51*'Loan and Cash Flow Accounts'!$J$197 ->  | BA68: ='Risk Measures'!BA$51*'Loan and Cash Flow Accounts'!$J$197 -> 
C69: t9 | D69: ='Risk Measures'!D$51*'Loan and Cash Flow Accounts'!$K$197 ->  | E69: ='Risk Measures'!E$51*'Loan and Cash Flow Accounts'!$K$197 ->  | F69: ='Risk Measures'!F$51*'Loan and Cash Flow Accounts'!$K$197 ->  | G69: ='Risk Measures'!G$51*'Loan and Cash Flow Accounts'!$K$197 ->  | H69: ='Risk Measures'!H$51*'Loan and Cash Flow Accounts'!$K$197 ->  | I69: ='Risk Measures'!I$51*'Loan and Cash Flow Accounts'!$K$197 ->  | J69: ='Risk Measures'!J$51*'Loan and Cash Flow Accounts'!$K$197 ->  | K69: ='Risk Measures'!K$51*'Loan and Cash Flow Accounts'!$K$197 ->  | L69: ='Risk Measures'!L$51*'Loan and Cash Flow Accounts'!$K$197 ->  | M69: ='Risk Measures'!M$51*'Loan and Cash Flow Accounts'!$K$197 ->  | N69: ='Risk Measures'!N$51*'Loan and Cash Flow Accounts'!$K$197 ->  | O69: ='Risk Measures'!O$51*'Loan and Cash Flow Accounts'!$K$197 ->  | P69: ='Risk Measures'!P$51*'Loan and Cash Flow Accounts'!$K$197 ->  | Q69: ='Risk Measures'!Q$51*'Loan and Cash Flow Accounts'!$K$197 ->  | R69: ='Risk Measures'!R$51*'Loan and Cash Flow Accounts'!$K$197 ->  | S69: ='Risk Measures'!S$51*'Loan and Cash Flow Accounts'!$K$197 ->  | T69: ='Risk Measures'!T$51*'Loan and Cash Flow Accounts'!$K$197 ->  | U69: ='Risk Measures'!U$51*'Loan and Cash Flow Accounts'!$K$197 ->  | V69: ='Risk Measures'!V$51*'Loan and Cash Flow Accounts'!$K$197 ->  | W69: ='Risk Measures'!W$51*'Loan and Cash Flow Accounts'!$K$197 ->  | X69: ='Risk Measures'!X$51*'Loan and Cash Flow Accounts'!$K$197 ->  | Y69: ='Risk Measures'!Y$51*'Loan and Cash Flow Accounts'!$K$197 ->  | Z69: ='Risk Measures'!Z$51*'Loan and Cash Flow Accounts'!$K$197 ->  | AA69: ='Risk Measures'!AA$51*'Loan and Cash Flow Accounts'!$K$197 ->  | AB69: ='Risk Measures'!AB$51*'Loan and Cash Flow Accounts'!$K$197 ->  | AC69: ='Risk Measures'!AC$51*'Loan and Cash Flow Accounts'!$K$197 ->  | AD69: ='Risk Measures'!AD$51*'Loan and Cash Flow Accounts'!$K$197 ->  | AE69: ='Risk Measures'!AE$51*'Loan and Cash Flow Accounts'!$K$197 ->  | AF69: ='Risk Measures'!AF$51*'Loan and Cash Flow Accounts'!$K$197 ->  | AG69: ='Risk Measures'!AG$51*'Loan and Cash Flow Accounts'!$K$197 ->  | AH69: ='Risk Measures'!AH$51*'Loan and Cash Flow Accounts'!$K$197 ->  | AI69: ='Risk Measures'!AI$51*'Loan and Cash Flow Accounts'!$K$197 ->  | AJ69: ='Risk Measures'!AJ$51*'Loan and Cash Flow Accounts'!$K$197 ->  | AK69: ='Risk Measures'!AK$51*'Loan and Cash Flow Accounts'!$K$197 ->  | AL69: ='Risk Measures'!AL$51*'Loan and Cash Flow Accounts'!$K$197 ->  | AM69: ='Risk Measures'!AM$51*'Loan and Cash Flow Accounts'!$K$197 ->  | AN69: ='Risk Measures'!AN$51*'Loan and Cash Flow Accounts'!$K$197 ->  | AO69: ='Risk Measures'!AO$51*'Loan and Cash Flow Accounts'!$K$197 ->  | AP69: ='Risk Measures'!AP$51*'Loan and Cash Flow Accounts'!$K$197 ->  | AQ69: ='Risk Measures'!AQ$51*'Loan and Cash Flow Accounts'!$K$197 ->  | AR69: ='Risk Measures'!AR$51*'Loan and Cash Flow Accounts'!$K$197 ->  | AS69: ='Risk Measures'!AS$51*'Loan and Cash Flow Accounts'!$K$197 ->  | AT69: ='Risk Measures'!AT$51*'Loan and Cash Flow Accounts'!$K$197 ->  | AU69: ='Risk Measures'!AU$51*'Loan and Cash Flow Accounts'!$K$197 ->  | AV69: ='Risk Measures'!AV$51*'Loan and Cash Flow Accounts'!$K$197 ->  | AW69: ='Risk Measures'!AW$51*'Loan and Cash Flow Accounts'!$K$197 ->  | AX69: ='Risk Measures'!AX$51*'Loan and Cash Flow Accounts'!$K$197 ->  | AY69: ='Risk Measures'!AY$51*'Loan and Cash Flow Accounts'!$K$197 ->  | AZ69: ='Risk Measures'!AZ$51*'Loan and Cash Flow Accounts'!$K$197 ->  | BA69: ='Risk Measures'!BA$51*'Loan and Cash Flow Accounts'!$K$197 -> 
C70: t10 | D70: ='Risk Measures'!D$51*'Loan and Cash Flow Accounts'!$L$197 ->  | E70: ='Risk Measures'!E$51*'Loan and Cash Flow Accounts'!$L$197 ->  | F70: ='Risk Measures'!F$51*'Loan and Cash Flow Accounts'!$L$197 ->  | G70: ='Risk Measures'!G$51*'Loan and Cash Flow Accounts'!$L$197 ->  | H70: ='Risk Measures'!H$51*'Loan and Cash Flow Accounts'!$L$197 ->  | I70: ='Risk Measures'!I$51*'Loan and Cash Flow Accounts'!$L$197 ->  | J70: ='Risk Measures'!J$51*'Loan and Cash Flow Accounts'!$L$197 ->  | K70: ='Risk Measures'!K$51*'Loan and Cash Flow Accounts'!$L$197 ->  | L70: ='Risk Measures'!L$51*'Loan and Cash Flow Accounts'!$L$197 ->  | M70: ='Risk Measures'!M$51*'Loan and Cash Flow Accounts'!$L$197 ->  | N70: ='Risk Measures'!N$51*'Loan and Cash Flow Accounts'!$L$197 ->  | O70: ='Risk Measures'!O$51*'Loan and Cash Flow Accounts'!$L$197 ->  | P70: ='Risk Measures'!P$51*'Loan and Cash Flow Accounts'!$L$197 ->  | Q70: ='Risk Measures'!Q$51*'Loan and Cash Flow Accounts'!$L$197 ->  | R70: ='Risk Measures'!R$51*'Loan and Cash Flow Accounts'!$L$197 ->  | S70: ='Risk Measures'!S$51*'Loan and Cash Flow Accounts'!$L$197 ->  | T70: ='Risk Measures'!T$51*'Loan and Cash Flow Accounts'!$L$197 ->  | U70: ='Risk Measures'!U$51*'Loan and Cash Flow Accounts'!$L$197 ->  | V70: ='Risk Measures'!V$51*'Loan and Cash Flow Accounts'!$L$197 ->  | W70: ='Risk Measures'!W$51*'Loan and Cash Flow Accounts'!$L$197 ->  | X70: ='Risk Measures'!X$51*'Loan and Cash Flow Accounts'!$L$197 ->  | Y70: ='Risk Measures'!Y$51*'Loan and Cash Flow Accounts'!$L$197 ->  | Z70: ='Risk Measures'!Z$51*'Loan and Cash Flow Accounts'!$L$197 ->  | AA70: ='Risk Measures'!AA$51*'Loan and Cash Flow Accounts'!$L$197 ->  | AB70: ='Risk Measures'!AB$51*'Loan and Cash Flow Accounts'!$L$197 ->  | AC70: ='Risk Measures'!AC$51*'Loan and Cash Flow Accounts'!$L$197 ->  | AD70: ='Risk Measures'!AD$51*'Loan and Cash Flow Accounts'!$L$197 ->  | AE70: ='Risk Measures'!AE$51*'Loan and Cash Flow Accounts'!$L$197 ->  | AF70: ='Risk Measures'!AF$51*'Loan and Cash Flow Accounts'!$L$197 ->  | AG70: ='Risk Measures'!AG$51*'Loan and Cash Flow Accounts'!$L$197 ->  | AH70: ='Risk Measures'!AH$51*'Loan and Cash Flow Accounts'!$L$197 ->  | AI70: ='Risk Measures'!AI$51*'Loan and Cash Flow Accounts'!$L$197 ->  | AJ70: ='Risk Measures'!AJ$51*'Loan and Cash Flow Accounts'!$L$197 ->  | AK70: ='Risk Measures'!AK$51*'Loan and Cash Flow Accounts'!$L$197 ->  | AL70: ='Risk Measures'!AL$51*'Loan and Cash Flow Accounts'!$L$197 ->  | AM70: ='Risk Measures'!AM$51*'Loan and Cash Flow Accounts'!$L$197 ->  | AN70: ='Risk Measures'!AN$51*'Loan and Cash Flow Accounts'!$L$197 ->  | AO70: ='Risk Measures'!AO$51*'Loan and Cash Flow Accounts'!$L$197 ->  | AP70: ='Risk Measures'!AP$51*'Loan and Cash Flow Accounts'!$L$197 ->  | AQ70: ='Risk Measures'!AQ$51*'Loan and Cash Flow Accounts'!$L$197 ->  | AR70: ='Risk Measures'!AR$51*'Loan and Cash Flow Accounts'!$L$197 ->  | AS70: ='Risk Measures'!AS$51*'Loan and Cash Flow Accounts'!$L$197 ->  | AT70: ='Risk Measures'!AT$51*'Loan and Cash Flow Accounts'!$L$197 ->  | AU70: ='Risk Measures'!AU$51*'Loan and Cash Flow Accounts'!$L$197 ->  | AV70: ='Risk Measures'!AV$51*'Loan and Cash Flow Accounts'!$L$197 ->  | AW70: ='Risk Measures'!AW$51*'Loan and Cash Flow Accounts'!$L$197 ->  | AX70: ='Risk Measures'!AX$51*'Loan and Cash Flow Accounts'!$L$197 ->  | AY70: ='Risk Measures'!AY$51*'Loan and Cash Flow Accounts'!$L$197 ->  | AZ70: ='Risk Measures'!AZ$51*'Loan and Cash Flow Accounts'!$L$197 ->  | BA70: ='Risk Measures'!BA$51*'Loan and Cash Flow Accounts'!$L$197 -> 
A73: Origination State Loan Volumes | C73: t1 | D73: =D61 ->  | E73: =E61 ->  | BB73: =SUM(D73:BA73) -> 
C74: t2 | D74: =D62-D61 ->  | E74: =E62-E61 -> 
C75: t3 | E75: =E63-E62 -> 
C76: t4
C77: t5
C78: t6
C79: t7 | AD79: =AD67-AD66 -> 
C80: t8
C81: t9
C82: t10
A85: Origination Year Losses | C85: t1 | D85: =D73*D$48 ->  | E85: =E73*E$48 ->  | AJ85: =AJ73*AJ$48 ->  | BB85: =SUM(D85:BA85) -> 
C86: t2 | E86: =E74*E$48 ->  | AJ86: =AJ74*AJ$48 -> 
C87: t3 | E87: =E75*E$48 ->  | AJ87: =AJ75*AJ$48 -> 
C88: t4 | E88: =E76*E$48 ->  | AJ88: =AJ76*AJ$48 -> 
C89: t5 | E89: =E77*E$48 ->  | AJ89: =AJ77*AJ$48 -> 
C90: t6 | E90: =E78*E$48 ->  | AJ90: =AJ78*AJ$48 -> 
C91: t7 | E91: =E79*E$48 ->  | AJ91: =AJ79*AJ$48 -> 
C92: t8 | E92: =E80*E$48 ->  | AJ92: =AJ80*AJ$48 -> 
C93: t9 | E93: =E81*E$48 ->  | AJ93: =AJ81*AJ$48 -> 
C94: t10 | E94: =E82*E$48 ->  | AJ94: =AJ82*AJ$48 -> 
C97: Origination period:
B98: Loss weight matrix | C98: t1 | D98: t2 | E98: t3 | F98: t4 | G98: t5 | H98: t6 | I98: t7 | J98: t8 | K98: t9 | L98: t10
A99: Loss period: | B99: t1 | C99: =C55 -> 0.4309950607 | D99: 0 | E99: 0 | F99: 0 | G99: 0 | H99: 0 | I99: 0 | J99: 0 | K99: 0 | L99: 0
B100: t2 | C100: =D55 -> 0.1706398223 | D100: =C55 -> 0.4309950607 | E100: 0 | F100: 0 | G100: 0 | H100: 0 | I100: 0 | J100: 0 | K100: 0 | L100: 0
B101: t3 | C101: =E55 -> 0.1165755203 | D101: =D55 -> 0.1706398223 | E101: =C55 -> 0.4309950607 | F101: 0 | G101: 0 | H101: 0 | I101: 0 | J101: 0 | K101: 0 | L101: 0
B102: t4 | C102: =F55 -> 0.04025565667 | D102: =E55 -> 0.1165755203 | E102: =D55 -> 0.1706398223 | F102: =C55 -> 0.4309950607 | G102: 0 | H102: 0 | I102: 0 | J102: 0 | K102: 0 | L102: 0
B103: t5 | C103: =G55 -> 0.04025565667 | D103: =F55 -> 0.04025565667 | E103: =E55 -> 0.1165755203 | F103: =D55 -> 0.1706398223 | G103: =C55 -> 0.4309950607 | H103: 0 | I103: 0 | J103: 0 | K103: 0 | L103: 0
B104: t6 | C104: =H55 -> 0.04025565667 | D104: =G55 -> 0.04025565667 | E104: =F55 -> 0.04025565667 | F104: =E55 -> 0.1165755203 | G104: =D55 -> 0.1706398223 | H104: =C55 -> 0.4309950607 | I104: 0 | J104: 0 | K104: 0 | L104: 0
B105: t7 | C105: =I55 -> 0.04025565667 | D105: =H55 -> 0.04025565667 | E105: =G55 -> 0.04025565667 | F105: =F55 -> 0.04025565667 | G105: =E55 -> 0.1165755203 | H105: =D55 -> 0.1706398223 | I105: =C55 -> 0.4309950607 | J105: 0 | K105: 0 | L105: 0
B106: t8 | C106: =J55 -> 0.04025565667 | D106: =I55 -> 0.04025565667 | E106: =H55 -> 0.04025565667 | F106: =G55 -> 0.04025565667 | G106: =F55 -> 0.04025565667 | H106: =E55 -> 0.1165755203 | I106: =D55 -> 0.1706398223 | J106: =C55 -> 0.4309950607 | K106: 0 | L106: 0
B107: t9 | C107: =K55 -> 0.04025565667 | D107: =J55 -> 0.04025565667 | E107: =I55 -> 0.04025565667 | F107: =H55 -> 0.04025565667 | G107: =G55 -> 0.04025565667 | H107: =F55 -> 0.04025565667 | I107: =E55 -> 0.1165755203 | J107: =D55 -> 0.1706398223 | K107: =C55 -> 0.4309950607 | L107: 0
B108: t10 | C108: =L55 -> 0.04025565667 | D108: =K55 -> 0.04025565667 | E108: =J55 -> 0.04025565667 | F108: =I55 -> 0.04025565667 | G108: =H55 -> 0.04025565667 | H108: =G55 -> 0.04025565667 | I108: =F55 -> 0.04025565667 | J108: =E55 -> 0.1165755203 | K108: =D55 -> 0.1706398223 | L108: =C55 -> 0.4309950607
B111: Loss matrix | C111: Total | D111: AK | E111: AL | F111: AR | G111: AZ | H111: CA | I111: CO | J111: CT | K111: DE | L111: FL | M111: GA | N111: HI | O111: IA | P111: ID | Q111: IL | R111: IN | S111: KS | T111: KY | U111: LA | V111: MA | W111: MD | X111: ME | Y111: MI | Z111: MN | AA111: MO | AB111: MS | AC111: MT | AD111: NC | AE111: ND | AF111: NE | AG111: NH | AH111: NJ | AI111: NM | AJ111: NV | AK111: NY | AL111: OH | AM111: OK | AN111: OR | AO111: PA | AP111: RI | AQ111: SC | AR111: SD | AS111: TN | AT111: TX | AU111: UT | AV111: VA | AW111: VT | AX111: WA | AY111: WI | AZ111: WV | BA111: WY
B112: t1 | C112: =SUM(D112:BB112) ->  | D112: =MMULT(C99:L108,D85:BA94) -> 
B113: t2 | C113: =SUM(D113:BB113) -> 
B114: t3
B115: t4
B116: t5
B117: t6
B118: t7
B119: t8
B120: t9
B121: t10
B123: Total | C123: =SUM(C112:C121) -> 
B124: RU ABS Premium Amortization | C124: ='Data Inputs'!B142 -> 0
A125: Note - include separate T path of sr sub set | B125: Sum | C125: t1 | D125: t2 | E125: t3 | F125: t4 | G125: t5 | H125: t6 | I125: t7 | J125: t8 | K125: t9 | L125: t10
A126: Credit Losses by Period | B126: =SUM(C126:L126) ->  | C126: =C112+C249+C239+C124 ->  | D126: =C113+D249+D239 ->  | E126: =C114+E249+E239 ->  | F126: =C115+F249+F239 ->  | G126: =C116+G249+G239 ->  | H126: =C117+H249+H239 ->  | I126: =C118+I249+I239 ->  | J126: =C119+J249+J239 ->  | K126: =C120+K249+K239 ->  | L126: =C121+L249+L239 -> 
C127: =C126/$B$126 ->  | D127: =D126/$B$126 -> 
B128: =B126-C123 -> 
A129: Carrying Cost Nonperforming Loans
A131: Share on balance sheet of loan losses | B131: =('Loan and Cash Flow Accounts'!B73+'Loan and Cash Flow Accounts'!B78+'Loan and Cash Flow Accounts'!B92)/'Loan and Cash Flow Accounts'!B197 ->  | C131: =('Loan and Cash Flow Accounts'!C73+'Loan and Cash Flow Accounts'!C78+'Loan and Cash Flow Accounts'!C92)/'Loan and Cash Flow Accounts'!C197 ->  | D131: =('Loan and Cash Flow Accounts'!D73+'Loan and Cash Flow Accounts'!D78+'Loan and Cash Flow Accounts'!D92)/'Loan and Cash Flow Accounts'!D197 ->  | E131: =('Loan and Cash Flow Accounts'!E73+'Loan and Cash Flow Accounts'!E78+'Loan and Cash Flow Accounts'!E92)/'Loan and Cash Flow Accounts'!E197 ->  | F131: =('Loan and Cash Flow Accounts'!F73+'Loan and Cash Flow Accounts'!F78+'Loan and Cash Flow Accounts'!F92)/'Loan and Cash Flow Accounts'!F197 ->  | G131: =('Loan and Cash Flow Accounts'!G73+'Loan and Cash Flow Accounts'!G78+'Loan and Cash Flow Accounts'!G92)/'Loan and Cash Flow Accounts'!G197 ->  | H131: =('Loan and Cash Flow Accounts'!H73+'Loan and Cash Flow Accounts'!H78+'Loan and Cash Flow Accounts'!H92)/'Loan and Cash Flow Accounts'!H197 ->  | I131: =('Loan and Cash Flow Accounts'!I73+'Loan and Cash Flow Accounts'!I78+'Loan and Cash Flow Accounts'!I92)/'Loan and Cash Flow Accounts'!I197 ->  | J131: =('Loan and Cash Flow Accounts'!J73+'Loan and Cash Flow Accounts'!J78+'Loan and Cash Flow Accounts'!J92)/'Loan and Cash Flow Accounts'!J197 ->  | K131: =('Loan and Cash Flow Accounts'!K73+'Loan and Cash Flow Accounts'!K78+'Loan and Cash Flow Accounts'!K92)/'Loan and Cash Flow Accounts'!K197 ->  | L131: =('Loan and Cash Flow Accounts'!L73+'Loan and Cash Flow Accounts'!L78+'Loan and Cash Flow Accounts'!L92)/'Loan and Cash Flow Accounts'!L197 -> 
A132: Share off balance sheet of loan losses | B132: =1-B131 -> 
A133: Face value of loans funded | C133: =C126*'Assumptions & Relationships'!$B$94 ->  | D133: =D126*'Assumptions & Relationships'!$B$94 ->  | E133: =E126*'Assumptions & Relationships'!$B$94 ->  | F133: =F126*'Assumptions & Relationships'!$B$94 ->  | G133: =G126*'Assumptions & Relationships'!$B$94 ->  | H133: =H126*'Assumptions & Relationships'!$B$94 ->  | I133: =I126*'Assumptions & Relationships'!$B$94 ->  | J133: =J126*'Assumptions & Relationships'!$B$94 ->  | K133: =K126*'Assumptions & Relationships'!$B$94 ->  | L133: =L126*'Assumptions & Relationships'!$B$94 -> 
A135: FAMC I Post 1996 Loans | B135: ='Loan and Cash Flow Accounts'!B73/'Loan and Cash Flow Accounts'!B197 ->  | C135: ='Loan and Cash Flow Accounts'!C73/'Loan and Cash Flow Accounts'!C197 ->  | D135: ='Loan and Cash Flow Accounts'!D73/'Loan and Cash Flow Accounts'!D197 ->  | E135: ='Loan and Cash Flow Accounts'!E73/'Loan and Cash Flow Accounts'!E197 ->  | F135: ='Loan and Cash Flow Accounts'!F73/'Loan and Cash Flow Accounts'!F197 ->  | G135: ='Loan and Cash Flow Accounts'!G73/'Loan and Cash Flow Accounts'!G197 ->  | H135: ='Loan and Cash Flow Accounts'!H73/'Loan and Cash Flow Accounts'!H197 ->  | I135: ='Loan and Cash Flow Accounts'!I73/'Loan and Cash Flow Accounts'!I197 ->  | J135: ='Loan and Cash Flow Accounts'!J73/'Loan and Cash Flow Accounts'!J197 ->  | K135: ='Loan and Cash Flow Accounts'!K73/'Loan and Cash Flow Accounts'!K197 ->  | L135: ='Loan and Cash Flow Accounts'!L73/'Loan and Cash Flow Accounts'!L197 -> 
A136: FAMC I - Post 1996 Swap | B136: ='Loan and Cash Flow Accounts'!B78/'Loan and Cash Flow Accounts'!B197 ->  | C136: ='Loan and Cash Flow Accounts'!C78/'Loan and Cash Flow Accounts'!C197 ->  | D136: ='Loan and Cash Flow Accounts'!D78/'Loan and Cash Flow Accounts'!D197 ->  | E136: ='Loan and Cash Flow Accounts'!E78/'Loan and Cash Flow Accounts'!E197 ->  | F136: ='Loan and Cash Flow Accounts'!F78/'Loan and Cash Flow Accounts'!F197 ->  | G136: ='Loan and Cash Flow Accounts'!G78/'Loan and Cash Flow Accounts'!G197 ->  | H136: ='Loan and Cash Flow Accounts'!H78/'Loan and Cash Flow Accounts'!H197 ->  | I136: ='Loan and Cash Flow Accounts'!I78/'Loan and Cash Flow Accounts'!I197 ->  | J136: ='Loan and Cash Flow Accounts'!J78/'Loan and Cash Flow Accounts'!J197 ->  | K136: ='Loan and Cash Flow Accounts'!K78/'Loan and Cash Flow Accounts'!K197 ->  | L136: ='Loan and Cash Flow Accounts'!L78/'Loan and Cash Flow Accounts'!L197 -> 
A137: Loans Held for Securitization | B137: ='Loan and Cash Flow Accounts'!B92/'Loan and Cash Flow Accounts'!B197 ->  | C137: ='Loan and Cash Flow Accounts'!C92/'Loan and Cash Flow Accounts'!C197 ->  | D137: ='Loan and Cash Flow Accounts'!D92/'Loan and Cash Flow Accounts'!D197 ->  | E137: ='Loan and Cash Flow Accounts'!E92/'Loan and Cash Flow Accounts'!E197 ->  | F137: ='Loan and Cash Flow Accounts'!F92/'Loan and Cash Flow Accounts'!F197 ->  | G137: ='Loan and Cash Flow Accounts'!G92/'Loan and Cash Flow Accounts'!G197 ->  | H137: ='Loan and Cash Flow Accounts'!H92/'Loan and Cash Flow Accounts'!H197 ->  | I137: ='Loan and Cash Flow Accounts'!I92/'Loan and Cash Flow Accounts'!I197 ->  | J137: ='Loan and Cash Flow Accounts'!J92/'Loan and Cash Flow Accounts'!J197 ->  | K137: ='Loan and Cash Flow Accounts'!K92/'Loan and Cash Flow Accounts'!K197 ->  | L137: ='Loan and Cash Flow Accounts'!L92/'Loan and Cash Flow Accounts'!L197 -> 
A139: Earnings/funding rates
A140: Effective Short (<1 year, shocked) Liability rate | C140: ='Income Statements'!C37/'Balance Sheets'!B25 ->  | D140: ='Income Statements'!D37/'Balance Sheets'!C25 ->  | E140: ='Income Statements'!E37/'Balance Sheets'!D25 ->  | F140: ='Income Statements'!F37/'Balance Sheets'!E25 ->  | G140: ='Income Statements'!G37/'Balance Sheets'!F25 ->  | H140: ='Income Statements'!H37/'Balance Sheets'!G25 ->  | I140: ='Income Statements'!I37/'Balance Sheets'!H25 ->  | J140: ='Income Statements'!J37/'Balance Sheets'!I25 ->  | K140: ='Income Statements'!K37/'Balance Sheets'!J25 ->  | L140: ='Income Statements'!L37/'Balance Sheets'!K25 -> 
A141: Blended Liability rate | C141: =('Income Statements'!C39-'Income Statements'!C41)/('Loan and Cash Flow Accounts'!C165+'Loan and Cash Flow Accounts'!C167) ->  | D141: =('Income Statements'!D39-'Income Statements'!D41)/('Loan and Cash Flow Accounts'!D165+'Loan and Cash Flow Accounts'!D167) ->  | E141: =('Income Statements'!E39-'Income Statements'!E41)/('Loan and Cash Flow Accounts'!E165+'Loan and Cash Flow Accounts'!E167) ->  | F141: =('Income Statements'!F39-'Income Statements'!F41)/('Loan and Cash Flow Accounts'!F165+'Loan and Cash Flow Accounts'!F167) ->  | G141: =('Income Statements'!G39-'Income Statements'!G41)/('Loan and Cash Flow Accounts'!G165+'Loan and Cash Flow Accounts'!G167) ->  | H141: =('Income Statements'!H39-'Income Statements'!H41)/('Loan and Cash Flow Accounts'!H165+'Loan and Cash Flow Accounts'!H167) ->  | I141: =('Income Statements'!I39-'Income Statements'!I41)/('Loan and Cash Flow Accounts'!I165+'Loan and Cash Flow Accounts'!I167) ->  | J141: =('Income Statements'!J39-'Income Statements'!J41)/('Loan and Cash Flow Accounts'!J165+'Loan and Cash Flow Accounts'!J167) ->  | K141: =('Income Statements'!K39-'Income Statements'!K41)/('Loan and Cash Flow Accounts'!K165+'Loan and Cash Flow Accounts'!K167) ->  | L141: =('Income Statements'!L39-'Income Statements'!L41)/('Loan and Cash Flow Accounts'!L165+'Loan and Cash Flow Accounts'!L167) -> 
A142: FAMC I Post 1996 Loans | C142: ='Assumptions & Relationships'!$C107+'Risk Measures'!D$8 -> 0 | D142: ='Assumptions & Relationships'!$C107+'Risk Measures'!E$8 -> 0 | E142: ='Assumptions & Relationships'!$C107+'Risk Measures'!F$8 -> 0 | F142: ='Assumptions & Relationships'!$C107+'Risk Measures'!G$8 -> 0 | G142: ='Assumptions & Relationships'!$C107+'Risk Measures'!H$8 -> 0 | H142: ='Assumptions & Relationships'!$C107+'Risk Measures'!I$8 -> 0 | I142: ='Assumptions & Relationships'!$C107+'Risk Measures'!J$8 -> 0 | J142: ='Assumptions & Relationships'!$C107+'Risk Measures'!K$8 -> 0 | K142: ='Assumptions & Relationships'!$C107+'Risk Measures'!L$8 -> 0 | L142: ='Assumptions & Relationships'!$C107+'Risk Measures'!M$8 -> 0
A143: FAMC I - Post 1996 Swap | C143: ='Assumptions & Relationships'!$C108+'Risk Measures'!D$8 ->  | D143: ='Assumptions & Relationships'!$C108+'Risk Measures'!E$8 ->  | E143: ='Assumptions & Relationships'!$C108+'Risk Measures'!F$8 ->  | F143: ='Assumptions & Relationships'!$C108+'Risk Measures'!G$8 ->  | G143: ='Assumptions & Relationships'!$C108+'Risk Measures'!H$8 ->  | H143: ='Assumptions & Relationships'!$C108+'Risk Measures'!I$8 ->  | I143: ='Assumptions & Relationships'!$C108+'Risk Measures'!J$8 ->  | J143: ='Assumptions & Relationships'!$C108+'Risk Measures'!K$8 ->  | K143: ='Assumptions & Relationships'!$C108+'Risk Measures'!L$8 ->  | L143: ='Assumptions & Relationships'!$C108+'Risk Measures'!M$8 -> 
A144: Loans Held for Securitization | C144: ='Assumptions & Relationships'!$C111+'Risk Measures'!D$8 -> 0 | D144: ='Assumptions & Relationships'!$C111+'Risk Measures'!E$8 -> 0 | E144: ='Assumptions & Relationships'!$C111+'Risk Measures'!F$8 -> 0 | F144: ='Assumptions & Relationships'!$C111+'Risk Measures'!G$8 -> 0 | G144: ='Assumptions & Relationships'!$C111+'Risk Measures'!H$8 -> 0 | H144: ='Assumptions & Relationships'!$C111+'Risk Measures'!I$8 -> 0 | I144: ='Assumptions & Relationships'!$C111+'Risk Measures'!J$8 -> 0 | J144: ='Assumptions & Relationships'!$C111+'Risk Measures'!K$8 -> 0 | K144: ='Assumptions & Relationships'!$C111+'Risk Measures'!L$8 -> 0 | L144: ='Assumptions & Relationships'!$C111+'Risk Measures'!M$8 -> 0
A145: On BS Blended ROF | C145: =C135/(C135+C137+C136)*C142+C137/(C135+C137+C136)*C144+C136/(C135+C136+C137)*C143 ->  | D145: =D135/(D135+D137+D136)*D142+D137/(D135+D137+D136)*D144+D136/(D135+D136+D137)*D143 -> 
B147: T-period effect for delay of: | C147: 1 | D147: 2 | E147: 3 | F147: 4 | G147: 5 | H147: 6 | I147: 7 | J147: 8 | K147: 9 | L147: 10
B148: 0 | M148: transpose
A149: (note - includes guarantee fee reversal) | B149: 1 | C149: =MAX(MIN('Assumptions & Relationships'!$B$95-C147,1),0) -> 0 | D149: =MAX(MIN('Assumptions & Relationships'!$B$95-D147,1),0) -> 0 | E149: =MAX(MIN('Assumptions & Relationships'!$B$95-E147,1),0) -> 0 | F149: =MAX(MIN('Assumptions & Relationships'!$B$95-F147,1),0) -> 0 | G149: =MAX(MIN('Assumptions & Relationships'!$B$95-G147,1),0) -> 0 | H149: =MAX(MIN('Assumptions & Relationships'!$B$95-H147,1),0) -> 0 | I149: =MAX(MIN('Assumptions & Relationships'!$B$95-I147,1),0) -> 0 | J149: =MAX(MIN('Assumptions & Relationships'!$B$95-J147,1),0) -> 0 | K149: =MAX(MIN('Assumptions & Relationships'!$B$95-K147,1),0) -> 0 | L149: =MAX(MIN('Assumptions & Relationships'!$B$95-L147,1),0) -> 0 | M149: =TRANSPOSE(C133:L133) -> 
B150: 2 | D150: =C149 -> 0 | E150: 0 | F150: 0 | G150: 0 | H150: 0 | I150: 0 | J150: 0 | K150: 0 | L150: 0
B151: 3 | E151: =D150 -> 0 | F151: 0 | G151: 0 | H151: 0 | I151: 0 | J151: 0 | K151: 0 | L151: 0
B152: 4 | F152: =E151 -> 0 | G152: 0 | H152: 0 | I152: 0 | J152: 0 | K152: 0 | L152: 0
B153: 5 | G153: =F152 -> 0 | H153: 0 | I153: 0 | J153: 0 | K153: 0 | L153: 0
B154: 6 | H154: =G153 -> 0 | I154: =H153 -> 0 | J154: =I153 -> 0 | K154: =J153 -> 0 | L154: =K153 -> 0
B155: 7 | I155: =H154 -> 0 | J155: =I154 -> 0 | K155: =J154 -> 0 | L155: =K154 -> 0
B156: 8 | J156: =I155 -> 0 | K156: =J155 -> 0 | L156: =K155 -> 0
B157: 9 | K157: =J156 -> 0 | L157: =K156 -> 0
B158: 10 | L158: =K157 -> 0
B159: LLRT Costs | C159: =C164 ->  | D159: =D164 ->  | E159: =E164 ->  | M159: =SUM(C159:L159) -> 
B160: (components)
B161: gtee reversal | C161: =C132*SUMPRODUCT(C149:C158,$M$149:$M$158)*'Assumptions & Relationships'!$B$85 ->  | D161: =D132*SUMPRODUCT(D149:D158,$M$149:$M$158)*'Assumptions & Relationships'!$B$85 ->  | E161: =E132*SUMPRODUCT(E149:E158,$M$149:$M$158)*'Assumptions & Relationships'!$B$85 ->  | F161: =F132*SUMPRODUCT(F149:F158,$M$149:$M$158)*'Assumptions & Relationships'!$B$85 ->  | G161: =G132*SUMPRODUCT(G149:G158,$M$149:$M$158)*'Assumptions & Relationships'!$B$85 ->  | H161: =H132*SUMPRODUCT(H149:H158,$M$149:$M$158)*'Assumptions & Relationships'!$B$85 ->  | I161: =I132*SUMPRODUCT(I149:I158,$M$149:$M$158)*'Assumptions & Relationships'!$B$85 ->  | J161: =J132*SUMPRODUCT(J149:J158,$M$149:$M$158)*'Assumptions & Relationships'!$B$85 ->  | K161: =K132*SUMPRODUCT(K149:K158,$M$149:$M$158)*'Assumptions & Relationships'!$B$85 ->  | L161: =L132*SUMPRODUCT(L149:L158,$M$149:$M$158)*'Assumptions & Relationships'!$B$85 -> 
B162: off BS | C162: =C132*(SUMPRODUCT(C149:C158,$M$149:$M$158))*C140 ->  | D162: =D132*(SUMPRODUCT(D149:D158,$M$149:$M$158))*D140 -> 
B163: on bs | C163: =C131*(SUMPRODUCT(C149:C158,$M$149:$M$158))*'Assumptions & Relationships'!$B$107 ->  | D163: =D131*(SUMPRODUCT(D149:D158,$M$149:$M$158))*'Assumptions & Relationships'!$B$107 ->  | E163: =E131*(SUMPRODUCT(E149:E158,$M$149:$M$158))*'Assumptions & Relationships'!$B$107 ->  | F163: =F131*(SUMPRODUCT(F149:F158,$M$149:$M$158))*'Assumptions & Relationships'!$B$107 ->  | G163: =G131*(SUMPRODUCT(G149:G158,$M$149:$M$158))*'Assumptions & Relationships'!$B$107 ->  | H163: =H131*(SUMPRODUCT(H149:H158,$M$149:$M$158))*'Assumptions & Relationships'!$B$107 ->  | I163: =I131*(SUMPRODUCT(I149:I158,$M$149:$M$158))*'Assumptions & Relationships'!$B$107 ->  | J163: =J131*(SUMPRODUCT(J149:J158,$M$149:$M$158))*'Assumptions & Relationships'!$B$107 ->  | K163: =K131*(SUMPRODUCT(K149:K158,$M$149:$M$158))*'Assumptions & Relationships'!$B$107 ->  | L163: =L131*(SUMPRODUCT(L149:L158,$M$149:$M$158))*'Assumptions & Relationships'!$B$107 -> 
B164: Total | C164: =SUM(C161:C163) ->  | D164: =SUM(D161:D163) ->  | E164: =SUM(E161:E163) -> 
A168: Transfer Section for Off- and On-BS AVP+ | B168: Run Date
B169: ='Data Inputs'!B4 -> 2018-03-31 | C169: =B$169+365.25 -> 2019-03-31T06:00:00 | D169: =C$169+365.25 -> 2020-03-30T12:00:00 | E169: 2021-03-30T18:00:00 | F169: 2022-03-31 | G169: 2023-03-31T06:00:00 | H169: 2024-03-30T12:00:00 | I169: 2025-03-30T18:00:00 | J169: 2026-03-31 | K169: 2027-03-31T06:00:00 | L169: 2028-03-30T12:00:00
C170: t1 | D170: t2 | E170: t3 | F170: t4 | G170: t5 | H170: t6 | I170: t7 | J170: t8 | K170: t9 | L170: t10 | M170: notes:
A171: Credit Risk | B171: Initial balance | C171: Weights
A172: ='Data Inputs'!C204 -> Off B/S AVP1 (CLM ref:Met 1) | B172: ='Data Inputs'!B205 -> 0 | C172: =IF(SUM($C188:$L188)>0,C188/SUM($C188:$L188),0) -> 0 | D172: =IF(SUM($C188:$L188)>0,D188/SUM($C188:$L188),0) -> 0 | E172: 0 | F172: 0 | G172: 0 | H172: 0 | I172: 0 | J172: 0 | K172: 0 | L172: 0
A173: ='Data Inputs'!C210 -> Off B/S AVP2 (CLM ref:Met 2) | B173: ='Data Inputs'!B211 -> 0 | C173: 0 | D173: =IF(SUM($C189:$L189)>0,D189/SUM($C189:$L189),0) -> 0 | E173: 0 | F173: 0 | G173: 0 | H173: 0 | I173: 0 | J173: 0 | K173: 0 | L173: 0
A174: ='Data Inputs'!C216 -> Off B/S AVP3 (CLM ref:Met 3) | B174: ='Data Inputs'!B217 -> 0 | C174: 0 | D174: =IF(SUM($C190:$L190)>0,D190/SUM($C190:$L190),0) -> 0 | E174: 0 | F174: 0 | G174: 0 | H174: 0 | I174: 0 | J174: 0 | K174: 0 | L174: 0
A175: ='Data Inputs'!C222 -> Off B/S AVP4 (CLM ref:M&I) | B175: ='Data Inputs'!B223 -> 0 | C175: 0 | D175: =IF(SUM($C191:$L191)>0,D191/SUM($C191:$L191),0) -> 0 | E175: 0 | F175: 0 | G175: 0 | H175: 0 | I175: 0 | J175: 0 | K175: 0 | L175: 0
A176: ='Data Inputs'!C231 -> Off BS AVP6 Rural Utilities (CLM ref:CFC) | B176: ='Data Inputs'!B232 -> 0 | C176: 0 | D176: =IF(SUM($C192:$L192)>0,D192/SUM($C192:$L192),0) -> 0 | E176: 0 | F176: 0 | G176: 0 | H176: 0 | I176: 0 | J176: 0 | K176: 0 | L176: 0
A177: ='Data Inputs'!C118 -> ON BS RU "Whole Loans" | B177: ='Data Inputs'!B119 -> 0 | C177: 0 | D177: =IF(SUM($C193:$L193)>0,D193/SUM($C193:$L193),0) -> 0 | E177: 0 | F177: 0 | G177: 0 | H177: 0 | I177: 0 | J177: 0 | K177: 0 | L177: 0 | M177: (can make date certain if preferred)
A178: ='Data Inputs'!C127 -> ON Balance Sheet RU (AVP 5 from CLM) structures | B178: ='Data Inputs'!B128 -> 0 | C178: 0 | D178: =IF(SUM($C194:$L194)>0,D194/SUM($C194:$L194),0) -> 0 | E178: 0 | F178: 0 | G178: 0 | H178: 0 | I178: 0 | J178: 0 | K178: 0 | L178: 0 | M178: (can make date certain if preferred)
A179: ='Data Inputs'!C135 -> ON BS RU ABS Structures (legacy) | B179: ='Data Inputs'!B136 -> 0 | C179: 0 | D179: =IF(SUM($C195:$L195)>0,D195/SUM($C195:$L195),0) -> 0 | E179: 0 | F179: 0 | G179: 0 | H179: 0 | I179: 0 | J179: 0 | K179: 0 | L179: 0
A180: ='Data Inputs'!$C$144 -> ON Balance Sheet AVP7 (CLM ref: Met) | B180: ='Data Inputs'!B145 -> 0 | C180: =IF($B180>C196,(B196-B$169)/(C$169-B$169),(IF($B196>C$169,(C$169-B$169)/($B196-$B$169),(B196<>C196)*($B196-B$169)/($B196-$B$169)))) -> 0 | D180: =(($B196>D$169)*(D$169-C$169)/($B196-$B$169))+((C196<>D196)*($B196-C$169)/($B196-$B$169)) -> 0 | E180: =(($B196>E$169)*(E$169-D$169)/($B196-$B$169))+((D196<>E196)*($B196-D$169)/($B196-$B$169)) -> 0 | F180: 0 | G180: 0 | H180: 0 | I180: 0 | J180: 0 | K180: 0 | L180: 0 | M180: =SUM(C180:L180) -> 0 | N180: (Check sums equal 1 for assets with life > 1 year)
A181: ='Data Inputs'!$C$152 -> ON Balance Sheet AVP8 (CLM ref: RAF) | B181: ='Data Inputs'!B153 -> 0 | C181: =IF($B181>C197,(B197-B$169)/(C$169-B$169),(IF($B197>C$169,(C$169-B$169)/($B197-$B$169),(B197<>C197)*($B197-B$169)/($B197-$B$169)))) -> 0 | D181: =(($B197>D$169)*(D$169-C$169)/($B197-$B$169))+((C197<>D197)*($B197-C$169)/($B197-$B$169)) -> 0 | E181: 0 | F181: 0 | G181: 0 | H181: 0 | I181: 0 | J181: 0 | K181: 0 | L181: 0 | M181: 0
A182: ='Data Inputs'!$C$160 -> ON Balance Sheet AVP9 (CLM ref: RAF) | B182: ='Data Inputs'!B161 -> 0 | C182: =IF($B182>C198,(B198-B$169)/(C$169-B$169),(IF($B198>C$169,(C$169-B$169)/($B198-$B$169),(B198<>C198)*($B198-B$169)/($B198-$B$169)))) -> 0 | D182: =(($B198>D$169)*(D$169-C$169)/($B198-$B$169))+((C198<>D198)*($B198-C$169)/($B198-$B$169)) -> 0 | E182: =(($B198>E$169)*(E$169-D$169)/($B198-$B$169))+((D198<>E198)*($B198-D$169)/($B198-$B$169)) -> 0 | F182: 0 | G182: 0 | H182: 0 | I182: 0 | J182: 0 | K182: 0 | L182: 0 | M182: 0
A183: ='Data Inputs'!$C$168 -> ON Balance Sheet AVP10 (CLM ref: RaboBank NA) | B183: ='Data Inputs'!B169 -> 0 | C183: =IF($B183>C199,(B199-B$169)/(C$169-B$169),(IF($B199>C$169,(C$169-B$169)/($B199-$B$169),(B199<>C199)*($B199-B$169)/($B199-$B$169)))) -> 0 | D183: =(($B199>D$169)*(D$169-C$169)/($B199-$B$169))+((C199<>D199)*($B199-C$169)/($B199-$B$169)) -> 0 | E183: 0 | F183: 0 | G183: 0 | H183: 0 | I183: 0 | J183: 0 | K183: 0 | L183: 0 | M183: 0
A187: Balances equivalents | B187: Maturity date | C187: Balances
A188: ='Data Inputs'!C204 -> Off B/S AVP1 (CLM ref:Met 1) | B188: ='Data Inputs'!B206 -> 00:00:00 | C188: =IF($B188>C$169,'Data Inputs'!$B205,IF($B188>B$169,($B188-B$169)/365*'Data Inputs'!$B205,0)) -> 0 | D188: =IF($B188>D$169,'Data Inputs'!$B205,IF($B188>C$169,($B188-C$169)/365*'Data Inputs'!$B205,0)) -> 0 | E188: =IF($B188>E$169,'Data Inputs'!$B205,IF($B188>D$169,($B188-D$169)/365*'Data Inputs'!$B205,0)) -> 0 | F188: =IF($B188>F$169,'Data Inputs'!$B205,IF($B188>E$169,($B188-E$169)/365*'Data Inputs'!$B205,0)) -> 0 | G188: =IF($B188>G$169,'Data Inputs'!$B205,IF($B188>F$169,($B188-F$169)/365*'Data Inputs'!$B205,0)) -> 0 | H188: =IF($B188>H$169,'Data Inputs'!$B205,IF($B188>G$169,($B188-G$169)/365*'Data Inputs'!$B205,0)) -> 0 | I188: =IF($B188>I$169,'Data Inputs'!$B205,IF($B188>H$169,($B188-H$169)/365*'Data Inputs'!$B205,0)) -> 0 | J188: =IF($B188>J$169,'Data Inputs'!$B205,IF($B188>I$169,($B188-I$169)/365*'Data Inputs'!$B205,0)) -> 0 | K188: =IF($B188>K$169,'Data Inputs'!$B205,IF($B188>J$169,($B188-J$169)/365*'Data Inputs'!$B205,0)) -> 0 | L188: =IF($B188>L$169,'Data Inputs'!$B205,IF($B188>K$169,($B188-K$169)/365*'Data Inputs'!$B205,0)) -> 0
A189: ='Data Inputs'!C210 -> Off B/S AVP2 (CLM ref:Met 2) | B189: ='Data Inputs'!B212 -> 00:00:00 | C189: =IF($B189>C$169,'Data Inputs'!$B211,IF($B189>B$169,($B189-B$169)/365*'Data Inputs'!$B211,0)) -> 0 | D189: =IF($B189>D$169,'Data Inputs'!$B211,IF($B189>C$169,($B189-C$169)/365*'Data Inputs'!$B211,0)) -> 0 | E189: =IF($B189>E$169,'Data Inputs'!$B211,IF($B189>D$169,($B189-D$169)/365*'Data Inputs'!$B211,0)) -> 0 | F189: =IF($B189>F$169,'Data Inputs'!$B211,IF($B189>E$169,($B189-E$169)/365*'Data Inputs'!$B211,0)) -> 0 | G189: =IF($B189>G$169,'Data Inputs'!$B211,IF($B189>F$169,($B189-F$169)/365*'Data Inputs'!$B211,0)) -> 0 | H189: =IF($B189>H$169,'Data Inputs'!$B211,IF($B189>G$169,($B189-G$169)/365*'Data Inputs'!$B211,0)) -> 0 | I189: =IF($B189>I$169,'Data Inputs'!$B211,IF($B189>H$169,($B189-H$169)/365*'Data Inputs'!$B211,0)) -> 0 | J189: =IF($B189>J$169,'Data Inputs'!$B211,IF($B189>I$169,($B189-I$169)/365*'Data Inputs'!$B211,0)) -> 0 | K189: =IF($B189>K$169,'Data Inputs'!$B211,IF($B189>J$169,($B189-J$169)/365*'Data Inputs'!$B211,0)) -> 0 | L189: =IF($B189>L$169,'Data Inputs'!$B211,IF($B189>K$169,($B189-K$169)/365*'Data Inputs'!$B211,0)) -> 0
A190: ='Data Inputs'!C216 -> Off B/S AVP3 (CLM ref:Met 3) | B190: ='Data Inputs'!B218 -> 00:00:00 | C190: =IF($B190>C$169,'Data Inputs'!$B217,IF($B190>B$169,($B190-B$169)/365*'Data Inputs'!$B217,0)) -> 0 | D190: =IF($B190>D$169,'Data Inputs'!$B217,IF($B190>C$169,($B190-C$169)/365*'Data Inputs'!$B217,0)) -> 0 | E190: =IF($B190>E$169,'Data Inputs'!$B217,IF($B190>D$169,($B190-D$169)/365*'Data Inputs'!$B217,0)) -> 0 | F190: =IF($B190>F$169,'Data Inputs'!$B217,IF($B190>E$169,($B190-E$169)/365*'Data Inputs'!$B217,0)) -> 0 | G190: =IF($B190>G$169,'Data Inputs'!$B217,IF($B190>F$169,($B190-F$169)/365*'Data Inputs'!$B217,0)) -> 0 | H190: =IF($B190>H$169,'Data Inputs'!$B217,IF($B190>G$169,($B190-G$169)/365*'Data Inputs'!$B217,0)) -> 0 | I190: =IF($B190>I$169,'Data Inputs'!$B217,IF($B190>H$169,($B190-H$169)/365*'Data Inputs'!$B217,0)) -> 0 | J190: =IF($B190>J$169,'Data Inputs'!$B217,IF($B190>I$169,($B190-I$169)/365*'Data Inputs'!$B217,0)) -> 0 | K190: =IF($B190>K$169,'Data Inputs'!$B217,IF($B190>J$169,($B190-J$169)/365*'Data Inputs'!$B217,0)) -> 0 | L190: =IF($B190>L$169,'Data Inputs'!$B217,IF($B190>K$169,($B190-K$169)/365*'Data Inputs'!$B217,0)) -> 0 | M190: example date certain treatment
A191: ='Data Inputs'!C222 -> Off B/S AVP4 (CLM ref:M&I) | B191: ='Data Inputs'!B224 -> 00:00:00 | C191: =IF($B191>C$169,'Data Inputs'!$B223,IF($B191>B$169,($B191-B$169)/365*'Data Inputs'!$B223,0)) -> 0 | D191: =IF($B191>D$169,'Data Inputs'!$B223,IF($B191>C$169,($B191-C$169)/365*'Data Inputs'!$B223,0)) -> 0 | E191: =IF($B191>E$169,'Data Inputs'!$B223,IF($B191>D$169,($B191-D$169)/365*'Data Inputs'!$B223,0)) -> 0 | F191: =IF($B191>F$169,'Data Inputs'!$B223,IF($B191>E$169,($B191-E$169)/365*'Data Inputs'!$B223,0)) -> 0 | G191: =IF($B191>G$169,'Data Inputs'!$B223,IF($B191>F$169,($B191-F$169)/365*'Data Inputs'!$B223,0)) -> 0 | H191: =IF($B191>H$169,'Data Inputs'!$B223,IF($B191>G$169,($B191-G$169)/365*'Data Inputs'!$B223,0)) -> 0 | I191: =IF($B191>I$169,'Data Inputs'!$B223,IF($B191>H$169,($B191-H$169)/365*'Data Inputs'!$B223,0)) -> 0 | J191: =IF($B191>J$169,'Data Inputs'!$B223,IF($B191>I$169,($B191-I$169)/365*'Data Inputs'!$B223,0)) -> 0 | K191: =IF($B191>K$169,'Data Inputs'!$B223,IF($B191>J$169,($B191-J$169)/365*'Data Inputs'!$B223,0)) -> 0 | L191: =IF($B191>L$169,'Data Inputs'!$B223,IF($B191>K$169,($B191-K$169)/365*'Data Inputs'!$B223,0)) -> 0
A192: =A176 -> Off BS AVP6 Rural Utilities (CLM ref:CFC) | B192: ='Data Inputs'!B233 -> 00:00:00 | C192: =IF($B192>C$169,'Data Inputs'!$B232,IF($B192>B$169,($B192-B$169)/365*'Data Inputs'!$B232,0)) -> 0 | D192: =IF($B192>D$169,'Data Inputs'!$B232,IF($B192>C$169,($B192-C$169)/365*'Data Inputs'!$B232,0)) -> 0 | E192: =IF($B192>E$169,'Data Inputs'!$B232,IF($B192>D$169,($B192-D$169)/365*'Data Inputs'!$B232,0)) -> 0 | F192: =IF($B192>F$169,'Data Inputs'!$B232,IF($B192>E$169,($B192-E$169)/365*'Data Inputs'!$B232,0)) -> 0 | G192: =IF($B192>G$169,'Data Inputs'!$B232,IF($B192>F$169,($B192-F$169)/365*'Data Inputs'!$B232,0)) -> 0 | H192: =IF($B192>H$169,'Data Inputs'!$B232,IF($B192>G$169,($B192-G$169)/365*'Data Inputs'!$B232,0)) -> 0 | I192: =IF($B192>I$169,'Data Inputs'!$B232,IF($B192>H$169,($B192-H$169)/365*'Data Inputs'!$B232,0)) -> 0 | J192: =IF($B192>J$169,'Data Inputs'!$B232,IF($B192>I$169,($B192-I$169)/365*'Data Inputs'!$B232,0)) -> 0 | K192: =IF($B192>K$169,'Data Inputs'!$B232,IF($B192>J$169,($B192-J$169)/365*'Data Inputs'!$B232,0)) -> 0 | L192: =IF($B192>L$169,'Data Inputs'!$B232,IF($B192>K$169,($B192-K$169)/365*'Data Inputs'!$B232,0)) -> 0 | M192: Date Certain | N192: (more than 10 years though)
A193: ON BS RU "Whole Loans" | B193: =$B$169+'Data Inputs'!B121/12*365.25 -> 2018-03-31 | C193: ='Loan and Cash Flow Accounts'!C109 -> 0 | D193: ='Loan and Cash Flow Accounts'!D109 -> 0 | E193: ='Loan and Cash Flow Accounts'!E109 -> 0 | F193: ='Loan and Cash Flow Accounts'!F109 -> 0 | G193: ='Loan and Cash Flow Accounts'!G109 -> 0 | H193: ='Loan and Cash Flow Accounts'!H109 -> 0 | I193: ='Loan and Cash Flow Accounts'!I109 -> 0 | J193: ='Loan and Cash Flow Accounts'!J109 -> 0 | K193: ='Loan and Cash Flow Accounts'!K109 -> 0 | L193: ='Loan and Cash Flow Accounts'!L109 -> 0 | M193: ("backfillable version" w/balances taken from LCF) | P193: (other treatment with "expiration" date used in prior analyses)
A194: ON Balance Sheet RU (AVP 5 from CLM) structures | B194: =$B$169+'Data Inputs'!B129/12*365.25 -> 2018-03-31 | C194: =IF($B194>C$169,'Data Inputs'!$B128,IF($B194>B$169,($B194-B$169)/365*'Data Inputs'!$B128,0)) -> 0 | D194: =IF($B194>D$169,'Data Inputs'!$B128,IF($B194>C$169,($B194-C$169)/365*'Data Inputs'!$B128,0)) -> 0 | E194: =IF($B194>E$169,'Data Inputs'!$B128,IF($B194>D$169,($B194-D$169)/365*'Data Inputs'!$B128,0)) -> 0 | F194: =IF($B194>F$169,'Data Inputs'!$B128,IF($B194>E$169,($B194-E$169)/365*'Data Inputs'!$B128,0)) -> 0 | G194: =IF($B194>G$169,'Data Inputs'!$B128,IF($B194>F$169,($B194-F$169)/365*'Data Inputs'!$B128,0)) -> 0 | H194: =IF($B194>H$169,'Data Inputs'!$B128,IF($B194>G$169,($B194-G$169)/365*'Data Inputs'!$B128,0)) -> 0 | I194: =IF($B194>I$169,'Data Inputs'!$B128,IF($B194>H$169,($B194-H$169)/365*'Data Inputs'!$B128,0)) -> 0 | J194: =IF($B194>J$169,'Data Inputs'!$B128,IF($B194>I$169,($B194-I$169)/365*'Data Inputs'!$B128,0)) -> 0 | K194: =IF($B194>K$169,'Data Inputs'!$B128,IF($B194>J$169,($B194-J$169)/365*'Data Inputs'!$B128,0)) -> 0 | L194: =IF($B194>L$169,'Data Inputs'!$B128,IF($B194>K$169,($B194-K$169)/365*'Data Inputs'!$B128,0)) -> 0 | M194: Date Certain
A195: ON BS RU ABS Structures (legacy) | B195: =$B$169+'Data Inputs'!B138/12*365.25 -> 2018-03-31 | C195: =IF($B195>C$169,'Data Inputs'!$B136,IF($B195>B$169,($B195-B$169)/365*'Data Inputs'!$B136,0)) -> 0 | D195: =IF($B195>D$169,'Data Inputs'!$B136,IF($B195>C$169,($B195-C$169)/365*'Data Inputs'!$B136,0)) -> 0 | E195: =IF($B195>E$169,'Data Inputs'!$B136,IF($B195>D$169,($B195-D$169)/365*'Data Inputs'!$B136,0)) -> 0 | F195: =IF($B195>F$169,'Data Inputs'!$B136,IF($B195>E$169,($B195-E$169)/365*'Data Inputs'!$B136,0)) -> 0 | G195: =IF($B195>G$169,'Data Inputs'!$B136,IF($B195>F$169,($B195-F$169)/365*'Data Inputs'!$B136,0)) -> 0 | H195: =IF($B195>H$169,'Data Inputs'!$B136,IF($B195>G$169,($B195-G$169)/365*'Data Inputs'!$B136,0)) -> 0 | I195: =IF($B195>I$169,'Data Inputs'!$B136,IF($B195>H$169,($B195-H$169)/365*'Data Inputs'!$B136,0)) -> 0 | J195: =IF($B195>J$169,'Data Inputs'!$B136,IF($B195>I$169,($B195-I$169)/365*'Data Inputs'!$B136,0)) -> 0 | K195: =IF($B195>K$169,'Data Inputs'!$B136,IF($B195>J$169,($B195-J$169)/365*'Data Inputs'!$B136,0)) -> 0 | L195: =IF($B195>L$169,'Data Inputs'!$B136,IF($B195>K$169,($B195-K$169)/365*'Data Inputs'!$B136,0)) -> 0 | M195: Date Certain | N195: (more than 10 years though)
A196: ON Balance Sheet AVP7 (CLM ref: Met) | B196: ='Data Inputs'!B146 -> 00:00:00 | C196: =IF($B196>C$169,'Data Inputs'!$B145,0) -> 0 | D196: =IF($B196>D$169,'Data Inputs'!$B145,0) -> 0 | E196: =IF($B196>E$169,'Data Inputs'!$B145,0) -> 0 | F196: =IF($B196>F$169,'Data Inputs'!$B145,0) -> 0 | G196: =IF($B196>G$169,'Data Inputs'!$B145,0) -> 0 | H196: =IF($B196>H$169,'Data Inputs'!$B145,0) -> 0 | I196: =IF($B196>I$169,'Data Inputs'!$B145,0) -> 0 | J196: =IF($B196>J$169,'Data Inputs'!$B145,0) -> 0 | K196: =IF($B196>K$169,'Data Inputs'!$B145,0) -> 0 | L196: =IF($B196>L$169,'Data Inputs'!$B145,0) -> 0 | M196: Date Certain - may change to zero am or zero backfill - add switches
A197: ON Balance Sheet AVP8 (CLM ref: RAF) | B197: ='Data Inputs'!B154 -> 00:00:00 | C197: =IF($B197>C$169,'Data Inputs'!$B153,0) -> 0 | D197: =IF($B197>D$169,'Data Inputs'!$B153,0) -> 0 | E197: =IF($B197>E$169,'Data Inputs'!$B153,0) -> 0 | F197: =IF($B197>F$169,'Data Inputs'!$B153,0) -> 0 | G197: =IF($B197>G$169,'Data Inputs'!$B153,0) -> 0 | H197: =IF($B197>H$169,'Data Inputs'!$B153,0) -> 0 | I197: =IF($B197>I$169,'Data Inputs'!$B153,0) -> 0 | J197: =IF($B197>J$169,'Data Inputs'!$B153,0) -> 0 | K197: =IF($B197>K$169,'Data Inputs'!$B153,0) -> 0 | L197: =IF($B197>L$169,'Data Inputs'!$B153,0) -> 0 | M197: Date Certain - may change to zero am or zero backfill - add switches
A198: ON Balance Sheet AVP9 (CLM ref: RAF) | B198: ='Data Inputs'!B162 -> 00:00:00 | C198: =IF($B198>C$169,'Data Inputs'!$B161,0) -> 0 | D198: =IF($B198>D$169,'Data Inputs'!$B161,0) -> 0 | E198: =IF($B198>E$169,'Data Inputs'!$B161,0) -> 0 | F198: =IF($B198>F$169,'Data Inputs'!$B161,0) -> 0 | G198: =IF($B198>G$169,'Data Inputs'!$B161,0) -> 0 | H198: =IF($B198>H$169,'Data Inputs'!$B161,0) -> 0 | I198: =IF($B198>I$169,'Data Inputs'!$B161,0) -> 0 | J198: =IF($B198>J$169,'Data Inputs'!$B161,0) -> 0 | K198: =IF($B198>K$169,'Data Inputs'!$B161,0) -> 0 | L198: =IF($B198>L$169,'Data Inputs'!$B161,0) -> 0 | M198: Date Certain - may change to zero am or zero backfill - add switches
A199: ON Balance Sheet AVP10 (CLM ref: RaboBank NA) | B199: ='Data Inputs'!B170 -> 00:00:00 | C199: =IF($B199>C$169,'Data Inputs'!$B169,0) -> 0 | D199: =IF($B199>D$169,'Data Inputs'!$B169,0) -> 0 | E199: =IF($B199>E$169,'Data Inputs'!$B169,0) -> 0 | F199: =IF($B199>F$169,'Data Inputs'!$B169,0) -> 0 | G199: =IF($B199>G$169,'Data Inputs'!$B169,0) -> 0 | H199: =IF($B199>H$169,'Data Inputs'!$B169,0) -> 0 | I199: =IF($B199>I$169,'Data Inputs'!$B169,0) -> 0 | J199: =IF($B199>J$169,'Data Inputs'!$B169,0) -> 0 | K199: =IF($B199>K$169,'Data Inputs'!$B169,0) -> 0 | L199: =IF($B199>L$169,'Data Inputs'!$B169,0) -> 0 | M199: Date Certain - may change to zero am or zero backfill - add switches
A202: Income (guarantee flows) | B202: g-tee fee or spread | C202: Income
A203: ='Data Inputs'!C204 -> Off B/S AVP1 (CLM ref:Met 1) | B203: ='Data Inputs'!B207 -> 0 | C203: =$B203*C188 -> 0 | D203: =$B203*D188 -> 0 | E203: 0 | F203: 0 | G203: 0 | H203: 0 | I203: 0 | J203: 0 | K203: 0 | L203: 0
A204: ='Data Inputs'!C210 -> Off B/S AVP2 (CLM ref:Met 2) | B204: ='Data Inputs'!B213 -> 0 | C204: 0 | D204: =$B204*D189 -> 0 | E204: 0 | F204: 0 | G204: 0 | H204: 0 | I204: 0 | J204: 0 | K204: 0 | L204: 0
A205: ='Data Inputs'!C216 -> Off B/S AVP3 (CLM ref:Met 3) | B205: ='Data Inputs'!B219 -> 0 | C205: 0 | D205: =$B205*D190 -> 0 | E205: 0 | F205: 0 | G205: 0 | H205: 0 | I205: 0 | J205: 0 | K205: 0 | L205: 0
A206: ='Data Inputs'!C222 -> Off B/S AVP4 (CLM ref:M&I) | B206: ='Data Inputs'!B225 -> 0 | C206: 0 | D206: =$B206*D191 -> 0 | E206: 0 | F206: 0 | G206: 0 | H206: 0 | I206: 0 | J206: 0 | K206: 0 | L206: 0
A207: =A176 -> Off BS AVP6 Rural Utilities (CLM ref:CFC) | B207: ='Data Inputs'!B234 -> 0 | C207: 0 | D207: =$B207*D192 -> 0 | E207: 0 | F207: 0 | G207: 0 | H207: 0 | I207: 0 | J207: 0 | K207: 0 | L207: 0
A208: ON BS RU "Whole Loans" | B208: ='Data Inputs'!B124 -> 0 | C208: 0 | D208: =$B208*D193 -> 0 | E208: 0 | F208: 0 | G208: 0 | H208: 0 | I208: 0 | J208: 0 | K208: 0 | L208: 0
A209: ON Balance Sheet RU (AVP 5 from CLM) structures | B209: ='Data Inputs'!B133 -> 0 | C209: 0 | D209: =$B209*D194 -> 0 | E209: 0 | F209: 0 | G209: 0 | H209: 0 | I209: 0 | J209: 0 | K209: 0 | L209: 0
A210: ON BS RU ABS Structures (legacy) | B210: ='Data Inputs'!B141 -> 0 | C210: 0 | D210: =$B210*D195 -> 0 | E210: 0 | F210: 0 | G210: 0 | H210: 0 | I210: 0 | J210: 0 | K210: 0 | L210: 0
A211: ON Balance Sheet AVP7 (CLM ref: Met) | B211: ='Data Inputs'!B148 -> 0 | C211: =IF($B196>B$169,$B$180*(C180/MAX($C180:$L180))*$B211*$B$287,0) -> 0 | D211: =IF($B196>C$169,$B$180*(D180/MAX($C180:$L180))*$B211,0) -> 0 | E211: 0 | F211: 0 | G211: 0 | H211: 0 | I211: 0 | J211: 0 | K211: 0 | L211: 0
A212: ON Balance Sheet AVP8 (CLM ref: RAF) | B212: ='Data Inputs'!B156 -> 0 | C212: =IF($B197>B$169,$B$181*(C181/MAX($C181:$L181))*$B212*$B$288,0) -> 0 | D212: =IF($B197>C$169,$B$181*(D181/MAX($C181:$L181))*$B212,0) -> 0 | E212: 0 | F212: 0 | G212: 0 | H212: 0 | I212: 0 | J212: 0 | K212: 0 | L212: 0
A213: ON Balance Sheet AVP9 (CLM ref: RAF) | B213: ='Data Inputs'!B164 -> 0 | C213: =IF($B198>B$169,$B$182*(C182/MAX($C182:$L182))*$B213*$B$289,0) -> 0 | D213: =IF($B198>C$169,$B$182*(D182/MAX($C182:$L182))*$B213,0) -> 0 | E213: 0 | F213: 0 | G213: 0 | H213: 0 | I213: 0 | J213: 0 | K213: 0 | L213: 0
A214: ON Balance Sheet AVP10 (CLM ref: RaboBank NA) | B214: ='Data Inputs'!B172 -> 0 | C214: =IF($B199>B$169,$B$183*(C183/MAX($C183:$L183))*$B214*$B$290,0) -> 0 | D214: =IF($B199>C$169,$B$183*(D183/MAX($C183:$L183))*$B214,0) -> 0 | E214: 0 | F214: 0 | G214: 0 | H214: 0 | I214: 0 | J214: 0 | K214: 0 | L214: 0
C217: =IF($B217>C$169,'Data Inputs'!$B215,IF($B217>B$169,$B217-B$169,"")) -> 
A218: Losses (credit risk dollars) | B218: credit loss rate | C218: Dollar Losses
A219: =A203 -> Off B/S AVP1 (CLM ref:Met 1) | B219: ='Data Inputs'!B207*'Assumptions & Relationships'!B71 -> 0 | C219: =$B219*C188*(C172>0)*ltf -> 0 | D219: 0 | E219: 0 | F219: 0 | G219: 0 | H219: 0 | I219: 0 | J219: 0 | K219: 0 | L219: 0
A220: =A204 -> Off B/S AVP2 (CLM ref:Met 2) | B220: ='Data Inputs'!B214 -> 0 | C220: =$B220*C189*(C173>0)*ltf -> 0 | D220: 0 | E220: 0 | F220: 0 | G220: 0 | H220: 0 | I220: 0 | J220: 0 | K220: 0 | L220: 0
A221: =A205 -> Off B/S AVP3 (CLM ref:Met 3) | B221: ='Data Inputs'!B220 -> 0 | C221: =$B221*C190*(C174>0)*ltf -> 0 | D221: 0 | E221: 0 | F221: 0 | G221: 0 | H221: 0 | I221: 0 | J221: 0 | K221: 0 | L221: 0
A222: =A206 -> Off B/S AVP4 (CLM ref:M&I) | B222: ='Data Inputs'!B225*'Assumptions & Relationships'!B71 -> 0 | C222: =$B222*C191*(C175>0) -> 0 | D222: =$B222*D191*(D175>0) -> 0 | E222: 0 | F222: 0 | G222: 0 | H222: 0 | I222: 0 | J222: 0 | K222: 0 | L222: 0
A223: =A176 -> Off BS AVP6 Rural Utilities (CLM ref:CFC) | B223: ='Data Inputs'!B235 -> 0 | C223: =$B223*C192*(C176>0) -> 0 | D223: 0 | E223: 0 | F223: 0 | G223: 0 | H223: 0 | I223: 0 | J223: 0 | K223: 0 | L223: 0
A224: =A177 -> ON BS RU "Whole Loans" | B224: ='Data Inputs'!B123*'Assumptions & Relationships'!B71 -> 0 | C224: =$B224*C193*(C177>0) -> 0 | D224: =$B224*D193*(D177>0) -> 0 | E224: 0 | F224: 0 | G224: 0 | H224: 0 | I224: 0 | J224: 0 | K224: 0 | L224: 0 | M224: Not GOA adjusted - just 2* gfee
A225: =A178 -> ON Balance Sheet RU (AVP 5 from CLM) structures | B225: ='Data Inputs'!B131 -> 0 | C225: =$B225*C194*(C178>0) -> 0 | D225: =$B225*D194*(D178>0) -> 0 | E225: 0 | F225: 0 | G225: 0 | H225: 0 | I225: 0 | J225: 0 | K225: 0 | L225: 0 | M225: (note - no LTF needed on annual rates)
A226: ON BS RU ABS Structures (legacy) | B226: ='Data Inputs'!B140*'Assumptions & Relationships'!B71 -> 0 | C226: =$B226*C195*(C179>0) -> 0 | D226: =$B226*D195*(D179>0) -> 0 | E226: 0 | F226: 0 | G226: 0 | H226: 0 | I226: 0 | J226: 0 | K226: 0 | L226: 0 | M226: Not GOA adjusted - just 2* gfee
A227: ON Balance Sheet AVP7 (CLM ref: Met) | B227: ='Data Inputs'!B149 -> 0 | C227: =$B227*MAX($B180)*C180 -> 0 | D227: 0 | E227: 0 | F227: 0 | G227: 0 | H227: 0 | I227: 0 | J227: 0 | K227: 0 | L227: 0
A228: ON Balance Sheet AVP8 (CLM ref: RAF) | B228: ='Data Inputs'!B157 -> 0 | C228: =$B228*MAX($B181)*C181 -> 0 | D228: 0 | E228: 0 | F228: 0 | G228: 0 | H228: 0 | I228: 0 | J228: 0 | K228: 0 | L228: 0
A229: ON Balance Sheet AVP9 (CLM ref: RAF) | B229: ='Data Inputs'!B165 -> 0 | C229: =$B229*MAX($B182)*C182 -> 0 | D229: 0 | E229: 0 | F229: 0 | G229: 0 | H229: 0 | I229: 0 | J229: 0 | K229: 0 | L229: 0
A230: ON Balance Sheet AVP10 (CLM ref: RaboBank NA) | B230: ='Data Inputs'!B173 -> 0 | C230: =$B230*MAX($B183)*C183 -> 0 | D230: 0 | E230: 0 | F230: 0 | G230: 0 | H230: 0 | I230: 0 | J230: 0 | K230: 0 | L230: 0
A239: Total AVP+ Credit Losses by period | B239: ="Total = "&SUM(C239:L239) -> Total = 0 | C239: =SUM(C219:C230) -> 0 | D239: =SUM(D219:D230) -> 0 | E239: 0 | F239: 0 | G239: 0 | H239: 0 | I239: 0 | J239: 0 | K239: 0 | L239: 0
A240: (includes CFC Whole Loan Credit Losses by period) | B240: =SUM(C224:L224)+SUM(C226:L226) -> 0
B241: =SUM(C225:L225)+SUM(C223:L223) -> 0
B247: =SUM(C219:L230)-B240-B241 -> 0
A248: Sr/Sub volume loss rates and income transfers
A249: Loss Volume transfers of excess over subordination | B249: Periodic ==> | C249: =TRANSPOSE('Data Inputs'!B575:B584) -> 0 | D249: 0 | E249: 0 | F249: 0 | G249: 0 | H249: 0 | I249: 0 | J249: 0 | K249: 0 | L249: 0
A250: total = | B250: =SUM(C249:L249) -> 0
A256: RU whole loan related credit losses | B256: =SUM(C256:L256) -> 0 | C256: =C224+C226 -> 0 | D256: 0 | E256: 0 | F256: 0 | G256: 0 | H256: 0 | I256: 0 | J256: 0 | K256: 0 | L256: 0
... 23 more rows

Sheet Loan and Cash Flow Accounts
A1: This sheet contains: Geographic distribution of loan volume, asset/liability compositions, and cash flow accounts
A2: Instructions: None -- Sheet is computational.
A5: Asset and Liability Compositions
B6: Fraction of
A7: Assets: | B7: Loans and Investments
A8: Cash and cash equivalents | B8: =(B42+B47)/(B42+B47+B52+B57+B62+B67+B73+B78+B83+B87+B92+B97) -> 
A9: Investment Securities | B9: =(B52+B57+B62+B67)/(B42+B47+B52+B57+B62+B67+B73+B78+B83+B87+B92+B97) -> 
A10: Farmer Mac guaranteed securities | B10: =(B73+B78+B83+B87+B97)/(B42+B47+B52+B57+B62+B67+B73+B78+B83+B87+B92+B97) -> 
A11: Loans held for securitization | B11: =(B92)/(B42+B47+B52+B57+B62+B67+B73+B78+B83+B87+B92+B97) -> 
A12: Allowance for loan losses | B12: =B171/(B42+B47+B52+B57+B62+B67+B73+B78+B83+B87+B92+B97) -> 
A13: Real estate owned | B13: =(B153)/(B42+B47+B52+B57+B62+B67+B73+B78+B83+B87+B92+B97) -> 
A14: Interest receivable | B14: =(B157)/(B42+B47+B52+B57+B62+B67+B73+B78+B83+B87+B92+B97) -> 
A15: Guarantee fees receivable | B15: =(B160)/(B42+B47+B52+B57+B62+B67+B73+B78+B83+B87+B92+B97) -> 
A16: Prepaid expenses and other assets | B16: =(B162)/(B42+B47+B52+B57+B62+B67+B73+B78+B83+B87+B92+B97) -> 
B18: Fraction of | C18: Fraction of | D18: Frac of Guarantees
A19: Liabilities: | B19: Total Liabilities | C19: Debt Securities | D19: and Commitments
A20: Notes and bonds payable, net:
A21: Due within one year | B21: =B165/(B165+B167+B168+B169) ->  | C21: =B165/(B165+B167) -> 
A22: Due after one year | B22: =B167/(B165+B167+B168+B169) ->  | C22: =B167/(B165+B167) -> 
A23: Accrued interest payable | B23: =B168/(B165+B167+B168+B169) -> 
A24: Accounts payable and accrued expenses | B24: =B169/(B165+B167+B168+B169) -> 
A25: Guar & commit obligation less probable amount | D25: =B172/(B73+B78+B177+B83) -> 
A26: Probable Guar and commit obligation (Part of Allowance) | D26: =B173/(B73+B78+B177+B83) -> 
A27: Reserve for loan losses | D27: =B174/(B73+B78+B177+B83) -> 
B28: =SUM(B21:B27) -> 
B29: Fraction of
A30: Off Balance Sheet Assets | B30: B/S FAMC I & II
A31: a1. Unpaid Farmer Mac I Balances | B31: =(B177+B183)/(B177+B183+B187) -> 
A32: a2. Unpaid Farmer Mac II Balances | B32: =B187/(B177+B183+B187) -> 
A33: b. Other Off-Balance Sheet obligations | B33: =B195/(B177+B183+B187) -> 
A34: Security Sales (AMBSs Sold) | B34: =B193/(B177+B183+B187) -> 
A37: Cash Flow Accounts | C37: Cash Flows
C38: =CONCATENATE(MONTH('Balance Sheets'!B5),"/",YEAR('Balance Sheets'!B5)," to ",MONTH('Balance Sheets'!C5),"/",YEAR('Balance Sheets'!C5)) -> 3/2018 to 3/2019 | D38: =CONCATENATE(MONTH('Balance Sheets'!C5),"/",YEAR('Balance Sheets'!C5)," to ",MONTH('Balance Sheets'!D5),"/",YEAR('Balance Sheets'!D5)) -> 3/2019 to 3/2020 | E38: =CONCATENATE(MONTH('Balance Sheets'!D5),"/",YEAR('Balance Sheets'!D5)," to ",MONTH('Balance Sheets'!E5),"/",YEAR('Balance Sheets'!E5)) -> 3/2020 to 3/2021 | F38: =CONCATENATE(MONTH('Balance Sheets'!E5),"/",YEAR('Balance Sheets'!E5)," to ",MONTH('Balance Sheets'!F5),"/",YEAR('Balance Sheets'!F5)) -> 3/2021 to 3/2022 | G38: =CONCATENATE(MONTH('Balance Sheets'!F5),"/",YEAR('Balance Sheets'!F5)," to ",MONTH('Balance Sheets'!G5),"/",YEAR('Balance Sheets'!G5)) -> 3/2022 to 3/2023 | H38: =CONCATENATE(MONTH('Balance Sheets'!G5),"/",YEAR('Balance Sheets'!G5)," to ",MONTH('Balance Sheets'!H5),"/",YEAR('Balance Sheets'!H5)) -> 3/2023 to 3/2024 | I38: =CONCATENATE(MONTH('Balance Sheets'!H5),"/",YEAR('Balance Sheets'!H5)," to ",MONTH('Balance Sheets'!I5),"/",YEAR('Balance Sheets'!I5)) -> 3/2024 to 3/2025 | J38: =CONCATENATE(MONTH('Balance Sheets'!I5),"/",YEAR('Balance Sheets'!I5)," to ",MONTH('Balance Sheets'!J5),"/",YEAR('Balance Sheets'!J5)) -> 3/2025 to 3/2026 | K38: =CONCATENATE(MONTH('Balance Sheets'!J5),"/",YEAR('Balance Sheets'!J5)," to ",MONTH('Balance Sheets'!K5),"/",YEAR('Balance Sheets'!K5)) -> 3/2026 to 3/2027 | L38: =CONCATENATE(MONTH('Balance Sheets'!K5),"/",YEAR('Balance Sheets'!K5)," to ",MONTH('Balance Sheets'!L5),"/",YEAR('Balance Sheets'!L5)) -> 3/2027 to 3/2028
C39: t0 | D39: t1 | E39: t2 | F39: t3 | G39: t4 | H39: t5 | I39: t6 | J39: t7 | K39: t8 | L39: t9
B40: Initial Balances | C40: t1 | D40: t2 | E40: t3 | F40: t4 | G40: t5 | H40: t6 | I40: t7 | J40: t8 | K40: t9 | L40: t10
A41: Cash & Money Market
A42: Beginning Balance | B42: ='Data Inputs'!B72 -> 0 | C42: =B45 -> 0 | D42: 0 | E42: 0 | F42: 0 | G42: 0 | H42: 0 | I42: 0 | J42: 0 | K42: 0 | L42: 0
A43: Maturities | C43: =-'Assumptions & Relationships'!$E$12*C42 -> 0 | D43: =-'Assumptions & Relationships'!$E$12*D42 -> 0 | E43: =-'Assumptions & Relationships'!$E$12*E42 -> 0 | F43: =-'Assumptions & Relationships'!$E$12*F42 -> 0 | G43: =-'Assumptions & Relationships'!$E$12*G42 -> 0 | H43: =-'Assumptions & Relationships'!$E$12*H42 -> 0 | I43: =-'Assumptions & Relationships'!$E$12*I42 -> 0 | J43: =-'Assumptions & Relationships'!$E$12*J42 -> 0 | K43: =-'Assumptions & Relationships'!$E$12*K42 -> 0 | L43: =-'Assumptions & Relationships'!$E$12*L42 -> 0
A44: Purchases | C44: =-C43*'Assumptions & Relationships'!$F$12 -> 0 | D44: =-D43*'Assumptions & Relationships'!$F$12 -> 0 | E44: =-E43*'Assumptions & Relationships'!$F$12 -> 0 | F44: =-F43*'Assumptions & Relationships'!$F$12 -> 0 | G44: =-G43*'Assumptions & Relationships'!$F$12 -> 0 | H44: =-H43*'Assumptions & Relationships'!$F$12 -> 0 | I44: =-I43*'Assumptions & Relationships'!$F$12 -> 0 | J44: =-J43*'Assumptions & Relationships'!$F$12 -> 0 | K44: =-K43*'Assumptions & Relationships'!$F$12 -> 0 | L44: =-L43*'Assumptions & Relationships'!$F$12 -> 0
A45: Ending Balance | B45: =B42 -> 0 | C45: =SUM(C42:C44) -> 0 | D45: 0 | E45: 0 | F45: 0 | G45: 0 | H45: 0 | I45: 0 | J45: 0 | K45: 0 | L45: 0
A46: Commercial Paper
A47: Beginning Balance | B47: ='Data Inputs'!B76 -> 0 | C47: =B50 -> 0 | D47: =C50 -> 0 | E47: 0 | F47: 0 | G47: 0 | H47: 0 | I47: 0 | J47: 0 | K47: 0 | L47: 0
A48: Maturities | C48: =-'Assumptions & Relationships'!$E$13*C47 -> 0 | D48: =-'Assumptions & Relationships'!$E$13*D47 -> 0 | E48: =-'Assumptions & Relationships'!$E$13*E47 -> 0 | F48: =-'Assumptions & Relationships'!$E$13*F47 -> 0 | G48: =-'Assumptions & Relationships'!$E$13*G47 -> 0 | H48: =-'Assumptions & Relationships'!$E$13*H47 -> 0 | I48: =-'Assumptions & Relationships'!$E$13*I47 -> 0 | J48: =-'Assumptions & Relationships'!$E$13*J47 -> 0 | K48: =-'Assumptions & Relationships'!$E$13*K47 -> 0 | L48: =-'Assumptions & Relationships'!$E$13*L47 -> 0
A49: Purchases | C49: =-C48*'Assumptions & Relationships'!$F$13 -> 0 | D49: =-D48*'Assumptions & Relationships'!$F$13 -> 0 | E49: =-E48*'Assumptions & Relationships'!$F$13 -> 0 | F49: =-F48*'Assumptions & Relationships'!$F$13 -> 0 | G49: =-G48*'Assumptions & Relationships'!$F$13 -> 0 | H49: =-H48*'Assumptions & Relationships'!$F$13 -> 0 | I49: =-I48*'Assumptions & Relationships'!$F$13 -> 0 | J49: =-J48*'Assumptions & Relationships'!$F$13 -> 0 | K49: =-K48*'Assumptions & Relationships'!$F$13 -> 0 | L49: =-L48*'Assumptions & Relationships'!$F$13 -> 0
A50: Ending Balance | B50: =B47 -> 0 | C50: =SUM(C47:C49) -> 0 | D50: =SUM(D47:D49) -> 0 | E50: 0 | F50: 0 | G50: 0 | H50: 0 | I50: 0 | J50: 0 | K50: 0 | L50: 0
A51: Certificates of Deposit
A52: Beginning Balance | B52: ='Data Inputs'!B80 -> 0 | C52: =B55 -> 0 | D52: =C55 -> 0 | E52: 0 | F52: 0 | G52: 0 | H52: 0 | I52: 0 | J52: 0 | K52: 0 | L52: 0
A53: Maturities | C53: =-'Assumptions & Relationships'!$E$14*C52 -> 0 | D53: =-'Assumptions & Relationships'!$E$14*D52 -> 0 | E53: =-'Assumptions & Relationships'!$E$14*E52 -> 0 | F53: =-'Assumptions & Relationships'!$E$14*F52 -> 0 | G53: =-'Assumptions & Relationships'!$E$14*G52 -> 0 | H53: =-'Assumptions & Relationships'!$E$14*H52 -> 0 | I53: =-'Assumptions & Relationships'!$E$14*I52 -> 0 | J53: =-'Assumptions & Relationships'!$E$14*J52 -> 0 | K53: =-'Assumptions & Relationships'!$E$14*K52 -> 0 | L53: =-'Assumptions & Relationships'!$E$14*L52 -> 0
A54: Purchases | C54: =-C53*'Assumptions & Relationships'!$F$14 -> 0 | D54: =-D53*'Assumptions & Relationships'!$F$14 -> 0 | E54: =-E53*'Assumptions & Relationships'!$F$14 -> 0 | F54: =-F53*'Assumptions & Relationships'!$F$14 -> 0 | G54: =-G53*'Assumptions & Relationships'!$F$14 -> 0 | H54: =-H53*'Assumptions & Relationships'!$F$14 -> 0 | I54: =-I53*'Assumptions & Relationships'!$F$14 -> 0 | J54: =-J53*'Assumptions & Relationships'!$F$14 -> 0 | K54: =-K53*'Assumptions & Relationships'!$F$14 -> 0 | L54: =-L53*'Assumptions & Relationships'!$F$14 -> 0
A55: Ending Balance | B55: =B52 -> 0 | C55: =SUM(C52:C54) -> 0 | D55: =SUM(D52:D54) -> 0 | E55: 0 | F55: 0 | G55: 0 | H55: 0 | I55: 0 | J55: 0 | K55: 0 | L55: 0
A56: Corporate and ABS
A57: Beginning Balance | B57: ='Data Inputs'!B84 -> 0 | C57: =B60 -> 0 | D57: =C60 -> 0 | E57: 0 | F57: 0 | G57: 0 | H57: 0 | I57: 0 | J57: 0 | K57: 0 | L57: 0
A58: Maturities | C58: =-'Assumptions & Relationships'!$E$15*C57 -> 0 | D58: =-'Assumptions & Relationships'!$E$15*D57 -> 0 | E58: =-'Assumptions & Relationships'!$E$15*E57 -> 0 | F58: =-'Assumptions & Relationships'!$E$15*F57 -> 0 | G58: =-'Assumptions & Relationships'!$E$15*G57 -> 0 | H58: =-'Assumptions & Relationships'!$E$15*H57 -> 0 | I58: =-'Assumptions & Relationships'!$E$15*I57 -> 0 | J58: =-'Assumptions & Relationships'!$E$15*J57 -> 0 | K58: =-'Assumptions & Relationships'!$E$15*K57 -> 0 | L58: =-'Assumptions & Relationships'!$E$15*L57 -> 0
A59: Purchases | C59: =-C58*'Assumptions & Relationships'!$F$15 -> 0 | D59: =-D58*'Assumptions & Relationships'!$F$15 -> 0 | E59: =-E58*'Assumptions & Relationships'!$F$15 -> 0 | F59: =-F58*'Assumptions & Relationships'!$F$15 -> 0 | G59: =-G58*'Assumptions & Relationships'!$F$15 -> 0 | H59: =-H58*'Assumptions & Relationships'!$F$15 -> 0 | I59: =-I58*'Assumptions & Relationships'!$F$15 -> 0 | J59: =-J58*'Assumptions & Relationships'!$F$15 -> 0 | K59: =-K58*'Assumptions & Relationships'!$F$15 -> 0 | L59: =-L58*'Assumptions & Relationships'!$F$15 -> 0
A60: Ending Balance | B60: =B57 -> 0 | C60: =SUM(C57:C59) -> 0 | D60: =SUM(D57:D59) -> 0 | E60: 0 | F60: 0 | G60: 0 | H60: 0 | I60: 0 | J60: 0 | K60: 0 | L60: 0
A61: Agency Mortgage-Backed and CMOs
A62: Beginning Balance | B62: ='Data Inputs'!B88 -> 0 | C62: =B65 -> 0 | D62: =C65 -> 0 | E62: 0 | F62: 0 | G62: 0 | H62: 0 | I62: 0 | J62: 0 | K62: 0 | L62: 0
A63: Rollout (Amort & Prepays) | C63: =-'Assumptions & Relationships'!$E$16*C62 -> 0 | D63: =-'Assumptions & Relationships'!$E$16*D62 -> 0 | E63: =-'Assumptions & Relationships'!$E$16*E62 -> 0 | F63: =-'Assumptions & Relationships'!$E$16*F62 -> 0 | G63: =-'Assumptions & Relationships'!$E$16*G62 -> 0 | H63: =-'Assumptions & Relationships'!$E$16*H62 -> 0 | I63: =-'Assumptions & Relationships'!$E$16*I62 -> 0 | J63: =-'Assumptions & Relationships'!$E$16*J62 -> 0 | K63: =-'Assumptions & Relationships'!$E$16*K62 -> 0 | L63: =-'Assumptions & Relationships'!$E$16*L62 -> 0
A64: Purchases | C64: =-C63*'Assumptions & Relationships'!$F$16 -> 0 | D64: =-D63*'Assumptions & Relationships'!$F$16 -> 0 | E64: =-E63*'Assumptions & Relationships'!$F$16 -> 0 | F64: =-F63*'Assumptions & Relationships'!$F$16 -> 0 | G64: =-G63*'Assumptions & Relationships'!$F$16 -> 0 | H64: =-H63*'Assumptions & Relationships'!$F$16 -> 0 | I64: =-I63*'Assumptions & Relationships'!$F$16 -> 0 | J64: =-J63*'Assumptions & Relationships'!$F$16 -> 0 | K64: =-K63*'Assumptions & Relationships'!$F$16 -> 0 | L64: =-L63*'Assumptions & Relationships'!$F$16 -> 0
A65: Ending Balance | B65: =B62 -> 0 | C65: =SUM(C62:C64) -> 0 | D65: =SUM(D62:D64) -> 0 | E65: 0 | F65: 0 | G65: 0 | H65: 0 | I65: 0 | J65: 0 | K65: 0 | L65: 0
A66: Other Investments
A67: Beginning Balance | B67: ='Data Inputs'!B93 -> 0 | C67: =B70 -> 0 | D67: =C70 -> 0 | E67: 0 | F67: 0 | G67: 0 | H67: 0 | I67: 0 | J67: 0 | K67: 0 | L67: 0
A68: Maturities | C68: =-'Assumptions & Relationships'!$E$17*C67 -> 0 | D68: =-'Assumptions & Relationships'!$E$17*D67 -> 0 | E68: =-'Assumptions & Relationships'!$E$17*E67 -> 0 | F68: =-'Assumptions & Relationships'!$E$17*F67 -> 0 | G68: =-'Assumptions & Relationships'!$E$17*G67 -> 0 | H68: =-'Assumptions & Relationships'!$E$17*H67 -> 0 | I68: =-'Assumptions & Relationships'!$E$17*I67 -> 0 | J68: =-'Assumptions & Relationships'!$E$17*J67 -> 0 | K68: =-'Assumptions & Relationships'!$E$17*K67 -> 0 | L68: =-'Assumptions & Relationships'!$E$17*L67 -> 0
A69: Purchases | C69: =-C68*'Assumptions & Relationships'!$F$17 -> 0 | D69: =-D68*'Assumptions & Relationships'!$F$17 -> 0 | E69: =-E68*'Assumptions & Relationships'!$F$17 -> 0 | F69: =-F68*'Assumptions & Relationships'!$F$17 -> 0 | G69: =-G68*'Assumptions & Relationships'!$F$17 -> 0 | H69: =-H68*'Assumptions & Relationships'!$F$17 -> 0 | I69: =-I68*'Assumptions & Relationships'!$F$17 -> 0 | J69: =-J68*'Assumptions & Relationships'!$F$17 -> 0 | K69: =-K68*'Assumptions & Relationships'!$F$17 -> 0 | L69: =-L68*'Assumptions & Relationships'!$F$17 -> 0
A70: Ending Balance | B70: =B67 -> 0 | C70: =SUM(C67:C69) -> 0 | D70: =SUM(D67:D69) -> 0 | E70: 0 | F70: 0 | G70: 0 | H70: 0 | I70: 0 | J70: 0 | K70: 0 | L70: 0
A72: FAMC I Post 1996 Loans
A73: Beginning Balance | B73: ='Data Inputs'!B98 -> 0 | C73: =B76 -> 0 | D73: =C76 -> 0 | E73: 0 | F73: 0 | G73: 0 | H73: 0 | I73: 0 | J73: 0 | K73: 0 | L73: 0
A74: Rollout (Amort & Prepays) | C74: =-'Assumptions & Relationships'!$E$20*C73 -> 0 | D74: =-'Assumptions & Relationships'!$E$20*D73 -> 0 | E74: =-'Assumptions & Relationships'!$E$20*E73 -> 0 | F74: =-'Assumptions & Relationships'!$E$20*F73 -> 0 | G74: =-'Assumptions & Relationships'!$E$20*G73 -> 0 | H74: =-'Assumptions & Relationships'!$E$20*H73 -> 0 | I74: =-'Assumptions & Relationships'!$E$20*I73 -> 0 | J74: =-'Assumptions & Relationships'!$E$20*J73 -> 0 | K74: =-'Assumptions & Relationships'!$E$20*K73 -> 0 | L74: =-'Assumptions & Relationships'!$E$20*L73 -> 0
A75: New Loan Volume | C75: =(-C74*'Assumptions & Relationships'!$F$20)-C84 -> 0 | D75: =(-D74*'Assumptions & Relationships'!$F$20)-D84 -> 0 | E75: =(-E74*'Assumptions & Relationships'!$F$20)-E84 -> 0 | F75: =(-F74*'Assumptions & Relationships'!$F$20)-F84 -> 0 | G75: =(-G74*'Assumptions & Relationships'!$F$20)-G84 -> 0 | H75: =(-H74*'Assumptions & Relationships'!$F$20)-H84 -> 0 | I75: =(-I74*'Assumptions & Relationships'!$F$20)-I84 -> 0 | J75: =(-J74*'Assumptions & Relationships'!$F$20)-J84 -> 0 | K75: =(-K74*'Assumptions & Relationships'!$F$20)-K84 -> 0 | L75: =(-L74*'Assumptions & Relationships'!$F$20)-L84 -> 0
A76: Ending Balance | B76: =SUM(B73:B75) -> 0 | C76: 0 | D76: 0 | E76: 0 | F76: 0 | G76: 0 | H76: 0 | I76: 0 | J76: 0 | K76: 0 | L76: 0
A77: FAMC I - Post 1996 Swap
A78: Beginning Balance | B78: ='Data Inputs'!B103 -> 0 | C78: =B81 -> 0 | D78: =C81 -> 0 | E78: 0 | F78: 0 | G78: 0 | H78: 0 | I78: 0 | J78: 0 | K78: 0 | L78: 0
A79: Rollout (Amort & Prepays) | C79: =-'Assumptions & Relationships'!$E$21*C78 -> 0 | D79: =-'Assumptions & Relationships'!$E$21*D78 -> 0 | E79: =-'Assumptions & Relationships'!$E$21*E78 -> 0 | F79: =-'Assumptions & Relationships'!$E$21*F78 -> 0 | G79: =-'Assumptions & Relationships'!$E$21*G78 -> 0 | H79: =-'Assumptions & Relationships'!$E$21*H78 -> 0 | I79: =-'Assumptions & Relationships'!$E$21*I78 -> 0 | J79: =-'Assumptions & Relationships'!$E$21*J78 -> 0 | K79: =-'Assumptions & Relationships'!$E$21*K78 -> 0 | L79: =-'Assumptions & Relationships'!$E$21*L78 -> 0
A80: New Loan Volume | C80: =-C79*'Assumptions & Relationships'!$F$21 -> 0 | D80: =-D79*'Assumptions & Relationships'!$F$21 -> 0 | E80: =-E79*'Assumptions & Relationships'!$F$21 -> 0 | F80: =-F79*'Assumptions & Relationships'!$F$21 -> 0 | G80: =-G79*'Assumptions & Relationships'!$F$21 -> 0 | H80: =-H79*'Assumptions & Relationships'!$F$21 -> 0 | I80: =-I79*'Assumptions & Relationships'!$F$21 -> 0 | J80: =-J79*'Assumptions & Relationships'!$F$21 -> 0 | K80: =-K79*'Assumptions & Relationships'!$F$21 -> 0 | L80: =-L79*'Assumptions & Relationships'!$F$21 -> 0
A81: Ending Balance | B81: =SUM(B78:B80) -> 0 | C81: 0 | D81: 0 | E81: 0 | F81: 0 | G81: 0 | H81: 0 | I81: 0 | J81: 0 | K81: 0 | L81: 0
A82: FAMC I Pre 1996 On B/S
A83: Beginning Balance | B83: ='Data Inputs'!B108 -> 0 | C83: =B85 -> 0 | D83: =C85 -> 0 | E83: 0 | F83: 0 | G83: 0 | H83: 0 | I83: 0 | J83: 0 | K83: 0 | L83: 0
A84: Rollout (Amort & Prepays) | C84: =IF(-'Assumptions & Relationships'!$E$22*C$83+C83<0,-C83,-'Assumptions & Relationships'!$E$22*C$83) -> 0 | D84: =IF(-'Assumptions & Relationships'!$E$22*D$83+D83<0,-D83,-'Assumptions & Relationships'!$E$22*D$83) -> 0 | E84: =IF(-'Assumptions & Relationships'!$E$22*E$83+E83<0,-E83,-'Assumptions & Relationships'!$E$22*E$83) -> 0 | F84: =IF(-'Assumptions & Relationships'!$E$22*F$83+F83<0,-F83,-'Assumptions & Relationships'!$E$22*F$83) -> 0 | G84: =IF(-'Assumptions & Relationships'!$E$22*G$83+G83<0,-G83,-'Assumptions & Relationships'!$E$22*G$83) -> 0 | H84: =IF(-'Assumptions & Relationships'!$E$22*H$83+H83<0,-H83,-'Assumptions & Relationships'!$E$22*H$83) -> 0 | I84: =IF(-'Assumptions & Relationships'!$E$22*I$83+I83<0,-I83,-'Assumptions & Relationships'!$E$22*I$83) -> 0 | J84: =IF(-'Assumptions & Relationships'!$E$22*J$83+J83<0,-J83,-'Assumptions & Relationships'!$E$22*J$83) -> 0 | K84: =IF(-'Assumptions & Relationships'!$E$22*K$83+K83<0,-K83,-'Assumptions & Relationships'!$E$22*K$83) -> 0 | L84: =IF(-'Assumptions & Relationships'!$E$22*L$83+L83<0,-L83,-'Assumptions & Relationships'!$E$22*L$83) -> 0
A85: Ending Balance | B85: =SUM(B83:B84) -> 0 | C85: =SUM(C83:C84) -> 0 | D85: =SUM(D83:D84) -> 0 | E85: 0 | F85: 0 | G85: 0 | H85: 0 | I85: 0 | J85: 0 | K85: 0 | L85: 0
A86: FAMC I AgVantage
A87: Beginning Balance | B87: ='Data Inputs'!B113 -> 0 | C87: =B90 -> 0 | D87: =C90 -> 0 | E87: 0 | F87: 0 | G87: 0 | H87: 0 | I87: 0 | J87: 0 | K87: 0 | L87: 0
A88: Amortization | C88: =-'Assumptions & Relationships'!$E$23*C87 -> 0 | D88: =-'Assumptions & Relationships'!$E$23*D87 -> 0 | E88: =-'Assumptions & Relationships'!$E$23*E87 -> 0 | F88: =-'Assumptions & Relationships'!$E$23*F87 -> 0 | G88: =-'Assumptions & Relationships'!$E$23*G87 -> 0 | H88: =-'Assumptions & Relationships'!$E$23*H87 -> 0 | I88: =-'Assumptions & Relationships'!$E$23*I87 -> 0 | J88: =-'Assumptions & Relationships'!$E$23*J87 -> 0 | K88: =-'Assumptions & Relationships'!$E$23*K87 -> 0 | L88: =-'Assumptions & Relationships'!$E$23*L87 -> 0
A89: New Volume | C89: =-C88*'Assumptions & Relationships'!$F$23 -> 0 | D89: =-D88*'Assumptions & Relationships'!$F$23 -> 0 | E89: =-E88*'Assumptions & Relationships'!$F$23 -> 0 | F89: =-F88*'Assumptions & Relationships'!$F$23 -> 0 | G89: =-G88*'Assumptions & Relationships'!$F$23 -> 0 | H89: =-H88*'Assumptions & Relationships'!$F$23 -> 0 | I89: =-I88*'Assumptions & Relationships'!$F$23 -> 0 | J89: =-J88*'Assumptions & Relationships'!$F$23 -> 0 | K89: =-K88*'Assumptions & Relationships'!$F$23 -> 0 | L89: =-L88*'Assumptions & Relationships'!$F$23 -> 0
A90: Ending Balance | B90: =B87 -> 0 | C90: =SUM(C87:C89) -> 0 | D90: =SUM(D87:D89) -> 0 | E90: 0 | F90: 0 | G90: 0 | H90: 0 | I90: 0 | J90: 0 | K90: 0 | L90: 0
A91: Loans Held for Securitization
A92: Beginning Balance | B92: ='Data Inputs'!B177 -> 0 | C92: =B95 -> 0 | D92: =C95 -> 0 | E92: 0 | F92: 0 | G92: 0 | H92: 0 | I92: 0 | J92: 0 | K92: 0 | L92: 0
A93: Rollout (Amort & Prepays) | C93: =-'Assumptions & Relationships'!$E$24*C92 -> 0 | D93: =-'Assumptions & Relationships'!$E$24*D92 -> 0 | E93: =-'Assumptions & Relationships'!$E$24*E92 -> 0 | F93: =-'Assumptions & Relationships'!$E$24*F92 -> 0 | G93: =-'Assumptions & Relationships'!$E$24*G92 -> 0 | H93: =-'Assumptions & Relationships'!$E$24*H92 -> 0 | I93: =-'Assumptions & Relationships'!$E$24*I92 -> 0 | J93: =-'Assumptions & Relationships'!$E$24*J92 -> 0 | K93: =-'Assumptions & Relationships'!$E$24*K92 -> 0 | L93: =-'Assumptions & Relationships'!$E$24*L92 -> 0
A94: New Loan Volume | C94: =-C93*'Assumptions & Relationships'!$F$24 -> 0 | D94: =-D93*'Assumptions & Relationships'!$F$24 -> 0 | E94: =-E93*'Assumptions & Relationships'!$F$24 -> 0 | F94: =-F93*'Assumptions & Relationships'!$F$24 -> 0 | G94: =-G93*'Assumptions & Relationships'!$F$24 -> 0 | H94: =-H93*'Assumptions & Relationships'!$F$24 -> 0 | I94: =-I93*'Assumptions & Relationships'!$F$24 -> 0 | J94: =-J93*'Assumptions & Relationships'!$F$24 -> 0 | K94: =-K93*'Assumptions & Relationships'!$F$24 -> 0 | L94: =-L93*'Assumptions & Relationships'!$F$24 -> 0
A95: Ending Balance | B95: =SUM(B92:B94) -> 0 | C95: 0 | D95: 0 | E95: 0 | F95: 0 | G95: 0 | H95: 0 | I95: 0 | J95: 0 | K95: 0 | L95: 0
A96: FAMC II Loans
A97: Beginning Balance | B97: ='Data Inputs'!B184 -> 0 | C97: =B100 -> 0 | D97: =C100 -> 0 | E97: 0 | F97: 0 | G97: 0 | H97: 0 | I97: 0 | J97: 0 | K97: 0 | L97: 0
A98: Rollout (Amort & Prepays) | C98: =-'Assumptions & Relationships'!$E$25*C97 -> 0 | D98: =-'Assumptions & Relationships'!$E$25*D97 -> 0 | E98: =-'Assumptions & Relationships'!$E$25*E97 -> 0 | F98: =-'Assumptions & Relationships'!$E$25*F97 -> 0 | G98: =-'Assumptions & Relationships'!$E$25*G97 -> 0 | H98: =-'Assumptions & Relationships'!$E$25*H97 -> 0 | I98: =-'Assumptions & Relationships'!$E$25*I97 -> 0 | J98: =-'Assumptions & Relationships'!$E$25*J97 -> 0 | K98: =-'Assumptions & Relationships'!$E$25*K97 -> 0 | L98: =-'Assumptions & Relationships'!$E$25*L97 -> 0
A99: New Volume | C99: =-C98*'Assumptions & Relationships'!$F$25 -> 0 | D99: =-D98*'Assumptions & Relationships'!$F$25 -> 0 | E99: =-E98*'Assumptions & Relationships'!$F$25 -> 0 | F99: =-F98*'Assumptions & Relationships'!$F$25 -> 0 | G99: =-G98*'Assumptions & Relationships'!$F$25 -> 0 | H99: =-H98*'Assumptions & Relationships'!$F$25 -> 0 | I99: =-I98*'Assumptions & Relationships'!$F$25 -> 0 | J99: =-J98*'Assumptions & Relationships'!$F$25 -> 0 | K99: =-K98*'Assumptions & Relationships'!$F$25 -> 0 | L99: =-L98*'Assumptions & Relationships'!$F$25 -> 0
A100: Ending Balance | B100: =B97 -> 0 | C100: =SUM(C97:C99) -> 0 | D100: =SUM(D97:D99) -> 0 | E100: 0 | F100: 0 | G100: 0 | H100: 0 | I100: 0 | J100: 0 | K100: 0 | L100: 0
A102: Reserved Section for FAS 167 transfers - non economic effects in income statement and BS
A103: (use when new subaccount structure permits isolation of share in loans held not funded)
A108: ='Data Inputs'!C118 -> ON BS RU "Whole Loans" | B108: (note timing conventions for initial balance and first period from RM)
A109: Beginning Balance | B109: ='Data Inputs'!B119 -> 0 | C109: =B112 -> 0 | D109: =C112 -> 0 | E109: 0 | F109: 0 | G109: 0 | H109: 0 | I109: 0 | J109: 0 | K109: 0 | L109: 0
A110: Rollout (Amort & Prepays) | C110: =-'Assumptions & Relationships'!$E$26*C109 -> 0 | D110: =-'Assumptions & Relationships'!$E$26*D109 -> 0 | E110: =-'Assumptions & Relationships'!$E$26*E109 -> 0 | F110: =-'Assumptions & Relationships'!$E$26*F109 -> 0 | G110: =-'Assumptions & Relationships'!$E$26*G109 -> 0 | H110: =-'Assumptions & Relationships'!$E$26*H109 -> 0 | I110: =-'Assumptions & Relationships'!$E$26*I109 -> 0 | J110: =-'Assumptions & Relationships'!$E$26*J109 -> 0 | K110: =-'Assumptions & Relationships'!$E$26*K109 -> 0 | L110: =-'Assumptions & Relationships'!$E$26*L109 -> 0
A111: New Volume | C111: =-C110*'Assumptions & Relationships'!$F$26 -> 0 | D111: =-D110*'Assumptions & Relationships'!$F$26 -> 0 | E111: =-E110*'Assumptions & Relationships'!$F$26 -> 0 | F111: =-F110*'Assumptions & Relationships'!$F$26 -> 0 | G111: =-G110*'Assumptions & Relationships'!$F$26 -> 0 | H111: =-H110*'Assumptions & Relationships'!$F$26 -> 0 | I111: =-I110*'Assumptions & Relationships'!$F$26 -> 0 | J111: =-J110*'Assumptions & Relationships'!$F$26 -> 0 | K111: =-K110*'Assumptions & Relationships'!$F$26 -> 0 | L111: =-L110*'Assumptions & Relationships'!$F$26 -> 0
A112: Ending Balance | B112: =B109 -> 0 | C112: =SUM(C109:C111) -> 0 | D112: =SUM(D109:D111) -> 0 | E112: 0 | F112: 0 | G112: 0 | H112: 0 | I112: 0 | J112: 0 | K112: 0 | L112: 0
A114: ='Data Inputs'!C127 -> ON Balance Sheet RU (AVP 5 from CLM) structures
A115: Beginning Balance | B115: ='Risk Measures'!C194 -> 0 | C115: ='Risk Measures'!C194 -> 0 | D115: ='Risk Measures'!D194 -> 0 | E115: ='Risk Measures'!E194 -> 0 | F115: ='Risk Measures'!F194 -> 0 | G115: ='Risk Measures'!G194 -> 0 | H115: ='Risk Measures'!H194 -> 0 | I115: ='Risk Measures'!I194 -> 0 | J115: ='Risk Measures'!J194 -> 0 | K115: ='Risk Measures'!K194 -> 0 | L115: ='Risk Measures'!L194 -> 0
A116: Rollout (Amort & Prepays) | C116: =-'Assumptions & Relationships'!$E$27*C115 -> 0 | D116: =-'Assumptions & Relationships'!$E$27*D115 -> 0 | E116: =-'Assumptions & Relationships'!$E$27*E115 -> 0 | F116: =-'Assumptions & Relationships'!$E$27*F115 -> 0 | G116: =-'Assumptions & Relationships'!$E$27*G115 -> 0 | H116: =-'Assumptions & Relationships'!$E$27*H115 -> 0 | I116: =-'Assumptions & Relationships'!$E$27*I115 -> 0 | J116: =-'Assumptions & Relationships'!$E$27*J115 -> 0 | K116: =-'Assumptions & Relationships'!$E$27*K115 -> 0 | L116: =-'Assumptions & Relationships'!$E$27*L115 -> 0
A117: New Volume | C117: =-C116*'Assumptions & Relationships'!$F$27 -> 0 | D117: =-D116*'Assumptions & Relationships'!$F$27 -> 0 | E117: =-E116*'Assumptions & Relationships'!$F$27 -> 0 | F117: =-F116*'Assumptions & Relationships'!$F$27 -> 0 | G117: =-G116*'Assumptions & Relationships'!$F$27 -> 0 | H117: =-H116*'Assumptions & Relationships'!$F$27 -> 0 | I117: =-I116*'Assumptions & Relationships'!$F$27 -> 0 | J117: =-J116*'Assumptions & Relationships'!$F$27 -> 0 | K117: =-K116*'Assumptions & Relationships'!$F$27 -> 0 | L117: =-L116*'Assumptions & Relationships'!$F$27 -> 0
A118: Ending Balance | B118: =B115 -> 0 | C118: =SUM(C115:C117) -> 0 | D118: =SUM(D115:D117) -> 0 | E118: 0 | F118: 0 | G118: 0 | H118: 0 | I118: 0 | J118: 0 | K118: 0 | L118: 0
A121: ='Data Inputs'!C135 -> ON BS RU ABS Structures (legacy)
A122: Beginning Balance | B122: ='Risk Measures'!C195 -> 0 | C122: ='Risk Measures'!C195 -> 0 | D122: ='Risk Measures'!D195 -> 0 | E122: ='Risk Measures'!E195 -> 0 | F122: ='Risk Measures'!F195 -> 0 | G122: ='Risk Measures'!G195 -> 0 | H122: ='Risk Measures'!H195 -> 0 | I122: ='Risk Measures'!I195 -> 0 | J122: ='Risk Measures'!J195 -> 0 | K122: ='Risk Measures'!K195 -> 0 | L122: ='Risk Measures'!L195 -> 0
A123: Rollout (Amort & Prepays) | C123: =-'Assumptions & Relationships'!$E$28*C122 -> 0 | D123: =-'Assumptions & Relationships'!$E$28*D122 -> 0 | E123: =-'Assumptions & Relationships'!$E$28*E122 -> 0 | F123: =-'Assumptions & Relationships'!$E$28*F122 -> 0 | G123: =-'Assumptions & Relationships'!$E$28*G122 -> 0 | H123: =-'Assumptions & Relationships'!$E$28*H122 -> 0 | I123: =-'Assumptions & Relationships'!$E$28*I122 -> 0 | J123: =-'Assumptions & Relationships'!$E$28*J122 -> 0 | K123: =-'Assumptions & Relationships'!$E$28*K122 -> 0 | L123: =-'Assumptions & Relationships'!$E$28*L122 -> 0
A124: New Volume | C124: =-C123*'Assumptions & Relationships'!$F$28 -> 0 | D124: =-D123*'Assumptions & Relationships'!$F$27 -> 0 | E124: =-E123*'Assumptions & Relationships'!$F$27 -> 0 | F124: =-F123*'Assumptions & Relationships'!$F$27 -> 0 | G124: =-G123*'Assumptions & Relationships'!$F$27 -> 0 | H124: =-H123*'Assumptions & Relationships'!$F$27 -> 0 | I124: =-I123*'Assumptions & Relationships'!$F$27 -> 0 | J124: =-J123*'Assumptions & Relationships'!$F$27 -> 0 | K124: =-K123*'Assumptions & Relationships'!$F$27 -> 0 | L124: =-L123*'Assumptions & Relationships'!$F$27 -> 0
A125: Ending Balance | B125: =B122 -> 0 | C125: =SUM(C122:C124) -> 0 | D125: =SUM(D122:D124) -> 0 | E125: 0 | F125: 0 | G125: 0 | H125: 0 | I125: 0 | J125: 0 | K125: 0 | L125: 0
A127: ='Data Inputs'!C144 -> ON Balance Sheet AVP7 (CLM ref: Met)
A128: Beginning Balance | B128: ='Data Inputs'!B145 -> 0 | C128: =B131 -> 0 | D128: 0 | E128: 0 | F128: 0 | G128: 0 | H128: 0 | I128: 0 | J128: 0 | K128: 0 | L128: 0
A129: Rollout (Amort & Prepays) | C129: =IF('Risk Measures'!C$169>'Risk Measures'!$B196,-C128*(B128=C128),-'Assumptions & Relationships'!$E$29*C128) -> 0 | D129: =IF('Risk Measures'!D$169>'Risk Measures'!$B196,-D128*(C128=D128),-'Assumptions & Relationships'!$E$29*D128) -> 0 | E129: =IF('Risk Measures'!E$169>'Risk Measures'!$B196,-E128*(D128=E128),-'Assumptions & Relationships'!$E$29*E128) -> 0 | F129: =IF('Risk Measures'!F$169>'Risk Measures'!$B196,-F128*(E128=F128),-'Assumptions & Relationships'!$E$29*F128) -> 0 | G129: =IF('Risk Measures'!G$169>'Risk Measures'!$B196,-G128*(F128=G128),-'Assumptions & Relationships'!$E$29*G128) -> 0 | H129: =IF('Risk Measures'!H$169>'Risk Measures'!$B196,-H128*(G128=H128),-'Assumptions & Relationships'!$E$29*H128) -> 0 | I129: =IF('Risk Measures'!I$169>'Risk Measures'!$B196,-I128*(H128=I128),-'Assumptions & Relationships'!$E$29*I128) -> 0 | J129: =IF('Risk Measures'!J$169>'Risk Measures'!$B196,-J128*(I128=J128),-'Assumptions & Relationships'!$E$29*J128) -> 0 | K129: =IF('Risk Measures'!K$169>'Risk Measures'!$B196,-K128*(J128=K128),-'Assumptions & Relationships'!$E$29*K128) -> 0 | L129: =IF('Risk Measures'!L$169>'Risk Measures'!$B196,-L128*(K128=L128),-'Assumptions & Relationships'!$E$29*L128) -> 0
A130: New Volume | C130: =IF('Risk Measures'!C$169>'Risk Measures'!$B196,0,-C129*'Assumptions & Relationships'!$F$29) -> 0 | D130: =IF('Risk Measures'!D$169>'Risk Measures'!$B196,0,-D129*'Assumptions & Relationships'!$F$29) -> 0 | E130: =IF('Risk Measures'!E$169>'Risk Measures'!$B196,0,-E129*'Assumptions & Relationships'!$F$29) -> 0 | F130: =IF('Risk Measures'!F$169>'Risk Measures'!$B196,0,-F129*'Assumptions & Relationships'!$F$29) -> 0 | G130: =IF('Risk Measures'!G$169>'Risk Measures'!$B196,0,-G129*'Assumptions & Relationships'!$F$29) -> 0 | H130: =IF('Risk Measures'!H$169>'Risk Measures'!$B196,0,-H129*'Assumptions & Relationships'!$F$29) -> 0 | I130: =IF('Risk Measures'!I$169>'Risk Measures'!$B196,0,-I129*'Assumptions & Relationships'!$F$29) -> 0 | J130: =IF('Risk Measures'!J$169>'Risk Measures'!$B196,0,-J129*'Assumptions & Relationships'!$F$29) -> 0 | K130: =IF('Risk Measures'!K$169>'Risk Measures'!$B196,0,-K129*'Assumptions & Relationships'!$F$29) -> 0 | L130: =IF('Risk Measures'!L$169>'Risk Measures'!$B196,0,-L129*'Assumptions & Relationships'!$F$29) -> 0
A131: Ending Balance | B131: =B128 -> 0 | C131: =SUM(C128:C130) -> 0 | D131: =SUM(D128:D130) -> 0 | E131: =SUM(E128:E130) -> 0 | F131: 0 | G131: 0 | H131: 0 | I131: 0 | J131: 0 | K131: 0 | L131: 0
A133: ='Data Inputs'!C152 -> ON Balance Sheet AVP8 (CLM ref: RAF)
A134: Beginning Balance | B134: ='Data Inputs'!B153 -> 0 | C134: =B137 -> 0 | D134: 0 | E134: 0 | F134: 0 | G134: 0 | H134: 0 | I134: 0 | J134: 0 | K134: 0 | L134: 0
A135: Rollout (Amort & Prepays) | C135: =IF('Risk Measures'!C$169>'Risk Measures'!$B197,-C134*(B134=C134),-'Assumptions & Relationships'!$E$30*C134) -> 0 | D135: =IF('Risk Measures'!D$169>'Risk Measures'!$B197,-D134*(C134=D134),-'Assumptions & Relationships'!$E$30*D134) -> 0 | E135: =IF('Risk Measures'!E$169>'Risk Measures'!$B$197,-E134*(D134=E134),-'Assumptions & Relationships'!$E$30*E134) -> 0 | F135: =IF('Risk Measures'!F$169>'Risk Measures'!$B197,-F134*(E134=F134),-'Assumptions & Relationships'!$E$30*F134) -> 0 | G135: =IF('Risk Measures'!G$169>'Risk Measures'!$B197,-G134*(F134=G134),-'Assumptions & Relationships'!$E$30*G134) -> 0 | H135: =IF('Risk Measures'!H$169>'Risk Measures'!$B197,-H134*(G134=H134),-'Assumptions & Relationships'!$E$30*H134) -> 0 | I135: =IF('Risk Measures'!I$169>'Risk Measures'!$B197,-I134*(H134=I134),-'Assumptions & Relationships'!$E$30*I134) -> 0 | J135: =IF('Risk Measures'!J$169>'Risk Measures'!$B197,-J134*(I134=J134),-'Assumptions & Relationships'!$E$30*J134) -> 0 | K135: =IF('Risk Measures'!K$169>'Risk Measures'!$B197,-K134*(J134=K134),-'Assumptions & Relationships'!$E$30*K134) -> 0 | L135: =IF('Risk Measures'!L$169>'Risk Measures'!$B197,-L134*(K134=L134),-'Assumptions & Relationships'!$E$30*L134) -> 0
A136: New Volume | C136: =IF('Risk Measures'!C$169>'Risk Measures'!$B197,0,-C135*'Assumptions & Relationships'!$F$30) -> 0 | D136: =IF('Risk Measures'!D$169>'Risk Measures'!$B197,0,-D135*'Assumptions & Relationships'!$F$30) -> 0 | E136: =IF('Risk Measures'!E$169>'Risk Measures'!$B$197,0,-E135*'Assumptions & Relationships'!$F$30) -> 0 | F136: =IF('Risk Measures'!F$169>'Risk Measures'!$B197,0,-F135*'Assumptions & Relationships'!$F$30) -> 0 | G136: =IF('Risk Measures'!G$169>'Risk Measures'!$B197,0,-G135*'Assumptions & Relationships'!$F$30) -> 0 | H136: =IF('Risk Measures'!H$169>'Risk Measures'!$B197,0,-H135*'Assumptions & Relationships'!$F$30) -> 0 | I136: =IF('Risk Measures'!I$169>'Risk Measures'!$B197,0,-I135*'Assumptions & Relationships'!$F$30) -> 0 | J136: =IF('Risk Measures'!J$169>'Risk Measures'!$B197,0,-J135*'Assumptions & Relationships'!$F$30) -> 0 | K136: =IF('Risk Measures'!K$169>'Risk Measures'!$B197,0,-K135*'Assumptions & Relationships'!$F$30) -> 0 | L136: =IF('Risk Measures'!L$169>'Risk Measures'!$B197,0,-L135*'Assumptions & Relationships'!$F$30) -> 0
A137: Ending Balance | B137: =B134 -> 0 | C137: =SUM(C134:C136) -> 0 | D137: =SUM(D134:D136) -> 0 | E137: 0 | F137: 0 | G137: 0 | H137: 0 | I137: 0 | J137: 0 | K137: 0 | L137: 0
A139: ='Data Inputs'!C160 -> ON Balance Sheet AVP9 (CLM ref: RAF)
A140: Beginning Balance | B140: ='Data Inputs'!B161 -> 0 | C140: =B143 -> 0 | D140: 0 | E140: 0 | F140: 0 | G140: 0 | H140: 0 | I140: 0 | J140: 0 | K140: 0 | L140: 0
A141: Rollout (Amort & Prepays) | C141: =IF('Risk Measures'!C$169>'Risk Measures'!$B198,-C140*(B140=C140),-'Assumptions & Relationships'!$E$31*C140) -> 0 | D141: =IF('Risk Measures'!D$169>'Risk Measures'!$B$198,-D140*(C140=D140),-'Assumptions & Relationships'!$E$31*D140) -> 0 | E141: =IF('Risk Measures'!E$169>'Risk Measures'!$B198,-E140*(D140=E140),-'Assumptions & Relationships'!$E$31*E140) -> 0 | F141: =IF('Risk Measures'!F$169>'Risk Measures'!$B198,-F140*(E140=F140),-'Assumptions & Relationships'!$E$31*F140) -> 0 | G141: =IF('Risk Measures'!G$169>'Risk Measures'!$B198,-G140*(F140=G140),-'Assumptions & Relationships'!$E$31*G140) -> 0 | H141: =IF('Risk Measures'!H$169>'Risk Measures'!$B198,-H140*(G140=H140),-'Assumptions & Relationships'!$E$31*H140) -> 0 | I141: =IF('Risk Measures'!I$169>'Risk Measures'!$B198,-I140*(H140=I140),-'Assumptions & Relationships'!$E$31*I140) -> 0 | J141: =IF('Risk Measures'!J$169>'Risk Measures'!$B198,-J140*(I140=J140),-'Assumptions & Relationships'!$E$31*J140) -> 0 | K141: =IF('Risk Measures'!K$169>'Risk Measures'!$B198,-K140*(J140=K140),-'Assumptions & Relationships'!$E$31*K140) -> 0 | L141: =IF('Risk Measures'!L$169>'Risk Measures'!$B198,-L140*(K140=L140),-'Assumptions & Relationships'!$E$31*L140) -> 0
A142: New Volume | C142: =IF('Risk Measures'!C$169>'Risk Measures'!$B$198,0,-C141*'Assumptions & Relationships'!$F$31) -> 0 | D142: =IF('Risk Measures'!D$169>'Risk Measures'!$B$198,0,-D141*'Assumptions & Relationships'!$F$31) -> 0 | E142: =IF('Risk Measures'!E$169>'Risk Measures'!$B$198,0,-E141*'Assumptions & Relationships'!$F$31) -> 0 | F142: =IF('Risk Measures'!F$169>'Risk Measures'!$B$198,0,-F141*'Assumptions & Relationships'!$F$31) -> 0 | G142: =IF('Risk Measures'!G$169>'Risk Measures'!$B$198,0,-G141*'Assumptions & Relationships'!$F$31) -> 0 | H142: =IF('Risk Measures'!H$169>'Risk Measures'!$B$198,0,-H141*'Assumptions & Relationships'!$F$31) -> 0 | I142: =IF('Risk Measures'!I$169>'Risk Measures'!$B$198,0,-I141*'Assumptions & Relationships'!$F$31) -> 0 | J142: =IF('Risk Measures'!J$169>'Risk Measures'!$B$198,0,-J141*'Assumptions & Relationships'!$F$31) -> 0 | K142: =IF('Risk Measures'!K$169>'Risk Measures'!$B$198,0,-K141*'Assumptions & Relationships'!$F$31) -> 0 | L142: =IF('Risk Measures'!L$169>'Risk Measures'!$B$198,0,-L141*'Assumptions & Relationships'!$F$31) -> 0
A143: Ending Balance | B143: =B140 -> 0 | C143: =SUM(C140:C142) -> 0 | D143: =SUM(D140:D142) -> 0 | E143: 0 | F143: 0 | G143: 0 | H143: 0 | I143: 0 | J143: 0 | K143: 0 | L143: 0
A145: ='Data Inputs'!C168 -> ON Balance Sheet AVP10 (CLM ref: RaboBank NA)
A146: Beginning Balance | B146: ='Data Inputs'!B169 -> 0 | C146: =B149 -> 0 | D146: 0 | E146: 0 | F146: 0 | G146: 0 | H146: 0 | I146: 0 | J146: 0 | K146: 0 | L146: 0
A147: Rollout (Amort & Prepays) | C147: =IF('Risk Measures'!C$169>'Risk Measures'!$B$199,-C146*(B146=C146),-'Assumptions & Relationships'!$E$32*C146) -> 0 | D147: =IF('Risk Measures'!D$169>'Risk Measures'!$B$199,-D146*(C146=D146),-'Assumptions & Relationships'!$E$32*D146) -> 0 | E147: =IF('Risk Measures'!E$169>'Risk Measures'!$B$199,-E146*(D146=E146),-'Assumptions & Relationships'!$E$32*E146) -> 0 | F147: =IF('Risk Measures'!F$169>'Risk Measures'!$B$199,-F146*(E146=F146),-'Assumptions & Relationships'!$E$32*F146) -> 0 | G147: =IF('Risk Measures'!G$169>'Risk Measures'!$B$199,-G146*(F146=G146),-'Assumptions & Relationships'!$E$32*G146) -> 0 | H147: =IF('Risk Measures'!H$169>'Risk Measures'!$B$199,-H146*(G146=H146),-'Assumptions & Relationships'!$E$32*H146) -> 0 | I147: =IF('Risk Measures'!I$169>'Risk Measures'!$B$199,-I146*(H146=I146),-'Assumptions & Relationships'!$E$32*I146) -> 0 | J147: =IF('Risk Measures'!J$169>'Risk Measures'!$B$199,-J146*(I146=J146),-'Assumptions & Relationships'!$E$32*J146) -> 0 | K147: =IF('Risk Measures'!K$169>'Risk Measures'!$B$199,-K146*(J146=K146),-'Assumptions & Relationships'!$E$32*K146) -> 0 | L147: =IF('Risk Measures'!L$169>'Risk Measures'!$B$199,-L146*(K146=L146),-'Assumptions & Relationships'!$E$32*L146) -> 0
A148: New Volume | C148: =IF('Risk Measures'!C$169>'Risk Measures'!$B$199,0,-C147*'Assumptions & Relationships'!$F$32) -> 0 | D148: =IF('Risk Measures'!D$169>'Risk Measures'!$B$199,0,-D147*'Assumptions & Relationships'!$F$32) -> 0 | E148: =IF('Risk Measures'!E$169>'Risk Measures'!$B$199,0,-E147*'Assumptions & Relationships'!$F$32) -> 0 | F148: =IF('Risk Measures'!F$169>'Risk Measures'!$B$199,0,-F147*'Assumptions & Relationships'!$F$32) -> 0 | G148: =IF('Risk Measures'!G$169>'Risk Measures'!$B$199,0,-G147*'Assumptions & Relationships'!$F$32) -> 0 | H148: =IF('Risk Measures'!H$169>'Risk Measures'!$B$199,0,-H147*'Assumptions & Relationships'!$F$32) -> 0 | I148: =IF('Risk Measures'!I$169>'Risk Measures'!$B$199,0,-I147*'Assumptions & Relationships'!$F$32) -> 0 | J148: =IF('Risk Measures'!J$169>'Risk Measures'!$B$199,0,-J147*'Assumptions & Relationships'!$F$32) -> 0 | K148: =IF('Risk Measures'!K$169>'Risk Measures'!$B$199,0,-K147*'Assumptions & Relationships'!$F$32) -> 0 | L148: =IF('Risk Measures'!L$169>'Risk Measures'!$B$199,0,-L147*'Assumptions & Relationships'!$F$32) -> 0
A149: Ending Balance | B149: =B146 -> 0 | C149: =SUM(C146:C148) -> 0 | D149: =SUM(D146:D148) -> 0 | E149: 0 | F149: 0 | G149: 0 | H149: 0 | I149: 0 | J149: 0 | K149: 0 | L149: 0
A153: Real Estate Owned (net) | B153: ='Data Inputs'!B26 -> 0 | C153: =IF(OR(B153=0,B153=""),0,(C42+C47+C52+C57+C62+C67+C73+C78+C83+C87+C92+C97)*$B13*'Assumptions & Relationships'!$B53) -> 0 | D153: =(D42+D47+D52+D57+D62+D67+D73+D78+D83+D87+D92+D97)*$B13*'Assumptions & Relationships'!$B53 ->  | E153: =(E42+E47+E52+E57+E62+E67+E73+E78+E83+E87+E92+E97)*$B13*'Assumptions & Relationships'!$B53 ->  | F153: =(F42+F47+F52+F57+F62+F67+F73+F78+F83+F87+F92+F97)*$B13*'Assumptions & Relationships'!$B53 ->  | G153: =(G42+G47+G52+G57+G62+G67+G73+G78+G83+G87+G92+G97)*$B13*'Assumptions & Relationships'!$B53 ->  | H153: =(H42+H47+H52+H57+H62+H67+H73+H78+H83+H87+H92+H97)*$B13*'Assumptions & Relationships'!$B53 ->  | I153: =(I42+I47+I52+I57+I62+I67+I73+I78+I83+I87+I92+I97)*$B13*'Assumptions & Relationships'!$B53 ->  | J153: =(J42+J47+J52+J57+J62+J67+J73+J78+J83+J87+J92+J97)*$B13*'Assumptions & Relationships'!$B53 ->  | K153: =(K42+K47+K52+K57+K62+K67+K73+K78+K83+K87+K92+K97)*$B13*'Assumptions & Relationships'!$B53 ->  | L153: =(L42+L47+L52+L57+L62+L67+L73+L78+L83+L87+L92+L97)*$B13*'Assumptions & Relationships'!$B53 -> 
A154: Real Estate Owned (gross) | B154: ='Data Inputs'!B182 -> 0 | C154: =IF(C153=0,0,$B$154/$B$153*C153) -> 0 | D154: =IF(D153=0,0,$B$154/$B$153*D153) -> 
A155: Financial Derivatives | B155: ='Data Inputs'!B27 -> 0 | C155: =B155 -> 0 | D155: =C155 -> 0 | E155: 0 | F155: 0 | G155: 0 | H155: 0 | I155: 0 | J155: 0 | K155: 0 | L155: 0
A156: Gains/Losses on Available for Sale Assets (BJS Note - could rewrite formula to net 167 here rather than from calculated entry in data sheet) | B156: =('Data Inputs'!$B$33-(B45+B50+B55+B60+B65+B70+B76+B81+B85+B90+B95+B100++B118+B112+B153+B157+B158+B162+B155+B171+B125+B131+B137+B161+B143+B149)) -> 0 | C156: =B156 -> 0 | D156: =C156 -> 0 | E156: 0 | F156: 0 | G156: 0 | H156: 0 | I156: 0 | J156: 0 | K156: 0 | L156: 0
A157: Interest receivable | B157: ='Data Inputs'!B28 -> 0 | C157: =(C42+C47+C52+C57+C62+C67+C73+C78+C83+C87+C92+C97)*$B14*'Assumptions & Relationships'!$B54 ->  | D157: =(D42+D47+D52+D57+D62+D67+D73+D78+D83+D87+D92+D97)*$B14*'Assumptions & Relationships'!$B54 ->  | E157: =(E42+E47+E52+E57+E62+E67+E73+E78+E83+E87+E92+E97)*$B14*'Assumptions & Relationships'!$B54 ->  | F157: =(F42+F47+F52+F57+F62+F67+F73+F78+F83+F87+F92+F97)*$B14*'Assumptions & Relationships'!$B54 ->  | G157: =(G42+G47+G52+G57+G62+G67+G73+G78+G83+G87+G92+G97)*$B14*'Assumptions & Relationships'!$B54 ->  | H157: =(H42+H47+H52+H57+H62+H67+H73+H78+H83+H87+H92+H97)*$B14*'Assumptions & Relationships'!$B54 ->  | I157: =(I42+I47+I52+I57+I62+I67+I73+I78+I83+I87+I92+I97)*$B14*'Assumptions & Relationships'!$B54 ->  | J157: =(J42+J47+J52+J57+J62+J67+J73+J78+J83+J87+J92+J97)*$B14*'Assumptions & Relationships'!$B54 ->  | K157: =(K42+K47+K52+K57+K62+K67+K73+K78+K83+K87+K92+K97)*$B14*'Assumptions & Relationships'!$B54 ->  | L157: =(L42+L47+L52+L57+L62+L67+L73+L78+L83+L87+L92+L97)*$B14*'Assumptions & Relationships'!$B54 -> 
A158: Gross Guarantee fees receivable | B158: ='Data Inputs'!B29 -> 0 | C158: =C159+C160 ->  | D158: =D159+D160 -> 
A159: Guarantee Committment Receivable Fin 45 | B159: =B172 -> 0 | C159: =C172 ->  | D159: =D172 -> 
A160: Net Guarantee fees receivable | B160: =B158-B159 -> 0 | C160: =(C42+C47+C52+C57+C62+C67+C73+C78+C83+C87+C92+C97)*$B15*'Assumptions & Relationships'!$B55 ->  | D160: =(D42+D47+D52+D57+D62+D67+D73+D78+D83+D87+D92+D97)*$B15*'Assumptions & Relationships'!$B55 ->  | E160: =(E42+E47+E52+E57+E62+E67+E73+E78+E83+E87+E92+E97)*$B15*'Assumptions & Relationships'!$B55 ->  | F160: =(F42+F47+F52+F57+F62+F67+F73+F78+F83+F87+F92+F97)*$B15*'Assumptions & Relationships'!$B55 ->  | G160: =(G42+G47+G52+G57+G62+G67+G73+G78+G83+G87+G92+G97)*$B15*'Assumptions & Relationships'!$B55 ->  | H160: =(H42+H47+H52+H57+H62+H67+H73+H78+H83+H87+H92+H97)*$B15*'Assumptions & Relationships'!$B55 ->  | I160: =(I42+I47+I52+I57+I62+I67+I73+I78+I83+I87+I92+I97)*$B15*'Assumptions & Relationships'!$B55 ->  | J160: =(J42+J47+J52+J57+J62+J67+J73+J78+J83+J87+J92+J97)*$B15*'Assumptions & Relationships'!$B55 ->  | K160: =(K42+K47+K52+K57+K62+K67+K73+K78+K83+K87+K92+K97)*$B15*'Assumptions & Relationships'!$B55 ->  | L160: =(L42+L47+L52+L57+L62+L67+L73+L78+L83+L87+L92+L97)*$B15*'Assumptions & Relationships'!$B55 -> 
A161: Deferred Tax Asset (net) | B161: ='Data Inputs'!B30 -> 0 | C161: =B161 -> 0 | D161: =C161 -> 0 | E161: 0 | F161: 0 | G161: 0 | H161: 0 | I161: 0 | J161: 0 | K161: 0 | L161: 0
A162: Prepaid expenses and other assets | B162: ='Data Inputs'!B31 -> 0 | C162: =(C42+C47+C52+C57+C62+C67+C73+C78+C83+C87+C92+C97)*$B16*'Assumptions & Relationships'!$B56 ->  | D162: =(D42+D47+D52+D57+D62+D67+D73+D78+D83+D87+D92+D97)*$B16*'Assumptions & Relationships'!$B56 ->  | E162: =(E42+E47+E52+E57+E62+E67+E73+E78+E83+E87+E92+E97)*$B16*'Assumptions & Relationships'!$B56 ->  | F162: =(F42+F47+F52+F57+F62+F67+F73+F78+F83+F87+F92+F97)*$B16*'Assumptions & Relationships'!$B56 ->  | G162: =(G42+G47+G52+G57+G62+G67+G73+G78+G83+G87+G92+G97)*$B16*'Assumptions & Relationships'!$B56 ->  | H162: =(H42+H47+H52+H57+H62+H67+H73+H78+H83+H87+H92+H97)*$B16*'Assumptions & Relationships'!$B56 ->  | I162: =(I42+I47+I52+I57+I62+I67+I73+I78+I83+I87+I92+I97)*$B16*'Assumptions & Relationships'!$B56 ->  | J162: =(J42+J47+J52+J57+J62+J67+J73+J78+J83+J87+J92+J97)*$B16*'Assumptions & Relationships'!$B56 ->  | K162: =(K42+K47+K52+K57+K62+K67+K73+K78+K83+K87+K92+K97)*$B16*'Assumptions & Relationships'!$B56 ->  | L162: =(L42+L47+L52+L57+L62+L67+L73+L78+L83+L87+L92+L97)*$B16*'Assumptions & Relationships'!$B56 -> 
A164: Due within 1 year
A165: Balance | B165: ='Data Inputs'!B260 -> 0 | C165: =B165 -> 0 | D165: ='Balance Sheets'!C25 ->  | E165: ='Balance Sheets'!D25 ->  | F165: ='Balance Sheets'!E25 ->  | G165: ='Balance Sheets'!F25 ->  | H165: ='Balance Sheets'!G25 ->  | I165: ='Balance Sheets'!H25 ->  | J165: ='Balance Sheets'!I25 ->  | K165: ='Balance Sheets'!J25 ->  | L165: ='Balance Sheets'!K25 -> 
A166: Due after 1 year
A167: Beginning Balance | B167: ='Data Inputs'!B263 -> 0 | C167: =B167 -> 0 | D167: ='Balance Sheets'!C26 ->  | E167: ='Balance Sheets'!D26 ->  | F167: ='Balance Sheets'!E26 ->  | G167: ='Balance Sheets'!F26 ->  | H167: ='Balance Sheets'!G26 ->  | I167: ='Balance Sheets'!H26 ->  | J167: ='Balance Sheets'!I26 ->  | K167: ='Balance Sheets'!J26 ->  | L167: ='Balance Sheets'!K26 -> 
A168: Accrued interest payable | B168: ='Data Inputs'!B42 -> 0 | C168: =B168 -> 0 | D168: ='Balance Sheets'!C28 ->  | E168: ='Balance Sheets'!D28 ->  | F168: ='Balance Sheets'!E28 ->  | G168: ='Balance Sheets'!F28 ->  | H168: ='Balance Sheets'!G28 ->  | I168: ='Balance Sheets'!H28 ->  | J168: ='Balance Sheets'!I28 ->  | K168: ='Balance Sheets'!J28 ->  | L168: ='Balance Sheets'!K28 -> 
A169: Accounts payable and accrued expenses | B169: ='Data Inputs'!B44 -> 0 | C169: =B169 -> 0 | D169: ='Balance Sheets'!C31 ->  | E169: ='Balance Sheets'!D31 ->  | F169: ='Balance Sheets'!E31 ->  | G169: ='Balance Sheets'!F31 ->  | H169: ='Balance Sheets'!G31 ->  | I169: ='Balance Sheets'!H31 ->  | J169: ='Balance Sheets'!I31 ->  | K169: ='Balance Sheets'!J31 ->  | L169: ='Balance Sheets'!K31 -> 
A171: Allowance for loan losses (March 31, 2004 and Later) | B171: ='Data Inputs'!B24 -> 0 | C171: =(C42+C47+C52+C57+C62+C67+C73+C78+C83+C87+C92+C97)*IF('Assumptions & Relationships'!$B$67>0,'Assumptions & Relationships'!$B$67*-1,'Assumptions & Relationships'!$B$67) -> 0 | D171: =(D42+D47+D52+D57+D62+D67+D73+D78+D83+D87+D92+D97)*IF('Assumptions & Relationships'!$B$67>0,'Assumptions & Relationships'!$B$67*-1,'Assumptions & Relationships'!$B$67) -> 0 | E171: =(E42+E47+E52+E57+E62+E67+E73+E78+E83+E87+E92+E97)*IF('Assumptions & Relationships'!$B$67>0,'Assumptions & Relationships'!$B$67*-1,'Assumptions & Relationships'!$B$67) -> 0 | F171: =(F42+F47+F52+F57+F62+F67+F73+F78+F83+F87+F92+F97)*IF('Assumptions & Relationships'!$B$67>0,'Assumptions & Relationships'!$B$67*-1,'Assumptions & Relationships'!$B$67) -> 0 | G171: =(G42+G47+G52+G57+G62+G67+G73+G78+G83+G87+G92+G97)*IF('Assumptions & Relationships'!$B$67>0,'Assumptions & Relationships'!$B$67*-1,'Assumptions & Relationships'!$B$67) -> 0 | H171: =(H42+H47+H52+H57+H62+H67+H73+H78+H83+H87+H92+H97)*IF('Assumptions & Relationships'!$B$67>0,'Assumptions & Relationships'!$B$67*-1,'Assumptions & Relationships'!$B$67) -> 0 | I171: =(I42+I47+I52+I57+I62+I67+I73+I78+I83+I87+I92+I97)*IF('Assumptions & Relationships'!$B$67>0,'Assumptions & Relationships'!$B$67*-1,'Assumptions & Relationships'!$B$67) -> 0 | J171: =(J42+J47+J52+J57+J62+J67+J73+J78+J83+J87+J92+J97)*IF('Assumptions & Relationships'!$B$67>0,'Assumptions & Relationships'!$B$67*-1,'Assumptions & Relationships'!$B$67) -> 0 | K171: =(K42+K47+K52+K57+K62+K67+K73+K78+K83+K87+K92+K97)*IF('Assumptions & Relationships'!$B$67>0,'Assumptions & Relationships'!$B$67*-1,'Assumptions & Relationships'!$B$67) -> 0 | L171: =(L42+L47+L52+L57+L62+L67+L73+L78+L83+L87+L92+L97)*IF('Assumptions & Relationships'!$B$67>0,'Assumptions & Relationships'!$B$67*-1,'Assumptions & Relationships'!$B$67) -> 0
A172: Guar & commit obligation less probable amount | B172: ='Data Inputs'!B43-'Data Inputs'!B486 -> 0 | C172: =$D$25*(C73+C78+C177+C83) -> 
A173: Probable Guar and commit obligation (Part of Allowance) | B173: ='Data Inputs'!B486 -> 0 | C173: =((C73+C78+C177+C83)*'Assumptions & Relationships'!$B$68) -> 0 | D173: =((D73+D78+D177+D83)*'Assumptions & Relationships'!$B$68) -> 0 | E173: =((E73+E78+E177+E83)*'Assumptions & Relationships'!$B$68) -> 0 | F173: =((F73+F78+F177+F83)*'Assumptions & Relationships'!$B$68) -> 0 | G173: =((G73+G78+G177+G83)*'Assumptions & Relationships'!$B$68) -> 0 | H173: =((H73+H78+H177+H83)*'Assumptions & Relationships'!$B$68) -> 0 | I173: =((I73+I78+I177+I83)*'Assumptions & Relationships'!$B$68) -> 0 | J173: =((J73+J78+J177+J83)*'Assumptions & Relationships'!$B$68) -> 0 | K173: =((K73+K78+K177+K83)*'Assumptions & Relationships'!$B$68) -> 0 | L173: =((L73+L78+L177+L83)*'Assumptions & Relationships'!$B$68) -> 0
A174: Reserve for losses on guaranteed securities | B174: ='Data Inputs'!B46 -> 0 | C174: ='Assumptions & Relationships'!$B$69*(C177+C78+C73) -> 0 | D174: ='Assumptions & Relationships'!$B$69*(D177+D78+D73) -> 0 | E174: ='Assumptions & Relationships'!$B$69*(E177+E78+E73) -> 0 | F174: ='Assumptions & Relationships'!$B$69*(F177+F78+F73) -> 0 | G174: ='Assumptions & Relationships'!$B$69*(G177+G78+G73) -> 0 | H174: ='Assumptions & Relationships'!$B$69*(H177+H78+H73) -> 0 | I174: ='Assumptions & Relationships'!$B$69*(I177+I78+I73) -> 0 | J174: ='Assumptions & Relationships'!$B$69*(J177+J78+J73) -> 0 | K174: ='Assumptions & Relationships'!$B$69*(K177+K78+K73) -> 0 | L174: ='Assumptions & Relationships'!$B$69*(L177+L78+L73) -> 0
C175: =C172-B172 ->  | D175: =D172-C172 -> 
A176: FAMC I - Post 1996 Loans OFF B/S (net of SrSub)
A177: Beginning Balance | B177: ='Data Inputs'!B189-B201 -> 0 | C177: =B177 -> 0 | D177: =C180 -> 0 | E177: 0 | F177: 0 | G177: 0 | H177: 0 | I177: 0 | J177: 0 | K177: 0 | L177: 0
A178: Rollout (Amort & Prepays) | C178: =-'Assumptions & Relationships'!$E$36*C177 -> 0 | D178: =-'Assumptions & Relationships'!$E$36*D177 -> 0 | E178: =-'Assumptions & Relationships'!$E$36*E177 -> 0 | F178: =-'Assumptions & Relationships'!$E$36*F177 -> 0 | G178: =-'Assumptions & Relationships'!$E$36*G177 -> 0 | H178: =-'Assumptions & Relationships'!$E$36*H177 -> 0 | I178: =-'Assumptions & Relationships'!$E$36*I177 -> 0 | J178: =-'Assumptions & Relationships'!$E$36*J177 -> 0 | K178: =-'Assumptions & Relationships'!$E$36*K177 -> 0 | L178: =-'Assumptions & Relationships'!$E$36*L177 -> 0
A179: New Loan Volume | C179: =(-C178*'Assumptions & Relationships'!$F$36)-C184-C202 -> 0 | D179: =(-D178*'Assumptions & Relationships'!$F$36)-D184-D202 -> 0 | E179: =(-E178*'Assumptions & Relationships'!$F$36)-E184-E202 -> 0 | F179: =(-F178*'Assumptions & Relationships'!$F$36)-F184-F202 -> 0 | G179: =(-G178*'Assumptions & Relationships'!$F$36)-G184-G202 -> 0 | H179: =(-H178*'Assumptions & Relationships'!$F$36)-H184-H202 -> 0 | I179: =(-I178*'Assumptions & Relationships'!$F$36)-I184-I202 -> 0 | J179: =(-J178*'Assumptions & Relationships'!$F$36)-J184-J202 -> 0 | K179: =(-K178*'Assumptions & Relationships'!$F$36)-K184-K202 -> 0 | L179: =(-L178*'Assumptions & Relationships'!$F$36)-L184-L202 -> 0
A180: Ending Balance | B180: =SUM(B177:B179) -> 0 | C180: 0 | D180: 0 | E180: 0 | F180: 0 | G180: 0 | H180: 0 | I180: 0 | J180: 0 | K180: 0 | L180: 0
A182: FAMC I Pre 1996 OFF B/S
A183: Beginning Balance | B183: ='Data Inputs'!B194 -> 0 | C183: =B185 -> 0 | D183: =C185 -> 0 | E183: 0 | F183: 0 | G183: 0 | H183: 0 | I183: 0 | J183: 0 | K183: 0 | L183: 0
A184: Rollout (Amort & Prepays) | C184: =IF(-'Assumptions & Relationships'!$E$37*C183+C183<0,-C183,-'Assumptions & Relationships'!$E$37*C$183) -> 0 | D184: =IF(-'Assumptions & Relationships'!$E$37*D183+D183<0,-D183,-'Assumptions & Relationships'!$E$37*D$183) -> 0 | E184: =IF(-'Assumptions & Relationships'!$E$37*E183+E183<0,-E183,-'Assumptions & Relationships'!$E$37*E$183) -> 0 | F184: =IF(-'Assumptions & Relationships'!$E$37*F183+F183<0,-F183,-'Assumptions & Relationships'!$E$37*F$183) -> 0 | G184: =IF(-'Assumptions & Relationships'!$E$37*G183+G183<0,-G183,-'Assumptions & Relationships'!$E$37*G$183) -> 0 | H184: =IF(-'Assumptions & Relationships'!$E$37*H183+H183<0,-H183,-'Assumptions & Relationships'!$E$37*H$183) -> 0 | I184: =IF(-'Assumptions & Relationships'!$E$37*I183+I183<0,-I183,-'Assumptions & Relationships'!$E$37*I$183) -> 0 | J184: =IF(-'Assumptions & Relationships'!$E$37*J183+J183<0,-J183,-'Assumptions & Relationships'!$E$37*J$183) -> 0 | K184: =IF(-'Assumptions & Relationships'!$E$37*K183+K183<0,-K183,-'Assumptions & Relationships'!$E$37*K$183) -> 0 | L184: =IF(-'Assumptions & Relationships'!$E$37*L183+L183<0,-L183,-'Assumptions & Relationships'!$E$37*L$183) -> 0
A185: Ending Balance | B185: =B183 -> 0 | C185: =SUM(C183:C184) -> 0 | D185: =SUM(D183:D184) -> 0 | E185: 0 | F185: 0 | G185: 0 | H185: 0 | I185: 0 | J185: 0 | K185: 0 | L185: 0
A186: FAMC II Loans OFF B/S
A187: Beginning Balance | B187: ='Data Inputs'!B199 -> 0 | C187: =B190 -> 0 | D187: =C190 -> 0 | E187: 0 | F187: 0 | G187: 0 | H187: 0 | I187: 0 | J187: 0 | K187: 0 | L187: 0
A188: Rollout (Amort & Prepays) | C188: =-'Assumptions & Relationships'!$E$38*C187 -> 0 | D188: =-'Assumptions & Relationships'!$E$38*D187 -> 0 | E188: =-'Assumptions & Relationships'!$E$38*E187 -> 0 | F188: =-'Assumptions & Relationships'!$E$38*F187 -> 0 | G188: =-'Assumptions & Relationships'!$E$38*G187 -> 0 | H188: =-'Assumptions & Relationships'!$E$38*H187 -> 0 | I188: =-'Assumptions & Relationships'!$E$38*I187 -> 0 | J188: =-'Assumptions & Relationships'!$E$38*J187 -> 0 | K188: =-'Assumptions & Relationships'!$E$38*K187 -> 0 | L188: =-'Assumptions & Relationships'!$E$38*L187 -> 0
A189: New Volume | C189: =-C188*'Assumptions & Relationships'!$F$38 -> 0 | D189: =-D188*'Assumptions & Relationships'!$F$38 -> 0 | E189: =-E188*'Assumptions & Relationships'!$F$38 -> 0 | F189: =-F188*'Assumptions & Relationships'!$F$38 -> 0 | G189: =-G188*'Assumptions & Relationships'!$F$38 -> 0 | H189: =-H188*'Assumptions & Relationships'!$F$38 -> 0 | I189: =-I188*'Assumptions & Relationships'!$F$38 -> 0 | J189: =-J188*'Assumptions & Relationships'!$F$38 -> 0 | K189: =-K188*'Assumptions & Relationships'!$F$38 -> 0 | L189: =-L188*'Assumptions & Relationships'!$F$38 -> 0
A190: Ending Balance | B190: =B187 -> 0 | C190: =SUM(C187:C189) -> 0 | D190: =SUM(D187:D189) -> 0 | E190: 0 | F190: 0 | G190: 0 | H190: 0 | I190: 0 | J190: 0 | K190: 0 | L190: 0
A193: Security Sales (AMBSs Sold) | B193: =('Data Inputs'!B476+'Data Inputs'!B477) -> 0 | C193: =(C187+C183+C177)*$B$34*'Assumptions & Relationships'!$B$61 ->  | D193: =(D187+D183+D177)*$B$34*'Assumptions & Relationships'!$B$61 ->  | E193: =(E187+E183+E177)*$B$34*'Assumptions & Relationships'!$B$61 ->  | F193: =(F187+F183+F177)*$B$34*'Assumptions & Relationships'!$B$61 ->  | G193: =(G187+G183+G177)*$B$34*'Assumptions & Relationships'!$B$61 ->  | H193: =(H187+H183+H177)*$B$34*'Assumptions & Relationships'!$B$61 ->  | I193: =(I187+I183+I177)*$B$34*'Assumptions & Relationships'!$B$61 ->  | J193: =(J187+J183+J177)*$B$34*'Assumptions & Relationships'!$B$61 ->  | K193: =(K187+K183+K177)*$B$34*'Assumptions & Relationships'!$B$61 ->  | L193: =(L187+L183+L177)*$B$34*'Assumptions & Relationships'!$B$61 -> 
A195: Other Off-Balance Sheet obligations (start of period) | B195: ='Data Inputs'!B483 -> 0 | C195: =(C187+C183+C177)*$B$33*'Assumptions & Relationships'!$B$60 ->  | D195: =(D187+D183+D177)*$B$33*'Assumptions & Relationships'!$B$60 ->  | E195: =(E187+E183+E177)*$B$33*'Assumptions & Relationships'!$B$60 ->  | F195: =(F187+F183+F177)*$B$33*'Assumptions & Relationships'!$B$60 ->  | G195: =(G187+G183+G177)*$B$33*'Assumptions & Relationships'!$B$60 ->  | H195: =(H187+H183+H177)*$B$33*'Assumptions & Relationships'!$B$60 ->  | I195: =(I187+I183+I177)*$B$33*'Assumptions & Relationships'!$B$60 ->  | J195: =(J187+J183+J177)*$B$33*'Assumptions & Relationships'!$B$60 ->  | K195: =(K187+K183+K177)*$B$33*'Assumptions & Relationships'!$B$60 ->  | L195: =(L187+L183+L177)*$B$33*'Assumptions & Relationships'!$B$60 -> 
A197: Assets Subject to CLM Loan Loss rate (start of period) | B197: =B78+B73+B92+B154+B177+B83 -> 0 | C197: =C78+C73+C92+C154+C177+C83 -> 0 | D197: =D78+D73+D92+D154+D177+D83 -> 
A199: Section for Time Dependent set (Sr/Sub)
A200: Reduction for SR/Sub allocated on different path
A201: Beginning Balance | B201: ='Data Inputs'!B586 -> 0 | C201: =B201 -> 0 | D201: =C204 -> 0 | E201: 0 | F201: 0 | G201: 0 | H201: 0 | I201: 0 | J201: 0 | K201: 0 | L201: 0
A202: Rollout (Amort & Prepays) | C202: =-'Assumptions & Relationships'!$E$36*C201 -> 0 | D202: =-'Assumptions & Relationships'!$E$36*D201 -> 0 | E202: =-'Assumptions & Relationships'!$E$36*E201 -> 0 | F202: =-'Assumptions & Relationships'!$E$36*F201 -> 0 | G202: =-'Assumptions & Relationships'!$E$36*G201 -> 0 | H202: =-'Assumptions & Relationships'!$E$36*H201 -> 0 | I202: =-'Assumptions & Relationships'!$E$36*I201 -> 0 | J202: =-'Assumptions & Relationships'!$E$36*J201 -> 0 | K202: =-'Assumptions & Relationships'!$E$36*K201 -> 0 | L202: =-'Assumptions & Relationships'!$E$36*L201 -> 0
A203: New Loan Volume - Note decision to treat as non-refilling | C203: 0 | D203: 0 | E203: 0 | F203: 0 | G203: 0 | H203: 0 | I203: 0 | J203: 0 | K203: 0 | L203: 0
A204: Ending Balance | C204: =SUM(C201:C203) -> 0 | D204: 0 | E204: 0 | F204: 0 | G204: 0 | H204: 0 | I204: 0 | J204: 0 | K204: 0 | L204: 0
A205: Note: amortized volume goes to OFBS
B206: =B197+B201-B154 -> 0

Sheet Income Statements
A1: This sheet contains: Abbreviated income statement
A2: Instructions: None -- Sheet is computational.
C4: Proforma Income Statements
C5: =CONCATENATE(MONTH('Balance Sheets'!B5),"/",YEAR('Balance Sheets'!B5)," to ",MONTH('Balance Sheets'!C5),"/",YEAR('Balance Sheets'!C5)) -> 3/2018 to 3/2019 | D5: =CONCATENATE(MONTH('Balance Sheets'!C5),"/",YEAR('Balance Sheets'!C5)," to ",MONTH('Balance Sheets'!D5),"/",YEAR('Balance Sheets'!D5)) -> 3/2019 to 3/2020 | E5: =CONCATENATE(MONTH('Balance Sheets'!D5),"/",YEAR('Balance Sheets'!D5)," to ",MONTH('Balance Sheets'!E5),"/",YEAR('Balance Sheets'!E5)) -> 3/2020 to 3/2021 | F5: =CONCATENATE(MONTH('Balance Sheets'!E5),"/",YEAR('Balance Sheets'!E5)," to ",MONTH('Balance Sheets'!F5),"/",YEAR('Balance Sheets'!F5)) -> 3/2021 to 3/2022 | G5: =CONCATENATE(MONTH('Balance Sheets'!F5),"/",YEAR('Balance Sheets'!F5)," to ",MONTH('Balance Sheets'!G5),"/",YEAR('Balance Sheets'!G5)) -> 3/2022 to 3/2023 | H5: =CONCATENATE(MONTH('Balance Sheets'!G5),"/",YEAR('Balance Sheets'!G5)," to ",MONTH('Balance Sheets'!H5),"/",YEAR('Balance Sheets'!H5)) -> 3/2023 to 3/2024 | I5: =CONCATENATE(MONTH('Balance Sheets'!H5),"/",YEAR('Balance Sheets'!H5)," to ",MONTH('Balance Sheets'!I5),"/",YEAR('Balance Sheets'!I5)) -> 3/2024 to 3/2025 | J5: =CONCATENATE(MONTH('Balance Sheets'!I5),"/",YEAR('Balance Sheets'!I5)," to ",MONTH('Balance Sheets'!J5),"/",YEAR('Balance Sheets'!J5)) -> 3/2025 to 3/2026 | K5: =CONCATENATE(MONTH('Balance Sheets'!J5),"/",YEAR('Balance Sheets'!J5)," to ",MONTH('Balance Sheets'!K5),"/",YEAR('Balance Sheets'!K5)) -> 3/2026 to 3/2027 | L5: =CONCATENATE(MONTH('Balance Sheets'!K5),"/",YEAR('Balance Sheets'!K5)," to ",MONTH('Balance Sheets'!L5),"/",YEAR('Balance Sheets'!L5)) -> 3/2027 to 3/2028
C6: t0 | D6: t1 | E6: t2 | F6: t3 | G6: t4 | H6: t5 | I6: t6 | J6: t7 | K6: t8 | L6: t9
A7: Sources: | C7: t1 | D7: t2 | E7: t3 | F7: t4 | G7: t5 | H7: t6 | I7: t7 | J7: t8 | K7: t9 | L7: t10
A8: Interest earnings:
C9: Partial repricing of new funded portions
A10: Investments | B10: Cash & Money Market | C10: =IF('Assumptions & Relationships'!$E100=1,'Assumptions & Relationships'!$B100*'Loan and Cash Flow Accounts'!C42,IF('Assumptions & Relationships'!$E100=2,'Loan and Cash Flow Accounts'!C42*('Assumptions & Relationships'!$C$100+'Risk Measures'!D$8),0)) -> 0 | D10: =IF('Assumptions & Relationships'!$E100=1,'Assumptions & Relationships'!$B100*'Loan and Cash Flow Accounts'!D42,IF('Assumptions & Relationships'!$E100=2,'Loan and Cash Flow Accounts'!D42*('Assumptions & Relationships'!$C$100+'Risk Measures'!E$8),0)) -> 0 | E10: =IF('Assumptions & Relationships'!$E100=1,'Assumptions & Relationships'!$B100*'Loan and Cash Flow Accounts'!E42,IF('Assumptions & Relationships'!$E100=2,'Loan and Cash Flow Accounts'!E42*('Assumptions & Relationships'!$C$100+'Risk Measures'!F$8),0)) -> 0 | F10: =IF('Assumptions & Relationships'!$E100=1,'Assumptions & Relationships'!$B100*'Loan and Cash Flow Accounts'!F42,IF('Assumptions & Relationships'!$E100=2,'Loan and Cash Flow Accounts'!F42*('Assumptions & Relationships'!$C$100+'Risk Measures'!G$8),0)) -> 0 | G10: =IF('Assumptions & Relationships'!$E100=1,'Assumptions & Relationships'!$B100*'Loan and Cash Flow Accounts'!G42,IF('Assumptions & Relationships'!$E100=2,'Loan and Cash Flow Accounts'!G42*('Assumptions & Relationships'!$C$100+'Risk Measures'!H$8),0)) -> 0 | H10: =IF('Assumptions & Relationships'!$E100=1,'Assumptions & Relationships'!$B100*'Loan and Cash Flow Accounts'!H42,IF('Assumptions & Relationships'!$E100=2,'Loan and Cash Flow Accounts'!H42*('Assumptions & Relationships'!$C$100+'Risk Measures'!I$8),0)) -> 0 | I10: =IF('Assumptions & Relationships'!$E100=1,'Assumptions & Relationships'!$B100*'Loan and Cash Flow Accounts'!I42,IF('Assumptions & Relationships'!$E100=2,'Loan and Cash Flow Accounts'!I42*('Assumptions & Relationships'!$C$100+'Risk Measures'!J$8),0)) -> 0 | J10: =IF('Assumptions & Relationships'!$E100=1,'Assumptions & Relationships'!$B100*'Loan and Cash Flow Accounts'!J42,IF('Assumptions & Relationships'!$E100=2,'Loan and Cash Flow Accounts'!J42*('Assumptions & Relationships'!$C$100+'Risk Measures'!K$8),0)) -> 0 | K10: =IF('Assumptions & Relationships'!$E100=1,'Assumptions & Relationships'!$B100*'Loan and Cash Flow Accounts'!K42,IF('Assumptions & Relationships'!$E100=2,'Loan and Cash Flow Accounts'!K42*('Assumptions & Relationships'!$C$100+'Risk Measures'!L$8),0)) -> 0 | L10: =IF('Assumptions & Relationships'!$E100=1,'Assumptions & Relationships'!$B100*'Loan and Cash Flow Accounts'!L42,IF('Assumptions & Relationships'!$E100=2,'Loan and Cash Flow Accounts'!L42*('Assumptions & Relationships'!$C$100+'Risk Measures'!M$8),0)) -> 0
B11: Commercial Paper | C11: =IF('Assumptions & Relationships'!$E101=1,'Assumptions & Relationships'!$B101*'Loan and Cash Flow Accounts'!C47,IF('Assumptions & Relationships'!$E101=2,'Loan and Cash Flow Accounts'!C47*('Risk Measures'!D35+'Risk Measures'!D$8),0)) -> 0 | D11: =IF('Assumptions & Relationships'!$E101=1,'Assumptions & Relationships'!$B101*'Loan and Cash Flow Accounts'!D47,IF('Assumptions & Relationships'!$E101=2,'Loan and Cash Flow Accounts'!D47*('Risk Measures'!E35+'Risk Measures'!E$8),0)) -> 0 | E11: =IF('Assumptions & Relationships'!$E101=1,'Assumptions & Relationships'!$B101*'Loan and Cash Flow Accounts'!E47,IF('Assumptions & Relationships'!$E101=2,'Loan and Cash Flow Accounts'!E47*('Risk Measures'!F35+'Risk Measures'!F$8),0)) -> 0 | F11: =IF('Assumptions & Relationships'!$E101=1,'Assumptions & Relationships'!$B101*'Loan and Cash Flow Accounts'!F47,IF('Assumptions & Relationships'!$E101=2,'Loan and Cash Flow Accounts'!F47*('Risk Measures'!G35+'Risk Measures'!G$8),0)) -> 0 | G11: =IF('Assumptions & Relationships'!$E101=1,'Assumptions & Relationships'!$B101*'Loan and Cash Flow Accounts'!G47,IF('Assumptions & Relationships'!$E101=2,'Loan and Cash Flow Accounts'!G47*('Risk Measures'!H35+'Risk Measures'!H$8),0)) -> 0 | H11: =IF('Assumptions & Relationships'!$E101=1,'Assumptions & Relationships'!$B101*'Loan and Cash Flow Accounts'!H47,IF('Assumptions & Relationships'!$E101=2,'Loan and Cash Flow Accounts'!H47*('Risk Measures'!I35+'Risk Measures'!I$8),0)) -> 0 | I11: =IF('Assumptions & Relationships'!$E101=1,'Assumptions & Relationships'!$B101*'Loan and Cash Flow Accounts'!I47,IF('Assumptions & Relationships'!$E101=2,'Loan and Cash Flow Accounts'!I47*('Risk Measures'!J35+'Risk Measures'!J$8),0)) -> 0 | J11: =IF('Assumptions & Relationships'!$E101=1,'Assumptions & Relationships'!$B101*'Loan and Cash Flow Accounts'!J47,IF('Assumptions & Relationships'!$E101=2,'Loan and Cash Flow Accounts'!J47*('Risk Measures'!K35+'Risk Measures'!K$8),0)) -> 0 | K11: =IF('Assumptions & Relationships'!$E101=1,'Assumptions & Relationships'!$B101*'Loan and Cash Flow Accounts'!K47,IF('Assumptions & Relationships'!$E101=2,'Loan and Cash Flow Accounts'!K47*('Risk Measures'!L35+'Risk Measures'!L$8),0)) -> 0 | L11: =IF('Assumptions & Relationships'!$E101=1,'Assumptions & Relationships'!$B101*'Loan and Cash Flow Accounts'!L47,IF('Assumptions & Relationships'!$E101=2,'Loan and Cash Flow Accounts'!L47*('Risk Measures'!M35+'Risk Measures'!M$8),0)) -> 0
B12: Certificates of Deposit | C12: =IF('Assumptions & Relationships'!$E102=1,'Assumptions & Relationships'!$B102*'Loan and Cash Flow Accounts'!C52,IF('Assumptions & Relationships'!$E102=2,'Loan and Cash Flow Accounts'!C52*('Assumptions & Relationships'!$C$102+'Risk Measures'!D$8),0)) -> 0 | D12: =IF('Assumptions & Relationships'!$E102=1,'Assumptions & Relationships'!$B102*'Loan and Cash Flow Accounts'!D52,IF('Assumptions & Relationships'!$E102=2,'Loan and Cash Flow Accounts'!D52*('Assumptions & Relationships'!$C$102+'Risk Measures'!E$8),0)) -> 0 | E12: =IF('Assumptions & Relationships'!$E102=1,'Assumptions & Relationships'!$B102*'Loan and Cash Flow Accounts'!E52,IF('Assumptions & Relationships'!$E102=2,'Loan and Cash Flow Accounts'!E52*('Assumptions & Relationships'!$C$102+'Risk Measures'!F$8),0)) -> 0 | F12: =IF('Assumptions & Relationships'!$E102=1,'Assumptions & Relationships'!$B102*'Loan and Cash Flow Accounts'!F52,IF('Assumptions & Relationships'!$E102=2,'Loan and Cash Flow Accounts'!F52*('Assumptions & Relationships'!$C$102+'Risk Measures'!G$8),0)) -> 0 | G12: =IF('Assumptions & Relationships'!$E102=1,'Assumptions & Relationships'!$B102*'Loan and Cash Flow Accounts'!G52,IF('Assumptions & Relationships'!$E102=2,'Loan and Cash Flow Accounts'!G52*('Assumptions & Relationships'!$C$102+'Risk Measures'!H$8),0)) -> 0 | H12: =IF('Assumptions & Relationships'!$E102=1,'Assumptions & Relationships'!$B102*'Loan and Cash Flow Accounts'!H52,IF('Assumptions & Relationships'!$E102=2,'Loan and Cash Flow Accounts'!H52*('Assumptions & Relationships'!$C$102+'Risk Measures'!I$8),0)) -> 0 | I12: =IF('Assumptions & Relationships'!$E102=1,'Assumptions & Relationships'!$B102*'Loan and Cash Flow Accounts'!I52,IF('Assumptions & Relationships'!$E102=2,'Loan and Cash Flow Accounts'!I52*('Assumptions & Relationships'!$C$102+'Risk Measures'!J$8),0)) -> 0 | J12: =IF('Assumptions & Relationships'!$E102=1,'Assumptions & Relationships'!$B102*'Loan and Cash Flow Accounts'!J52,IF('Assumptions & Relationships'!$E102=2,'Loan and Cash Flow Accounts'!J52*('Assumptions & Relationships'!$C$102+'Risk Measures'!K$8),0)) -> 0 | K12: =IF('Assumptions & Relationships'!$E102=1,'Assumptions & Relationships'!$B102*'Loan and Cash Flow Accounts'!K52,IF('Assumptions & Relationships'!$E102=2,'Loan and Cash Flow Accounts'!K52*('Assumptions & Relationships'!$C$102+'Risk Measures'!L$8),0)) -> 0 | L12: =IF('Assumptions & Relationships'!$E102=1,'Assumptions & Relationships'!$B102*'Loan and Cash Flow Accounts'!L52,IF('Assumptions & Relationships'!$E102=2,'Loan and Cash Flow Accounts'!L52*('Assumptions & Relationships'!$C$102+'Risk Measures'!M$8),0)) -> 0
B13: Corporate and ABS | C13: =IF('Assumptions & Relationships'!$E103=1,'Assumptions & Relationships'!$B103*'Loan and Cash Flow Accounts'!C57,IF('Assumptions & Relationships'!$E103=2,'Loan and Cash Flow Accounts'!C57*('Risk Measures'!D36+'Risk Measures'!D$8),0)) -> 0 | D13: =IF('Assumptions & Relationships'!$E103=1,'Assumptions & Relationships'!$B103*'Loan and Cash Flow Accounts'!D57,IF('Assumptions & Relationships'!$E103=2,'Loan and Cash Flow Accounts'!D57*('Risk Measures'!E36+'Risk Measures'!E$8),0)) -> 0 | E13: =IF('Assumptions & Relationships'!$E103=1,'Assumptions & Relationships'!$B103*'Loan and Cash Flow Accounts'!E57,IF('Assumptions & Relationships'!$E103=2,'Loan and Cash Flow Accounts'!E57*('Risk Measures'!F36+'Risk Measures'!F$8),0)) -> 0 | F13: =IF('Assumptions & Relationships'!$E103=1,'Assumptions & Relationships'!$B103*'Loan and Cash Flow Accounts'!F57,IF('Assumptions & Relationships'!$E103=2,'Loan and Cash Flow Accounts'!F57*('Risk Measures'!G36+'Risk Measures'!G$8),0)) -> 0 | G13: =IF('Assumptions & Relationships'!$E103=1,'Assumptions & Relationships'!$B103*'Loan and Cash Flow Accounts'!G57,IF('Assumptions & Relationships'!$E103=2,'Loan and Cash Flow Accounts'!G57*('Risk Measures'!H36+'Risk Measures'!H$8),0)) -> 0 | H13: =IF('Assumptions & Relationships'!$E103=1,'Assumptions & Relationships'!$B103*'Loan and Cash Flow Accounts'!H57,IF('Assumptions & Relationships'!$E103=2,'Loan and Cash Flow Accounts'!H57*('Risk Measures'!I36+'Risk Measures'!I$8),0)) -> 0 | I13: =IF('Assumptions & Relationships'!$E103=1,'Assumptions & Relationships'!$B103*'Loan and Cash Flow Accounts'!I57,IF('Assumptions & Relationships'!$E103=2,'Loan and Cash Flow Accounts'!I57*('Risk Measures'!J36+'Risk Measures'!J$8),0)) -> 0 | J13: =IF('Assumptions & Relationships'!$E103=1,'Assumptions & Relationships'!$B103*'Loan and Cash Flow Accounts'!J57,IF('Assumptions & Relationships'!$E103=2,'Loan and Cash Flow Accounts'!J57*('Risk Measures'!K36+'Risk Measures'!K$8),0)) -> 0 | K13: =IF('Assumptions & Relationships'!$E103=1,'Assumptions & Relationships'!$B103*'Loan and Cash Flow Accounts'!K57,IF('Assumptions & Relationships'!$E103=2,'Loan and Cash Flow Accounts'!K57*('Risk Measures'!L36+'Risk Measures'!L$8),0)) -> 0 | L13: =IF('Assumptions & Relationships'!$E103=1,'Assumptions & Relationships'!$B103*'Loan and Cash Flow Accounts'!L57,IF('Assumptions & Relationships'!$E103=2,'Loan and Cash Flow Accounts'!L57*('Risk Measures'!M36+'Risk Measures'!M$8),0)) -> 0
B14: Agency Mortgage-Backed and CMOs | C14: =IF('Assumptions & Relationships'!$E104=1,'Assumptions & Relationships'!$B104*'Loan and Cash Flow Accounts'!C62,IF('Assumptions & Relationships'!$E104=2,'Loan and Cash Flow Accounts'!C62*('Risk Measures'!D37+'Risk Measures'!D$8),0)) -> 0 | D14: =IF('Assumptions & Relationships'!$E104=1,'Assumptions & Relationships'!$B104*'Loan and Cash Flow Accounts'!D62,IF('Assumptions & Relationships'!$E104=2,'Loan and Cash Flow Accounts'!D62*('Risk Measures'!E37+'Risk Measures'!E$8),0)) -> 0 | E14: =IF('Assumptions & Relationships'!$E104=1,'Assumptions & Relationships'!$B104*'Loan and Cash Flow Accounts'!E62,IF('Assumptions & Relationships'!$E104=2,'Loan and Cash Flow Accounts'!E62*('Risk Measures'!F37+'Risk Measures'!F$8),0)) -> 0 | F14: =IF('Assumptions & Relationships'!$E104=1,'Assumptions & Relationships'!$B104*'Loan and Cash Flow Accounts'!F62,IF('Assumptions & Relationships'!$E104=2,'Loan and Cash Flow Accounts'!F62*('Risk Measures'!G37+'Risk Measures'!G$8),0)) -> 0 | G14: =IF('Assumptions & Relationships'!$E104=1,'Assumptions & Relationships'!$B104*'Loan and Cash Flow Accounts'!G62,IF('Assumptions & Relationships'!$E104=2,'Loan and Cash Flow Accounts'!G62*('Risk Measures'!H37+'Risk Measures'!H$8),0)) -> 0 | H14: =IF('Assumptions & Relationships'!$E104=1,'Assumptions & Relationships'!$B104*'Loan and Cash Flow Accounts'!H62,IF('Assumptions & Relationships'!$E104=2,'Loan and Cash Flow Accounts'!H62*('Risk Measures'!I37+'Risk Measures'!I$8),0)) -> 0 | I14: =IF('Assumptions & Relationships'!$E104=1,'Assumptions & Relationships'!$B104*'Loan and Cash Flow Accounts'!I62,IF('Assumptions & Relationships'!$E104=2,'Loan and Cash Flow Accounts'!I62*('Risk Measures'!J37+'Risk Measures'!J$8),0)) -> 0 | J14: =IF('Assumptions & Relationships'!$E104=1,'Assumptions & Relationships'!$B104*'Loan and Cash Flow Accounts'!J62,IF('Assumptions & Relationships'!$E104=2,'Loan and Cash Flow Accounts'!J62*('Risk Measures'!K37+'Risk Measures'!K$8),0)) -> 0 | K14: =IF('Assumptions & Relationships'!$E104=1,'Assumptions & Relationships'!$B104*'Loan and Cash Flow Accounts'!K62,IF('Assumptions & Relationships'!$E104=2,'Loan and Cash Flow Accounts'!K62*('Risk Measures'!L37+'Risk Measures'!L$8),0)) -> 0 | L14: =IF('Assumptions & Relationships'!$E104=1,'Assumptions & Relationships'!$B104*'Loan and Cash Flow Accounts'!L62,IF('Assumptions & Relationships'!$E104=2,'Loan and Cash Flow Accounts'!L62*('Risk Measures'!M37+'Risk Measures'!M$8),0)) -> 0
B15: Other Investments | C15: =IF('Assumptions & Relationships'!$E105=1,'Assumptions & Relationships'!$B105*'Loan and Cash Flow Accounts'!C67,IF('Assumptions & Relationships'!$E105=2,'Loan and Cash Flow Accounts'!C67*('Risk Measures'!D38+'Risk Measures'!D$8),0)) -> 0 | D15: =IF('Assumptions & Relationships'!$E105=1,'Assumptions & Relationships'!$B105*'Loan and Cash Flow Accounts'!D67,IF('Assumptions & Relationships'!$E105=2,'Loan and Cash Flow Accounts'!D67*('Risk Measures'!E38+'Risk Measures'!E$8),0)) -> 0 | E15: =IF('Assumptions & Relationships'!$E105=1,'Assumptions & Relationships'!$B105*'Loan and Cash Flow Accounts'!E67,IF('Assumptions & Relationships'!$E105=2,'Loan and Cash Flow Accounts'!E67*('Risk Measures'!F38+'Risk Measures'!F$8),0)) -> 0 | F15: =IF('Assumptions & Relationships'!$E105=1,'Assumptions & Relationships'!$B105*'Loan and Cash Flow Accounts'!F67,IF('Assumptions & Relationships'!$E105=2,'Loan and Cash Flow Accounts'!F67*('Risk Measures'!G38+'Risk Measures'!G$8),0)) -> 0 | G15: =IF('Assumptions & Relationships'!$E105=1,'Assumptions & Relationships'!$B105*'Loan and Cash Flow Accounts'!G67,IF('Assumptions & Relationships'!$E105=2,'Loan and Cash Flow Accounts'!G67*('Risk Measures'!H38+'Risk Measures'!H$8),0)) -> 0 | H15: =IF('Assumptions & Relationships'!$E105=1,'Assumptions & Relationships'!$B105*'Loan and Cash Flow Accounts'!H67,IF('Assumptions & Relationships'!$E105=2,'Loan and Cash Flow Accounts'!H67*('Risk Measures'!I38+'Risk Measures'!I$8),0)) -> 0 | I15: =IF('Assumptions & Relationships'!$E105=1,'Assumptions & Relationships'!$B105*'Loan and Cash Flow Accounts'!I67,IF('Assumptions & Relationships'!$E105=2,'Loan and Cash Flow Accounts'!I67*('Risk Measures'!J38+'Risk Measures'!J$8),0)) -> 0 | J15: =IF('Assumptions & Relationships'!$E105=1,'Assumptions & Relationships'!$B105*'Loan and Cash Flow Accounts'!J67,IF('Assumptions & Relationships'!$E105=2,'Loan and Cash Flow Accounts'!J67*('Risk Measures'!K38+'Risk Measures'!K$8),0)) -> 0 | K15: =IF('Assumptions & Relationships'!$E105=1,'Assumptions & Relationships'!$B105*'Loan and Cash Flow Accounts'!K67,IF('Assumptions & Relationships'!$E105=2,'Loan and Cash Flow Accounts'!K67*('Risk Measures'!L38+'Risk Measures'!L$8),0)) -> 0 | L15: =IF('Assumptions & Relationships'!$E105=1,'Assumptions & Relationships'!$B105*'Loan and Cash Flow Accounts'!L67,IF('Assumptions & Relationships'!$E105=2,'Loan and Cash Flow Accounts'!L67*('Risk Measures'!M38+'Risk Measures'!M$8),0)) -> 0
A19: Loan assets | B19: FAMC I - Post 1996 Loans | C19: =IF('Assumptions & Relationships'!$E107=1,'Assumptions & Relationships'!$B107*'Loan and Cash Flow Accounts'!C73,IF('Assumptions & Relationships'!$E107=2,'Loan and Cash Flow Accounts'!C73*('Assumptions & Relationships'!$C$107+'Risk Measures'!D$8),0)) -> 0 | D19: =IF('Assumptions & Relationships'!$E107=1,'Assumptions & Relationships'!$B107*'Loan and Cash Flow Accounts'!D73,IF('Assumptions & Relationships'!$E107=2,'Loan and Cash Flow Accounts'!D73*('Assumptions & Relationships'!$C$107+'Risk Measures'!E$8),0)) -> 0 | E19: =IF('Assumptions & Relationships'!$E107=1,'Assumptions & Relationships'!$B107*'Loan and Cash Flow Accounts'!E73,IF('Assumptions & Relationships'!$E107=2,'Loan and Cash Flow Accounts'!E73*('Assumptions & Relationships'!$C$107+'Risk Measures'!F$8),0)) -> 0 | F19: =IF('Assumptions & Relationships'!$E107=1,'Assumptions & Relationships'!$B107*'Loan and Cash Flow Accounts'!F73,IF('Assumptions & Relationships'!$E107=2,'Loan and Cash Flow Accounts'!F73*('Assumptions & Relationships'!$C$107+'Risk Measures'!G$8),0)) -> 0 | G19: =IF('Assumptions & Relationships'!$E107=1,'Assumptions & Relationships'!$B107*'Loan and Cash Flow Accounts'!G73,IF('Assumptions & Relationships'!$E107=2,'Loan and Cash Flow Accounts'!G73*('Assumptions & Relationships'!$C$107+'Risk Measures'!H$8),0)) -> 0 | H19: =IF('Assumptions & Relationships'!$E107=1,'Assumptions & Relationships'!$B107*'Loan and Cash Flow Accounts'!H73,IF('Assumptions & Relationships'!$E107=2,'Loan and Cash Flow Accounts'!H73*('Assumptions & Relationships'!$C$107+'Risk Measures'!I$8),0)) -> 0 | I19: =IF('Assumptions & Relationships'!$E107=1,'Assumptions & Relationships'!$B107*'Loan and Cash Flow Accounts'!I73,IF('Assumptions & Relationships'!$E107=2,'Loan and Cash Flow Accounts'!I73*('Assumptions & Relationships'!$C$107+'Risk Measures'!J$8),0)) -> 0 | J19: =IF('Assumptions & Relationships'!$E107=1,'Assumptions & Relationships'!$B107*'Loan and Cash Flow Accounts'!J73,IF('Assumptions & Relationships'!$E107=2,'Loan and Cash Flow Accounts'!J73*('Assumptions & Relationships'!$C$107+'Risk Measures'!K$8),0)) -> 0 | K19: =IF('Assumptions & Relationships'!$E107=1,'Assumptions & Relationships'!$B107*'Loan and Cash Flow Accounts'!K73,IF('Assumptions & Relationships'!$E107=2,'Loan and Cash Flow Accounts'!K73*('Assumptions & Relationships'!$C$107+'Risk Measures'!L$8),0)) -> 0 | L19: =IF('Assumptions & Relationships'!$E107=1,'Assumptions & Relationships'!$B107*'Loan and Cash Flow Accounts'!L73,IF('Assumptions & Relationships'!$E107=2,'Loan and Cash Flow Accounts'!L73*('Assumptions & Relationships'!$C$107+'Risk Measures'!M$8),0)) -> 0
B20: FAMC I - Post 1996 Swap | C20: =IF('Assumptions & Relationships'!$E108=1,'Assumptions & Relationships'!$B108*'Loan and Cash Flow Accounts'!C78,IF('Assumptions & Relationships'!$E108=2,'Loan and Cash Flow Accounts'!C78*('Assumptions & Relationships'!$C$108+'Risk Measures'!D$8),0)) ->  | D20: =IF('Assumptions & Relationships'!$E108=1,'Assumptions & Relationships'!$B108*'Loan and Cash Flow Accounts'!D78,IF('Assumptions & Relationships'!$E108=2,'Loan and Cash Flow Accounts'!D78*('Assumptions & Relationships'!$C$108+'Risk Measures'!E$8),0)) ->  | E20: =IF('Assumptions & Relationships'!$E108=1,'Assumptions & Relationships'!$B108*'Loan and Cash Flow Accounts'!E78,IF('Assumptions & Relationships'!$E108=2,'Loan and Cash Flow Accounts'!E78*('Assumptions & Relationships'!$C$108+'Risk Measures'!F$8),0)) ->  | F20: =IF('Assumptions & Relationships'!$E108=1,'Assumptions & Relationships'!$B108*'Loan and Cash Flow Accounts'!F78,IF('Assumptions & Relationships'!$E108=2,'Loan and Cash Flow Accounts'!F78*('Assumptions & Relationships'!$C$108+'Risk Measures'!G$8),0)) ->  | G20: =IF('Assumptions & Relationships'!$E108=1,'Assumptions & Relationships'!$B108*'Loan and Cash Flow Accounts'!G78,IF('Assumptions & Relationships'!$E108=2,'Loan and Cash Flow Accounts'!G78*('Assumptions & Relationships'!$C$108+'Risk Measures'!H$8),0)) ->  | H20: =IF('Assumptions & Relationships'!$E108=1,'Assumptions & Relationships'!$B108*'Loan and Cash Flow Accounts'!H78,IF('Assumptions & Relationships'!$E108=2,'Loan and Cash Flow Accounts'!H78*('Assumptions & Relationships'!$C$108+'Risk Measures'!I$8),0)) ->  | I20: =IF('Assumptions & Relationships'!$E108=1,'Assumptions & Relationships'!$B108*'Loan and Cash Flow Accounts'!I78,IF('Assumptions & Relationships'!$E108=2,'Loan and Cash Flow Accounts'!I78*('Assumptions & Relationships'!$C$108+'Risk Measures'!J$8),0)) ->  | J20: =IF('Assumptions & Relationships'!$E108=1,'Assumptions & Relationships'!$B108*'Loan and Cash Flow Accounts'!J78,IF('Assumptions & Relationships'!$E108=2,'Loan and Cash Flow Accounts'!J78*('Assumptions & Relationships'!$C$108+'Risk Measures'!K$8),0)) ->  | K20: =IF('Assumptions & Relationships'!$E108=1,'Assumptions & Relationships'!$B108*'Loan and Cash Flow Accounts'!K78,IF('Assumptions & Relationships'!$E108=2,'Loan and Cash Flow Accounts'!K78*('Assumptions & Relationships'!$C$108+'Risk Measures'!L$8),0)) ->  | L20: =IF('Assumptions & Relationships'!$E108=1,'Assumptions & Relationships'!$B108*'Loan and Cash Flow Accounts'!L78,IF('Assumptions & Relationships'!$E108=2,'Loan and Cash Flow Accounts'!L78*('Assumptions & Relationships'!$C$108+'Risk Measures'!M$8),0)) -> 
B21: FAMC I - Pre 1996 Loans | C21: =IF('Assumptions & Relationships'!$E109=1,'Assumptions & Relationships'!$B109*'Loan and Cash Flow Accounts'!C83,IF('Assumptions & Relationships'!$E109=2,'Loan and Cash Flow Accounts'!C83*('Assumptions & Relationships'!$C$109+'Risk Measures'!D$8),0)) -> 0 | D21: =IF('Assumptions & Relationships'!$E109=1,'Assumptions & Relationships'!$B109*'Loan and Cash Flow Accounts'!D83,IF('Assumptions & Relationships'!$E109=2,'Loan and Cash Flow Accounts'!D83*('Assumptions & Relationships'!$C$109+'Risk Measures'!E$8),0)) -> 0 | E21: =IF('Assumptions & Relationships'!$E109=1,'Assumptions & Relationships'!$B109*'Loan and Cash Flow Accounts'!E83,IF('Assumptions & Relationships'!$E109=2,'Loan and Cash Flow Accounts'!E83*('Assumptions & Relationships'!$C$109+'Risk Measures'!F$8),0)) -> 0 | F21: =IF('Assumptions & Relationships'!$E109=1,'Assumptions & Relationships'!$B109*'Loan and Cash Flow Accounts'!F83,IF('Assumptions & Relationships'!$E109=2,'Loan and Cash Flow Accounts'!F83*('Assumptions & Relationships'!$C$109+'Risk Measures'!G$8),0)) -> 0 | G21: =IF('Assumptions & Relationships'!$E109=1,'Assumptions & Relationships'!$B109*'Loan and Cash Flow Accounts'!G83,IF('Assumptions & Relationships'!$E109=2,'Loan and Cash Flow Accounts'!G83*('Assumptions & Relationships'!$C$109+'Risk Measures'!H$8),0)) -> 0 | H21: =IF('Assumptions & Relationships'!$E109=1,'Assumptions & Relationships'!$B109*'Loan and Cash Flow Accounts'!H83,IF('Assumptions & Relationships'!$E109=2,'Loan and Cash Flow Accounts'!H83*('Assumptions & Relationships'!$C$109+'Risk Measures'!I$8),0)) -> 0 | I21: =IF('Assumptions & Relationships'!$E109=1,'Assumptions & Relationships'!$B109*'Loan and Cash Flow Accounts'!I83,IF('Assumptions & Relationships'!$E109=2,'Loan and Cash Flow Accounts'!I83*('Assumptions & Relationships'!$C$109+'Risk Measures'!J$8),0)) -> 0 | J21: =IF('Assumptions & Relationships'!$E109=1,'Assumptions & Relationships'!$B109*'Loan and Cash Flow Accounts'!J83,IF('Assumptions & Relationships'!$E109=2,'Loan and Cash Flow Accounts'!J83*('Assumptions & Relationships'!$C$109+'Risk Measures'!K$8),0)) -> 0 | K21: =IF('Assumptions & Relationships'!$E109=1,'Assumptions & Relationships'!$B109*'Loan and Cash Flow Accounts'!K83,IF('Assumptions & Relationships'!$E109=2,'Loan and Cash Flow Accounts'!K83*('Assumptions & Relationships'!$C$109+'Risk Measures'!L$8),0)) -> 0 | L21: =IF('Assumptions & Relationships'!$E109=1,'Assumptions & Relationships'!$B109*'Loan and Cash Flow Accounts'!L83,IF('Assumptions & Relationships'!$E109=2,'Loan and Cash Flow Accounts'!L83*('Assumptions & Relationships'!$C$109+'Risk Measures'!M$8),0)) -> 0
B22: FAMC I - AgVantage | C22: =IF('Assumptions & Relationships'!$E110=1,'Assumptions & Relationships'!$B110*'Loan and Cash Flow Accounts'!C87,IF('Assumptions & Relationships'!$E110=2,'Loan and Cash Flow Accounts'!C87*('Risk Measures'!D39+'Risk Measures'!D$8),0)) -> 0 | D22: =IF('Assumptions & Relationships'!$E110=1,'Assumptions & Relationships'!$B110*'Loan and Cash Flow Accounts'!D87,IF('Assumptions & Relationships'!$E110=2,'Loan and Cash Flow Accounts'!D87*('Risk Measures'!E39+'Risk Measures'!E$8),0)) -> 0 | E22: =IF('Assumptions & Relationships'!$E110=1,'Assumptions & Relationships'!$B110*'Loan and Cash Flow Accounts'!E87,IF('Assumptions & Relationships'!$E110=2,'Loan and Cash Flow Accounts'!E87*('Risk Measures'!F39+'Risk Measures'!F$8),0)) -> 0 | F22: =IF('Assumptions & Relationships'!$E110=1,'Assumptions & Relationships'!$B110*'Loan and Cash Flow Accounts'!F87,IF('Assumptions & Relationships'!$E110=2,'Loan and Cash Flow Accounts'!F87*('Risk Measures'!G39+'Risk Measures'!G$8),0)) -> 0 | G22: =IF('Assumptions & Relationships'!$E110=1,'Assumptions & Relationships'!$B110*'Loan and Cash Flow Accounts'!G87,IF('Assumptions & Relationships'!$E110=2,'Loan and Cash Flow Accounts'!G87*('Risk Measures'!H39+'Risk Measures'!H$8),0)) -> 0 | H22: =IF('Assumptions & Relationships'!$E110=1,'Assumptions & Relationships'!$B110*'Loan and Cash Flow Accounts'!H87,IF('Assumptions & Relationships'!$E110=2,'Loan and Cash Flow Accounts'!H87*('Risk Measures'!I39+'Risk Measures'!I$8),0)) -> 0 | I22: =IF('Assumptions & Relationships'!$E110=1,'Assumptions & Relationships'!$B110*'Loan and Cash Flow Accounts'!I87,IF('Assumptions & Relationships'!$E110=2,'Loan and Cash Flow Accounts'!I87*('Risk Measures'!J39+'Risk Measures'!J$8),0)) -> 0 | J22: =IF('Assumptions & Relationships'!$E110=1,'Assumptions & Relationships'!$B110*'Loan and Cash Flow Accounts'!J87,IF('Assumptions & Relationships'!$E110=2,'Loan and Cash Flow Accounts'!J87*('Risk Measures'!K39+'Risk Measures'!K$8),0)) -> 0 | K22: =IF('Assumptions & Relationships'!$E110=1,'Assumptions & Relationships'!$B110*'Loan and Cash Flow Accounts'!K87,IF('Assumptions & Relationships'!$E110=2,'Loan and Cash Flow Accounts'!K87*('Risk Measures'!L39+'Risk Measures'!L$8),0)) -> 0 | L22: =IF('Assumptions & Relationships'!$E110=1,'Assumptions & Relationships'!$B110*'Loan and Cash Flow Accounts'!L87,IF('Assumptions & Relationships'!$E110=2,'Loan and Cash Flow Accounts'!L87*('Risk Measures'!M39+'Risk Measures'!M$8),0)) -> 0
B23: Loans Held for Securitization | C23: =IF('Assumptions & Relationships'!$E111=1,'Assumptions & Relationships'!$B111*'Loan and Cash Flow Accounts'!C92,IF('Assumptions & Relationships'!$E111=2,'Loan and Cash Flow Accounts'!C92*('Assumptions & Relationships'!$C$111+'Risk Measures'!D$8),0)) -> 0 | D23: =IF('Assumptions & Relationships'!$E111=1,'Assumptions & Relationships'!$B111*'Loan and Cash Flow Accounts'!D92,IF('Assumptions & Relationships'!$E111=2,'Loan and Cash Flow Accounts'!D92*('Assumptions & Relationships'!$C$111+'Risk Measures'!E$8),0)) -> 0 | E23: =IF('Assumptions & Relationships'!$E111=1,'Assumptions & Relationships'!$B111*'Loan and Cash Flow Accounts'!E92,IF('Assumptions & Relationships'!$E111=2,'Loan and Cash Flow Accounts'!E92*('Assumptions & Relationships'!$C$111+'Risk Measures'!F$8),0)) -> 0 | F23: =IF('Assumptions & Relationships'!$E111=1,'Assumptions & Relationships'!$B111*'Loan and Cash Flow Accounts'!F92,IF('Assumptions & Relationships'!$E111=2,'Loan and Cash Flow Accounts'!F92*('Assumptions & Relationships'!$C$111+'Risk Measures'!G$8),0)) -> 0 | G23: =IF('Assumptions & Relationships'!$E111=1,'Assumptions & Relationships'!$B111*'Loan and Cash Flow Accounts'!G92,IF('Assumptions & Relationships'!$E111=2,'Loan and Cash Flow Accounts'!G92*('Assumptions & Relationships'!$C$111+'Risk Measures'!H$8),0)) -> 0 | H23: =IF('Assumptions & Relationships'!$E111=1,'Assumptions & Relationships'!$B111*'Loan and Cash Flow Accounts'!H92,IF('Assumptions & Relationships'!$E111=2,'Loan and Cash Flow Accounts'!H92*('Assumptions & Relationships'!$C$111+'Risk Measures'!I$8),0)) -> 0 | I23: =IF('Assumptions & Relationships'!$E111=1,'Assumptions & Relationships'!$B111*'Loan and Cash Flow Accounts'!I92,IF('Assumptions & Relationships'!$E111=2,'Loan and Cash Flow Accounts'!I92*('Assumptions & Relationships'!$C$111+'Risk Measures'!J$8),0)) -> 0 | J23: =IF('Assumptions & Relationships'!$E111=1,'Assumptions & Relationships'!$B111*'Loan and Cash Flow Accounts'!J92,IF('Assumptions & Relationships'!$E111=2,'Loan and Cash Flow Accounts'!J92*('Assumptions & Relationships'!$C$111+'Risk Measures'!K$8),0)) -> 0 | K23: =IF('Assumptions & Relationships'!$E111=1,'Assumptions & Relationships'!$B111*'Loan and Cash Flow Accounts'!K92,IF('Assumptions & Relationships'!$E111=2,'Loan and Cash Flow Accounts'!K92*('Assumptions & Relationships'!$C$111+'Risk Measures'!L$8),0)) -> 0 | L23: =IF('Assumptions & Relationships'!$E111=1,'Assumptions & Relationships'!$B111*'Loan and Cash Flow Accounts'!L92,IF('Assumptions & Relationships'!$E111=2,'Loan and Cash Flow Accounts'!L92*('Assumptions & Relationships'!$C$111+'Risk Measures'!M$8),0)) -> 0
B24: FAMC II Loans | C24: =IF('Assumptions & Relationships'!$E112=1,'Assumptions & Relationships'!$B112*'Loan and Cash Flow Accounts'!C97,IF('Assumptions & Relationships'!$E112=2,'Loan and Cash Flow Accounts'!C97*('Assumptions & Relationships'!$C$112+'Risk Measures'!D$8),0)) -> 0 | D24: =IF('Assumptions & Relationships'!$E112=1,'Assumptions & Relationships'!$B112*'Loan and Cash Flow Accounts'!D97,IF('Assumptions & Relationships'!$E112=2,'Loan and Cash Flow Accounts'!D97*('Assumptions & Relationships'!$C$112+'Risk Measures'!E$8),0)) -> 0 | E24: =IF('Assumptions & Relationships'!$E112=1,'Assumptions & Relationships'!$B112*'Loan and Cash Flow Accounts'!E97,IF('Assumptions & Relationships'!$E112=2,'Loan and Cash Flow Accounts'!E97*('Assumptions & Relationships'!$C$112+'Risk Measures'!F$8),0)) -> 0 | F24: =IF('Assumptions & Relationships'!$E112=1,'Assumptions & Relationships'!$B112*'Loan and Cash Flow Accounts'!F97,IF('Assumptions & Relationships'!$E112=2,'Loan and Cash Flow Accounts'!F97*('Assumptions & Relationships'!$C$112+'Risk Measures'!G$8),0)) -> 0 | G24: =IF('Assumptions & Relationships'!$E112=1,'Assumptions & Relationships'!$B112*'Loan and Cash Flow Accounts'!G97,IF('Assumptions & Relationships'!$E112=2,'Loan and Cash Flow Accounts'!G97*('Assumptions & Relationships'!$C$112+'Risk Measures'!H$8),0)) -> 0 | H24: =IF('Assumptions & Relationships'!$E112=1,'Assumptions & Relationships'!$B112*'Loan and Cash Flow Accounts'!H97,IF('Assumptions & Relationships'!$E112=2,'Loan and Cash Flow Accounts'!H97*('Assumptions & Relationships'!$C$112+'Risk Measures'!I$8),0)) -> 0 | I24: =IF('Assumptions & Relationships'!$E112=1,'Assumptions & Relationships'!$B112*'Loan and Cash Flow Accounts'!I97,IF('Assumptions & Relationships'!$E112=2,'Loan and Cash Flow Accounts'!I97*('Assumptions & Relationships'!$C$112+'Risk Measures'!J$8),0)) -> 0 | J24: =IF('Assumptions & Relationships'!$E112=1,'Assumptions & Relationships'!$B112*'Loan and Cash Flow Accounts'!J97,IF('Assumptions & Relationships'!$E112=2,'Loan and Cash Flow Accounts'!J97*('Assumptions & Relationships'!$C$112+'Risk Measures'!K$8),0)) -> 0 | K24: =IF('Assumptions & Relationships'!$E112=1,'Assumptions & Relationships'!$B112*'Loan and Cash Flow Accounts'!K97,IF('Assumptions & Relationships'!$E112=2,'Loan and Cash Flow Accounts'!K97*('Assumptions & Relationships'!$C$112+'Risk Measures'!L$8),0)) -> 0 | L24: =IF('Assumptions & Relationships'!$E112=1,'Assumptions & Relationships'!$B112*'Loan and Cash Flow Accounts'!L97,IF('Assumptions & Relationships'!$E112=2,'Loan and Cash Flow Accounts'!L97*('Assumptions & Relationships'!$C$112+'Risk Measures'!M$8),0)) -> 0
B25: ='Risk Measures'!A177 -> ON BS RU "Whole Loans" | C25: =IF('Assumptions & Relationships'!$E113=1,'Assumptions & Relationships'!$B113*'Loan and Cash Flow Accounts'!C109,IF('Assumptions & Relationships'!$E113=2,'Loan and Cash Flow Accounts'!C109*('Assumptions & Relationships'!$C$113+'Risk Measures'!D$8),0)) -> 0 | D25: =IF('Assumptions & Relationships'!$E113=1,'Assumptions & Relationships'!$B113*'Loan and Cash Flow Accounts'!D109,IF('Assumptions & Relationships'!$E113=2,'Loan and Cash Flow Accounts'!D109*('Assumptions & Relationships'!$C$113+'Risk Measures'!E$8),0)) -> 0 | E25: =IF('Assumptions & Relationships'!$E113=1,'Assumptions & Relationships'!$B113*'Loan and Cash Flow Accounts'!E109,IF('Assumptions & Relationships'!$E113=2,'Loan and Cash Flow Accounts'!E109*('Assumptions & Relationships'!$C$113+'Risk Measures'!F$8),0)) -> 0 | F25: =IF('Assumptions & Relationships'!$E113=1,'Assumptions & Relationships'!$B113*'Loan and Cash Flow Accounts'!F109,IF('Assumptions & Relationships'!$E113=2,'Loan and Cash Flow Accounts'!F109*('Assumptions & Relationships'!$C$113+'Risk Measures'!G$8),0)) -> 0 | G25: =IF('Assumptions & Relationships'!$E113=1,'Assumptions & Relationships'!$B113*'Loan and Cash Flow Accounts'!G109,IF('Assumptions & Relationships'!$E113=2,'Loan and Cash Flow Accounts'!G109*('Assumptions & Relationships'!$C$113+'Risk Measures'!H$8),0)) -> 0 | H25: =IF('Assumptions & Relationships'!$E113=1,'Assumptions & Relationships'!$B113*'Loan and Cash Flow Accounts'!H109,IF('Assumptions & Relationships'!$E113=2,'Loan and Cash Flow Accounts'!H109*('Assumptions & Relationships'!$C$113+'Risk Measures'!I$8),0)) -> 0 | I25: =IF('Assumptions & Relationships'!$E113=1,'Assumptions & Relationships'!$B113*'Loan and Cash Flow Accounts'!I109,IF('Assumptions & Relationships'!$E113=2,'Loan and Cash Flow Accounts'!I109*('Assumptions & Relationships'!$C$113+'Risk Measures'!J$8),0)) -> 0 | J25: =IF('Assumptions & Relationships'!$E113=1,'Assumptions & Relationships'!$B113*'Loan and Cash Flow Accounts'!J109,IF('Assumptions & Relationships'!$E113=2,'Loan and Cash Flow Accounts'!J109*('Assumptions & Relationships'!$C$113+'Risk Measures'!K$8),0)) -> 0 | K25: =IF('Assumptions & Relationships'!$E113=1,'Assumptions & Relationships'!$B113*'Loan and Cash Flow Accounts'!K109,IF('Assumptions & Relationships'!$E113=2,'Loan and Cash Flow Accounts'!K109*('Assumptions & Relationships'!$C$113+'Risk Measures'!L$8),0)) -> 0 | L25: =IF('Assumptions & Relationships'!$E113=1,'Assumptions & Relationships'!$B113*'Loan and Cash Flow Accounts'!L109,IF('Assumptions & Relationships'!$E113=2,'Loan and Cash Flow Accounts'!L109*('Assumptions & Relationships'!$C$113+'Risk Measures'!M$8),0)) -> 0
B26: ='Risk Measures'!A178 -> ON Balance Sheet RU (AVP 5 from CLM) structures | C26: =IF('Assumptions & Relationships'!$E114=1,'Assumptions & Relationships'!$B114*'Loan and Cash Flow Accounts'!C115,(IF('Assumptions & Relationships'!$E114=2,'Loan and Cash Flow Accounts'!C115*('Assumptions & Relationships'!$C$114+'Risk Measures'!D$8),0))) -> 0 | D26: =IF('Assumptions & Relationships'!$E114=1,'Assumptions & Relationships'!$B114*'Loan and Cash Flow Accounts'!D115,(IF('Assumptions & Relationships'!$E114=2,'Loan and Cash Flow Accounts'!D115*('Assumptions & Relationships'!$C$114+'Risk Measures'!E$8),0))) -> 0 | E26: =IF('Assumptions & Relationships'!$E114=1,'Assumptions & Relationships'!$B114*'Loan and Cash Flow Accounts'!E115,(IF('Assumptions & Relationships'!$E114=2,'Loan and Cash Flow Accounts'!E115*('Assumptions & Relationships'!$C$114+'Risk Measures'!F$8),0))) -> 0 | F26: =IF('Assumptions & Relationships'!$E114=1,'Assumptions & Relationships'!$B114*'Loan and Cash Flow Accounts'!F115,(IF('Assumptions & Relationships'!$E114=2,'Loan and Cash Flow Accounts'!F115*('Assumptions & Relationships'!$C$114+'Risk Measures'!G$8),0))) -> 0 | G26: =IF('Assumptions & Relationships'!$E114=1,'Assumptions & Relationships'!$B114*'Loan and Cash Flow Accounts'!G115,(IF('Assumptions & Relationships'!$E114=2,'Loan and Cash Flow Accounts'!G115*('Assumptions & Relationships'!$C$114+'Risk Measures'!H$8),0))) -> 0 | H26: =IF('Assumptions & Relationships'!$E114=1,'Assumptions & Relationships'!$B114*'Loan and Cash Flow Accounts'!H115,(IF('Assumptions & Relationships'!$E114=2,'Loan and Cash Flow Accounts'!H115*('Assumptions & Relationships'!$C$114+'Risk Measures'!I$8),0))) -> 0 | I26: =IF('Assumptions & Relationships'!$E114=1,'Assumptions & Relationships'!$B114*'Loan and Cash Flow Accounts'!I115,(IF('Assumptions & Relationships'!$E114=2,'Loan and Cash Flow Accounts'!I115*('Assumptions & Relationships'!$C$114+'Risk Measures'!J$8),0))) -> 0 | J26: =IF('Assumptions & Relationships'!$E114=1,'Assumptions & Relationships'!$B114*'Loan and Cash Flow Accounts'!J115,(IF('Assumptions & Relationships'!$E114=2,'Loan and Cash Flow Accounts'!J115*('Assumptions & Relationships'!$C$114+'Risk Measures'!K$8),0))) -> 0 | K26: =IF('Assumptions & Relationships'!$E114=1,'Assumptions & Relationships'!$B114*'Loan and Cash Flow Accounts'!K115,(IF('Assumptions & Relationships'!$E114=2,'Loan and Cash Flow Accounts'!K115*('Assumptions & Relationships'!$C$114+'Risk Measures'!L$8),0))) -> 0 | L26: =IF('Assumptions & Relationships'!$E114=1,'Assumptions & Relationships'!$B114*'Loan and Cash Flow Accounts'!L115,(IF('Assumptions & Relationships'!$E114=2,'Loan and Cash Flow Accounts'!L115*('Assumptions & Relationships'!$C$114+'Risk Measures'!M$8),0))) -> 0
B27: ='Risk Measures'!A179 -> ON BS RU ABS Structures (legacy) | C27: =IF('Assumptions & Relationships'!$E115=1,'Assumptions & Relationships'!$B115*'Loan and Cash Flow Accounts'!C122,(IF('Assumptions & Relationships'!$E115=2,'Loan and Cash Flow Accounts'!C122*('Assumptions & Relationships'!$C$115+'Risk Measures'!D$8),0))) -> 0 | D27: =IF('Assumptions & Relationships'!$E115=1,'Assumptions & Relationships'!$B115*'Loan and Cash Flow Accounts'!D122,(IF('Assumptions & Relationships'!$E115=2,'Loan and Cash Flow Accounts'!D122*('Assumptions & Relationships'!$C$115+'Risk Measures'!E$8),0))) -> 0 | E27: =IF('Assumptions & Relationships'!$E115=1,'Assumptions & Relationships'!$B115*'Loan and Cash Flow Accounts'!E122,(IF('Assumptions & Relationships'!$E115=2,'Loan and Cash Flow Accounts'!E122*('Assumptions & Relationships'!$C$115+'Risk Measures'!F$8),0))) -> 0 | F27: =IF('Assumptions & Relationships'!$E115=1,'Assumptions & Relationships'!$B115*'Loan and Cash Flow Accounts'!F122,(IF('Assumptions & Relationships'!$E115=2,'Loan and Cash Flow Accounts'!F122*('Assumptions & Relationships'!$C$115+'Risk Measures'!G$8),0))) -> 0 | G27: =IF('Assumptions & Relationships'!$E115=1,'Assumptions & Relationships'!$B115*'Loan and Cash Flow Accounts'!G122,(IF('Assumptions & Relationships'!$E115=2,'Loan and Cash Flow Accounts'!G122*('Assumptions & Relationships'!$C$115+'Risk Measures'!H$8),0))) -> 0 | H27: =IF('Assumptions & Relationships'!$E115=1,'Assumptions & Relationships'!$B115*'Loan and Cash Flow Accounts'!H122,(IF('Assumptions & Relationships'!$E115=2,'Loan and Cash Flow Accounts'!H122*('Assumptions & Relationships'!$C$115+'Risk Measures'!I$8),0))) -> 0 | I27: =IF('Assumptions & Relationships'!$E115=1,'Assumptions & Relationships'!$B115*'Loan and Cash Flow Accounts'!I122,(IF('Assumptions & Relationships'!$E115=2,'Loan and Cash Flow Accounts'!I122*('Assumptions & Relationships'!$C$115+'Risk Measures'!J$8),0))) -> 0 | J27: =IF('Assumptions & Relationships'!$E115=1,'Assumptions & Relationships'!$B115*'Loan and Cash Flow Accounts'!J122,(IF('Assumptions & Relationships'!$E115=2,'Loan and Cash Flow Accounts'!J122*('Assumptions & Relationships'!$C$115+'Risk Measures'!K$8),0))) -> 0 | K27: =IF('Assumptions & Relationships'!$E115=1,'Assumptions & Relationships'!$B115*'Loan and Cash Flow Accounts'!K122,(IF('Assumptions & Relationships'!$E115=2,'Loan and Cash Flow Accounts'!K122*('Assumptions & Relationships'!$C$115+'Risk Measures'!L$8),0))) -> 0 | L27: =IF('Assumptions & Relationships'!$E115=1,'Assumptions & Relationships'!$B115*'Loan and Cash Flow Accounts'!L122,(IF('Assumptions & Relationships'!$E115=2,'Loan and Cash Flow Accounts'!L122*('Assumptions & Relationships'!$C$115+'Risk Measures'!M$8),0))) -> 0
B28: ='Risk Measures'!A180 -> ON Balance Sheet AVP7 (CLM ref: Met) | C28: =IFERROR(IF('Assumptions & Relationships'!$E116=1,'Assumptions & Relationships'!$B116*'Loan and Cash Flow Accounts'!C128,(IF('Assumptions & Relationships'!$E116=2,'Loan and Cash Flow Accounts'!C128*('Assumptions & Relationships'!$C$116+'Risk Measures'!D$8),0)))*('Risk Measures'!C180/MAX('Risk Measures'!$C180:$L180)),0)*'Risk Measures'!$B$287 -> 0 | D28: =IFERROR(IF('Assumptions & Relationships'!$E116=1,'Assumptions & Relationships'!$B116*'Loan and Cash Flow Accounts'!D128,(IF('Assumptions & Relationships'!$E116=2,'Loan and Cash Flow Accounts'!D128*('Assumptions & Relationships'!$C$116+'Risk Measures'!E$8),0)))*('Risk Measures'!D180/MAX('Risk Measures'!$C180:$L180)),0) -> 0 | E28: =IFERROR(IF('Assumptions & Relationships'!$E116=1,'Assumptions & Relationships'!$B116*'Loan and Cash Flow Accounts'!E128,(IF('Assumptions & Relationships'!$E116=2,'Loan and Cash Flow Accounts'!E128*('Assumptions & Relationships'!$C$116+'Risk Measures'!F$8),0)))*('Risk Measures'!E180/MAX('Risk Measures'!$C180:$L180)),0) -> 0 | F28: =IFERROR(IF('Assumptions & Relationships'!$E116=1,'Assumptions & Relationships'!$B116*'Loan and Cash Flow Accounts'!F128,(IF('Assumptions & Relationships'!$E116=2,'Loan and Cash Flow Accounts'!F128*('Assumptions & Relationships'!$C$116+'Risk Measures'!G$8),0)))*('Risk Measures'!F180/MAX('Risk Measures'!$C180:$L180)),0) -> 0 | G28: =IFERROR(IF('Assumptions & Relationships'!$E116=1,'Assumptions & Relationships'!$B116*'Loan and Cash Flow Accounts'!G128,(IF('Assumptions & Relationships'!$E116=2,'Loan and Cash Flow Accounts'!G128*('Assumptions & Relationships'!$C$116+'Risk Measures'!H$8),0)))*('Risk Measures'!G180/MAX('Risk Measures'!$C180:$L180)),0) -> 0 | H28: =IFERROR(IF('Assumptions & Relationships'!$E116=1,'Assumptions & Relationships'!$B116*'Loan and Cash Flow Accounts'!H128,(IF('Assumptions & Relationships'!$E116=2,'Loan and Cash Flow Accounts'!H128*('Assumptions & Relationships'!$C$116+'Risk Measures'!I$8),0)))*('Risk Measures'!H180/MAX('Risk Measures'!$C180:$L180)),0) -> 0 | I28: =IFERROR(IF('Assumptions & Relationships'!$E116=1,'Assumptions & Relationships'!$B116*'Loan and Cash Flow Accounts'!I128,(IF('Assumptions & Relationships'!$E116=2,'Loan and Cash Flow Accounts'!I128*('Assumptions & Relationships'!$C$116+'Risk Measures'!J$8),0)))*('Risk Measures'!I180/MAX('Risk Measures'!$C180:$L180)),0) -> 0 | J28: =IFERROR(IF('Assumptions & Relationships'!$E116=1,'Assumptions & Relationships'!$B116*'Loan and Cash Flow Accounts'!J128,(IF('Assumptions & Relationships'!$E116=2,'Loan and Cash Flow Accounts'!J128*('Assumptions & Relationships'!$C$116+'Risk Measures'!K$8),0)))*('Risk Measures'!J180/MAX('Risk Measures'!$C180:$L180)),0) -> 0 | K28: =IFERROR(IF('Assumptions & Relationships'!$E116=1,'Assumptions & Relationships'!$B116*'Loan and Cash Flow Accounts'!K128,(IF('Assumptions & Relationships'!$E116=2,'Loan and Cash Flow Accounts'!K128*('Assumptions & Relationships'!$C$116+'Risk Measures'!L$8),0)))*('Risk Measures'!K180/MAX('Risk Measures'!$C180:$L180)),0) -> 0 | L28: =IFERROR(IF('Assumptions & Relationships'!$E116=1,'Assumptions & Relationships'!$B116*'Loan and Cash Flow Accounts'!L128,(IF('Assumptions & Relationships'!$E116=2,'Loan and Cash Flow Accounts'!L128*('Assumptions & Relationships'!$C$116+'Risk Measures'!M$8),0)))*('Risk Measures'!L180/MAX('Risk Measures'!$C180:$L180)),0) -> 0
B29: ='Risk Measures'!A181 -> ON Balance Sheet AVP8 (CLM ref: RAF) | C29: =IFERROR(IF('Assumptions & Relationships'!$E117=1,'Assumptions & Relationships'!$B117*'Loan and Cash Flow Accounts'!C134,(IF('Assumptions & Relationships'!$E117=2,'Loan and Cash Flow Accounts'!C134*('Assumptions & Relationships'!$C$117+'Risk Measures'!D$8),0)))*('Risk Measures'!C181/MAX('Risk Measures'!$C181:$L181)),0)*'Risk Measures'!$B$288 -> 0 | D29: =IFERROR(IF('Assumptions & Relationships'!$E117=1,'Assumptions & Relationships'!$B117*'Loan and Cash Flow Accounts'!D134,(IF('Assumptions & Relationships'!$E117=2,'Loan and Cash Flow Accounts'!D134*('Assumptions & Relationships'!$C$117+'Risk Measures'!E$8),0)))*('Risk Measures'!D181/MAX('Risk Measures'!$C181:$L181)),0) -> 0 | E29: =IFERROR(IF('Assumptions & Relationships'!$E117=1,'Assumptions & Relationships'!$B117*'Loan and Cash Flow Accounts'!E134,(IF('Assumptions & Relationships'!$E117=2,'Loan and Cash Flow Accounts'!E134*('Assumptions & Relationships'!$C$117+'Risk Measures'!F$8),0)))*('Risk Measures'!E181/MAX('Risk Measures'!$C181:$L181)),0) -> 0 | F29: =IFERROR(IF('Assumptions & Relationships'!$E117=1,'Assumptions & Relationships'!$B117*'Loan and Cash Flow Accounts'!F134,(IF('Assumptions & Relationships'!$E117=2,'Loan and Cash Flow Accounts'!F134*('Assumptions & Relationships'!$C$117+'Risk Measures'!G$8),0)))*('Risk Measures'!F181/MAX('Risk Measures'!$C181:$L181)),0) -> 0 | G29: =IFERROR(IF('Assumptions & Relationships'!$E117=1,'Assumptions & Relationships'!$B117*'Loan and Cash Flow Accounts'!G134,(IF('Assumptions & Relationships'!$E117=2,'Loan and Cash Flow Accounts'!G134*('Assumptions & Relationships'!$C$117+'Risk Measures'!H$8),0)))*('Risk Measures'!G181/MAX('Risk Measures'!$C181:$L181)),0) -> 0 | H29: =IFERROR(IF('Assumptions & Relationships'!$E117=1,'Assumptions & Relationships'!$B117*'Loan and Cash Flow Accounts'!H134,(IF('Assumptions & Relationships'!$E117=2,'Loan and Cash Flow Accounts'!H134*('Assumptions & Relationships'!$C$117+'Risk Measures'!I$8),0)))*('Risk Measures'!H181/MAX('Risk Measures'!$C181:$L181)),0) -> 0 | I29: =IFERROR(IF('Assumptions & Relationships'!$E117=1,'Assumptions & Relationships'!$B117*'Loan and Cash Flow Accounts'!I134,(IF('Assumptions & Relationships'!$E117=2,'Loan and Cash Flow Accounts'!I134*('Assumptions & Relationships'!$C$117+'Risk Measures'!J$8),0)))*('Risk Measures'!I181/MAX('Risk Measures'!$C181:$L181)),0) -> 0 | J29: =IFERROR(IF('Assumptions & Relationships'!$E117=1,'Assumptions & Relationships'!$B117*'Loan and Cash Flow Accounts'!J134,(IF('Assumptions & Relationships'!$E117=2,'Loan and Cash Flow Accounts'!J134*('Assumptions & Relationships'!$C$117+'Risk Measures'!K$8),0)))*('Risk Measures'!J181/MAX('Risk Measures'!$C181:$L181)),0) -> 0 | K29: =IFERROR(IF('Assumptions & Relationships'!$E117=1,'Assumptions & Relationships'!$B117*'Loan and Cash Flow Accounts'!K134,(IF('Assumptions & Relationships'!$E117=2,'Loan and Cash Flow Accounts'!K134*('Assumptions & Relationships'!$C$117+'Risk Measures'!L$8),0)))*('Risk Measures'!K181/MAX('Risk Measures'!$C181:$L181)),0) -> 0 | L29: =IFERROR(IF('Assumptions & Relationships'!$E117=1,'Assumptions & Relationships'!$B117*'Loan and Cash Flow Accounts'!L134,(IF('Assumptions & Relationships'!$E117=2,'Loan and Cash Flow Accounts'!L134*('Assumptions & Relationships'!$C$117+'Risk Measures'!M$8),0)))*('Risk Measures'!L181/MAX('Risk Measures'!$C181:$L181)),0) -> 0
B30: ='Risk Measures'!A182 -> ON Balance Sheet AVP9 (CLM ref: RAF) | C30: =IFERROR(IF('Assumptions & Relationships'!$E118=1,'Assumptions & Relationships'!$B118*'Loan and Cash Flow Accounts'!C140,(IF('Assumptions & Relationships'!$E118=2,'Loan and Cash Flow Accounts'!C140*('Assumptions & Relationships'!$C$118+'Risk Measures'!D$8),0)))*('Risk Measures'!C182/MAX('Risk Measures'!$C182:$L182)),0)*'Risk Measures'!$B$289 -> 0 | D30: =IFERROR(IF('Assumptions & Relationships'!$E118=1,'Assumptions & Relationships'!$B118*'Loan and Cash Flow Accounts'!D140,(IF('Assumptions & Relationships'!$E118=2,'Loan and Cash Flow Accounts'!D140*('Assumptions & Relationships'!$C$118+'Risk Measures'!E$8),0)))*('Risk Measures'!D182/MAX('Risk Measures'!$C182:$L182)),0) -> 0 | E30: =IFERROR(IF('Assumptions & Relationships'!$E118=1,'Assumptions & Relationships'!$B118*'Loan and Cash Flow Accounts'!E140,(IF('Assumptions & Relationships'!$E118=2,'Loan and Cash Flow Accounts'!E140*('Assumptions & Relationships'!$C$118+'Risk Measures'!F$8),0)))*('Risk Measures'!E182/MAX('Risk Measures'!$C182:$L182)),0) -> 0 | F30: =IFERROR(IF('Assumptions & Relationships'!$E118=1,'Assumptions & Relationships'!$B118*'Loan and Cash Flow Accounts'!F140,(IF('Assumptions & Relationships'!$E118=2,'Loan and Cash Flow Accounts'!F140*('Assumptions & Relationships'!$C$118+'Risk Measures'!G$8),0)))*('Risk Measures'!F182/MAX('Risk Measures'!$C182:$L182)),0) -> 0 | G30: =IFERROR(IF('Assumptions & Relationships'!$E118=1,'Assumptions & Relationships'!$B118*'Loan and Cash Flow Accounts'!G140,(IF('Assumptions & Relationships'!$E118=2,'Loan and Cash Flow Accounts'!G140*('Assumptions & Relationships'!$C$118+'Risk Measures'!H$8),0)))*('Risk Measures'!G182/MAX('Risk Measures'!$C182:$L182)),0) -> 0 | H30: =IFERROR(IF('Assumptions & Relationships'!$E118=1,'Assumptions & Relationships'!$B118*'Loan and Cash Flow Accounts'!H140,(IF('Assumptions & Relationships'!$E118=2,'Loan and Cash Flow Accounts'!H140*('Assumptions & Relationships'!$C$118+'Risk Measures'!I$8),0)))*('Risk Measures'!H182/MAX('Risk Measures'!$C182:$L182)),0) -> 0 | I30: =IFERROR(IF('Assumptions & Relationships'!$E118=1,'Assumptions & Relationships'!$B118*'Loan and Cash Flow Accounts'!I140,(IF('Assumptions & Relationships'!$E118=2,'Loan and Cash Flow Accounts'!I140*('Assumptions & Relationships'!$C$118+'Risk Measures'!J$8),0)))*('Risk Measures'!I182/MAX('Risk Measures'!$C182:$L182)),0) -> 0 | J30: =IFERROR(IF('Assumptions & Relationships'!$E118=1,'Assumptions & Relationships'!$B118*'Loan and Cash Flow Accounts'!J140,(IF('Assumptions & Relationships'!$E118=2,'Loan and Cash Flow Accounts'!J140*('Assumptions & Relationships'!$C$118+'Risk Measures'!K$8),0)))*('Risk Measures'!J182/MAX('Risk Measures'!$C182:$L182)),0) -> 0 | K30: =IFERROR(IF('Assumptions & Relationships'!$E118=1,'Assumptions & Relationships'!$B118*'Loan and Cash Flow Accounts'!K140,(IF('Assumptions & Relationships'!$E118=2,'Loan and Cash Flow Accounts'!K140*('Assumptions & Relationships'!$C$118+'Risk Measures'!L$8),0)))*('Risk Measures'!K182/MAX('Risk Measures'!$C182:$L182)),0) -> 0 | L30: =IFERROR(IF('Assumptions & Relationships'!$E118=1,'Assumptions & Relationships'!$B118*'Loan and Cash Flow Accounts'!L140,(IF('Assumptions & Relationships'!$E118=2,'Loan and Cash Flow Accounts'!L140*('Assumptions & Relationships'!$C$118+'Risk Measures'!M$8),0)))*('Risk Measures'!L182/MAX('Risk Measures'!$C182:$L182)),0) -> 0
B31: ='Risk Measures'!A183 -> ON Balance Sheet AVP10 (CLM ref: RaboBank NA) | C31: =IFERROR(IF('Assumptions & Relationships'!$E119=1,'Assumptions & Relationships'!$B119*'Loan and Cash Flow Accounts'!C146,(IF('Assumptions & Relationships'!$E119=2,'Loan and Cash Flow Accounts'!C146*('Assumptions & Relationships'!$C$119+'Risk Measures'!D$8),0)))*('Risk Measures'!C183/MAX('Risk Measures'!$C183:$L183)),0)*'Risk Measures'!$B$290 -> 0 | D31: =IFERROR(IF('Assumptions & Relationships'!$E119=1,'Assumptions & Relationships'!$B119*'Loan and Cash Flow Accounts'!D146,(IF('Assumptions & Relationships'!$E119=2,'Loan and Cash Flow Accounts'!D146*('Assumptions & Relationships'!$C$119+'Risk Measures'!E$8),0)))*('Risk Measures'!D183/MAX('Risk Measures'!$C183:$L183)),0) -> 0 | E31: =IFERROR(IF('Assumptions & Relationships'!$E119=1,'Assumptions & Relationships'!$B119*'Loan and Cash Flow Accounts'!E146,(IF('Assumptions & Relationships'!$E119=2,'Loan and Cash Flow Accounts'!E146*('Assumptions & Relationships'!$C$119+'Risk Measures'!F$8),0)))*('Risk Measures'!E183/MAX('Risk Measures'!$C183:$L183)),0) -> 0 | F31: =IFERROR(IF('Assumptions & Relationships'!$E119=1,'Assumptions & Relationships'!$B119*'Loan and Cash Flow Accounts'!F146,(IF('Assumptions & Relationships'!$E119=2,'Loan and Cash Flow Accounts'!F146*('Assumptions & Relationships'!$C$119+'Risk Measures'!G$8),0)))*('Risk Measures'!F183/MAX('Risk Measures'!$C183:$L183)),0) -> 0 | G31: =IFERROR(IF('Assumptions & Relationships'!$E119=1,'Assumptions & Relationships'!$B119*'Loan and Cash Flow Accounts'!G146,(IF('Assumptions & Relationships'!$E119=2,'Loan and Cash Flow Accounts'!G146*('Assumptions & Relationships'!$C$119+'Risk Measures'!H$8),0)))*('Risk Measures'!G183/MAX('Risk Measures'!$C183:$L183)),0) -> 0 | H31: =IFERROR(IF('Assumptions & Relationships'!$E119=1,'Assumptions & Relationships'!$B119*'Loan and Cash Flow Accounts'!H146,(IF('Assumptions & Relationships'!$E119=2,'Loan and Cash Flow Accounts'!H146*('Assumptions & Relationships'!$C$119+'Risk Measures'!I$8),0)))*('Risk Measures'!H183/MAX('Risk Measures'!$C183:$L183)),0) -> 0 | I31: =IFERROR(IF('Assumptions & Relationships'!$E119=1,'Assumptions & Relationships'!$B119*'Loan and Cash Flow Accounts'!I146,(IF('Assumptions & Relationships'!$E119=2,'Loan and Cash Flow Accounts'!I146*('Assumptions & Relationships'!$C$119+'Risk Measures'!J$8),0)))*('Risk Measures'!I183/MAX('Risk Measures'!$C183:$L183)),0) -> 0 | J31: =IFERROR(IF('Assumptions & Relationships'!$E119=1,'Assumptions & Relationships'!$B119*'Loan and Cash Flow Accounts'!J146,(IF('Assumptions & Relationships'!$E119=2,'Loan and Cash Flow Accounts'!J146*('Assumptions & Relationships'!$C$119+'Risk Measures'!K$8),0)))*('Risk Measures'!J183/MAX('Risk Measures'!$C183:$L183)),0) -> 0 | K31: =IFERROR(IF('Assumptions & Relationships'!$E119=1,'Assumptions & Relationships'!$B119*'Loan and Cash Flow Accounts'!K146,(IF('Assumptions & Relationships'!$E119=2,'Loan and Cash Flow Accounts'!K146*('Assumptions & Relationships'!$C$119+'Risk Measures'!L$8),0)))*('Risk Measures'!K183/MAX('Risk Measures'!$C183:$L183)),0) -> 0 | L31: =IFERROR(IF('Assumptions & Relationships'!$E119=1,'Assumptions & Relationships'!$B119*'Loan and Cash Flow Accounts'!L146,(IF('Assumptions & Relationships'!$E119=2,'Loan and Cash Flow Accounts'!L146*('Assumptions & Relationships'!$C$119+'Risk Measures'!M$8),0)))*('Risk Measures'!L183/MAX('Risk Measures'!$C183:$L183)),0) -> 0
B33: Int reversals to carry loan losses: | C33: =-'Risk Measures'!C159 ->  | D33: =-'Risk Measures'!D159 ->  | E33: =-'Risk Measures'!E159 ->  | F33: =-'Risk Measures'!F159 ->  | G33: =-'Risk Measures'!G159 ->  | H33: =-'Risk Measures'!H159 ->  | I33: =-'Risk Measures'!I159 ->  | J33: =-'Risk Measures'!J159 ->  | K33: =-'Risk Measures'!K159 ->  | L33: =-'Risk Measures'!L159 -> 
A34: Total Interest Income | C34: =SUM(C10:C33) -> 
A36: Interest expense
B37: Due within 1 year | C37: =IF('Assumptions & Relationships'!$E123=1,'Assumptions & Relationships'!$B123*(('Loan and Cash Flow Accounts'!$C$21*-'Balance Sheets'!C$64)+'Loan and Cash Flow Accounts'!C165),IF('Assumptions & Relationships'!$E123=2,(('Loan and Cash Flow Accounts'!$C$21*-'Balance Sheets'!C$64)+'Loan and Cash Flow Accounts'!C165)*('Assumptions & Relationships'!$C$123+'Risk Measures'!D$8),0))+'Risk Measures'!C282 ->  | D37: =IF('Assumptions & Relationships'!$E123=1,'Assumptions & Relationships'!$B123*(('Loan and Cash Flow Accounts'!$C$21*-'Balance Sheets'!D$64)+'Loan and Cash Flow Accounts'!D165),IF('Assumptions & Relationships'!$E123=2,(('Loan and Cash Flow Accounts'!$C$21*-'Balance Sheets'!D$64)+'Loan and Cash Flow Accounts'!D165)*('Assumptions & Relationships'!$C$123+'Risk Measures'!E$8),0))+'Risk Measures'!D282 ->  | E37: =IF('Assumptions & Relationships'!$E123=1,'Assumptions & Relationships'!$B123*(('Loan and Cash Flow Accounts'!$C$21*-'Balance Sheets'!E$64)+'Loan and Cash Flow Accounts'!E165),IF('Assumptions & Relationships'!$E123=2,(('Loan and Cash Flow Accounts'!$C$21*-'Balance Sheets'!E$64)+'Loan and Cash Flow Accounts'!E165)*('Assumptions & Relationships'!$C$123+'Risk Measures'!F$8),0))+'Risk Measures'!E282 ->  | F37: =IF('Assumptions & Relationships'!$E123=1,'Assumptions & Relationships'!$B123*(('Loan and Cash Flow Accounts'!$C$21*-'Balance Sheets'!F$64)+'Loan and Cash Flow Accounts'!F165),IF('Assumptions & Relationships'!$E123=2,(('Loan and Cash Flow Accounts'!$C$21*-'Balance Sheets'!F$64)+'Loan and Cash Flow Accounts'!F165)*('Assumptions & Relationships'!$C$123+'Risk Measures'!G$8),0))+'Risk Measures'!F282 ->  | G37: =IF('Assumptions & Relationships'!$E123=1,'Assumptions & Relationships'!$B123*(('Loan and Cash Flow Accounts'!$C$21*-'Balance Sheets'!G$64)+'Loan and Cash Flow Accounts'!G165),IF('Assumptions & Relationships'!$E123=2,(('Loan and Cash Flow Accounts'!$C$21*-'Balance Sheets'!G$64)+'Loan and Cash Flow Accounts'!G165)*('Assumptions & Relationships'!$C$123+'Risk Measures'!H$8),0))+'Risk Measures'!G282 ->  | H37: =IF('Assumptions & Relationships'!$E123=1,'Assumptions & Relationships'!$B123*(('Loan and Cash Flow Accounts'!$C$21*-'Balance Sheets'!H$64)+'Loan and Cash Flow Accounts'!H165),IF('Assumptions & Relationships'!$E123=2,(('Loan and Cash Flow Accounts'!$C$21*-'Balance Sheets'!H$64)+'Loan and Cash Flow Accounts'!H165)*('Assumptions & Relationships'!$C$123+'Risk Measures'!I$8),0))+'Risk Measures'!H282 ->  | I37: =IF('Assumptions & Relationships'!$E123=1,'Assumptions & Relationships'!$B123*(('Loan and Cash Flow Accounts'!$C$21*-'Balance Sheets'!I$64)+'Loan and Cash Flow Accounts'!I165),IF('Assumptions & Relationships'!$E123=2,(('Loan and Cash Flow Accounts'!$C$21*-'Balance Sheets'!I$64)+'Loan and Cash Flow Accounts'!I165)*('Assumptions & Relationships'!$C$123+'Risk Measures'!J$8),0))+'Risk Measures'!I282 ->  | J37: =IF('Assumptions & Relationships'!$E123=1,'Assumptions & Relationships'!$B123*(('Loan and Cash Flow Accounts'!$C$21*-'Balance Sheets'!J$64)+'Loan and Cash Flow Accounts'!J165),IF('Assumptions & Relationships'!$E123=2,(('Loan and Cash Flow Accounts'!$C$21*-'Balance Sheets'!J$64)+'Loan and Cash Flow Accounts'!J165)*('Assumptions & Relationships'!$C$123+'Risk Measures'!K$8),0))+'Risk Measures'!J282 ->  | K37: =IF('Assumptions & Relationships'!$E123=1,'Assumptions & Relationships'!$B123*(('Loan and Cash Flow Accounts'!$C$21*-'Balance Sheets'!K$64)+'Loan and Cash Flow Accounts'!K165),IF('Assumptions & Relationships'!$E123=2,(('Loan and Cash Flow Accounts'!$C$21*-'Balance Sheets'!K$64)+'Loan and Cash Flow Accounts'!K165)*('Assumptions & Relationships'!$C$123+'Risk Measures'!L$8),0))+'Risk Measures'!K282 ->  | L37: =IF('Assumptions & Relationships'!$E123=1,'Assumptions & Relationships'!$B123*(('Loan and Cash Flow Accounts'!$C$21*-'Balance Sheets'!L$64)+'Loan and Cash Flow Accounts'!L165),IF('Assumptions & Relationships'!$E123=2,(('Loan and Cash Flow Accounts'!$C$21*-'Balance Sheets'!L$64)+'Loan and Cash Flow Accounts'!L165)*('Assumptions & Relationships'!$C$123+'Risk Measures'!M$8),0))+'Risk Measures'!L282 -> 
B38: Due after 1 year | C38: =IF('Assumptions & Relationships'!$E124=1,'Assumptions & Relationships'!$B124*(('Loan and Cash Flow Accounts'!$C$22*-'Balance Sheets'!C$64)+'Loan and Cash Flow Accounts'!C167),IF('Assumptions & Relationships'!$E124=2,(('Loan and Cash Flow Accounts'!$C$22*-'Balance Sheets'!C$64)+'Loan and Cash Flow Accounts'!C167)*('Assumptions & Relationships'!$C$124+'Risk Measures'!D$8),0))+'Risk Measures'!C283 ->  | D38: =IF('Assumptions & Relationships'!$E124=1,'Assumptions & Relationships'!$B124*(('Loan and Cash Flow Accounts'!$C$22*-'Balance Sheets'!D$64)+'Loan and Cash Flow Accounts'!D167),IF('Assumptions & Relationships'!$E124=2,(('Loan and Cash Flow Accounts'!$C$22*-'Balance Sheets'!D$64)+'Loan and Cash Flow Accounts'!D167)*('Assumptions & Relationships'!$C$124+'Risk Measures'!E$8),0))+'Risk Measures'!D283 ->  | E38: =IF('Assumptions & Relationships'!$E124=1,'Assumptions & Relationships'!$B124*(('Loan and Cash Flow Accounts'!$C$22*-'Balance Sheets'!E$64)+'Loan and Cash Flow Accounts'!E167),IF('Assumptions & Relationships'!$E124=2,(('Loan and Cash Flow Accounts'!$C$22*-'Balance Sheets'!E$64)+'Loan and Cash Flow Accounts'!E167)*('Assumptions & Relationships'!$C$124+'Risk Measures'!F$8),0))+'Risk Measures'!E283 ->  | F38: =IF('Assumptions & Relationships'!$E124=1,'Assumptions & Relationships'!$B124*(('Loan and Cash Flow Accounts'!$C$22*-'Balance Sheets'!F$64)+'Loan and Cash Flow Accounts'!F167),IF('Assumptions & Relationships'!$E124=2,(('Loan and Cash Flow Accounts'!$C$22*-'Balance Sheets'!F$64)+'Loan and Cash Flow Accounts'!F167)*('Assumptions & Relationships'!$C$124+'Risk Measures'!G$8),0))+'Risk Measures'!F283 ->  | G38: =IF('Assumptions & Relationships'!$E124=1,'Assumptions & Relationships'!$B124*(('Loan and Cash Flow Accounts'!$C$22*-'Balance Sheets'!G$64)+'Loan and Cash Flow Accounts'!G167),IF('Assumptions & Relationships'!$E124=2,(('Loan and Cash Flow Accounts'!$C$22*-'Balance Sheets'!G$64)+'Loan and Cash Flow Accounts'!G167)*('Assumptions & Relationships'!$C$124+'Risk Measures'!H$8),0))+'Risk Measures'!G283 ->  | H38: =IF('Assumptions & Relationships'!$E124=1,'Assumptions & Relationships'!$B124*(('Loan and Cash Flow Accounts'!$C$22*-'Balance Sheets'!H$64)+'Loan and Cash Flow Accounts'!H167),IF('Assumptions & Relationships'!$E124=2,(('Loan and Cash Flow Accounts'!$C$22*-'Balance Sheets'!H$64)+'Loan and Cash Flow Accounts'!H167)*('Assumptions & Relationships'!$C$124+'Risk Measures'!I$8),0))+'Risk Measures'!H283 ->  | I38: =IF('Assumptions & Relationships'!$E124=1,'Assumptions & Relationships'!$B124*(('Loan and Cash Flow Accounts'!$C$22*-'Balance Sheets'!I$64)+'Loan and Cash Flow Accounts'!I167),IF('Assumptions & Relationships'!$E124=2,(('Loan and Cash Flow Accounts'!$C$22*-'Balance Sheets'!I$64)+'Loan and Cash Flow Accounts'!I167)*('Assumptions & Relationships'!$C$124+'Risk Measures'!J$8),0))+'Risk Measures'!I283 ->  | J38: =IF('Assumptions & Relationships'!$E124=1,'Assumptions & Relationships'!$B124*(('Loan and Cash Flow Accounts'!$C$22*-'Balance Sheets'!J$64)+'Loan and Cash Flow Accounts'!J167),IF('Assumptions & Relationships'!$E124=2,(('Loan and Cash Flow Accounts'!$C$22*-'Balance Sheets'!J$64)+'Loan and Cash Flow Accounts'!J167)*('Assumptions & Relationships'!$C$124+'Risk Measures'!K$8),0))+'Risk Measures'!J283 ->  | K38: =IF('Assumptions & Relationships'!$E124=1,'Assumptions & Relationships'!$B124*(('Loan and Cash Flow Accounts'!$C$22*-'Balance Sheets'!K$64)+'Loan and Cash Flow Accounts'!K167),IF('Assumptions & Relationships'!$E124=2,(('Loan and Cash Flow Accounts'!$C$22*-'Balance Sheets'!K$64)+'Loan and Cash Flow Accounts'!K167)*('Assumptions & Relationships'!$C$124+'Risk Measures'!L$8),0))+'Risk Measures'!K283 ->  | L38: =IF('Assumptions & Relationships'!$E124=1,'Assumptions & Relationships'!$B124*(('Loan and Cash Flow Accounts'!$C$22*-'Balance Sheets'!L$64)+'Loan and Cash Flow Accounts'!L167),IF('Assumptions & Relationships'!$E124=2,(('Loan and Cash Flow Accounts'!$C$22*-'Balance Sheets'!L$64)+'Loan and Cash Flow Accounts'!L167)*('Assumptions & Relationships'!$C$124+'Risk Measures'!M$8),0))+'Risk Measures'!L283 -> 
A39: Total Interest Expense | C39: =SUM(C37:C38) ->  | D39: =SUM(D37:D38) -> 
A40: Net Interest Income before Swap Income (Expense) | C40: =C34-C39 ->  | D40: =D34-D39 ->  | E40: =E34-E39 ->  | F40: =F34-F39 ->  | G40: =G34-G39 -> 
A41: Interest Income (Expense) on Swaps | C41: ='Data Inputs'!B267 -> 0 | D41: =C41 -> 0 | E41: =D41 -> 0 | F41: 0 | G41: 0 | H41: 0 | I41: 0 | J41: 0 | K41: 0 | L41: 0
A43: Net Interest Income | C43: =C40+C41 ->  | D43: =D40+D41 ->  | F43: =F40+F41 -> 
A45: Other Income:
A47: Guarantee fees +Spread | B47: FAMC I - Post 1996 Loans OFF B/S | C47: =('Loan and Cash Flow Accounts'!C177+'Loan and Cash Flow Accounts'!C73+'Loan and Cash Flow Accounts'!C78+'Loan and Cash Flow Accounts'!C201)*'Assumptions & Relationships'!$B$85 -> 0 | D47: =('Loan and Cash Flow Accounts'!D177+'Loan and Cash Flow Accounts'!D73+'Loan and Cash Flow Accounts'!D78+'Loan and Cash Flow Accounts'!D201)*'Assumptions & Relationships'!$B$85 -> 0 | E47: =('Loan and Cash Flow Accounts'!E177+'Loan and Cash Flow Accounts'!E73+'Loan and Cash Flow Accounts'!E78+'Loan and Cash Flow Accounts'!E201)*'Assumptions & Relationships'!$B$85 -> 0 | F47: =('Loan and Cash Flow Accounts'!F177+'Loan and Cash Flow Accounts'!F73+'Loan and Cash Flow Accounts'!F78+'Loan and Cash Flow Accounts'!F201)*'Assumptions & Relationships'!$B$85 -> 0 | G47: =('Loan and Cash Flow Accounts'!G177+'Loan and Cash Flow Accounts'!G73+'Loan and Cash Flow Accounts'!G78+'Loan and Cash Flow Accounts'!G201)*'Assumptions & Relationships'!$B$85 -> 0 | H47: =('Loan and Cash Flow Accounts'!H177+'Loan and Cash Flow Accounts'!H73+'Loan and Cash Flow Accounts'!H78+'Loan and Cash Flow Accounts'!H201)*'Assumptions & Relationships'!$B$85 -> 0 | I47: =('Loan and Cash Flow Accounts'!I177+'Loan and Cash Flow Accounts'!I73+'Loan and Cash Flow Accounts'!I78+'Loan and Cash Flow Accounts'!I201)*'Assumptions & Relationships'!$B$85 -> 0 | J47: =('Loan and Cash Flow Accounts'!J177+'Loan and Cash Flow Accounts'!J73+'Loan and Cash Flow Accounts'!J78+'Loan and Cash Flow Accounts'!J201)*'Assumptions & Relationships'!$B$85 -> 0 | K47: =('Loan and Cash Flow Accounts'!K177+'Loan and Cash Flow Accounts'!K73+'Loan and Cash Flow Accounts'!K78+'Loan and Cash Flow Accounts'!K201)*'Assumptions & Relationships'!$B$85 -> 0 | L47: =('Loan and Cash Flow Accounts'!L177+'Loan and Cash Flow Accounts'!L73+'Loan and Cash Flow Accounts'!L78+'Loan and Cash Flow Accounts'!L201)*'Assumptions & Relationships'!$B$85 -> 0
B48: FAMC I Pre 1996 OFF B/S | C48: =('Loan and Cash Flow Accounts'!C183+'Loan and Cash Flow Accounts'!C83)*'Assumptions & Relationships'!$B$86 -> 0 | D48: =('Loan and Cash Flow Accounts'!D183+'Loan and Cash Flow Accounts'!D83)*'Assumptions & Relationships'!$B$86 -> 0 | E48: =('Loan and Cash Flow Accounts'!E183+'Loan and Cash Flow Accounts'!E83)*'Assumptions & Relationships'!$B$86 -> 0 | F48: =('Loan and Cash Flow Accounts'!F183+'Loan and Cash Flow Accounts'!F83)*'Assumptions & Relationships'!$B$86 -> 0 | G48: =('Loan and Cash Flow Accounts'!G183+'Loan and Cash Flow Accounts'!G83)*'Assumptions & Relationships'!$B$86 -> 0 | H48: =('Loan and Cash Flow Accounts'!H183+'Loan and Cash Flow Accounts'!H83)*'Assumptions & Relationships'!$B$86 -> 0 | I48: =('Loan and Cash Flow Accounts'!I183+'Loan and Cash Flow Accounts'!I83)*'Assumptions & Relationships'!$B$86 -> 0 | J48: =('Loan and Cash Flow Accounts'!J183+'Loan and Cash Flow Accounts'!J83)*'Assumptions & Relationships'!$B$86 -> 0 | K48: =('Loan and Cash Flow Accounts'!K183+'Loan and Cash Flow Accounts'!K83)*'Assumptions & Relationships'!$B$86 -> 0 | L48: =('Loan and Cash Flow Accounts'!L183+'Loan and Cash Flow Accounts'!L83)*'Assumptions & Relationships'!$B$86 -> 0
B49: FAMC II | C49: =('Loan and Cash Flow Accounts'!C187+'Loan and Cash Flow Accounts'!C97)*'Assumptions & Relationships'!$B$87 -> 0 | D49: =('Loan and Cash Flow Accounts'!D187+'Loan and Cash Flow Accounts'!D97)*'Assumptions & Relationships'!$B$87 -> 0 | E49: =('Loan and Cash Flow Accounts'!E187+'Loan and Cash Flow Accounts'!E97)*'Assumptions & Relationships'!$B$87 -> 0 | F49: =('Loan and Cash Flow Accounts'!F187+'Loan and Cash Flow Accounts'!F97)*'Assumptions & Relationships'!$B$87 -> 0 | G49: =('Loan and Cash Flow Accounts'!G187+'Loan and Cash Flow Accounts'!G97)*'Assumptions & Relationships'!$B$87 -> 0 | H49: =('Loan and Cash Flow Accounts'!H187+'Loan and Cash Flow Accounts'!H97)*'Assumptions & Relationships'!$B$87 -> 0 | I49: =('Loan and Cash Flow Accounts'!I187+'Loan and Cash Flow Accounts'!I97)*'Assumptions & Relationships'!$B$87 -> 0 | J49: =('Loan and Cash Flow Accounts'!J187+'Loan and Cash Flow Accounts'!J97)*'Assumptions & Relationships'!$B$87 -> 0 | K49: =('Loan and Cash Flow Accounts'!K187+'Loan and Cash Flow Accounts'!K97)*'Assumptions & Relationships'!$B$87 -> 0 | L49: =('Loan and Cash Flow Accounts'!L187+'Loan and Cash Flow Accounts'!L97)*'Assumptions & Relationships'!$B$87 -> 0
B50: Off BS AVP Total | C50: =SUM('Risk Measures'!C203:C207) -> 0 | D50: =SUM('Risk Measures'!D203:D207) -> 0 | E50: =SUM('Risk Measures'!E203:E207) -> 0 | F50: =SUM('Risk Measures'!F203:F207) -> 0 | G50: =SUM('Risk Measures'!G203:G207) -> 0 | H50: =SUM('Risk Measures'!H203:H207) -> 0 | I50: =SUM('Risk Measures'!I203:I207) -> 0 | J50: =SUM('Risk Measures'!J203:J207) -> 0 | K50: =SUM('Risk Measures'!K203:K207) -> 0 | L50: =SUM('Risk Measures'!L203:L207) -> 0
B51: ='Risk Measures'!A177 -> ON BS RU "Whole Loans" | C51: ='Risk Measures'!C208 -> 0 | D51: ='Risk Measures'!D208 -> 0 | E51: ='Risk Measures'!E208 -> 0 | F51: ='Risk Measures'!F208 -> 0 | G51: ='Risk Measures'!G208 -> 0 | H51: ='Risk Measures'!H208 -> 0 | I51: ='Risk Measures'!I208 -> 0 | J51: ='Risk Measures'!J208 -> 0 | K51: ='Risk Measures'!K208 -> 0 | L51: ='Risk Measures'!L208 -> 0
B52: ='Risk Measures'!A178 -> ON Balance Sheet RU (AVP 5 from CLM) structures | C52: ='Risk Measures'!C209 -> 0 | D52: ='Risk Measures'!D209 -> 0 | E52: ='Risk Measures'!E209 -> 0 | F52: ='Risk Measures'!F209 -> 0 | G52: ='Risk Measures'!G209 -> 0 | H52: ='Risk Measures'!H209 -> 0 | I52: ='Risk Measures'!I209 -> 0 | J52: ='Risk Measures'!J209 -> 0 | K52: ='Risk Measures'!K209 -> 0 | L52: ='Risk Measures'!L209 -> 0
B53: ='Risk Measures'!A179 -> ON BS RU ABS Structures (legacy) | C53: ='Risk Measures'!C210 -> 0 | D53: ='Risk Measures'!D210 -> 0 | E53: ='Risk Measures'!E210 -> 0 | F53: ='Risk Measures'!F210 -> 0 | G53: ='Risk Measures'!G210 -> 0 | H53: ='Risk Measures'!H210 -> 0 | I53: ='Risk Measures'!I210 -> 0 | J53: ='Risk Measures'!J210 -> 0 | K53: ='Risk Measures'!K210 -> 0 | L53: ='Risk Measures'!L210 -> 0
B54: ='Risk Measures'!A180 -> ON Balance Sheet AVP7 (CLM ref: Met) | C54: ='Risk Measures'!C211 -> 0 | D54: ='Risk Measures'!D211 -> 0 | E54: ='Risk Measures'!E211 -> 0 | F54: ='Risk Measures'!F211 -> 0 | G54: ='Risk Measures'!G211 -> 0 | H54: ='Risk Measures'!H211 -> 0 | I54: ='Risk Measures'!I211 -> 0 | J54: ='Risk Measures'!J211 -> 0 | K54: ='Risk Measures'!K211 -> 0 | L54: ='Risk Measures'!L211 -> 0
B55: ='Risk Measures'!A181 -> ON Balance Sheet AVP8 (CLM ref: RAF) | C55: ='Risk Measures'!C212 -> 0 | D55: ='Risk Measures'!D212 -> 0 | E55: ='Risk Measures'!E212 -> 0 | F55: ='Risk Measures'!F212 -> 0 | G55: ='Risk Measures'!G212 -> 0 | H55: ='Risk Measures'!H212 -> 0 | I55: ='Risk Measures'!I212 -> 0 | J55: ='Risk Measures'!J212 -> 0 | K55: ='Risk Measures'!K212 -> 0 | L55: ='Risk Measures'!L212 -> 0
B56: ='Risk Measures'!A182 -> ON Balance Sheet AVP9 (CLM ref: RAF) | C56: ='Risk Measures'!C213 -> 0 | D56: ='Risk Measures'!D213 -> 0 | E56: ='Risk Measures'!E213 -> 0 | F56: ='Risk Measures'!F213 -> 0 | G56: ='Risk Measures'!G213 -> 0 | H56: ='Risk Measures'!H213 -> 0 | I56: ='Risk Measures'!I213 -> 0 | J56: ='Risk Measures'!J213 -> 0 | K56: ='Risk Measures'!K213 -> 0 | L56: ='Risk Measures'!L213 -> 0
B57: ='Risk Measures'!A183 -> ON Balance Sheet AVP10 (CLM ref: RaboBank NA) | C57: ='Risk Measures'!C214 -> 0 | D57: ='Risk Measures'!D214 -> 0 | E57: ='Risk Measures'!E214 -> 0 | F57: ='Risk Measures'!F214 -> 0 | G57: ='Risk Measures'!G214 -> 0 | H57: ='Risk Measures'!H214 -> 0 | I57: ='Risk Measures'!I214 -> 0 | J57: ='Risk Measures'!J214 -> 0 | K57: ='Risk Measures'!K214 -> 0 | L57: ='Risk Measures'!L214 -> 0
B58: Subtotal Guarantee Fees + spread | C58: =SUM(C47:C57) -> 0 | D58: =SUM(D47:D57) -> 0 | E58: 0 | F58: 0 | G58: 0 | H58: 0 | I58: 0 | J58: 0 | K58: 0 | L58: 0
B59: Gain on AMBS Sales | C59: =('Loan and Cash Flow Accounts'!C193)*'Assumptions & Relationships'!$B64 ->  | D59: =('Loan and Cash Flow Accounts'!D193)*'Assumptions & Relationships'!$B64 ->  | E59: =('Loan and Cash Flow Accounts'!E193)*'Assumptions & Relationships'!$B64 ->  | F59: =('Loan and Cash Flow Accounts'!F193)*'Assumptions & Relationships'!$B64 ->  | G59: =('Loan and Cash Flow Accounts'!G193)*'Assumptions & Relationships'!$B64 ->  | H59: =('Loan and Cash Flow Accounts'!H193)*'Assumptions & Relationships'!$B64 ->  | I59: =('Loan and Cash Flow Accounts'!I193)*'Assumptions & Relationships'!$B64 ->  | J59: =('Loan and Cash Flow Accounts'!J193)*'Assumptions & Relationships'!$B64 ->  | K59: =('Loan and Cash Flow Accounts'!K193)*'Assumptions & Relationships'!$B64 ->  | L59: =('Loan and Cash Flow Accounts'!L193)*'Assumptions & Relationships'!$B64 -> 
B60: Miscellaneous Income | C60: ='Assumptions & Relationships'!$B$65*SUM('Balance Sheets'!B8:B11) -> 0 | D60: ='Assumptions & Relationships'!$B$65*SUM('Balance Sheets'!C8:C11) -> 0 | E60: ='Assumptions & Relationships'!$B$65*SUM('Balance Sheets'!D8:D11) -> 0 | F60: ='Assumptions & Relationships'!$B$65*SUM('Balance Sheets'!E8:E11) -> 0 | G60: ='Assumptions & Relationships'!$B$65*SUM('Balance Sheets'!F8:F11) -> 0 | H60: ='Assumptions & Relationships'!$B$65*SUM('Balance Sheets'!G8:G11) -> 0 | I60: ='Assumptions & Relationships'!$B$65*SUM('Balance Sheets'!H8:H11) -> 0 | J60: ='Assumptions & Relationships'!$B$65*SUM('Balance Sheets'!I8:I11) -> 0 | K60: ='Assumptions & Relationships'!$B$65*SUM('Balance Sheets'!J8:J11) -> 0 | L60: ='Assumptions & Relationships'!$B$65*SUM('Balance Sheets'!K8:K11) -> 0
A61: Total Other Income | C61: =SUM(C58:C60) ->  | D61: =SUM(D58:D60) -> 
C62: 44551.31616 | D62: 41698.00109 | E62: 33322.14164 | F62: 28669.00109 | G62: 28556.60383 | H62: 27484.00109 | I62: 26746.32985 | J62: 25984.00109 | K62: 25984.00109 | L62: 25984.00109
A63: Other Expenses:
B64: Operating Expenses | C64: =('Assumptions & Relationships'!$B$66)*('Balance Sheets'!B20+'Loan and Cash Flow Accounts'!C177+'Loan and Cash Flow Accounts'!C183+'Loan and Cash Flow Accounts'!C187) -> 0 | D64: =('Assumptions & Relationships'!$B$66)*('Balance Sheets'!C20+'Loan and Cash Flow Accounts'!D177+'Loan and Cash Flow Accounts'!D183+'Loan and Cash Flow Accounts'!D187) ->  | E64: =('Assumptions & Relationships'!$B$66)*('Balance Sheets'!D20+'Loan and Cash Flow Accounts'!E177+'Loan and Cash Flow Accounts'!E183+'Loan and Cash Flow Accounts'!E187) ->  | F64: =('Assumptions & Relationships'!$B$66)*('Balance Sheets'!E20+'Loan and Cash Flow Accounts'!F177+'Loan and Cash Flow Accounts'!F183+'Loan and Cash Flow Accounts'!F187) ->  | G64: =('Assumptions & Relationships'!$B$66)*('Balance Sheets'!F20+'Loan and Cash Flow Accounts'!G177+'Loan and Cash Flow Accounts'!G183+'Loan and Cash Flow Accounts'!G187) ->  | H64: =('Assumptions & Relationships'!$B$66)*('Balance Sheets'!G20+'Loan and Cash Flow Accounts'!H177+'Loan and Cash Flow Accounts'!H183+'Loan and Cash Flow Accounts'!H187) ->  | I64: =('Assumptions & Relationships'!$B$66)*('Balance Sheets'!H20+'Loan and Cash Flow Accounts'!I177+'Loan and Cash Flow Accounts'!I183+'Loan and Cash Flow Accounts'!I187) ->  | J64: =('Assumptions & Relationships'!$B$66)*('Balance Sheets'!I20+'Loan and Cash Flow Accounts'!J177+'Loan and Cash Flow Accounts'!J183+'Loan and Cash Flow Accounts'!J187) ->  | K64: =('Assumptions & Relationships'!$B$66)*('Balance Sheets'!J20+'Loan and Cash Flow Accounts'!K177+'Loan and Cash Flow Accounts'!K183+'Loan and Cash Flow Accounts'!K187) ->  | L64: =('Assumptions & Relationships'!$B$66)*('Balance Sheets'!K20+'Loan and Cash Flow Accounts'!L177+'Loan and Cash Flow Accounts'!L183+'Loan and Cash Flow Accounts'!L187) -> 
B65: Provision due to loan losses | C65: ='Risk Measures'!C126 ->  | D65: ='Risk Measures'!D126 ->  | E65: ='Risk Measures'!E126 ->  | F65: ='Risk Measures'!F126 ->  | G65: ='Risk Measures'!G126 ->  | H65: ='Risk Measures'!H126 ->  | I65: ='Risk Measures'!I126 ->  | J65: ='Risk Measures'!J126 ->  | K65: ='Risk Measures'!K126 ->  | L65: ='Risk Measures'!L126 -> 
B66: Provision due to balance reserves | C66: =('Loan and Cash Flow Accounts'!C174-'Loan and Cash Flow Accounts'!B174)+('Loan and Cash Flow Accounts'!C173-'Loan and Cash Flow Accounts'!B173)+(ABS('Loan and Cash Flow Accounts'!C171)-ABS('Loan and Cash Flow Accounts'!B171)) -> 0 | D66: =('Loan and Cash Flow Accounts'!D174-'Loan and Cash Flow Accounts'!C174)+('Loan and Cash Flow Accounts'!D173-'Loan and Cash Flow Accounts'!C173)+(ABS('Loan and Cash Flow Accounts'!D171)-ABS('Loan and Cash Flow Accounts'!C171)) -> 0 | E66: =('Loan and Cash Flow Accounts'!E174-'Loan and Cash Flow Accounts'!D174)+('Loan and Cash Flow Accounts'!E173-'Loan and Cash Flow Accounts'!D173)+(ABS('Loan and Cash Flow Accounts'!E171)-ABS('Loan and Cash Flow Accounts'!D171)) -> 0 | F66: =('Loan and Cash Flow Accounts'!F174-'Loan and Cash Flow Accounts'!E174)+('Loan and Cash Flow Accounts'!F173-'Loan and Cash Flow Accounts'!E173)+(ABS('Loan and Cash Flow Accounts'!F171)-ABS('Loan and Cash Flow Accounts'!E171)) -> 0 | G66: =('Loan and Cash Flow Accounts'!G174-'Loan and Cash Flow Accounts'!F174)+('Loan and Cash Flow Accounts'!G173-'Loan and Cash Flow Accounts'!F173)+(ABS('Loan and Cash Flow Accounts'!G171)-ABS('Loan and Cash Flow Accounts'!F171)) -> 0 | H66: =('Loan and Cash Flow Accounts'!H174-'Loan and Cash Flow Accounts'!G174)+('Loan and Cash Flow Accounts'!H173-'Loan and Cash Flow Accounts'!G173)+(ABS('Loan and Cash Flow Accounts'!H171)-ABS('Loan and Cash Flow Accounts'!G171)) -> 0 | I66: =('Loan and Cash Flow Accounts'!I174-'Loan and Cash Flow Accounts'!H174)+('Loan and Cash Flow Accounts'!I173-'Loan and Cash Flow Accounts'!H173)+(ABS('Loan and Cash Flow Accounts'!I171)-ABS('Loan and Cash Flow Accounts'!H171)) -> 0 | J66: =('Loan and Cash Flow Accounts'!J174-'Loan and Cash Flow Accounts'!I174)+('Loan and Cash Flow Accounts'!J173-'Loan and Cash Flow Accounts'!I173)+(ABS('Loan and Cash Flow Accounts'!J171)-ABS('Loan and Cash Flow Accounts'!I171)) -> 0 | K66: =('Loan and Cash Flow Accounts'!K174-'Loan and Cash Flow Accounts'!J174)+('Loan and Cash Flow Accounts'!K173-'Loan and Cash Flow Accounts'!J173)+(ABS('Loan and Cash Flow Accounts'!K171)-ABS('Loan and Cash Flow Accounts'!J171)) -> 0 | L66: =('Loan and Cash Flow Accounts'!L174-'Loan and Cash Flow Accounts'!K174)+('Loan and Cash Flow Accounts'!L173-'Loan and Cash Flow Accounts'!K173)+(ABS('Loan and Cash Flow Accounts'!L171)-ABS('Loan and Cash Flow Accounts'!K171)) -> 0
A67: Total Other Expenses | C67: =SUM(C64:C66) ->  | D67: =SUM(D64:D66) -> 
A69: Income Before Taxes | C69: =C43+C61-C67 -> 
A71: Tax Calculations
A72: Taxable Income | C72: =C43+C61-C64-C65+'Balance Sheets'!C64 ->  | D72: =D43+D61-D64-D65+'Balance Sheets'!D64 ->  | E72: =E43+E61-E64-E65+'Balance Sheets'!E64 ->  | F72: =F43+F61-F64-F65+'Balance Sheets'!F64 ->  | G72: =G43+G61-G64-G65+'Balance Sheets'!G64 ->  | H72: =H43+H61-H64-H65+'Balance Sheets'!H64 ->  | I72: =I43+I61-I64-I65+'Balance Sheets'!I64 ->  | J72: =J43+J61-J64-J65+'Balance Sheets'!J64 ->  | K72: =K43+K61-K64-K65+'Balance Sheets'!K64 ->  | L72: =L43+L61-L64-L65+'Balance Sheets'!L64 -> 
A73: Gross Income Tax Liability | C73: =IF((C72)<0,0,VLOOKUP((C72),'Assumptions & Relationships'!$B75:$F82,3)+VLOOKUP((C72),'Assumptions & Relationships'!$B75:$F82,4)*((C72)-VLOOKUP((C72),'Assumptions & Relationships'!$B75:$F82,5))) ->  | D73: =IF((D72)<0,0,VLOOKUP((D72),'Assumptions & Relationships'!$B75:$F82,3)+VLOOKUP((D72),'Assumptions & Relationships'!$B75:$F82,4)*((D72)-VLOOKUP((D72),'Assumptions & Relationships'!$B75:$F82,5))) ->  | E73: =IF((E72)<0,0,VLOOKUP((E72),'Assumptions & Relationships'!$B75:$F82,3)+VLOOKUP((E72),'Assumptions & Relationships'!$B75:$F82,4)*((E72)-VLOOKUP((E72),'Assumptions & Relationships'!$B75:$F82,5))) ->  | F73: =IF((F72)<0,0,VLOOKUP((F72),'Assumptions & Relationships'!$B75:$F82,3)+VLOOKUP((F72),'Assumptions & Relationships'!$B75:$F82,4)*((F72)-VLOOKUP((F72),'Assumptions & Relationships'!$B75:$F82,5))) ->  | G73: =IF((G72)<0,0,VLOOKUP((G72),'Assumptions & Relationships'!$B75:$F82,3)+VLOOKUP((G72),'Assumptions & Relationships'!$B75:$F82,4)*((G72)-VLOOKUP((G72),'Assumptions & Relationships'!$B75:$F82,5))) ->  | H73: =IF((H72)<0,0,VLOOKUP((H72),'Assumptions & Relationships'!$B75:$F82,3)+VLOOKUP((H72),'Assumptions & Relationships'!$B75:$F82,4)*((H72)-VLOOKUP((H72),'Assumptions & Relationships'!$B75:$F82,5))) ->  | I73: =IF((I72)<0,0,VLOOKUP((I72),'Assumptions & Relationships'!$B75:$F82,3)+VLOOKUP((I72),'Assumptions & Relationships'!$B75:$F82,4)*((I72)-VLOOKUP((I72),'Assumptions & Relationships'!$B75:$F82,5))) ->  | J73: =IF((J72)<0,0,VLOOKUP((J72),'Assumptions & Relationships'!$B75:$F82,3)+VLOOKUP((J72),'Assumptions & Relationships'!$B75:$F82,4)*((J72)-VLOOKUP((J72),'Assumptions & Relationships'!$B75:$F82,5))) ->  | K73: =IF((K72)<0,0,VLOOKUP((K72),'Assumptions & Relationships'!$B75:$F82,3)+VLOOKUP((K72),'Assumptions & Relationships'!$B75:$F82,4)*((K72)-VLOOKUP((K72),'Assumptions & Relationships'!$B75:$F82,5))) ->  | L73: =IF((L72)<0,0,VLOOKUP((L72),'Assumptions & Relationships'!$B75:$F82,3)+VLOOKUP((L72),'Assumptions & Relationships'!$B75:$F82,4)*((L72)-VLOOKUP((L72),'Assumptions & Relationships'!$B75:$F82,5))) -> 
A74: Recapture/Credits | C74: =IF(AND((B84<0),((C72)>0)),-MIN((C72),-B84)*'Assumptions & Relationships'!$E79,0)+IF(AND(((C72)<0),(C86>0)),-MIN(C86,-(C72)*'Assumptions & Relationships'!$E79),0) ->  | D74: =IF(AND((C84<0),((D43+D61-D64-D65+'Balance Sheets'!D64)>0)),MAX(-D73,-MIN((D43+D61-D64-D65+'Balance Sheets'!D64),-C84)*'Assumptions & Relationships'!$E79),0)+IF(AND(((D43+D61-D64-D65+'Balance Sheets'!D64)<0),(D86>0)),-MIN(D86,-(D43+D61-D64-D65+'Balance Sheets'!D64)*'Assumptions & Relationships'!$E79),0) ->  | E74: =IF(AND((D84<0),((E43+E61-E64-E65+'Balance Sheets'!E64)>0)),MAX(-E73,-MIN((E43+E61-E64-E65+'Balance Sheets'!E64),-D84)*'Assumptions & Relationships'!$E79),0)+IF(AND(((E43+E61-E64-E65+'Balance Sheets'!E64)<0),(E86>0)),-MIN(E86,-(E43+E61-E64-E65+'Balance Sheets'!E64)*'Assumptions & Relationships'!$E79),0) ->  | F74: =IF(AND((E84<0),((F43+F61-F64-F65+'Balance Sheets'!F64)>0)),MAX(-F73,-MIN((F43+F61-F64-F65+'Balance Sheets'!F64),-E84)*'Assumptions & Relationships'!$E79),0)+IF(AND(((F43+F61-F64-F65+'Balance Sheets'!F64)<0),(F86>0)),-MIN(F86,-(F43+F61-F64-F65+'Balance Sheets'!F64)*'Assumptions & Relationships'!$E79),0) ->  | G74: =IF(AND((F84<0),((G43+G61-G64-G65+'Balance Sheets'!G64)>0)),MAX(-G73,-MIN((G43+G61-G64-G65+'Balance Sheets'!G64),-F84)*'Assumptions & Relationships'!$E79),0)+IF(AND(((G43+G61-G64-G65+'Balance Sheets'!G64)<0),(G86>0)),-MIN(G86,-(G43+G61-G64-G65+'Balance Sheets'!G64)*'Assumptions & Relationships'!$E79),0) ->  | H74: =IF(AND((G84<0),((H43+H61-H64-H65+'Balance Sheets'!H64)>0)),MAX(-H73,-MIN((H43+H61-H64-H65+'Balance Sheets'!H64),-G84)*'Assumptions & Relationships'!$E79),0)+IF(AND(((H43+H61-H64-H65+'Balance Sheets'!H64)<0),(H86>0)),-MIN(H86,-(H43+H61-H64-H65+'Balance Sheets'!H64)*'Assumptions & Relationships'!$E79),0) ->  | I74: =IF(AND((H84<0),((I43+I61-I64-I65+'Balance Sheets'!I64)>0)),MAX(-I73,-MIN((I43+I61-I64-I65+'Balance Sheets'!I64),-H84)*'Assumptions & Relationships'!$E79),0)+IF(AND(((I43+I61-I64-I65+'Balance Sheets'!I64)<0),(I86>0)),-MIN(I86,-(I43+I61-I64-I65+'Balance Sheets'!I64)*'Assumptions & Relationships'!$E79),0) ->  | J74: =IF(AND((I84<0),((J43+J61-J64-J65+'Balance Sheets'!J64)>0)),MAX(-J73,-MIN((J43+J61-J64-J65+'Balance Sheets'!J64),-I84)*'Assumptions & Relationships'!$E79),0)+IF(AND(((J43+J61-J64-J65+'Balance Sheets'!J64)<0),(J86>0)),-MIN(J86,-(J43+J61-J64-J65+'Balance Sheets'!J64)*'Assumptions & Relationships'!$E79),0) ->  | K74: =IF(AND((J84<0),((K43+K61-K64-K65+'Balance Sheets'!K64)>0)),MAX(-K73,-MIN((K43+K61-K64-K65+'Balance Sheets'!K64),-J84)*'Assumptions & Relationships'!$E79),0)+IF(AND(((K43+K61-K64-K65+'Balance Sheets'!K64)<0),(K86>0)),-MIN(K86,-(K43+K61-K64-K65+'Balance Sheets'!K64)*'Assumptions & Relationships'!$E79),0) ->  | L74: =IF(AND((K84<0),((L43+L61-L64-L65+'Balance Sheets'!L64)>0)),MAX(-L73,-MIN((L43+L61-L64-L65+'Balance Sheets'!L64),-K84)*'Assumptions & Relationships'!$E79),0)+IF(AND(((L43+L61-L64-L65+'Balance Sheets'!L64)<0),(L86>0)),-MIN(L86,-(L43+L61-L64-L65+'Balance Sheets'!L64)*'Assumptions & Relationships'!$E79),0) -> 
A75: Net Tax Due | C75: =SUM(C73:C74) ->  | D75: =SUM(D73:D74) -> 
A77: Net Income (after tax) | C77: =C69-C75 ->  | D77: =D69-D75 -> 
A80: Transfer section for Retained Earnings and Tax Calculations
B82: t0 | C82: t1 | D82: t2 | E82: t3 | F82: t4 | G82: t5 | H82: t6 | I82: t7 | J82: t8 | K82: t9 | L82: t10
A83: Retained Earnings | B83: ='Data Inputs'!B62 -> 0 | C83: =B83+C77 ->  | D83: =C83+D77 -> 
A84: Available for Carryforward against Losses | B84: =MIN(0,B83) -> 0 | C84: =IF(AND((C43+C61-C64-C65+'Balance Sheets'!C64)>0,B84<0),MIN(0,(C43+C61-C64-C65+'Balance Sheets'!C64)+B84),B84+MIN(0,(C43+C61-C64-C65+'Balance Sheets'!C64))-IF(AND((C43+C61-C64-C65+'Balance Sheets'!C64)<0,C86>0),C74/'Assumptions & Relationships'!$E79,0)) ->  | D84: =IF(AND((D43+D61-D64-D65+'Balance Sheets'!D64)>0,C84<0),MIN(0,(D43+D61-D64-D65+'Balance Sheets'!D64)+C84),C84+MIN(0,(D43+D61-D64-D65+'Balance Sheets'!D64))-IF(AND((D43+D61-D64-D65+'Balance Sheets'!D64)<0,D86>0),D74/'Assumptions & Relationships'!$E79,0)) ->  | E84: =IF(AND((E43+E61-E64-E65+'Balance Sheets'!E64)>0,D84<0),MIN(0,(E43+E61-E64-E65+'Balance Sheets'!E64)+D84),D84+MIN(0,(E43+E61-E64-E65+'Balance Sheets'!E64))-IF(AND((E43+E61-E64-E65+'Balance Sheets'!E64)<0,E86>0),E74/'Assumptions & Relationships'!$E79,0)) ->  | F84: =IF(AND((F43+F61-F64-F65+'Balance Sheets'!F64)>0,E84<0),MIN(0,(F43+F61-F64-F65+'Balance Sheets'!F64)+E84),E84+MIN(0,(F43+F61-F64-F65+'Balance Sheets'!F64))-IF(AND((F43+F61-F64-F65+'Balance Sheets'!F64)<0,F86>0),F74/'Assumptions & Relationships'!$E79,0)) ->  | G84: =IF(AND((G43+G61-G64-G65+'Balance Sheets'!G64)>0,F84<0),MIN(0,(G43+G61-G64-G65+'Balance Sheets'!G64)+F84),F84+MIN(0,(G43+G61-G64-G65+'Balance Sheets'!G64))-IF(AND((G43+G61-G64-G65+'Balance Sheets'!G64)<0,G86>0),G74/'Assumptions & Relationships'!$E79,0)) ->  | H84: =IF(AND((H43+H61-H64-H65+'Balance Sheets'!H64)>0,G84<0),MIN(0,(H43+H61-H64-H65+'Balance Sheets'!H64)+G84),G84+MIN(0,(H43+H61-H64-H65+'Balance Sheets'!H64))-IF(AND((H43+H61-H64-H65+'Balance Sheets'!H64)<0,H86>0),H74/'Assumptions & Relationships'!$E79,0)) ->  | I84: =IF(AND((I43+I61-I64-I65+'Balance Sheets'!I64)>0,H84<0),MIN(0,(I43+I61-I64-I65+'Balance Sheets'!I64)+H84),H84+MIN(0,(I43+I61-I64-I65+'Balance Sheets'!I64))-IF(AND((I43+I61-I64-I65+'Balance Sheets'!I64)<0,I86>0),I74/'Assumptions & Relationships'!$E79,0)) ->  | J84: =IF(AND((J43+J61-J64-J65+'Balance Sheets'!J64)>0,I84<0),MIN(0,(J43+J61-J64-J65+'Balance Sheets'!J64)+I84),I84+MIN(0,(J43+J61-J64-J65+'Balance Sheets'!J64))-IF(AND((J43+J61-J64-J65+'Balance Sheets'!J64)<0,J86>0),J74/'Assumptions & Relationships'!$E79,0)) ->  | K84: =IF(AND((K43+K61-K64-K65+'Balance Sheets'!K64)>0,J84<0),MIN(0,(K43+K61-K64-K65+'Balance Sheets'!K64)+J84),J84+MIN(0,(K43+K61-K64-K65+'Balance Sheets'!K64))-IF(AND((K43+K61-K64-K65+'Balance Sheets'!K64)<0,K86>0),K74/'Assumptions & Relationships'!$E79,0)) ->  | L84: =IF(AND((L43+L61-L64-L65+'Balance Sheets'!L64)>0,K84<0),MIN(0,(L43+L61-L64-L65+'Balance Sheets'!L64)+K84),K84+MIN(0,(L43+L61-L64-L65+'Balance Sheets'!L64))-IF(AND((L43+L61-L64-L65+'Balance Sheets'!L64)<0,L86>0),L74/'Assumptions & Relationships'!$E79,0)) -> 
A85: Prev 1-yr tax pd. | C85: ='Data Inputs'!B304 -> 0 | D85: =C75 ->  | E85: =D75 -> 
A86: Prev 2-yr tax pd. | C86: ='Data Inputs'!B305 -> 0 | D86: =C85+C75 -> 

Sheet Balance Sheets
A1: This sheet contains: Balance sheet information
A2: Instructions: None -- Sheet is computational.
B4: Initial Balances | C4: Proforma Balance Sheets on Annual Bases
B5: ='Data Inputs'!B4 -> 2018-03-31 | C5: =DATE(YEAR(B5)+1,MONTH(B5),DAY(B5)) -> 2019-03-31 | D5: =DATE(YEAR(C5)+1,MONTH(C5),DAY(C5)) -> 2020-03-31 | E5: 2021-03-31 | F5: 2022-03-31 | G5: 2023-03-31 | H5: 2024-03-31 | I5: 2025-03-31 | J5: 2026-03-31 | K5: 2027-03-31 | L5: 2028-03-31
A7: Assets: | B7: t0 | C7: t1 | D7: t2 | E7: t3 | F7: t4 | G7: t5 | H7: t6 | I7: t7 | J7: t8 | K7: t9 | L7: t10
A8: Cash and cash equivalents | B8: ='Loan and Cash Flow Accounts'!B45+'Loan and Cash Flow Accounts'!B50 -> 0 | C8: ='Loan and Cash Flow Accounts'!C45+'Loan and Cash Flow Accounts'!C50 -> 0 | D8: ='Loan and Cash Flow Accounts'!D45+'Loan and Cash Flow Accounts'!D50 -> 0 | E8: ='Loan and Cash Flow Accounts'!E45+'Loan and Cash Flow Accounts'!E50 -> 0 | F8: ='Loan and Cash Flow Accounts'!F45+'Loan and Cash Flow Accounts'!F50 -> 0 | G8: ='Loan and Cash Flow Accounts'!G45+'Loan and Cash Flow Accounts'!G50 -> 0 | H8: ='Loan and Cash Flow Accounts'!H45+'Loan and Cash Flow Accounts'!H50 -> 0 | I8: ='Loan and Cash Flow Accounts'!I45+'Loan and Cash Flow Accounts'!I50 -> 0 | J8: ='Loan and Cash Flow Accounts'!J45+'Loan and Cash Flow Accounts'!J50 -> 0 | K8: ='Loan and Cash Flow Accounts'!K45+'Loan and Cash Flow Accounts'!K50 -> 0 | L8: ='Loan and Cash Flow Accounts'!L45+'Loan and Cash Flow Accounts'!L50 -> 0
A9: Investment Securities | B9: =SUM('Loan and Cash Flow Accounts'!B55,'Loan and Cash Flow Accounts'!B60,'Loan and Cash Flow Accounts'!B65,'Loan and Cash Flow Accounts'!B70) -> 0 | C9: =SUM('Loan and Cash Flow Accounts'!C55,'Loan and Cash Flow Accounts'!C60,'Loan and Cash Flow Accounts'!C65,'Loan and Cash Flow Accounts'!C70) -> 0 | D9: =SUM('Loan and Cash Flow Accounts'!D55,'Loan and Cash Flow Accounts'!D60,'Loan and Cash Flow Accounts'!D65,'Loan and Cash Flow Accounts'!D70) -> 0 | E9: =SUM('Loan and Cash Flow Accounts'!E55,'Loan and Cash Flow Accounts'!E60,'Loan and Cash Flow Accounts'!E65,'Loan and Cash Flow Accounts'!E70) -> 0 | F9: =SUM('Loan and Cash Flow Accounts'!F55,'Loan and Cash Flow Accounts'!F60,'Loan and Cash Flow Accounts'!F65,'Loan and Cash Flow Accounts'!F70) -> 0 | G9: =SUM('Loan and Cash Flow Accounts'!G55,'Loan and Cash Flow Accounts'!G60,'Loan and Cash Flow Accounts'!G65,'Loan and Cash Flow Accounts'!G70) -> 0 | H9: =SUM('Loan and Cash Flow Accounts'!H55,'Loan and Cash Flow Accounts'!H60,'Loan and Cash Flow Accounts'!H65,'Loan and Cash Flow Accounts'!H70) -> 0 | I9: =SUM('Loan and Cash Flow Accounts'!I55,'Loan and Cash Flow Accounts'!I60,'Loan and Cash Flow Accounts'!I65,'Loan and Cash Flow Accounts'!I70) -> 0 | J9: =SUM('Loan and Cash Flow Accounts'!J55,'Loan and Cash Flow Accounts'!J60,'Loan and Cash Flow Accounts'!J65,'Loan and Cash Flow Accounts'!J70) -> 0 | K9: =SUM('Loan and Cash Flow Accounts'!K55,'Loan and Cash Flow Accounts'!K60,'Loan and Cash Flow Accounts'!K65,'Loan and Cash Flow Accounts'!K70) -> 0 | L9: =SUM('Loan and Cash Flow Accounts'!L55,'Loan and Cash Flow Accounts'!L60,'Loan and Cash Flow Accounts'!L65,'Loan and Cash Flow Accounts'!L70) -> 0
A10: Farmer Mac guaranteed securities | B10: ='Loan and Cash Flow Accounts'!B76+'Loan and Cash Flow Accounts'!B81+'Loan and Cash Flow Accounts'!B85+'Loan and Cash Flow Accounts'!B90+'Loan and Cash Flow Accounts'!B100+'Loan and Cash Flow Accounts'!B118+'Loan and Cash Flow Accounts'!B112+'Loan and Cash Flow Accounts'!B125+'Loan and Cash Flow Accounts'!B131+'Loan and Cash Flow Accounts'!B137+'Loan and Cash Flow Accounts'!B143+'Loan and Cash Flow Accounts'!B149 -> 0 | C10: ='Loan and Cash Flow Accounts'!C76+'Loan and Cash Flow Accounts'!C81+'Loan and Cash Flow Accounts'!C85+'Loan and Cash Flow Accounts'!C90+'Loan and Cash Flow Accounts'!C100+'Loan and Cash Flow Accounts'!C118+'Loan and Cash Flow Accounts'!C112+'Loan and Cash Flow Accounts'!C125+'Loan and Cash Flow Accounts'!C131+'Loan and Cash Flow Accounts'!C137+'Loan and Cash Flow Accounts'!C143+'Loan and Cash Flow Accounts'!C149 -> 0 | D10: ='Loan and Cash Flow Accounts'!D76+'Loan and Cash Flow Accounts'!D81+'Loan and Cash Flow Accounts'!D85+'Loan and Cash Flow Accounts'!D90+'Loan and Cash Flow Accounts'!D100+'Loan and Cash Flow Accounts'!D118+'Loan and Cash Flow Accounts'!D112+'Loan and Cash Flow Accounts'!D125+'Loan and Cash Flow Accounts'!D131+'Loan and Cash Flow Accounts'!D137+'Loan and Cash Flow Accounts'!D143+'Loan and Cash Flow Accounts'!D149 -> 0 | E10: ='Loan and Cash Flow Accounts'!E76+'Loan and Cash Flow Accounts'!E81+'Loan and Cash Flow Accounts'!E85+'Loan and Cash Flow Accounts'!E90+'Loan and Cash Flow Accounts'!E100+'Loan and Cash Flow Accounts'!E118+'Loan and Cash Flow Accounts'!E112+'Loan and Cash Flow Accounts'!E125+'Loan and Cash Flow Accounts'!E131+'Loan and Cash Flow Accounts'!E137+'Loan and Cash Flow Accounts'!E143+'Loan and Cash Flow Accounts'!E149 -> 0 | F10: ='Loan and Cash Flow Accounts'!F76+'Loan and Cash Flow Accounts'!F81+'Loan and Cash Flow Accounts'!F85+'Loan and Cash Flow Accounts'!F90+'Loan and Cash Flow Accounts'!F100+'Loan and Cash Flow Accounts'!F118+'Loan and Cash Flow Accounts'!F112+'Loan and Cash Flow Accounts'!F125+'Loan and Cash Flow Accounts'!F131+'Loan and Cash Flow Accounts'!F137+'Loan and Cash Flow Accounts'!F143+'Loan and Cash Flow Accounts'!F149 -> 0 | G10: ='Loan and Cash Flow Accounts'!G76+'Loan and Cash Flow Accounts'!G81+'Loan and Cash Flow Accounts'!G85+'Loan and Cash Flow Accounts'!G90+'Loan and Cash Flow Accounts'!G100+'Loan and Cash Flow Accounts'!G118+'Loan and Cash Flow Accounts'!G112+'Loan and Cash Flow Accounts'!G125+'Loan and Cash Flow Accounts'!G131+'Loan and Cash Flow Accounts'!G137+'Loan and Cash Flow Accounts'!G143+'Loan and Cash Flow Accounts'!G149 -> 0 | H10: ='Loan and Cash Flow Accounts'!H76+'Loan and Cash Flow Accounts'!H81+'Loan and Cash Flow Accounts'!H85+'Loan and Cash Flow Accounts'!H90+'Loan and Cash Flow Accounts'!H100+'Loan and Cash Flow Accounts'!H118+'Loan and Cash Flow Accounts'!H112+'Loan and Cash Flow Accounts'!H125+'Loan and Cash Flow Accounts'!H131+'Loan and Cash Flow Accounts'!H137+'Loan and Cash Flow Accounts'!H143+'Loan and Cash Flow Accounts'!H149 -> 0 | I10: ='Loan and Cash Flow Accounts'!I76+'Loan and Cash Flow Accounts'!I81+'Loan and Cash Flow Accounts'!I85+'Loan and Cash Flow Accounts'!I90+'Loan and Cash Flow Accounts'!I100+'Loan and Cash Flow Accounts'!I118+'Loan and Cash Flow Accounts'!I112+'Loan and Cash Flow Accounts'!I125+'Loan and Cash Flow Accounts'!I131+'Loan and Cash Flow Accounts'!I137+'Loan and Cash Flow Accounts'!I143+'Loan and Cash Flow Accounts'!I149 -> 0 | J10: ='Loan and Cash Flow Accounts'!J76+'Loan and Cash Flow Accounts'!J81+'Loan and Cash Flow Accounts'!J85+'Loan and Cash Flow Accounts'!J90+'Loan and Cash Flow Accounts'!J100+'Loan and Cash Flow Accounts'!J118+'Loan and Cash Flow Accounts'!J112+'Loan and Cash Flow Accounts'!J125+'Loan and Cash Flow Accounts'!J131+'Loan and Cash Flow Accounts'!J137+'Loan and Cash Flow Accounts'!J143+'Loan and Cash Flow Accounts'!J149 -> 0 | K10: ='Loan and Cash Flow Accounts'!K76+'Loan and Cash Flow Accounts'!K81+'Loan and Cash Flow Accounts'!K85+'Loan and Cash Flow Accounts'!K90+'Loan and Cash Flow Accounts'!K100+'Loan and Cash Flow Accounts'!K118+'Loan and Cash Flow Accounts'!K112+'Loan and Cash Flow Accounts'!K125+'Loan and Cash Flow Accounts'!K131+'Loan and Cash Flow Accounts'!K137+'Loan and Cash Flow Accounts'!K143+'Loan and Cash Flow Accounts'!K149 -> 0 | L10: ='Loan and Cash Flow Accounts'!L76+'Loan and Cash Flow Accounts'!L81+'Loan and Cash Flow Accounts'!L85+'Loan and Cash Flow Accounts'!L90+'Loan and Cash Flow Accounts'!L100+'Loan and Cash Flow Accounts'!L118+'Loan and Cash Flow Accounts'!L112+'Loan and Cash Flow Accounts'!L125+'Loan and Cash Flow Accounts'!L131+'Loan and Cash Flow Accounts'!L137+'Loan and Cash Flow Accounts'!L143+'Loan and Cash Flow Accounts'!L149 -> 0
A11: Loans held for securitization | B11: ='Loan and Cash Flow Accounts'!B95 -> 0 | C11: ='Loan and Cash Flow Accounts'!C95 -> 0 | D11: ='Loan and Cash Flow Accounts'!D95 -> 0 | E11: ='Loan and Cash Flow Accounts'!E95 -> 0 | F11: ='Loan and Cash Flow Accounts'!F95 -> 0 | G11: ='Loan and Cash Flow Accounts'!G95 -> 0 | H11: ='Loan and Cash Flow Accounts'!H95 -> 0 | I11: ='Loan and Cash Flow Accounts'!I95 -> 0 | J11: ='Loan and Cash Flow Accounts'!J95 -> 0 | K11: ='Loan and Cash Flow Accounts'!K95 -> 0 | L11: ='Loan and Cash Flow Accounts'!L95 -> 0
A12: Allowance for loan losses (March 31, 2004 and Later) | B12: ='Loan and Cash Flow Accounts'!B171 -> 0 | C12: ='Loan and Cash Flow Accounts'!C171 -> 0 | D12: ='Loan and Cash Flow Accounts'!D171 -> 0 | E12: ='Loan and Cash Flow Accounts'!E171 -> 0 | F12: ='Loan and Cash Flow Accounts'!F171 -> 0 | G12: ='Loan and Cash Flow Accounts'!G171 -> 0 | H12: ='Loan and Cash Flow Accounts'!H171 -> 0 | I12: ='Loan and Cash Flow Accounts'!I171 -> 0 | J12: ='Loan and Cash Flow Accounts'!J171 -> 0 | K12: ='Loan and Cash Flow Accounts'!K171 -> 0 | L12: ='Loan and Cash Flow Accounts'!L171 -> 0
A13: Real estate owned (net) | B13: ='Loan and Cash Flow Accounts'!B153 -> 0 | C13: ='Loan and Cash Flow Accounts'!C153 -> 0 | D13: ='Loan and Cash Flow Accounts'!D153 ->  | E13: ='Loan and Cash Flow Accounts'!E153 ->  | F13: ='Loan and Cash Flow Accounts'!F153 ->  | G13: ='Loan and Cash Flow Accounts'!G153 ->  | H13: ='Loan and Cash Flow Accounts'!H153 ->  | I13: ='Loan and Cash Flow Accounts'!I153 ->  | J13: ='Loan and Cash Flow Accounts'!J153 ->  | K13: ='Loan and Cash Flow Accounts'!K153 ->  | L13: ='Loan and Cash Flow Accounts'!L153 -> 
A14: Financial Derivatives (March 31, 2001 and Later) | B14: ='Data Inputs'!B27 -> 0 | C14: =B14 -> 0 | D14: =C14 -> 0 | E14: 0 | F14: 0 | G14: 0 | H14: 0 | I14: 0 | J14: 0 | K14: 0 | L14: 0
A15: Net implied Gains/Losses re: Book Values etc. | B15: ='Loan and Cash Flow Accounts'!B156 -> 0 | C15: ='Loan and Cash Flow Accounts'!C156 -> 0 | D15: ='Loan and Cash Flow Accounts'!D156 -> 0 | E15: ='Loan and Cash Flow Accounts'!E156 -> 0 | F15: ='Loan and Cash Flow Accounts'!F156 -> 0 | G15: ='Loan and Cash Flow Accounts'!G156 -> 0 | H15: ='Loan and Cash Flow Accounts'!H156 -> 0 | I15: ='Loan and Cash Flow Accounts'!I156 -> 0 | J15: ='Loan and Cash Flow Accounts'!J156 -> 0 | K15: ='Loan and Cash Flow Accounts'!K156 -> 0 | L15: ='Loan and Cash Flow Accounts'!L156 -> 0
A16: Interest receivable | B16: ='Loan and Cash Flow Accounts'!B157 -> 0 | C16: ='Loan and Cash Flow Accounts'!C157 ->  | D16: ='Loan and Cash Flow Accounts'!D157 ->  | E16: ='Loan and Cash Flow Accounts'!E157 ->  | F16: ='Loan and Cash Flow Accounts'!F157 ->  | G16: ='Loan and Cash Flow Accounts'!G157 ->  | H16: ='Loan and Cash Flow Accounts'!H157 ->  | I16: ='Loan and Cash Flow Accounts'!I157 ->  | J16: ='Loan and Cash Flow Accounts'!J157 ->  | K16: ='Loan and Cash Flow Accounts'!K157 ->  | L16: ='Loan and Cash Flow Accounts'!L157 -> 
A17: Guarantee fees receivable | B17: ='Loan and Cash Flow Accounts'!B158 -> 0 | C17: ='Loan and Cash Flow Accounts'!C158 ->  | D17: ='Loan and Cash Flow Accounts'!D158 ->  | E17: ='Loan and Cash Flow Accounts'!E158 ->  | F17: ='Loan and Cash Flow Accounts'!F158 ->  | G17: ='Loan and Cash Flow Accounts'!G158 ->  | H17: ='Loan and Cash Flow Accounts'!H158 ->  | I17: ='Loan and Cash Flow Accounts'!I158 ->  | J17: ='Loan and Cash Flow Accounts'!J158 ->  | K17: ='Loan and Cash Flow Accounts'!K158 ->  | L17: ='Loan and Cash Flow Accounts'!L158 -> 
A18: Deferred tax asset, net | B18: ='Data Inputs'!B30 -> 0 | C18: =B18 -> 0 | D18: =C18 -> 0 | E18: 0 | F18: 0 | G18: 0 | H18: 0 | I18: 0 | J18: 0 | K18: 0 | L18: 0
A19: Prepaid expenses and other assets | B19: ='Loan and Cash Flow Accounts'!B162 -> 0 | C19: ='Loan and Cash Flow Accounts'!C162 ->  | D19: ='Loan and Cash Flow Accounts'!D162 ->  | E19: ='Loan and Cash Flow Accounts'!E162 ->  | F19: ='Loan and Cash Flow Accounts'!F162 ->  | G19: ='Loan and Cash Flow Accounts'!G162 ->  | H19: ='Loan and Cash Flow Accounts'!H162 ->  | I19: ='Loan and Cash Flow Accounts'!I162 ->  | J19: ='Loan and Cash Flow Accounts'!J162 ->  | K19: ='Loan and Cash Flow Accounts'!K162 ->  | L19: ='Loan and Cash Flow Accounts'!L162 -> 
A20: Total assets | B20: =SUM(B8:B19) -> 0 | C20: =SUM(C8:C19) -> 
A22: Liabilities and Stockholders' Equity: | O22: =O17-O29 -> 0
A23: Liabilities: | B23: =B25+B26 -> 0 | C23: =C25+C26 -> 
A24: Notes and bonds payable, net:
A25: Due within one year | B25: ='Loan and Cash Flow Accounts'!B165 -> 0 | C25: ='Loan and Cash Flow Accounts'!$B$21*(C$34-C$33-C30-C29-C27) ->  | D25: ='Loan and Cash Flow Accounts'!$B$21*(D$34-D$33-D30-D29-D27) ->  | E25: ='Loan and Cash Flow Accounts'!$B$21*(E$34-E$33-E30-E29-E27) ->  | F25: ='Loan and Cash Flow Accounts'!$B$21*(F$34-F$33-F30-F29-F27) ->  | G25: ='Loan and Cash Flow Accounts'!$B$21*(G$34-G$33-G30-G29-G27) ->  | H25: ='Loan and Cash Flow Accounts'!$B$21*(H$34-H$33-H30-H29-H27) ->  | I25: ='Loan and Cash Flow Accounts'!$B$21*(I$34-I$33-I30-I29-I27) ->  | J25: ='Loan and Cash Flow Accounts'!$B$21*(J$34-J$33-J30-J29-J27) ->  | K25: ='Loan and Cash Flow Accounts'!$B$21*(K$34-K$33-K30-K29-K27) ->  | L25: ='Loan and Cash Flow Accounts'!$B$21*(L$34-L$33-L30-L29-L27) -> 
A26: Due after one year | B26: ='Loan and Cash Flow Accounts'!B167 -> 0 | C26: ='Loan and Cash Flow Accounts'!$B$22*(C$34-C$33-C30-C29-C27) ->  | D26: ='Loan and Cash Flow Accounts'!$B$22*(D$34-D$33-D30-D29-D27) ->  | E26: ='Loan and Cash Flow Accounts'!$B$22*(E$34-E$33-E30-E29-E27) ->  | F26: ='Loan and Cash Flow Accounts'!$B$22*(F$34-F$33-F30-F29-F27) ->  | G26: ='Loan and Cash Flow Accounts'!$B$22*(G$34-G$33-G30-G29-G27) ->  | H26: ='Loan and Cash Flow Accounts'!$B$22*(H$34-H$33-H30-H29-H27) ->  | I26: ='Loan and Cash Flow Accounts'!$B$22*(I$34-I$33-I30-I29-I27) ->  | J26: ='Loan and Cash Flow Accounts'!$B$22*(J$34-J$33-J30-J29-J27) ->  | K26: ='Loan and Cash Flow Accounts'!$B$22*(K$34-K$33-K30-K29-K27) ->  | L26: ='Loan and Cash Flow Accounts'!$B$22*(L$34-L$33-L30-L29-L27) -> 
A27: Financial Derivatives (March 31, 2001 and Later) | B27: ='Data Inputs'!B41 -> 0 | C27: =B27 -> 0 | D27: =C27 -> 0 | E27: 0 | F27: 0 | G27: 0 | H27: 0 | I27: 0 | J27: 0 | K27: 0 | L27: 0
A28: Accrued interest payable | B28: ='Loan and Cash Flow Accounts'!B168 -> 0 | C28: ='Loan and Cash Flow Accounts'!$B$23*(C$34-C$33-C30-C29-C27) ->  | D28: ='Loan and Cash Flow Accounts'!$B$23*(D$34-D$33-D30-D29-D27) ->  | E28: ='Loan and Cash Flow Accounts'!$B$23*(E$34-E$33-E30-E29-E27) ->  | F28: ='Loan and Cash Flow Accounts'!$B$23*(F$34-F$33-F30-F29-F27) ->  | G28: ='Loan and Cash Flow Accounts'!$B$23*(G$34-G$33-G30-G29-G27) ->  | H28: ='Loan and Cash Flow Accounts'!$B$23*(H$34-H$33-H30-H29-H27) ->  | I28: ='Loan and Cash Flow Accounts'!$B$23*(I$34-I$33-I30-I29-I27) ->  | J28: ='Loan and Cash Flow Accounts'!$B$23*(J$34-J$33-J30-J29-J27) ->  | K28: ='Loan and Cash Flow Accounts'!$B$23*(K$34-K$33-K30-K29-K27) ->  | L28: ='Loan and Cash Flow Accounts'!$B$23*(L$34-L$33-L30-L29-L27) -> 
A29: Guarantee and commitment obligation (Fin 45) excl Prob Loss Amt | B29: ='Loan and Cash Flow Accounts'!B172 -> 0 | C29: ='Loan and Cash Flow Accounts'!C172 ->  | D29: ='Loan and Cash Flow Accounts'!D172 ->  | E29: ='Loan and Cash Flow Accounts'!E172 ->  | F29: ='Loan and Cash Flow Accounts'!F172 ->  | G29: ='Loan and Cash Flow Accounts'!G172 ->  | H29: ='Loan and Cash Flow Accounts'!H172 ->  | I29: ='Loan and Cash Flow Accounts'!I172 ->  | J29: ='Loan and Cash Flow Accounts'!J172 ->  | K29: ='Loan and Cash Flow Accounts'!K172 ->  | L29: ='Loan and Cash Flow Accounts'!L172 -> 
A30: Guarantee and commitment obligation (Fin 45) for Probable Losses | B30: ='Loan and Cash Flow Accounts'!B173 -> 0 | C30: ='Loan and Cash Flow Accounts'!C173 -> 0 | D30: ='Loan and Cash Flow Accounts'!D173 -> 0 | E30: ='Loan and Cash Flow Accounts'!E173 -> 0 | F30: ='Loan and Cash Flow Accounts'!F173 -> 0 | G30: ='Loan and Cash Flow Accounts'!G173 -> 0 | H30: ='Loan and Cash Flow Accounts'!H173 -> 0 | I30: ='Loan and Cash Flow Accounts'!I173 -> 0 | J30: ='Loan and Cash Flow Accounts'!J173 -> 0 | K30: ='Loan and Cash Flow Accounts'!K173 -> 0 | L30: ='Loan and Cash Flow Accounts'!L173 -> 0
A31: Accounts payable and accrued expenses | B31: ='Loan and Cash Flow Accounts'!B169 -> 0 | C31: ='Loan and Cash Flow Accounts'!$B$24*(C$34-C$33-C30-C29-C27) ->  | D31: ='Loan and Cash Flow Accounts'!$B$24*(D$34-D$33-D30-D29-D27) ->  | E31: ='Loan and Cash Flow Accounts'!$B$24*(E$34-E$33-E30-E29-E27) ->  | F31: ='Loan and Cash Flow Accounts'!$B$24*(F$34-F$33-F30-F29-F27) ->  | G31: ='Loan and Cash Flow Accounts'!$B$24*(G$34-G$33-G30-G29-G27) ->  | H31: ='Loan and Cash Flow Accounts'!$B$24*(H$34-H$33-H30-H29-H27) ->  | I31: ='Loan and Cash Flow Accounts'!$B$24*(I$34-I$33-I30-I29-I27) ->  | J31: ='Loan and Cash Flow Accounts'!$B$24*(J$34-J$33-J30-J29-J27) ->  | K31: ='Loan and Cash Flow Accounts'!$B$24*(K$34-K$33-K30-K29-K27) ->  | L31: ='Loan and Cash Flow Accounts'!$B$24*(L$34-L$33-L30-L29-L27) -> 
A32: ='Data Inputs'!C45 -> Deferred tax liability - net | B32: ='Data Inputs'!B45 -> 0 | C32: =B32 -> 0 | D32: =C32 -> 0 | E32: 0 | F32: 0 | G32: 0 | H32: 0 | I32: 0 | J32: 0 | K32: 0 | L32: 0
A33: Reserve for losses on guaranteed securities | B33: ='Loan and Cash Flow Accounts'!B174 -> 0 | C33: ='Loan and Cash Flow Accounts'!C174 -> 0 | D33: ='Loan and Cash Flow Accounts'!D174 -> 0 | E33: ='Loan and Cash Flow Accounts'!E174 -> 0 | F33: ='Loan and Cash Flow Accounts'!F174 -> 0 | G33: ='Loan and Cash Flow Accounts'!G174 -> 0 | H33: ='Loan and Cash Flow Accounts'!H174 -> 0 | I33: ='Loan and Cash Flow Accounts'!I174 -> 0 | J33: ='Loan and Cash Flow Accounts'!J174 -> 0 | K33: ='Loan and Cash Flow Accounts'!K174 -> 0 | L33: ='Loan and Cash Flow Accounts'!L174 -> 0
A34: Total liabilities | B34: =SUM(B25:B33) -> 0 | C34: =C20-C50 ->  | D34: =D20-D50 ->  | E34: =E20-E50 -> 
A36: Stockholders' Equity:
A37: Mezzanine Equity
A38: Preferred Stock Series C | B38: ='Data Inputs'!B55 -> 0 | C38: =B38 -> 0 | D38: =C38 -> 0 | E38: 0 | F38: 0 | G38: 0 | H38: 0 | I38: 0 | J38: 0 | K38: 0 | L38: 0
A40: Common stock:
A41: Class A Voting | B41: ='Data Inputs'!B57 -> 0 | C41: =B41 -> 0 | D41: =C41 -> 0 | E41: 0 | F41: 0 | G41: 0 | H41: 0 | I41: 0 | J41: 0 | K41: 0 | L41: 0
A42: Class B Voting | B42: ='Data Inputs'!B58 -> 0 | C42: =B42 -> 0 | D42: =C42 -> 0 | E42: 0 | F42: 0 | G42: 0 | H42: 0 | I42: 0 | J42: 0 | K42: 0 | L42: 0
A43: Class C Voting | B43: ='Data Inputs'!B59 -> 0 | C43: =B43 -> 0 | D43: =C43 -> 0 | E43: 0 | F43: 0 | G43: 0 | H43: 0 | I43: 0 | J43: 0 | K43: 0 | L43: 0
A45: Preferred Stock | B45: ='Data Inputs'!B64 -> 0 | C45: =B45 -> 0 | D45: =C45 -> 0 | E45: 0 | F45: 0 | G45: 0 | H45: 0 | I45: 0 | J45: 0 | K45: 0 | L45: 0
A46: Additional paid-in capital | B46: ='Data Inputs'!B60 -> 0 | C46: =B46+Capital!C14 -> -506957.2538 | D46: =C46 -> -506957.2538 | E46: -506957.2538 | F46: -506957.2538 | G46: -506957.2538 | H46: -506957.2538 | I46: -506957.2538 | J46: -506957.2538 | K46: -506957.2538 | L46: -506957.2538
A47: MTM gain or loss and Carry Cost T1 MVE | B47: 0 | C47: =B47+C64 ->  | D47: =C47+D64 ->  | F47: =E47+F64 -> 
A48: Accumulated Other Comprehensive Income | B48: ='Data Inputs'!B61 -> 0 | C48: =B48 -> 0 | D48: =C48 -> 0 | E48: 0 | F48: 0 | G48: 0 | H48: 0 | I48: 0 | J48: 0 | K48: 0 | L48: 0
A49: Accumulated Retained Earnings and Other Adj. | B49: ='Income Statements'!B83 -> 0 | C49: ='Income Statements'!C83 ->  | D49: ='Income Statements'!D83 ->  | E49: ='Income Statements'!E83 ->  | F49: ='Income Statements'!F83 ->  | G49: ='Income Statements'!G83 ->  | H49: ='Income Statements'!H83 ->  | I49: ='Income Statements'!I83 ->  | J49: ='Income Statements'!J83 ->  | K49: ='Income Statements'!K83 ->  | L49: ='Income Statements'!L83 -> 
A50: Total stockholders' equity | B50: =SUM(B38:B49) -> 0 | C50: =SUM(C38:C49) ->  | D50: =SUM(D38:D49) -> 
A51: =IF(OR(B51<-1,B51>1),"DOES NOT BALANCE BY","") ->  | B51: =B20-B34 -> 0
A52: =IF(B51=0,"","Implied Equity") ->  | B52: =B51-B50 -> 0 | C52: (diff from ind reconcile -- due to the deferred tax asset)
A53: Off Balance Sheet Assets
A54: a1. Unpaid Farmer Mac I Balances | B54: ='Loan and Cash Flow Accounts'!B180+'Loan and Cash Flow Accounts'!B185 -> 0 | C54: ='Loan and Cash Flow Accounts'!C180+'Loan and Cash Flow Accounts'!C185 -> 0 | D54: ='Loan and Cash Flow Accounts'!D180+'Loan and Cash Flow Accounts'!D185 -> 0 | E54: ='Loan and Cash Flow Accounts'!E180+'Loan and Cash Flow Accounts'!E185 -> 0 | F54: ='Loan and Cash Flow Accounts'!F180+'Loan and Cash Flow Accounts'!F185 -> 0 | G54: ='Loan and Cash Flow Accounts'!G180+'Loan and Cash Flow Accounts'!G185 -> 0 | H54: ='Loan and Cash Flow Accounts'!H180+'Loan and Cash Flow Accounts'!H185 -> 0 | I54: ='Loan and Cash Flow Accounts'!I180+'Loan and Cash Flow Accounts'!I185 -> 0 | J54: ='Loan and Cash Flow Accounts'!J180+'Loan and Cash Flow Accounts'!J185 -> 0 | K54: ='Loan and Cash Flow Accounts'!K180+'Loan and Cash Flow Accounts'!K185 -> 0 | L54: ='Loan and Cash Flow Accounts'!L180+'Loan and Cash Flow Accounts'!L185 -> 0
